{"text_format":"1","workbook":"xlsx","n_sheets":5,"sheets":["Millwall","Comparison","Sheet1","Sheet2","Sheet3"],"not_rendered":{"charts":1,"images":2,"macros":1,"external_links":5,"defined_names":14,"comments":0,"pivot_tables":0},"unopened":[],"bounds":{"document_bytes":16777216,"sheet_cells":100000,"rows_first":2000,"rows_last":500,"rows_between":2000,"halvings":0,"cell_chars":16384,"cell_head_chars":4096},"cells_cut":0,"cells_raw":0,"read":"whole","date_system":"1900"}

{"sheet":"Millwall","index":0,"n_rows":204,"n_cols":147,"rows_kept":204,"cut":false,"hidden":false,"merged":[[4,66,4,67],[2,77,2,79],[69,69,69,71],[69,73,69,75],[69,77,69,79],[65,64,65,98],[2,146,2,158],[2,68,2,71],[2,72,2,75],[50,85,50,87],[50,80,50,82],[50,68,50,70],[50,72,50,74],[50,76,50,78]]}
[null,null,1,"Competition","Date",null,"Us & Them","Opponents",null,null,null,"Score","HT",null,null,null,null,null,null,null,null,null,null,"Att",null,"Pts","Pos","Goal Scorers",null,null,null,null,null,null,null,null,null,null,null,null,null,null,null,null,null,null,null,null,null,null,null,null,null,null,null,null,null,null,null,null,null,null,null,null,null,null,null,null,null,null,null,null,null,null,null,null,null,null,null,null,null,null,null,null,null,null,null,null,null,null,null,null,null,null,null,null,1,1103]
[null,null,null,null,null,null,null,null,null,null,null,null,null,null,null,null,null,null,null,null,null,null,null,null,null,null,null,null,null,null,null,null,null,null,null,null,null,null,null,null,null,"x"]
[null,null,null,null,null,null,null,null,null,null,null,null,"x",null,null,null,null,null,null,null,null,null,null,null,null,null,"x",null,null,null,null,null,null,null,null,null,null,null,null,null,null,"x",null,null,null,null,null,null,null,null,null,null,null,null,null,null,null,null,null,null,null,null,null,null,null,null,null,null,"All",null,null,null,"League",null,null,null,null,"FA Cup",null,null,null,null,null,null,null,null,null,null,null,null,null,null,null,null,null,null,null,null,null,null,null,null,null,null,null,null,null,null,null,null,null,null,null,null,null,null,null,null,null,null,null,null,null,null,null,null,null,null,null,null,null,null,null,null,null,null,null,null,null,null,null,null,null,null,null,null,"Millwall Progress Season 1964/65"]
[null,null,"Game","Competition","Date",null,"Us & Them","Opponents",null,null,null,"Score","HT",null,null,null,null,null,null,null,null,null,null,"Att","Away","Pts","Pos","Goal Scorers",null,null,null,null,"Game","Competition","Date",null,"Opponents",null,null,null,"Score",1,2,3,4,5,6,7,8,9,10,11,null,null,12,null,null,null,null,null,null,null,null,null,null,null,null,null,null,{"$f":"BQ51","v":"Max (44)"},null,null,null,{"$f":"BU51","v":"Max (42)"},null,null,null,{"$f":"BY51","v":"Max (2)"},null,null,null,null,null,null,null,null,null,null,null,null,null,null,null,null,null,null,null,null,1,2,3,4,5,6,7,8,9,10,11,null,11,12,13,14,null,16,17,18,null,null,null,null,null,null,null,null,null,null,null,null,null,null,null,null,null,null,null,null,null,null,"Opposition","Pts","Pos"]
[1,null,1,"Division 2","1933-08-26",null,"- -","Lincoln","(A)",null,null,"W 1-0","0-0","W",1,0,null,null,null,null,null,null,null,10000,null,2,4,"Roberts",null,null,1,null,{"$f":"C5","v":1},"Division 2","1933-08-26",null,"Lincoln","(A)",null,null,"W 1-0","Wilson","Walsh","Pipe","Newcombe","Hancock","Graham","Horton","Roberts","Ranson","Forsyth","Poxton",null,null,null,null,null,null,null,null,null,null,null,null,null,null,"Player      ",null,"Apps","-","-","Goals","Apps","-","-","Goals","Apps","-","-","Goals",null,null,null,null,null,null,null,null,null,null,null,null,null,null,null,null,null,null,"Wilson","Walsh","Pipe","Harkins","Turnbull","Forsyth","Alexander","Phillips","Yardley","Roberts","Fishlock",null,null,null,null,null,null,null,null,null,null,null,null,null,null,null,null,null,null,null,null,null,null,null,null,null,null,null,null,null,null,null,"Lincoln (A) W 1-0",2,4]
[{"$f":"IF(A5=0,1,IF(A5=2,1,2))","v":2},null,2,"Division 2","1933-08-28",null,"4th v 17th","Swansea","(H)",null,null,"W 2-1","0-1","W",2,1,null,null,null,null,null,null,null,10144,null,4,2,"Forsyth, Roberts",null,null,{"$f":"IF(AE5=0,1,IF(AE5=2,1,2))","v":2},null,2,"Division 2","1933-08-28",null,"Swansea","(H)",null,null,"W 2-1","Wilson","Walsh","Pipe","Newcombe","Hancock","Graham","Horton","Roberts","Ranson","Forsyth","Poxton",null,null,null,null,null,null,null,null,null,null,null,null,null,null,null,null,null,null,null,null,null,null,null,null,null,null,null,null,null,null,null,null,null,null,null,null,null,null,null,null,null,null,null,null,null,null,null,null,null,null,null,null,null,null,null,null,null,null,null,null,null,null,null,null,null,null,null,null,null,null,null,null,null,null,null,null,null,null,null,null,null,null,null,null,null,null,null,null,"Swansea (H) W 2-1",4,2]
[1,null,3,"Division 2","1933-09-02",null,"2nd v 10th","Bury","(H)",null,null,"D 0-0","0-0","D",0,0,null,null,null,null,null,null,null,16864,null,5,3,null,null,null,1,null,3,"Division 2","1933-09-02",null,"Bury","(H)",null,null,"D 0-0","Wilson","Walsh","Pipe","Newcombe","Hancock","Graham","Horton","Roberts","Ranson","Harkins","Poxton",null,null,null,null,null,null,null,null,null,null,null,null,1,null,{"$f":"CN7&\" \"&CO7","v":"S Alexander"},null,{"$f":"BU7+BY7+CG7","v":25},"-","-",{"$f":"BX7+CB7","v":1},{"$f":"BR72","v":24},"-","-",1,{"$f":"BZ72","v":1},"-","-",0,null,null,{"$f":"IF(BU7=CF7,IF(BY7=CL7,\"OK\",\"Error\"),\"Error\")","v":"OK"},24,null,null,null,null,null,1,{"$f":"CM72","v":72},"S","Alexander",1,7,null,null,null,"Wilson","Walsh","Pipe","Harkins","Turnbull","Forsyth","Alexander","Phillips","Yardley","Roberts","Fishlock",null,null,null,null,null,null,null,null,null,null,null,null,null,null,null,null,null,null,null,null,null,null,null,null,null,null,null,null,null,null,null,"Bury (H) D 0-0",5,3]
[2,null,4,"Division 2","1933-09-04",null,"3rd v 19th","Swansea","(A)",null,null,"L 0-2","0-0","L",0,2,null,null,null,null,null,null,null,10000,null,5,7,"",null,null,2,null,4,"Division 2","1933-09-04",null,"Swansea","(A)",null,null,"L 0-2","Wilson","Sweetman","Walsh","Newcombe","Hancock","Graham","Horton","Roberts","Ranson","Harkins","Poxton",null,null,null,null,null,null,null,null,null,null,null,null,{"$f":"IF(BM7=0,1,IF(BM7=2,1,2))","v":2},null,"G Bond",null,12,"-","-",{"$f":"BX8+CB8","v":1},11,"-","-",1,1,"-","-",0,null,null,"OK",11,null,null,null,null,null,1,73,"G","Bond",2,8,null,"Alexander","S",null,null,null,null,null,null,null,null,null,null,null,null,null,null,null,null,null,null,null,null,null,null,null,null,null,null,null,null,null,null,null,null,null,null,null,null,null,null,null,null,null,null,"Swansea (A) L 0-2",5,7]
[1,null,5,"Division 2","1933-09-09",null,"7th v 13th","Hull","(A)",null,null,"L 2-3","2-1","L",2,3,null,null,null,null,null,null,null,12000,null,5,11,"Poxton (pen), Horton",null,null,1,null,5,"Division 2","1933-09-09",null,"Hull","(A)",null,null,"L 2-3","Wilson","Sweetman","Walsh","Newcombe","Hancock","Graham","Horton","Roberts","Ranson","Harkins","Poxton",null,null,null,null,null,null,null,null,null,null,null,null,1,null,"R Duffy",null,5,"-","-",0,{"$f":"BR74","v":5},"-","-",{"$f":"BU74","v":0},{"$f":"BZ74","v":0},"-","-",{"$f":"CC74","v":0},null,null,"OK",5,null,null,null,null,null,0,74,"R","Duffy",3,9,null,"Bond","G","No Scorer",null,null,null,null,null,null,null,null,null,null,null,null,null,null,null,null,null,null,null,null,null,null,null,null,null,null,null,null,null,null,null,null,null,null,null,null,null,null,null,null,null,"Hull (A) L 2-3",5,11]
[2,null,6,"Division 2","1933-09-16",null,"12th v 9th","Fulham","(H)",null,null,"L 0-1","0-0","L",0,1,null,null,null,null,null,null,null,20306,null,5,18,null,null,null,2,null,6,"Division 2","1933-09-16",null,"Fulham","(H)",null,null,"L 0-1","Wilson","Sweetman","Walsh","Newcombe","Hancock","Graham","Horton","Roberts","Ranson","Forsyth","Poxton",null,null,null,null,null,null,null,null,null,null,null,null,2,null,"L Fishlock",null,36,"-","-",7,34,"-","-",7,2,"-","-",0,null,null,"OK",34,null,null,null,null,null,2,75,"L","Fishlock",4,10,null,"Duffy","R","Own Goal",null,null,null,null,null,null,null,null,null,null,null,null,null,null,null,null,null,null,null,null,null,null,null,null,null,null,null,null,null,null,null,null,null,null,null,null,null,null,null,null,null,"Fulham (H) L 0-1",5,18]
[1,null,7,"Division 2","1933-09-23",null,"18th v 8th","Southampton","(A)",null,null,"W 3-2","1-1","W",3,2,null,null,null,null,null,null,null,8000,null,7,13,"Ranson (3)",null,null,1,null,7,"Division 2","1933-09-23",null,"Southampton","(A)",null,null,"W 3-2","Wilson","Sweetman","Walsh","Newcombe","Hancock","Forsyth","Horton","Roberts","Ranson","Duffy","Fishlock",null,null,null,null,null,null,null,null,null,null,null,null,1,null,"J Forsyth",null,41,"-","-",3,39,"-","-",3,2,"-","-",0,null,null,"OK",39,null,null,null,null,null,2,76,"J","Forsyth",5,11,null,"Fishlock","L","Alexander","S",null,null,null,null,null,null,null,null,null,null,null,null,null,null,null,null,null,null,null,null,null,null,null,null,null,null,null,null,null,null,null,null,null,null,null,null,null,null,null,null,"Southampton (A) W 3-2",7,13]
[2,null,8,"Division 2","1933-09-30",null,"13th v 11th","Blackpool","(H)",null,null,"D 0-0","0-0","D",0,0,null,null,null,null,null,null,null,18243,null,8,13,null,null,null,2,null,8,"Division 2","1933-09-30",null,"Blackpool","(H)",null,null,"D 0-0","Wilson","Sweetman","Pipe","Newcombe","Hancock","Forsyth","Horton","Roberts","Ranson","Duffy","Fishlock",null,null,null,null,null,null,null,null,null,null,null,null,2,null,"L Graham",null,7,"-","-",0,7,"-","-",0,0,"-","-",0,null,null,"OK",7,null,null,null,null,null,0,77,"L","Graham",6,12,null,"Forsyth","J","Bond","G",null,null,null,null,null,null,null,null,null,null,null,null,null,null,null,null,null,null,null,null,null,null,null,null,null,null,null,null,null,null,null,null,null,null,null,null,null,null,null,null,"Blackpool (H) D 0-0",8,13]
[1,null,9,"Division 2","1933-10-07",null,"13th v 20th","Bradford City","(A)",null,null,"L 0-1","0-1","L",0,1,null,null,null,null,null,null,null,12000,null,8,15,"",null,null,1,null,9,"Division 2","1933-10-07",null,"Bradford City","(A)",null,null,"L 0-1","Wilson","Sweetman","Walsh","Newcombe","Hancock","Forsyth","Horton","Roberts","Ranson","Duffy","Fishlock",null,null,null,null,null,null,null,null,null,null,null,null,1,null,"F Hancock",null,26,"-","-",1,26,"-","-",1,0,"-","-",0,null,null,"OK",26,null,null,null,null,null,0,78,"F","Hancock",7,13,null,"Graham","L","Duffy","R",null,null,null,null,null,null,null,null,null,null,null,null,null,null,null,null,null,null,null,null,null,null,null,null,null,null,null,null,null,null,null,null,null,null,null,null,null,null,null,null,"Bradford City (A) L 0-1",8,15]
[2,null,10,"Division 2","1933-10-14",null,"15th v 2nd","Port Vale","(H)",null,null,"L 0-3","0-2","L",0,3,null,null,null,null,null,null,null,12045,null,8,17,null,null,null,2,null,10,"Division 2","1933-10-14",null,"Port Vale","(H)",null,null,"L 0-3","Wilson","Sweetman","Walsh","Newcombe","Hancock","Swallow","Alexander","Roberts","Horton","Forsyth","Fishlock",null,null,null,null,null,null,null,null,null,null,null,null,2,null,"J Harkins",null,11,"-","-",0,9,"-","-",0,2,"-","-",0,null,null,"OK",9,null,null,null,null,null,2,79,"J","Harkins",8,14,null,"Hancock","F","Fishlock","L",null,null,null,null,null,null,null,null,null,null,null,null,null,null,null,null,null,null,null,null,null,null,null,null,null,null,null,null,null,null,null,null,null,null,null,null,null,null,null,null,"Port Vale (H) L 0-3",8,17]
[1,null,11,"Division 2","1933-10-21",null,"17th v 5th","West Ham","(H)",null,null,"D 2-2","2-1","D",2,2,null,null,null,null,null,null,null,28080,null,9,17,"Fishlock, Horton",null,null,1,null,11,"Division 2","1933-10-21",null,"West Ham","(H)",null,null,"D 2-2","Wilson","Sweetman","Walsh","Newcombe","Hancock","Forsyth","Horton","Alexander","Bond","Duffy","Fishlock",null,null,null,null,null,null,null,null,null,null,null,null,1,null,"J Horton",null,22,"-","-",4,22,"-","-",4,0,"-","-",0,null,null,"OK",22,null,null,null,null,null,0,80,"J","Horton",9,15,null,"Harkins","J","Forsyth","J",null,null,null,null,null,null,null,null,null,null,null,null,null,null,null,null,null,null,null,null,null,null,null,null,null,null,null,null,null,null,null,null,null,null,null,null,null,null,null,null,"West Ham (H) D 2-2",9,17]
[2,null,12,"Division 2","1933-10-28",null,"17th v 15th","Nottm Forest","(A)",null,null,"L 0-2","0-1","L",0,2,null,null,null,null,null,null,null,8000,null,9,20,null,null,null,2,null,12,"Division 2","1933-10-28",null,"Nottm Forest","(A)",null,null,"L 0-2","Wilson","Sweetman","Walsh","Swallow","Hancock","Graham","Horton","Alexander","Bond","Forsyth","Fishlock",null,null,null,null,null,null,null,null,null,null,null,null,2,null,"J McCartney",null,11,"-","-",2,11,"-","-",2,0,"-","-",0,null,null,"OK",11,null,null,null,null,null,0,81,"J","McCartney",10,16,null,"Horton","J","Graham","L",null,null,null,null,null,null,null,null,null,null,null,null,null,null,null,null,null,null,null,null,null,null,null,null,null,null,null,null,null,null,null,null,null,null,null,null,null,null,null,null,"Nottm Forest (A) L 0-2",9,20]
[1,null,13,"Division 2","1933-11-04",null,"20th v 3rd","Grimsby","(H)",null,null,"L 0-1","0-1","L",0,1,null,null,null,null,null,null,null,10931,null,9,21,null,null,null,1,null,13,"Division 2","1933-11-04",null,"Grimsby","(H)",null,null,"L 0-1","Yuill","Sweetman","Walsh","Swallow","Hancock","Forsyth","Horton","Alexander","Bond","Roberts","Fishlock",null,null,null,null,null,null,null,null,null,null,null,null,1,null,"L Newcombe",null,28,"-","-",1,28,"-","-",1,0,"-","-",0,null,null,"OK",28,null,null,null,null,null,0,82,"L","Newcombe",11,17,null,"McCartney","J","Hancock","F",null,null,null,null,null,null,null,null,null,null,null,null,null,null,null,null,null,null,null,null,null,null,null,null,null,null,null,null,null,null,null,null,null,null,null,null,null,null,null,null,"Grimsby (H) L 0-1",9,21]
[2,null,14,"Division 2","1933-11-11",null,"21st v 13th","Bradford PA","(A)",null,null,"L 0-4","0-2","L",0,4,null,null,null,null,null,null,null,9000,null,9,21,"",null,null,2,null,14,"Division 2","1933-11-11",null,"Bradford PA","(A)",null,null,"L 0-4","Yuill","Sweetman","Walsh","Swallow","Hancock","Forsyth","Horton","Alexander","Bond","Ranson","Fishlock",null,null,null,null,null,null,null,null,null,null,null,null,2,null,"G Phillips",null,18,"-","-",6,16,"-","-",4,2,"-","-",2,null,null,"OK",16,null,null,null,null,null,2,83,"G","Phillips",12,18,null,"Newcombe","L","Harkins","J",null,null,null,null,null,null,null,null,null,null,null,null,null,null,null,null,null,null,null,null,null,null,null,null,null,null,null,null,null,null,null,null,null,null,null,null,null,null,null,null,"Bradford PA (A) L 0-4",9,21]
[1,null,15,"Division 2","1933-11-18",null,"21st v 7th","Preston","(H)",null,null,"D 1-1","1-1","D",1,1,null,null,null,null,null,null,null,10801,null,10,21,"Yardley",null,null,1,null,15,"Division 2","1933-11-18",null,"Preston","(H)",null,null,"D 1-1","Yuill","Walsh","Pipe","Newcombe","Hancock","Forsyth","Poxton","Alexander","Yardley","Ranson","Fishlock",null,null,null,null,null,null,null,null,null,null,null,null,1,null,"J Pipe",null,31,"-","-",0,29,"-","-",0,2,"-","-",0,null,null,"OK",29,null,null,null,null,null,2,84,"J","Pipe",13,19,null,"Phillips","G","Horton","J",null,null,null,null,null,null,null,null,null,null,null,null,null,null,null,null,null,null,null,null,null,null,null,null,null,null,null,null,null,null,null,null,null,null,null,null,null,null,null,null,"Preston (H) D 1-1",10,21]
[2,null,16,"Division 2","1933-11-25",null,"21st v 17th","Oldham","(A)",null,null,"L 0-1","0-0","L",0,1,null,null,null,null,null,null,null,6000,null,10,22,"",null,null,2,null,16,"Division 2","1933-11-25",null,"Oldham","(A)",null,null,"L 0-1","Wilson","Walsh","Pipe","Newcombe","Hancock","Forsyth","Ranson","Alexander","Yardley","Harkins","Fishlock",null,null,null,null,null,null,null,null,null,null,null,null,2,null,"J Poxton",null,8,"-","-",1,8,"-","-",1,0,"-","-",0,null,null,"OK",8,null,null,null,null,null,0,85,"J","Poxton",14,20,null,"Pipe","J","McCartney","J",null,null,null,null,null,null,null,null,null,null,null,null,null,null,null,null,null,null,null,null,null,null,null,null,null,null,null,null,null,null,null,null,null,null,null,null,null,null,null,null,"Oldham (A) L 0-1",10,22]
[1,null,17,"Division 2","1933-12-02",null,"22nd v 19th","Burnley","(H)",null,null,"D 0-0","0-0","D",0,0,null,null,null,null,null,null,null,8686,null,11,22,"",null,null,1,null,17,"Division 2","1933-12-02",null,"Burnley","(H)",null,null,"D 0-0","Wilson","Walsh","Pipe","Newcombe","Turnbull","Forsyth","Horton","Phillips","Yardley","Duffy","Fishlock",null,null,null,null,null,null,null,null,null,null,null,null,1,null,"J Ranson",null,14,"-","-",3,14,"-","-",3,0,"-","-",0,null,null,"OK",14,null,null,null,null,null,0,86,"J","Ranson",15,21,null,"Poxton","J","Newcombe","L",null,null,null,null,null,null,null,null,null,null,null,null,null,null,null,null,null,null,null,null,null,null,null,null,null,null,null,null,null,null,null,null,null,null,null,null,null,null,null,null,"Burnley (H) D 0-0",11,22]
[2,null,18,"Division 2","1933-12-09",null,"22nd v 6th","Brentford","(A)",null,null,"L 0-3","0-1","L",0,3,null,null,null,null,null,null,null,22000,null,11,22,"",null,null,2,null,18,"Division 2","1933-12-09",null,"Brentford","(A)",null,null,"L 0-3","Wilson","Walsh","Pipe","Hancock","Turnbull","Forsyth","Horton","Phillips","Yardley","Roberts","Poxton",null,null,null,null,null,null,null,null,null,null,null,null,2,null,"H Roberts",null,35,"-","-",5,33,"-","-",5,2,"-","-",0,null,null,"OK",33,null,null,null,null,null,2,87,"H","Roberts",16,22,null,"Ranson","J","Phillips","G",null,null,null,null,null,null,null,null,null,null,null,null,null,null,null,null,null,null,null,null,null,null,null,null,null,null,null,null,null,null,null,null,null,null,null,null,null,null,null,null,"Brentford (A) L 0-3",11,22]
[1,null,19,"Division 2","1933-12-16",null,"22nd v 3rd","Bolton","(H)",null,null,"W 2-1","1-0","W",2,1,null,null,null,null,null,null,null,10181,null,13,21,"Forsyth, Roberts",null,null,1,null,19,"Division 2","1933-12-16",null,"Bolton","(H)",null,null,"W 2-1","Wilson","Walsh","Pipe","Hancock","Turnbull","Forsyth","Bond","Phillips","Yardley","Roberts","Fishlock",null,null,null,null,null,null,null,null,null,null,null,null,1,null,"W Snaith",null,3,"-","-",0,3,"-","-",0,0,"-","-",0,null,null,"OK",3,null,null,null,null,null,0,88,"W","Snaith",17,23,null,"Roberts","H","Pipe","J",null,null,null,null,null,null,null,null,null,null,null,null,null,null,null,null,null,null,null,null,null,null,null,null,null,null,null,null,null,null,null,null,null,null,null,null,null,null,null,null,"Bolton (H) W 2-1",13,21]
[2,null,20,"Division 2","1933-12-23",null,"21st v 16th","Man Utd","(A)",null,null,"D 1-1","0-1","D",1,1,null,null,null,null,null,null,null,15000,null,14,21,"Yardley",null,null,2,null,20,"Division 2","1933-12-23",null,"Man Utd","(A)",null,null,"D 1-1","Wilson","Walsh","Pipe","Hancock","Turnbull","Forsyth","Bond","Phillips","Yardley","Roberts","Fishlock",null,null,null,null,null,null,null,null,null,null,null,null,2,null,"A Swallow",null,5,"-","-",0,5,"-","-",0,0,"-","-",0,null,null,"OK",5,null,null,null,null,null,0,89,"A","Swallow",18,24,null,"Snaith","W","Poxton","J",null,null,null,null,null,null,null,null,null,null,null,null,null,null,null,null,null,null,null,null,null,null,null,null,null,null,null,null,null,null,null,null,null,null,null,null,null,null,null,null,"Man Utd (A) D 1-1",14,21]
[1,null,21,"Division 2","1933-12-25",null,"21st v 11th","Notts Co","(A)",null,null,"W 1-0","0-0","W",1,0,null,null,null,null,null,null,null,18000,null,16,21,"Bond",null,null,1,null,21,"Division 2","1933-12-25",null,"Notts Co","(A)",null,null,"W 1-0","Wilson","Walsh","Pipe","Hancock","Turnbull","Forsyth","Bond","Phillips","Yardley","Roberts","Fishlock",null,null,null,null,null,null,null,null,null,null,null,null,1,null,"S Sweetman",null,15,"-","-",0,15,"-","-",0,0,"-","-",0,null,null,"OK",15,null,null,null,null,null,0,90,"S","Sweetman",19,25,null,"Swallow","A","Ranson","J",null,null,null,null,null,null,null,null,null,null,null,null,null,null,null,null,null,null,null,null,null,null,null,null,null,null,null,null,null,null,null,null,null,null,null,null,null,null,null,null,"Notts Co (A) W 1-0",16,21]
[2,null,22,"Division 2","1933-12-26",null,"21st v 12th","Notts Co","(H)",null,null,"W 3-2","2-2","W",3,2,null,null,null,null,null,null,null,10172,null,18,20,"Fishlock (2), Phillips",null,null,2,null,22,"Division 2","1933-12-26",null,"Notts Co","(H)",null,null,"W 3-2","Yuill","Walsh","Pipe","Hancock","Turnbull","Forsyth","Bond","Phillips","Yardley","Roberts","Fishlock",null,null,null,null,null,null,null,null,null,null,null,null,2,null,"R Turnbull",null,27,"-","-",0,25,"-","-",0,{"$f":"BZ91","v":2},"-","-",0,null,null,"OK",25,null,null,null,null,null,2,91,"R","Turnbull",20,26,null,"Sweetman","S","Roberts","H",null,null,null,null,null,null,null,null,null,null,null,null,null,null,null,null,null,null,null,null,null,null,null,null,null,null,null,null,null,null,null,null,null,null,null,null,null,null,null,null,"Notts Co (H) W 3-2",18,20]
[1,null,23,"Division 2","1933-12-30",null,"20th v 22nd","Lincoln","(H)",null,null,"W 4-1","1-0","W",4,1,null,null,null,null,null,null,null,12225,null,20,19,"Yardley, Hancock, Fishlock (2)",null,null,1,null,23,"Division 2","1933-12-30",null,"Lincoln","(H)",null,null,"W 4-1","Wilson","Walsh","Pipe","Hancock","Turnbull","Forsyth","Bond","Phillips","Yardley","Roberts","Fishlock",null,null,null,null,null,null,null,null,null,null,null,null,1,null,"J Walsh",null,40,"-","-",0,38,"-","-",0,2,"-","-",0,null,null,"OK",38,null,null,null,null,null,2,92,"J","Walsh",21,27,null,"Turnbull","R","Snaith","W",null,null,null,null,null,null,null,null,null,null,null,null,null,null,null,null,null,null,null,null,null,null,null,null,null,null,null,null,null,null,null,null,null,null,null,null,null,null,null,null,"Lincoln (H) W 4-1",20,19]
[2,null,24,"Division 2","1934-01-06",null,"19th v 13th","Bury","(A)",null,null,"L 1-5","1-4","L",1,5,null,null,null,null,null,null,null,10000,null,20,19,"Phillips",null,null,2,null,24,"Division 2","1934-01-06",null,"Bury","(A)",null,null,"L 1-5","Wilson","Sweetman","Walsh","Hancock","Turnbull","Forsyth","Bond","Phillips","Yardley","Roberts","Fishlock",null,null,null,null,null,null,null,null,null,null,null,null,2,null,"W Wilson",null,27,"-","-",0,25,"-","-",0,2,"-","-",0,null,null,"OK",25,null,null,null,null,null,2,93,"W","Wilson",22,28,null,"Walsh","J","Swallow","A",null,null,null,null,null,null,null,null,null,null,null,null,null,null,null,null,null,null,null,null,null,null,null,null,null,null,null,null,null,null,null,null,null,null,null,null,null,null,null,null,"Bury (A) L 1-5",20,19]
[1,null,25,"FA Cup 3","1934-01-13",null,"- -","Accrington Stanley","(H)",null,null,"W 3-0","0-0","W",3,0,null,null,null,null,null,null,null,20980,null,"-","-","Yardley (2), Phillips",null,null,1,null,25,"FA Cup 3","1934-01-13",null,"Accrington Stanley","(H)",null,null,"W 3-0","Wilson","Walsh","Pipe","Harkins","Turnbull","Forsyth","Bond","Phillips","Yardley","Roberts","Fishlock",null,null,null,null,null,null,null,null,null,null,null,null,1,null,"J Yardley",null,20,"-","-",9,18,"-","-",5,2,"-","-",4,null,null,{"$f":"IF(BU29=CF29,IF(BY29=CL29,\"OK\",\"Error\"),\"Error\")","v":"OK"},18,null,null,null,null,null,2,94,"J","Yardley",23,29,null,"Wilson","W","Sweetman","S",null,null,null,null,null,null,null,null,null,null,null,null,null,null,null,null,null,null,null,null,null,null,null,null,null,null,null,null,null,null,null,null,null,null,null,null,null,null,null,null,"Hull (H) W 2-0",22,19]
[2,null,26,"Division 2","1934-01-20",null,"19th v 12th","Hull","(H)",null,null,"W 2-0","1-0","W",2,0,null,null,null,null,null,null,null,13561,null,22,19,"Phillips (2)",null,null,2,null,26,"Division 2","1934-01-20",null,"Hull","(H)",null,null,"W 2-0","Wilson","Walsh","Pipe","Harkins","Turnbull","Forsyth","Bond","Phillips","Yardley","Roberts","Fishlock",null,null,null,null,null,null,null,null,null,null,null,null,2,null,{"$f":"CN30&\" \"&CO30","v":"D Yuill"},null,{"$f":"BU30+BY30+CG30","v":17},"-","-",{"$f":"BX30+CB30","v":0},{"$f":"BR95","v":17},"-","-",{"$f":"BU95","v":0},{"$f":"BZ95","v":0},"-","-",{"$f":"CC95","v":0},null,null,{"$f":"IF(BU30=CF30,IF(BY30=CL30,\"OK\",\"Error\"),\"Error\")","v":"OK"},17,null,null,null,null,null,0,95,"D","Yuill",24,30,null,"Yardley","J","Turnbull","R",null,null,null,null,null,null,null,null,null,null,null,null,null,null,null,null,null,null,null,null,null,null,null,null,null,null,null,null,null,null,null,null,null,null,null,null,null,null,null,null,"Fulham (A) L 0-2",22,19]
[1,null,27,"FA Cup 4","1934-01-27",null,"- -","Leicester City","(H)",null,null,"L 3-6","1-4","W",3,6,null,null,null,null,null,null,null,34459,null,"-","-","Phillips, Yardley (2)",null,null,1,null,27,"FA Cup 4","1934-01-27",null,"Leicester City","(H)",null,null,"L 3-6","Wilson","Walsh","Pipe","Harkins","Turnbull","Forsyth","Alexander","Phillips","Yardley","Roberts","Fishlock",null,null,null,null,null,null,null,null,null,null,null,null,1,null,{"$f":"CN31&\" \"&CO31","v":" "},null,null,null,null,null,null,null,null,null,null,null,null,null,null,null,null,null,null,null,null,null,null,null,null,null,null,null,null,null,"Yuill","D","Walsh","J",null,null,null,null,null,null,null,null,null,null,null,null,null,null,null,null,null,null,null,null,null,null,null,null,null,null,null,null,null,null,null,null,null,null,null,null,null,null,null,null,"Blackpool (A) D 2-2",23,19]
[2,null,28,"Division 2","1934-01-29",null,"19th v 12th","Fulham","(A)",null,null,"L 0-2","0-1","L",0,2,null,null,null,null,null,null,null,8000,null,22,19,null,null,null,2,null,28,"Division 2","1934-01-29",null,"Fulham","(A)",null,null,"L 0-2","Wilson","Walsh","Pipe","Harkins","Turnbull","Forsyth","Alexander","Phillips","Ranson","Roberts","Fishlock",null,null,null,null,null,null,null,null,null,null,null,null,2,null,"Own Goals",null,null,null,null,{"$f":"BX32+CB32","v":1},null,null,null,{"$f":"BU103","v":1},null,null,null,{"$f":"CC103","v":0},null,null,null,null,null,null,null,null,null,null,null,null,null,null,null,null,null,null,"Wilson","W",null,null,null,null,null,null,null,null,null,null,null,null,null,null,null,null,null,null,null,null,null,null,null,null,null,null,null,null,null,null,null,null,null,null,null,null,null,null,null,null,"Bradford City (H) D 1-1",24,19]
[1,null,29,"Division 2","1934-02-10",null,"20th v 5th","Blackpool","(A)",null,null,"D 2-2","2-0","D",2,2,null,null,null,null,null,null,null,12000,null,23,19,"Horton, Own Goal",null,null,1,null,29,"Division 2","1934-02-10",null,"Blackpool","(A)",null,null,"D 2-2","Wilson","Walsh","Pipe","Harkins","Turnbull","Forsyth","Alexander","Phillips","Horton","Roberts","Fishlock",null,null,null,null,null,null,null,null,null,null,null,null,1,null,null,null,null,null,null,null,null,null,null,null,null,null,null,null,null,null,null,null,null,null,null,null,null,null,null,null,null,null,null,null,null,null,"Yardley","J",null,null,null,null,null,null,null,null,null,null,null,null,null,null,null,null,null,null,null,null,null,null,null,null,null,null,null,null,null,null,null,null,null,null,null,null,null,null,null,null,"Port Vale (A) L 1-5",24,20]
[2,null,30,"Division 2","1934-02-17",null,"19th v 13th","Bradford City","(H)",null,null,"D 1-1","1-1","D",1,1,null,null,null,null,null,null,null,8537,null,24,19,"Fishlock",null,null,2,null,30,"Division 2","1934-02-17",null,"Bradford City","(H)",null,null,"D 1-1","Wilson","Walsh","Pipe","Harkins","Turnbull","Forsyth","Alexander","Phillips","Horton","Roberts","Fishlock",null,null,null,null,null,null,null,null,null,null,null,null,2,null,{"$f":"CN42&\" \"&CO42","v":" "},null,null,null,null,null,null,null,null,null,null,null,null,null,null,null,null,null,null,null,null,null,null,null,null,null,null,null,null,null,null,null,"Yuill","D",null,null,null,null,null,null,null,null,null,null,null,null,null,null,null,null,null,null,null,null,null,null,null,null,null,null,null,null,null,null,null,null,null,null,null,null,null,null,null,null,"West Ham (A) D 1-1",25,20]
[1,null,31,"Division 2","1934-02-24",null,"19th v 5th","Port Vale","(A)",null,null,"L 1-5","0-3","L",1,5,null,null,null,null,null,null,null,9000,null,24,20,"Roberts",null,null,1,null,31,"Division 2","1934-02-24",null,"Port Vale","(A)",null,null,"L 1-5","Wilson","Walsh","Swallow","Newcombe","Turnbull","Forsyth","Alexander","Phillips","Horton","Roberts","Fishlock",null,null,null,null,null,null,null,null,null,null,null,null,{"$f":"IF(#REF!=0,1,IF(#REF!=2,1,2))","v":{"$error":"#REF!"}},null,null,null,null,null,null,null,null,null,null,null,null,null,null,null,null,null,null,null,null,null,null,null,null,null,null,null,null,null,null,null,null,null,null,null,null,null,null,null,null,null,null,null,null,null,null,null,null,null,null,null,null,null,null,null,null,null,null,null,null,null,null,null,null,null,null,null,null,null,null,null,null,null,null,null,"Nottm Forest (H) D 0-0",26,20]
[2,null,32,"Division 2","1934-03-03",null,"20th v 12th","West Ham","(A)",null,null,"D 1-1","0-0","D",1,1,null,null,null,null,null,null,null,28000,null,25,20,"Alexander",null,null,2,null,32,"Division 2","1934-03-03",null,"West Ham","(A)",null,null,"D 1-1","Yuill","Walsh","Turnbull","Newcombe","Hancock","Forsyth","Alexander","Phillips","Yardley","Roberts","Fishlock",null,null,null,null,null,null,null,null,null,null,null,null,{"$error":"#REF!"},null,null,null,null,null,null,null,null,null,null,null,null,null,null,null,null,null,null,null,null,null,null,null,null,null,null,null,null,null,null,null,null,null,null,null,null,null,null,null,null,null,null,null,null,null,null,null,null,null,null,null,null,null,null,null,null,null,null,null,null,null,null,null,null,null,null,null,null,null,null,null,null,null,null,null,"Grimsby (A) L 2-5",26,20]
[1,null,33,"Division 2","1934-03-10",null,"20th v 18th","Nottm Forest","(H)",null,null,"D 0-0","0-0","D",0,0,null,null,null,null,null,null,null,17565,null,26,20,"",null,null,1,null,33,"Division 2","1934-03-10",null,"Nottm Forest","(H)",null,null,"D 0-0","Yuill","Walsh","Pipe","Newcombe","Hancock","Forsyth","Horton","Phillips","Alexander","Roberts","Fishlock",null,null,null,null,null,null,null,null,null,null,null,null,null,null,null,null,null,null,null,null,null,null,null,null,null,null,null,null,null,null,null,null,null,null,null,null,null,null,null,null,null,null,null,null,null,null,null,null,null,null,null,null,null,null,null,null,null,null,null,null,null,null,null,null,null,null,null,null,null,null,null,null,null,null,null,null,null,null,null,null,null,null,null,null,null,null,null,null,"Bradford PA (H) L 0-1",26,20]
[2,null,34,"Division 2","1934-03-17",null,"20th v 1st","Grimsby","(A)",null,null,"L 2-5","2-4","L",2,5,null,null,null,null,null,null,null,10000,null,26,20,"McCartney (2)",null,null,2,null,34,"Division 2","1934-03-17",null,"Grimsby","(A)",null,null,"L 2-5","Yuill","Walsh","Pipe","Newcombe","Hancock","Forsyth","McCartney","Alexander","Turnbull","Roberts","Fishlock",null,null,null,null,null,null,null,null,null,null,null,null,null,null,null,null,null,null,null,null,null,null,null,null,null,null,null,null,null,null,null,null,null,null,null,null,null,null,null,null,null,null,null,null,null,null,null,null,null,null,null,null,null,null,null,null,null,null,null,null,null,null,null,null,null,null,null,null,null,null,null,null,null,null,null,null,null,null,null,null,null,null,null,null,null,null,null,null,"Plymouth (H) D 0-0",27,19]
[1,null,35,"Division 2","1934-03-24",null,"20th v 6th","Bradford PA","(H)",null,null,"L 0-1","0-0","L",0,1,null,null,null,null,null,null,null,9882,null,26,20,"",null,null,1,null,35,"Division 2","1934-03-24",null,"Bradford PA","(H)",null,null,"L 0-1","Yuill","Sweetman","Pipe","Newcombe","Turnbull","Forsyth","McCartney","Alexander","Snaith","Ranson","Fishlock",null,null,null,null,null,null,null,null,null,null,null,null,null,null,null,null,null,null,null,null,null,null,null,null,null,null,null,null,null,null,null,null,null,null,null,null,null,null,null,null,null,null,null,null,null,null,null,null,null,null,null,null,null,null,null,null,null,null,null,null,null,null,null,null,null,null,null,null,null,null,null,null,null,null,null,null,null,null,null,null,null,null,null,null,null,null,null,null,"Preston (A) L 2-4",27,21]
[2,null,36,"Division 2","1934-03-30",null,"20th v 13th","Plymouth","(H)",null,null,"D 0-0","0-0","D",0,0,null,null,null,null,null,null,null,20302,null,27,19,"",null,null,2,null,36,"Division 2","1934-03-30",null,"Plymouth","(H)",null,null,"D 0-0","Yuill","Sweetman","Pipe","Newcombe","Turnbull","Forsyth","McCartney","Alexander","Snaith","Harkins","Fishlock",null,null,null,null,null,null,null,null,null,null,null,null,null,null,null,null,null,null,null,null,null,null,null,null,null,null,null,null,null,null,null,null,null,null,null,null,null,null,null,null,null,null,null,null,null,null,null,null,null,null,null,null,null,null,null,null,null,null,null,null,null,null,null,null,null,null,null,null,null,null,null,null,null,null,null,null,null,null,null,null,null,null,null,null,null,null,null,null,"Plymouth (A) L 0-1",27,21]
[1,null,37,"Division 2","1934-03-31",null,"19th v 4th","Preston","(A)",null,null,"L 2-4","2-2","L",2,4,null,null,null,null,null,null,null,20000,null,27,21,"Horton, Fishlock",null,null,1,null,37,"Division 2","1934-03-31",null,"Preston","(A)",null,null,"L 2-4","Yuill","Sweetman","Pipe","Newcombe","Turnbull","Forsyth","McCartney","Alexander","Horton","Roberts","Fishlock",null,null,null,null,null,null,null,null,null,null,null,null,null,null,null,null,null,null,null,null,null,null,null,null,null,null,null,null,null,null,null,null,null,null,null,null,null,null,null,null,null,null,null,null,null,null,null,null,null,null,null,null,null,null,null,null,null,null,null,null,null,null,null,null,null,null,null,null,null,null,null,null,null,null,null,null,null,null,null,null,null,null,null,null,null,null,null,null,"Oldham (H) W 1-0",29,20]
[2,null,38,"Division 2","1934-04-02",null,"21st v 12th","Plymouth","(A)",null,null,"L 0-1","0-0","L",0,1,null,null,null,null,null,null,null,10000,null,27,21,"",null,null,2,null,38,"Division 2","1934-04-02",null,"Plymouth","(A)",null,null,"L 0-1","Yuill","Walsh","Pipe","Newcombe","Turnbull","Forsyth","Horton","Alexander","Snaith","Phillips","McCartney",null,null,null,null,null,null,null,null,null,null,null,null,null,null,null,null,null,null,null,null,null,null,null,null,null,null,null,null,null,null,null,null,null,null,null,null,null,null,null,null,null,null,null,null,null,null,null,null,null,null,null,null,null,null,null,null,null,null,null,null,null,null,null,null,null,null,null,null,null,null,null,null,null,null,null,null,null,null,null,null,null,null,null,null,null,null,null,null,"Southampton (H) W 1-0",31,20]
[1,null,39,"Division 2","1934-04-07",null,"21st v 13th","Oldham","(H)",null,null,"W 1-0","1-0","W",1,0,null,null,null,null,null,null,null,11637,null,29,20,"Yardley",null,null,1,null,39,"Division 2","1934-04-07",null,"Oldham","(H)",null,null,"W 1-0","Yuill","Walsh","Pipe","Newcombe","Turnbull","Forsyth","McCartney","Alexander","Yardley","Roberts","Fishlock",null,null,null,null,null,null,null,null,null,null,null,null,null,null,null,null,null,null,null,null,null,null,null,null,null,null,null,null,null,null,null,null,null,null,null,null,null,null,null,null,null,null,null,null,null,null,null,null,null,null,null,null,null,null,null,null,null,null,null,null,null,null,null,null,null,null,null,null,null,null,null,null,null,null,null,null,null,null,null,null,null,null,null,null,null,null,null,null,"Burnley (A) L 1-2",31,20]
[2,null,40,"Division 2","1934-04-09",null,"20th v 16th","Southampton","(H)",null,null,"W 1-0","1-0","W",1,0,null,null,null,null,null,null,null,6080,null,31,20,"Roberts",null,null,2,null,40,"Division 2","1934-04-09",null,"Southampton","(H)",null,null,"W 1-0","Yuill","Walsh","Pipe","Newcombe","Turnbull","Forsyth","McCartney","Alexander","Yardley","Roberts","Fishlock",null,null,null,null,null,null,null,null,null,null,null,null,null,null,null,null,null,null,null,null,null,null,null,null,null,null,null,null,null,null,null,null,null,null,null,null,null,null,null,null,null,null,null,null,null,null,null,null,null,null,null,null,null,null,null,null,null,null,null,null,null,null,null,null,null,null,null,null,null,null,null,null,null,null,null,null,null,null,null,null,null,null,null,null,null,null,null,null,"Brentford (H) W 2-0",33,19]
[1,null,41,"Division 2","1934-04-14",null,"20th v 13th","Burnley","(A)",null,null,"L 1-2","0-0","L",1,2,null,null,null,null,null,null,null,7000,null,31,20,"Yardley",null,null,1,null,41,"Division 2","1934-04-14",null,"Burnley","(A)",null,null,"L 1-2","Yuill","Walsh","Pipe","Newcombe","Turnbull","Forsyth","McCartney","Alexander","Yardley","Roberts","Fishlock",null,null,null,null,null,null,null,null,null,null,null,null,null,null,null,null,{"$f":"SUM(BQ7:BQ34)/11","v":44},null,null,null,{"$f":"SUM(BU7:BU34)/11","v":42},null,null,null,{"$f":"SUM(BY7:BY34)/11","v":2},null,null,null,null,null,null,null,null,null,null,null,null,null,null,null,null,null,null,null,null,null,null,null,null,null,null,null,null,null,null,null,null,null,null,null,null,null,null,null,null,null,null,null,null,null,null,null,null,null,null,null,null,null,null,null,null,null,null,null,null,null,null,null,"Bolton (A) L 0-5",33,20]
[2,null,42,"Division 2","1934-04-21",null,"20th v 2nd","Brentford","(H)",null,null,"W 2-0","2-0","W",2,0,null,null,null,null,null,null,null,21671,null,33,19,"Newcombe, Forsyth",null,null,2,null,42,"Division 2","1934-04-21",null,"Brentford","(H)",null,null,"W 2-0","Yuill","Walsh","Pipe","Newcombe","Turnbull","Forsyth","McCartney","Alexander","Yardley","Roberts","Fishlock",null,null,null,null,null,null,null,null,null,null,null,null,null,null,{"$f":"CN46&\" \"&CO46","v":" "},null,null,null,null,null,null,null,null,null,null,null,null,null,null,null,null,null,null,null,null,null,null,null,null,null,null,null,null,null,null,null,null,null,null,null,null,null,null,null,null,null,null,null,null,null,null,null,null,null,null,null,null,null,null,null,null,null,null,null,null,null,null,null,null,null,null,null,null,null,null,null,null,null,"Man Utd (H) L 0-2",33,21]
[1,null,43,"Division 2","1934-04-28",null,"19th v 4th","Bolton","(A)",null,null,"L 0-5","0-4","L",0,5,null,null,null,null,null,null,null,14000,null,33,20,null,null,null,1,null,43,"Division 2","1934-04-28",null,"Bolton","(A)",null,null,"L 0-5","Yuill","Walsh","Pipe","Newcombe","Turnbull","Forsyth","McCartney","Alexander","Yardley","Roberts","Fishlock",null,null,null,null,null,null,null,null,null,null,null,null,null,null," "]
[2,null,44,"Division 2","1934-05-05",null,"20th v 21st","Man Utd","(H)",null,null,"L 0-2","0-1","L",0,2,null,null,null,null,null,null,null,24003,null,33,21,null,null,null,2,null,44,"Division 2","1934-05-05",null,"Man Utd","(H)",null,null,"L 0-2","Yuill","Walsh","Pipe","Newcombe","Turnbull","Forsyth","McCartney","Alexander","Yardley","Roberts","Fishlock",null,null,null,null,null,null,null,null,null,null,null,null,null,null," "]
[1,null,null,null,null,null,null,null,null,null,null,null,null,null,null,null,null,null,null,null,null,null,null,null,null,null,null,null,null,null,{"$f":"IF(AE48=0,1,IF(AE48=2,1,2))","v":1},null,null,null,null,null,null,null,null,null,null,null,null,null,null,null,null,null,null,null,null,null,null,null,null,null,null,null,null,null,null,null,null,null,null,null," "]
[2,null,null,null,null,null,null,null,null,null,null,null,null,null,null,null,null,null,null,null,null,null,null,null,null,null,null,null,null,null,2,null,null,null,null,null,null,null,null,null,null,null,null,null,null,null,null,null,null,null,null,null,null,null,null,null,null,null,null,null,null,null,null,null,null,null," "]
[null,null,null,null,null,null,"19th v 3rd",null,null,null,null,null,null,null,null,null,null,null,null,null,null,null,null,null,null,null,null,null,null,null,null,null,null,null,null,null,null,null,null,null,null,null,null,null,null,null,null,null,null,null,null,null,null,null,null,null,null,null,null,null,null,null,null,null,null,null," ",null,{"$f":"\"Max (\"&BO63&\")\"","v":"Max (44)"},null,null,null,{"$f":"\"Max (\"&BO59&\")\"","v":"Max (42)"},null,null,null,{"$f":"\"Max (\"&BO60&\")\"","v":"Max (2)"},null,null,null,{"$f":"\"Max (\"&BO61&\")\"","v":"Max (0)"},null,null,null,null,{"$f":"\"Max (\"&BO133&\")\"","v":"Max ()"},null,null,null,null,null,null,null,null,null,null,null,null,null,null,null,null,null,null,null,null,null,null,null,null,null,null,null,null,null,null,null,null,null,null,null,null,null,null,null,null,null,null,null,null,null,null,null,null,null,null,null,null,null,null,"End of Season"]
[null,null,null,null,null,null,"20th v 4th"]
[null,null,null,null,null,null,null,null,null,null,null,null,null,null,null,null,null,null,null,null,null,null,null,null,null,null,null,null,null,null,null,null,null,null,null,null,null,null,null,null,null,null,null,null,null,null,null,null,null,null,null,null,null,null,null,null,null,null,null,null,null,null,null,null,{"$f":"IF(BM52=0,1,IF(BM52=2,1,2))","v":1}]
[null,null,null,null,null,null,null,null,null,null,null,null,null,null,null,null,null,null,null,null,null,null,null,null,null,null,null,null,null,null,null,null,null,null,null,null,null,null,null,null,null,null,null,null,null,null,null,null,null,null,null,null,null,null,null,null,null,null,null,null,null,null,null,null,{"$f":"IF(BM53=0,1,IF(BM53=2,1,2))","v":2}]
[]
[]
[]
[null,null,null,null,null,null,null,null,null,null,null,null,null,null,null,null,null,null,null,null,null,null,null,null,null,null,null,null,null,null,null,null,null,null,null,null,null,null,null,null,null,null,null,null,null,null,null,null,null,null,null,null,null,null,null,null,null,null,null,null,null,null,null,null,null,null,null,null,null,null,null,null,null,null,null,null,null,null,null,null,null,null,null,null,null,null,null,null,null,null,null,null,null,null,null,null,null,null,null,null,null,null,null,null,null,null,null,null,null,null,null,null,null,null,null,null,null,null,{"$f":"4/18","v":0.22222222222222221}]
[null,null,null,null,null,null,null,null,null,null,null,null,null,null,null,null,null,null,null,null,null,null,null,null,null,null,null,null,null,null,null,null,null,null,null,null,null,null,null,null,null,null,null,null,null,null,null,null,null,null,null,null,null,null,null,null,null,null,null,null,null,null,null,null,null,null,{"$f":"SUMIF(AH78:AH149,BQ59,BE78:BE149)","v":42},null,"Division 2*"]
[null,null,null,null,null,null,null,null,null,null,null,null,null,null,null,null,null,null,null,null,null,null,null,null,null,null,null,null,null,null,{"$f":"IF(AE53=0,1,IF(AE53=2,1,2))","v":1},null,null,null,null,null,null,null,null,null,null,null,null,null,null,null,null,null,null,null,null,null,null,null,null,null,null,null,null,null,null,null,null,null,null,null,2,null,"FA Cup*"]
[{"$f":"IF(A60=0,1,IF(A60=2,1,2))","v":1},null,null,null,null,null,null,null,null,null,null,null,null,null,null,null,null,null,null,null,null,null,null,null,null,null,null,null,{"$f":"IF(AC60=0,1,IF(AC60=2,1,2))","v":1},null,null,null,null,null,null,null,null,null,null,null,null,null,null,null,null,null,null,null,null,null,null,null,null,null,null,null,null,null,null,null,null,null,null,null,null,null,{"$f":"SUMIF(AH78:AH150,BQ61,BE78:BE150)","v":0},null,"League Cup*",null,null,null,null,null,null,{"$f":"42*11","v":462}]
[{"$f":"IF(#REF!=0,1,IF(#REF!=2,1,2))","v":{"$error":"#REF!"}}]
[{"$error":"#REF!"},null,null,null,null,null,null,null,null,null,null,null,null,null,null,null,null,null,null,null,null,null,null,null,null,null,null,null,null,null,null,null,null,null,null,null,null,null,null,null,null,null,null,null,null,null,null,null,null,null,null,null,null,null,null,null,null,null,null,null,null,null,null,null,null,null,{"$f":"SUM(BO59:BO62)","v":44}]
[{"$error":"#REF!"},null,null,null,null,null,null,null,null,null,null,null,null,null,null,null,null,null,null,null,null,null,null,null,null,null,null,null,null,null,null,null,null,null,null,null,null,null,null,null,null,null,null,null,null,null,null,null,null,null,null,null,null,null,null,null,null,null,null,null,null,null,null,null,null,null,null,null,null,null,null,null,null,null,null,{"$f":"SUM(BX7:BX32)","v":39},null,null,null,{"$f":"SUM(CB7:CB29)","v":6},null,null,null,{"$f":"SUM(CF7:CF29)","v":445},null,null,null,{"$f":"SUM(CJ7:CJ29)","v":0}]
[]
[null,null,null,null,null,null,null,null,null,null,null,null,null,null,null,null,null,null,null,null,null,null,null,null,null,null,null,"Av Attendance League Games Only"]
[null,null,null,null,null,null,null,null,null,null,null,null,null,null,null,null,null,null,null,null,null,null,null,null,null,null,null,{"$f":"COUNTIFS($I$5:$I$55,$I$7,$D$5:$D$55,$D$5,$X$5:$X$55,\">0\")","v":21}]
[null,null,null,null,null,null,null,null,null,null,null,null,null,null,null,null,null,null,null,null,null,null,null,null,null,null,null,{"$f":"SUMIFS($X$5:$X$55,$I$5:$I$55,$I$7,$D$5:$D$55,$D$5)","v":301916}]
[null,null,null,null,null,null,null,null,null,null,null,null,null,null,null,null,null,null,null,null,null,null,null,null,null,null,null,{"$f":"AB68/AB67","v":14376.952380952382}]
[null,null,null,null,null,null,null,null,null,null,null,null,null,null,null,null,null,null,null,null,null,null,null,null,null,null,null,null,null,null,null,null,null,null,null,null,null,null,null,null,null,null,null,null,null,null,null,null,null,null,null,null,null,null,null,null,null,null,null,null,null,null,null,null,null,null,{"$f":"SUM(BR72:BR116)","v":1386},null,null,"League",null,null,null,"League Cup",null,null,null,"FA Cup"]
[null,null,null,null,null,null,null,null,null,null,null,null,null,null,null,null,null,null,null,null,null,null,null,null,null,null,null,null,null,null,null,null,null,null,null,null,null,null,null,null,null,null,null,null,null,null,null,null,null,null,null,null,null,null,null,null,null,null,null,null,null,null,null,null,null,null,null,null,null,"P","Sub","NPS","Gls","P","Sub","NPS","Gls","P","Sub","NPS","Gls"]
[null,null,null,null,null,null,null,null,null,null,null,null,null,null,null,null,null,null,null,null,null,null,null,null,null,null,null,"Av Attendance All Home Games",null,null,null,null,null,null,null,null,null,null,null,null,null,null,null,null,null,null,null,null,null,null,null,null,null,null,null,null,null,null,null,null,null,null,1,1,{"$f":"BP72&\" (**\"","v":"Alexander (**"},null,{"$f":"BP72&\"**\"","v":"Alexander**"},"Alexander",null,{"$f":"COUNTIF(LeagueStarts,$BP72)","v":24},{"$f":"COUNTIF(LeagueSubs,$BM72)","v":0},{"$f":"COUNTIF(LeagueSubs,$BP72)","v":0},{"$f":"COUNTIF($CZ$76:$DI$125,BO72)","v":1},{"$f":"COUNTIF($AP$126:$AZ$134,$BP72)","v":0},{"$f":"COUNTIF($BC$126:$BC$134,$BM72)","v":0},{"$f":"COUNTIF($BC$128:$BI$131,$BP72)","v":0},{"$f":"COUNTIF($CZ$149:$DI$159,BO72)","v":0},{"$f":"COUNTIF($AP$136:$AZ$142,$BP72)","v":1},{"$f":"COUNTIF($BC$136:$BC$142,$BM72)","v":0},{"$f":"COUNTIF($BC$133:$BI$137,$BP72)","v":0},{"$f":"COUNTIF($CZ$134:$DI$144,BO72)","v":0},null,null,null,null,null,null,null,null,null,{"$f":"ROW(CL72)","v":72},null,{"$f":"CN7","v":"S"},{"$f":"CO7","v":"Alexander"},null,{"$f":"CO72&\" \"&CP72","v":"S Alexander"}]
[null,null,null,null,null,null,null,null,null,null,null,null,null,null,null,null,null,null,null,null,null,null,null,null,null,null,null,{"$f":"COUNTIF(I5:I50,I6)","v":23},null,null,null,null,null,null,null,null,null,null,null,null,null,null,null,null,null,null,null,null,null,null,null,null,null,null,null,null,null,null,null,null,null,null,1,2,"Bond (**",null,"Bond**","Bond",null,11,0,{"$f":"COUNTIF(LeagueSubs,$BP73)","v":0},1,0,0,0,{"$f":"COUNTIF($CZ$149:$DI$159,BO73)","v":0},1,0,0,0,null,null,null,null,null,null,null,null,null,73,null,{"$f":"CN8","v":"G"},{"$f":"CO8","v":"Bond"},null,{"$f":"CO73&\" \"&CP73","v":"G Bond"}]
[null,null,null,null,null,null,null,null,null,null,null,null,null,null,null,null,null,null,null,null,null,null,null,null,null,null,null,{"$f":"SUMIF(I5:I50,I6,X5:X50)","v":357355},null,null,null,null,null,null,null,null,null,null,null,null,null,null,null,null,null,null,null,null,null,null,null,null,null,null,null,null,null,null,null,null,null,null,1,3,"Duffy (**",null,"Duffy**","Duffy",null,5,0,0,0,0,0,0,{"$f":"COUNTIF($CZ$149:$DI$159,BO74)","v":0},0,0,0,0,null,null,null,null,null,null,null,null,null,74,null,"R","Duffy",null,{"$f":"CO74&\" \"&CP74","v":"R Duffy"},null,null,null,null,null,null,null,"Goals League"]
[null,null,null,null,null,null,null,null,null,null,null,null,null,null,null,null,null,null,null,null,null,null,null,null,null,null,null,{"$f":"AB74/AB73","v":15537.173913043478},null,null,null,null,null,null,null,null,null,null,null,null,null,null,null,null,null,null,null,null,null,null,null,null,null,null,null,null,null,null,null,null,null,null,1,4,"Fishlock (**",null,"Fishlock**","Fishlock",null,34,0,0,7,0,0,0,0,2,0,0,0,null,null,null,null,null,null,null,null,null,75,null,{"$f":"CN10","v":"L"},{"$f":"CO10","v":"Fishlock"},null,"L Fishlock",null,null,null,null,null,null,null,1,2,3,4,5,6,7,8,7,8,9]
[null,null,null,null,null,null,null,null,null,null,null,null,null,null,null,null,null,null,null,null,null,null,null,null,null,null,null,null,null,null,null,null,null,null,null,null,null,null,null,null,null,"x",null,null,null,null,null,null,null,null,null,null,null,null,null,null,null,null,null,null,null,null,1,5,"Forsyth (**",null,"Forsyth**","Forsyth",null,39,0,0,3,0,0,0,0,2,0,0,0,null,null,null,null,null,null,null,null,null,76,null,"J","Forsyth",null,"J Forsyth"]
[null,null,null,null,null,null,null,null,null,null,null,null,null,null,null,null,null,null,null,null,null,null,null,null,null,null,null,null,null,null,null,null,"Game","Competition","Date",null,"Opponents",null,null,null,"Score",1,2,3,4,5,6,7,8,9,10,11,null,null,12,null,null,null,null,null,null,null,1,6,"Graham (**",null,"Graham**","Graham",null,7,0,0,0,0,0,0,0,0,0,0,0,null,null,null,null,null,null,null,null,null,77,null,"L","Graham",null,"L Graham",null,null,null,1,{"$f":"AK78","v":"Lincoln"},{"$f":"AL78","v":"(A)"},{"$f":"AO78","v":"W 1-0"},"Roberts",null,null,null,null,null,null,null,null,null,null,"Roberts",null,null,null,null,{"$f":"IF(CZ77=\"\",\"\",CZ77)","v":"Roberts"},{"$f":"IF(DA77=\"\",\"\",DA77)","v":""},{"$f":"IF(DB77=\"\",\"\",DB77)","v":""},{"$f":"IF(DC77=\"\",\"\",DC77)","v":""},{"$f":"IF(DD77=\"\",\"\",DD77)","v":""},{"$f":"IF(DE77=\"\",\"\",DE77)","v":""},{"$f":"IF(DP77<>\"\",\",\",\"\")","v":","},{"$f":"IF(DQ77<>\"\",\",\",\"\")","v":""},{"$f":"IF(DR77<>\"\",\",\",\"\")","v":""},{"$f":"IF(DS77<>\"\",\",\",\"\")","v":""},{"$f":"IF(DT77<>\"\",\",\",\"\")","v":""},{"$f":"CONCATENATE(DP77,DV77,DQ77,DW77,DR77,DX77,DS77,DY77,DT77,DZ77,DU77)","v":"Roberts,"}]
[null,null,null,null,null,null,null,null,null,null,null,null,null,null,null,null,null,null,null,null,null,null,null,null,null,null,null,null,null,null,1,null,1,"Division 2","1933-08-26",null,"Lincoln","(A)",null,null,"W 1-0","Wilson","Walsh","Pipe","Newcombe","Hancock","Graham","Horton","Roberts","Ranson","Forsyth","Poxton",null,null,null,null,1,null,null,null,null,null,1,7,"Hancock (**",null,"Hancock**","Hancock",null,26,0,0,1,0,0,0,0,0,0,0,0,null,null,null,null,null,null,null,null,null,78,null,"F","Hancock",null,"F Hancock",null,null,null,{"$f":"IF(CV77=0,1,IF(CV77=2,1,2))","v":2},{"$f":"AK79","v":"Swansea"},{"$f":"AL79","v":"(H)"},{"$f":"AO79","v":"W 2-1"},"Forsyth","Roberts",null,null,null,null,null,null,null,null,null,"Forsyth, Roberts",null,null,null,null,"Forsyth","Roberts","","","","",",",",","","","","Forsyth,Roberts,"]
[null,null,null,null,null,null,null,null,null,null,null,null,null,null,null,null,null,null,null,null,null,null,null,null,null,null,null,null,null,null,{"$f":"IF(AE78=0,1,IF(AE78=2,1,2))","v":2},null,2,"Division 2","1933-08-28",null,"Swansea","(H)",null,null,"W 2-1","Wilson","Walsh","Pipe","Newcombe","Hancock","Graham","Horton","Roberts","Ranson","Forsyth","Poxton",null,null,null,null,1,null,null,null,null,null,1,8,"Harkins (**",null,"Harkins**","Harkins",null,9,0,0,0,0,0,0,0,2,0,0,0,null,null,null,null,null,null,null,null,null,79,null,"J","Harkins",null,"J Harkins",null,null,null,1,"Bury","(H)","D 0-0","No Scorer",null,null,null,null,null,null,null,null,null,null,"No Scorer",null,null,null,null,"No Scorer","","","","","",",","","","","","No Scorer,"]
[null,null,null,null,null,null,null,null,null,null,null,null,null,null,null,null,null,null,null,null,null,null,null,null,null,null,null,null,null,null,1,null,3,"Division 2","1933-09-02",null,"Bury","(H)",null,null,"D 0-0","Wilson","Walsh","Pipe","Newcombe","Hancock","Graham","Horton","Roberts","Ranson","Harkins","Poxton",null,null,null,null,1,null,null,null,null,null,1,9,"Horton (**",null,"Horton**","Horton",null,22,0,0,4,0,0,0,0,0,0,0,0,null,null,null,null,null,null,null,null,null,80,null,"J","Horton",null,"J Horton",null,null,null,2,"Swansea","(A)","L 0-2","No Scorer",null,null,null,null,null,null,null,null,null,null,"No Scorer",null,null,null,null,"No Scorer","","","","","",",","","","","","No Scorer,"]
[null,null,null,null,null,null,null,null,null,null,null,null,null,null,null,null,null,null,null,null,null,null,null,null,null,null,null,null,null,null,2,null,4,"Division 2","1933-09-04",null,"Swansea","(A)",null,null,"L 0-2","Wilson","Sweetman","Walsh","Newcombe","Hancock","Graham","Horton","Roberts","Ranson","Harkins","Poxton",null,null,null,null,1,null,null,null,null,null,1,10,"McCartney (**",null,"McCartney**","McCartney",null,11,0,{"$f":"COUNTIF(LeagueSubs,$BP81)","v":0},2,0,0,0,0,0,0,0,0,null,null,null,null,null,null,null,null,null,81,null,"J","McCartney",null,"J McCartney",null,null,null,1,"Hull","(A)","L 2-3","Poxton (pen)","Horton",null,null,null,null,null,null,null,null,null,"Poxton (pen), Horton",null,null,null,null,"Poxton (pen)","Horton","","","","",",",",","","","","Poxton (pen),Horton,"]
[null,null,null,null,null,null,null,null,null,null,null,null,null,null,null,null,null,null,null,null,null,null,null,null,null,null,null,null,null,null,1,null,5,"Division 2","1933-09-09",null,"Hull","(A)",null,null,"L 2-3","Wilson","Sweetman","Walsh","Newcombe","Hancock","Graham","Horton","Roberts","Ranson","Harkins","Poxton",null,null,null,null,1,null,null,null,null,null,1,11,"Newcombe (**",null,"Newcombe**","Newcombe",null,28,0,0,1,0,0,0,0,0,0,0,0,null,null,null,null,null,null,null,null,null,82,null,"L","Newcombe",null,"L Newcombe",null,null,null,2,"Fulham","(H)","L 0-1","No Scorer",null,null,null,null,null,null,null,null,null,null,"No Scorer",null,null,null,null,"No Scorer","","","","","",",","","","","","No Scorer,"]
[null,null,null,null,null,null,null,null,null,null,null,null,null,null,null,null,null,null,null,null,null,null,null,null,null,null,null,null,null,null,2,null,6,"Division 2","1933-09-16",null,"Fulham","(H)",null,null,"L 0-1","Wilson","Sweetman","Walsh","Newcombe","Hancock","Graham","Horton","Roberts","Ranson","Forsyth","Poxton",null,null,null,null,1,null,null,null,null,null,1,12,"Phillips (**",null,"Phillips**","Phillips",null,16,0,0,4,0,0,0,0,2,0,0,2,null,null,null,null,null,null,null,null,null,83,null,"G","Phillips",null,"G Phillips",null,null,null,1,"Southampton","(A)","W 3-2","Ranson","Ranson","Ranson",null,null,null,null,null,null,null,null,"Ranson (3)",null,null,null,null,"Ranson","Ranson","Ranson","","","",",",",",",","","","Ranson,Ranson,Ranson,"]
[null,null,null,null,null,null,null,null,null,null,null,null,null,null,null,null,null,null,null,null,null,null,null,null,null,null,null,null,null,null,1,null,7,"Division 2","1933-09-23",null,"Southampton","(A)",null,null,"W 3-2","Wilson","Sweetman","Walsh","Newcombe","Hancock","Forsyth","Horton","Roberts","Ranson","Duffy","Fishlock",null,null,null,null,1,null,null,null,null,null,1,13,"Pipe (**",null,"Pipe**","Pipe",null,29,0,0,0,0,0,0,0,2,0,0,0,null,null,null,null,null,null,null,null,null,84,null,"J","Pipe",null,"J Pipe",null,null,null,2,"Blackpool","(H)","D 0-0","No Scorer",null,null,null,null,null,null,null,null,null,null,"No Scorer",null,null,null,null,"No Scorer","","","","","",",","","","","","No Scorer,"]
[null,null,null,null,null,null,null,null,null,null,null,null,null,null,null,null,null,null,null,null,null,null,null,null,null,null,null,null,null,null,2,null,8,"Division 2","1933-09-30",null,"Blackpool","(H)",null,null,"D 0-0","Wilson","Sweetman","Pipe","Newcombe","Hancock","Forsyth","Horton","Roberts","Ranson","Duffy","Fishlock",null,null,null,null,1,null,null,null,null,null,1,14,"Poxton (**",null,"Poxton**","Poxton",null,8,0,0,1,0,0,0,0,0,0,0,0,null,null,null,null,null,null,null,null,null,85,null,"J","Poxton",null,"J Poxton",null,null,null,1,"Bradford City","(A)","L 0-1","No Scorer",null,null,null,null,null,null,null,null,null,null,"No Scorer",null,null,null,null,"No Scorer","","","","","",",","","","","","No Scorer,"]
[null,null,null,null,{"$f":"E93&\"-\"&G93","v":"1-4"},null,null,null,null,null,null,null,null,null,null,null,null,null,null,null,null,null,null,null,null,null,null,null,null,null,1,null,9,"Division 2","1933-10-07",null,"Bradford City","(A)",null,null,"L 0-1","Wilson","Sweetman","Walsh","Newcombe","Hancock","Forsyth","Horton","Roberts","Ranson","Duffy","Fishlock",null,null,null,null,1,null,null,null,null,null,1,15,"Ranson (**",null,"Ranson**","Ranson",null,14,0,0,3,0,0,0,0,0,0,0,0,null,null,null,null,null,null,null,null,null,86,null,"J","Ranson",null,"J Ranson",null,null,null,2,"Port Vale","(H)","L 0-3","No Scorer",null,null,null,null,null,null,null,null,null,null,"No Scorer",null,null,null,null,"No Scorer","","","","","",",","","","","","No Scorer,"]
[null,null,null,null,null,null,null,null,null,null,null,null,null,null,null,null,null,null,null,null,null,null,null,null,null,null,null,null,null,null,2,null,10,"Division 2","1933-10-14",null,"Port Vale","(H)",null,null,"L 0-3","Wilson","Sweetman","Walsh","Newcombe","Hancock","Swallow","Alexander","Roberts","Horton","Forsyth","Fishlock",null,null,null,null,1,null,null,null,null,null,1,16,"Roberts (**",null,"Roberts**","Roberts",null,33,0,0,5,0,0,0,0,2,0,0,0,null,null,null,null,null,null,null,null,null,87,null,"H","Roberts",null,"H Roberts",null,null,null,1,"West Ham","(H)","D 2-2","Fishlock","Horton",null,null,null,null,null,null,null,null,null,"Fishlock, Horton",null,null,null,null,"Fishlock","Horton","","","","",",",",","","","","Fishlock,Horton,"]
[null,null,null,null,null,null,null,null,null,null,null,null,null,null,null,null,null,null,null,null,null,null,null,null,null,null,null,null,null,null,1,null,11,"Division 2","1933-10-21",null,"West Ham","(H)",null,null,"D 2-2","Wilson","Sweetman","Walsh","Newcombe","Hancock","Forsyth","Horton","Alexander","Bond","Duffy","Fishlock",null,null,null,null,1,null,null,null,null,null,1,17,"Snaith (**",null,"Snaith**","Snaith",null,3,0,0,0,0,0,0,0,0,0,0,0,null,null,null,null,null,null,null,null,null,88,null,"W","Snaith",null,"W Snaith",null,null,null,2,"Nottm Forest","(A)","L 0-2","No Scorer",null,null,null,null,null,null,null,null,null,null,"No Scorer",null,null,null,null,"No Scorer","","","","","",",","","","","","No Scorer,"]
[null,null,null,null,null,null,null,null,null,null,null,null,null,null,null,null,null,null,null,null,null,null,null,null,null,null,null,null,null,null,2,null,12,"Division 2","1933-10-28",null,"Nottm Forest","(A)",null,null,"L 0-2","Wilson","Sweetman","Walsh","Swallow","Hancock","Graham","Horton","Alexander","Bond","Forsyth","Fishlock",null,null,null,null,1,null,null,null,null,null,1,18,"Swallow (**",null,"Swallow**","Swallow",null,5,0,0,0,0,0,0,0,0,0,0,0,null,null,null,null,null,null,null,null,null,89,null,"A","Swallow",null,"A Swallow",null,null,null,1,"Grimsby","(H)","L 0-1","No Scorer",null,null,null,null,null,null,null,null,null,null,"No Scorer",null,null,null,null,"No Scorer","","","","","",",","","","","","No Scorer,"]
[null,null,null,null,null,null,null,null,null,null,null,null,null,null,null,null,null,null,null,null,null,null,null,null,null,null,null,null,null,null,1,null,13,"Division 2","1933-11-04",null,"Grimsby","(H)",null,null,"L 0-1","Yuill","Sweetman","Walsh","Swallow","Hancock","Forsyth","Horton","Alexander","Bond","Roberts","Fishlock",null,null,null,null,1,null,null,null,null,null,1,19,{"$f":"BP90&\" (**\"","v":"Sweetman (**"},null,{"$f":"BP90&\"**\"","v":"Sweetman**"},"Sweetman",null,15,0,0,0,0,0,0,0,0,0,0,0,null,null,null,null,null,null,null,null,null,90,null,"S","Sweetman",null,"S Sweetman",null,null,null,2,"Bradford PA","(A)","L 0-4","No Scorer",null,null,null,null,null,null,null,null,null,null,"No Scorer",null,null,null,null,"No Scorer","","","","","",",","","","","","No Scorer,"]
[null,null,null,null,null,null,null,null,null,null,null,null,null,null,null,null,null,null,null,null,null,null,null,null,null,null,null,null,null,null,2,null,14,"Division 2","1933-11-11",null,"Bradford PA","(A)",null,null,"L 0-4","Yuill","Sweetman","Walsh","Swallow","Hancock","Forsyth","Horton","Alexander","Bond","Ranson","Fishlock",null,null,null,null,1,null,null,null,null,null,1,20,"Turnbull (**",null,"Turnbull**","Turnbull",null,25,0,0,{"$f":"COUNTIF($CZ$76:$DI$125,BO91)","v":0},0,0,0,{"$f":"COUNTIF($CZ$149:$DI$159,BO91)","v":0},2,0,0,0,null,null,null,null,null,null,null,null,null,91,null,"R","Turnbull",null,"R Turnbull",null,null,null,1,"Preston","(H)","D 1-1","Yardley",null,null,null,null,null,null,null,null,null,null,"Yardley",null,null,null,null,"Yardley","","","","","",",","","","","","Yardley,"]
[null,null,null,null,null,null,null,null,null,null,null,null,null,null,null,null,null,null,null,null,null,null,null,null,null,null,null,null,null,null,1,null,15,"Division 2","1933-11-18",null,"Preston","(H)",null,null,"D 1-1","Yuill","Walsh","Pipe","Newcombe","Hancock","Forsyth","Poxton","Alexander","Yardley","Ranson","Fishlock",null,null,null,null,1,null,null,null,null,null,1,21,"Walsh (**",null,"Walsh**","Walsh",null,38,0,0,0,0,0,0,0,2,0,0,0,null,null,null,null,null,null,null,null,null,92,null,"J","Walsh",null,"J Walsh",null,null,null,2,"Oldham","(A)","L 0-1","No Scorer",null,null,null,null,null,null,null,null,null,null,"No Scorer",null,null,null,null,"No Scorer","","","","","",",","","","","","No Scorer,"]
[null,null,null,null,1,null,4,null,null,null,null,null,null,null,null,null,null,null,null,null,null,null,null,null,null,null,null,null,null,null,2,null,16,"Division 2","1933-11-25",null,"Oldham","(A)",null,null,"L 0-1","Wilson","Walsh","Pipe","Newcombe","Hancock","Forsyth","Ranson","Alexander","Yardley","Harkins","Fishlock",null,null,null,null,1,null,null,null,null,null,1,22,"Wilson (**",null,"Wilson**","Wilson",null,25,0,0,0,0,0,0,0,2,0,0,0,null,null,null,null,null,null,null,null,null,93,null,"W","Wilson",null,"W Wilson",null,null,null,1,"Burnley","(H)","D 0-0","No Scorer",null,null,null,null,null,null,null,null,null,null,"No Scorer",null,null,null,null,"No Scorer","","","","","",",","","","","","No Scorer,"]
[null,null,null,null,null,null,null,null,null,null,null,null,null,null,null,null,null,null,null,null,null,null,null,null,null,null,null,null,null,null,1,null,17,"Division 2","1933-12-02",null,"Burnley","(H)",null,null,"D 0-0","Wilson","Walsh","Pipe","Newcombe","Turnbull","Forsyth","Horton","Phillips","Yardley","Duffy","Fishlock",null,null,null,null,1,null,null,null,null,null,1,23,"Yardley (**",null,"Yardley**","Yardley",null,18,0,0,{"$f":"COUNTIF($CZ$76:$DI$125,BO94)","v":5},0,0,0,{"$f":"COUNTIF($CZ$149:$DI$159,BO94)","v":0},2,0,0,{"$f":"COUNTIF($CZ$134:$DI$144,BO94)","v":4},null,null,null,null,null,null,null,null,null,94,null,{"$f":"CN29","v":"J"},{"$f":"CO29","v":"Yardley"},null,{"$f":"CO94&\" \"&CP94","v":"J Yardley"},null,null,null,2,"Brentford","(A)","L 0-3","No Scorer",null,null,null,null,null,null,null,null,null,null,"No Scorer",null,null,null,null,"No Scorer","","","","","",",","","","","","No Scorer,"]
[null,null,null,null,null,null,null,null,null,null,null,null,null,null,null,null,null,null,null,null,null,null,null,null,null,null,null,null,null,null,2,null,18,"Division 2","1933-12-09",null,"Brentford","(A)",null,null,"L 0-3","Wilson","Walsh","Pipe","Hancock","Turnbull","Forsyth","Horton","Phillips","Yardley","Roberts","Poxton",null,null,null,null,1,null,null,null,null,null,1,24,{"$f":"BP95&\" (**\"","v":"Yuill (**"},null,{"$f":"BP95&\"**\"","v":"Yuill**"},"Yuill",null,17,0,0,0,0,0,0,0,0,0,0,0,null,null,null,null,null,null,null,null,null,95,null,"D","Yuill",null,"D Yuill",null,null,null,1,"Bolton","(H)","W 2-1","Forsyth","Roberts",null,null,null,null,null,null,null,null,null,"Forsyth, Roberts",null,null,null,null,"Forsyth","Roberts","","","","",",",",","","","","Forsyth,Roberts,"]
[null,null,null,null,null,null,null,null,null,null,null,null,null,null,null,null,null,null,null,null,null,null,null,null,null,null,null,null,null,null,1,null,19,"Division 2","1933-12-16",null,"Bolton","(H)",null,null,"W 2-1","Wilson","Walsh","Pipe","Hancock","Turnbull","Forsyth","Bond","Phillips","Yardley","Roberts","Fishlock",null,null,null,null,1,null,null,null,null,null,1,25,null,null,null,null,null,null,null,null,null,null,null,null,null,null,null,null,null,null,null,null,null,null,null,null,null,null,96,null,null,null,null,null,null,null,null,2,"Man Utd","(A)","D 1-1","Yardley",null,null,null,null,null,null,null,null,null,null,"Yardley",null,null,null,null,"Yardley","","","","","",",","","","","","Yardley,"]
[null,null,null,null,null,null,null,null,null,null,null,null,null,null,null,null,null,null,null,null,null,null,null,null,null,null,null,null,null,null,2,null,20,"Division 2","1933-12-23",null,"Man Utd","(A)",null,null,"D 1-1","Wilson","Walsh","Pipe","Hancock","Turnbull","Forsyth","Bond","Phillips","Yardley","Roberts","Fishlock",null,null,null,null,1,null,null,null,null,null,1,26,null,null,null,null,null,null,null,null,null,null,null,null,null,null,null,null,null,null,null,null,null,null,null,null,null,null,95,null,null,null,null,null,null,null,null,1,"Notts Co","(A)","W 1-0","Bond",null,null,null,null,null,null,null,null,null,null,"Bond",null,null,null,null,"Bond","","","","","",",","","","","","Bond,"]
[null,null,null,null,null,null,null,null,null,null,null,null,null,null,null,null,null,null,null,null,null,null,null,null,null,null,null,null,null,null,1,null,21,"Division 2","1933-12-25",null,"Notts Co","(A)",null,null,"W 1-0","Wilson","Walsh","Pipe","Hancock","Turnbull","Forsyth","Bond","Phillips","Yardley","Roberts","Fishlock",null,null,null,null,1,null,null,null,null,null,1,27,null,null,null,null,null,null,null,null,null,null,null,null,null,null,null,null,null,null,null,null,null,null,null,null,null,null,98,null,null,null,null,null,null,null,null,2,"Notts Co","(H)","W 3-2","Fishlock","Fishlock","Phillips",null,null,null,null,null,null,null,null,"Fishlock (2), Phillips",null,null,null,null,"Fishlock","Fishlock","Phillips","","","",",",",",",","","","Fishlock,Fishlock,Phillips,"]
[null,null,null,null,null,null,null,null,null,null,null,null,null,null,null,null,null,null,null,null,null,null,null,null,null,null,null,null,null,null,2,null,22,"Division 2","1933-12-26",null,"Notts Co","(H)",null,null,"W 3-2","Yuill","Walsh","Pipe","Hancock","Turnbull","Forsyth","Bond","Phillips","Yardley","Roberts","Fishlock",null,null,null,null,1,null,null,null,null,null,1,28,null,null,null,null,null,null,null,null,null,null,null,null,null,null,null,null,null,null,null,null,null,null,null,null,null,null,99,null,null,null,null,null,null,null,null,1,"Lincoln","(H)","W 4-1","Yardley","Hancock","Fishlock","Fishlock",null,null,null,null,null,null,null,"Yardley, Hancock, Fishlock (2)",null,null,null,null,"Yardley","Hancock","Fishlock","Fishlock","","",",",",",",",",","","Yardley,Hancock,Fishlock,Fishlock,"]
[null,null,null,null,null,null,null,null,null,null,null,null,null,null,null,null,null,null,null,null,null,null,null,null,null,null,null,null,null,null,1,null,23,"Division 2","1933-12-30",null,"Lincoln","(H)",null,null,"W 4-1","Wilson","Walsh","Pipe","Hancock","Turnbull","Forsyth","Bond","Phillips","Yardley","Roberts","Fishlock",null,null,null,null,1,null,null,null,null,null,1,29,null,null,null,null,null,null,null,null,null,null,null,null,null,null,null,null,null,null,null,null,null,null,null,null,null,null,null,null,null,null,null,null,null,null,null,2,"Bury","(A)","L 1-5","Phillips",null,null,null,null,null,null,null,null,null,null,"Phillips",null,null,null,null,"Phillips","","","","","",",","","","","","Phillips,"]
[null,null,null,null,null,null,null,null,null,null,null,null,null,null,null,null,null,null,null,null,null,null,null,null,null,null,null,null,null,null,2,null,24,"Division 2","1934-01-06",null,"Bury","(A)",null,null,"L 1-5","Wilson","Sweetman","Walsh","Hancock","Turnbull","Forsyth","Bond","Phillips","Yardley","Roberts","Fishlock",null,null,null,null,1,null,null,null,null,null,1,30,null,null,null,null,null,null,null,null,null,null,null,null,null,null,null,null,null,null,null,null,null,null,null,null,null,null,null,null,null,null,null,null,null,null,null,1,"Hull","(H)","W 2-0","Phillips","Phillips",null,null,null,null,null,null,null,null,null,"Phillips (2)",null,null,null,null,"Phillips","Phillips","","","","",",",",","","","","Phillips,Phillips,"]
[null,null,null,null,null,null,null,null,null,null,null,null,null,null,null,null,null,null,null,null,null,null,null,null,null,null,null,null,null,null,1,null,25,"Division 2","1934-01-20",null,"Hull","(H)",null,null,"W 2-0","Wilson","Walsh","Pipe","Harkins","Turnbull","Forsyth","Bond","Phillips","Yardley","Roberts","Fishlock",null,null,null,null,1,null,null,null,null,null,1,null,null,null,null,null,null,null,null,null,null,null,null,null,null,null,null,null,null,null,null,null,null,null,null,null,null,null,null,null,null,null,null,null,null,null,null,2,"Fulham","(A)","L 0-2","No Scorer",null,null,null,null,null,null,null,null,null,null,"No Scorer",null,null,null,null,"No Scorer","","","","","",",","","","","","No Scorer,"]
[null,null,null,null,null,null,null,null,null,null,null,null,null,null,null,null,null,null,null,null,null,null,null,null,null,null,null,null,null,null,2,null,26,"Division 2","1934-01-29",null,"Fulham","(A)",null,null,"L 0-2","Wilson","Walsh","Pipe","Harkins","Turnbull","Forsyth","Alexander","Phillips","Ranson","Roberts","Fishlock",null,null,null,null,1,null,null,null,null,null,1,null,null,null,{"$f":"BP103&\"**\"","v":"Own Goal**"},"Own Goal",null,null,null,null,{"$f":"COUNTIF($CZ$76:$DI$125,BO103)","v":1},null,null,null,{"$f":"COUNTIF($CZ$149:$DI$159,BO103)","v":0},null,null,null,{"$f":"COUNTIF($CZ$134:$DI$144,BP103)","v":0},null,null,null,null,null,null,null,null,null,null,null,null,null,null,null,null,null,null,1,"Blackpool","(A)","D 2-2","Horton","Own Goal",null,null,null,null,null,null,null,null,null,"Horton, Own Goal",null,null,null,null,"Horton","Own Goal","","","","",",",",","","","","Horton,Own Goal,"]
[null,null,null,null,null,null,null,null,null,null,null,null,null,null,null,null,null,null,null,null,null,null,null,null,null,null,null,null,null,null,1,null,27,"Division 2","1934-02-10",null,"Blackpool","(A)",null,null,"D 2-2","Wilson","Walsh","Pipe","Harkins","Turnbull","Forsyth","Alexander","Phillips","Horton","Roberts","Fishlock",null,null,null,null,1,null,null,null,null,null,1,null,null,null,null,null,null,null,null,null,null,null,null,null,null,null,null,null,null,null,null,null,null,null,null,null,null,null,null,null,null,null,null,null,null,null,null,2,"Bradford City","(H)","D 1-1","Fishlock",null,null,null,null,null,null,null,null,null,null,"Fishlock",null,null,null,null,"Fishlock","","","","","",",","","","","","Fishlock,"]
[null,null,null,null,null,null,null,null,null,null,null,null,null,null,null,null,null,null,null,null,null,null,null,null,null,null,null,null,null,null,2,null,28,"Division 2","1934-02-17",null,"Bradford City","(H)",null,null,"D 1-1","Wilson","Walsh","Pipe","Harkins","Turnbull","Forsyth","Alexander","Phillips","Horton","Roberts","Fishlock",null,null,null,null,1,null,null,null,null,null,1,null,null,null,null,null,null,null,null,null,null,null,null,null,null,null,null,null,null,null,null,null,null,null,null,null,null,null,null,null,null,null,null,null,null,null,null,1,"Port Vale","(A)","L 1-5","Roberts",null,null,null,null,null,null,null,null,null,null,"Roberts",null,null,null,null,"Roberts","","","","","",",","","","","","Roberts,"]
[null,null,null,null,null,null,null,null,null,null,null,null,null,null,null,null,null,null,null,null,null,null,null,null,null,null,null,null,null,null,1,null,29,"Division 2","1934-02-24",null,"Port Vale","(A)",null,null,"L 1-5","Wilson","Walsh","Swallow","Newcombe","Turnbull","Forsyth","Alexander","Phillips","Horton","Roberts","Fishlock",null,null,null,null,1,null,null,null,null,null,1,null,null,null,null,"Check",null,{"$f":"SUM(BR72:BR97)","v":462},null,null,{"$f":"SUM(BU72:BU103)","v":39},null,null,null,{"$f":"SUM(BY72:BY103)","v":0},null,null,null,{"$f":"SUM(CC72:CC103)","v":6},null,null,null,null,null,null,null,null,null,null,null,null,null,null,null,null,null,null,2,"West Ham","(A)","D 1-1","Alexander",null,null,null,null,null,null,null,null,null,null,"Alexander",null,null,null,null,"Alexander","","","","","",",","","","","","Alexander,"]
[null,null,null,null,null,null,null,null,null,null,null,null,null,null,null,null,null,null,null,null,null,null,null,null,null,null,null,null,null,null,2,null,30,"Division 2","1934-03-03",null,"West Ham","(A)",null,null,"D 1-1","Yuill","Walsh","Turnbull","Newcombe","Hancock","Forsyth","Alexander","Phillips","Yardley","Roberts","Fishlock",null,null,null,null,1,null,null,null,null,null,1,null,null,null,null,null,null,null,null,null,null,null,null,null,null,null,null,null,null,null,null,null,null,null,null,null,null,null,null,null,null,null,null,null,null,null,null,1,"Nottm Forest","(H)","D 0-0","No Scorer",null,null,null,null,null,null,null,null,null,null,"No Scorer",null,null,null,null,"No Scorer","","","","","",",","","","","","No Scorer,"]
[null,null,null,null,null,null,null,null,null,null,null,null,null,null,null,null,null,null,null,null,null,null,null,null,null,null,null,null,null,null,1,null,31,"Division 2","1934-03-10",null,"Nottm Forest","(H)",null,null,"D 0-0","Yuill","Walsh","Pipe","Newcombe","Hancock","Forsyth","Horton","Phillips","Alexander","Roberts","Fishlock",null,null,null,null,1,null,null,null,null,null,1,null,null,null,null,null,null,{"$f":"42*11","v":462},null,null,{"$f":"SUM(O5:O48)-6","v":39},null,null,null,null,null,null,null,{"$f":"SUM(O5:O48)-BU108","v":6},null,null,null,null,null,null,null,null,null,null,null,null,null,null,null,null,null,null,2,"Grimsby","(A)","L 2-5","McCartney","McCartney",null,null,null,null,null,null,null,null,null,"McCartney (2)",null,null,null,null,"McCartney","McCartney","","","","",",",",","","","","McCartney,McCartney,"]
[null,null,null,null,null,null,null,null,null,null,null,null,null,null,null,null,null,null,null,null,null,null,null,null,null,null,null,null,null,null,2,null,32,"Division 2","1934-03-17",null,"Grimsby","(A)",null,null,"L 2-5","Yuill","Walsh","Pipe","Newcombe","Hancock","Forsyth","McCartney","Alexander","Turnbull","Roberts","Fishlock",null,null,null,null,1,null,null,null,null,null,1,null,null,null,null,null,null,null,null,null,null,null,null,null,null,null,null,null,null,null,null,null,null,null,null,null,null,null,null,null,null,null,null,null,null,null,null,1,"Bradford PA","(H)","L 0-1","No Scorer",null,null,null,null,null,null,null,null,null,null,"No Scorer",null,null,null,null,{"$f":"IF(CZ109=\"\",\"\",CZ109)","v":"No Scorer"},{"$f":"IF(DA109=\"\",\"\",DA109)","v":""},{"$f":"IF(DB109=\"\",\"\",DB109)","v":""},{"$f":"IF(DC109=\"\",\"\",DC109)","v":""},{"$f":"IF(DD109=\"\",\"\",DD109)","v":""},{"$f":"IF(DE109=\"\",\"\",DE109)","v":""},",","","","","","No Scorer,"]
[null,null,null,null,null,null,null,null,null,null,null,null,null,null,null,null,null,null,null,null,null,null,null,null,null,null,null,null,null,null,1,null,33,"Division 2","1934-03-24",null,"Bradford PA","(H)",null,null,"L 0-1","Yuill","Sweetman","Pipe","Newcombe","Turnbull","Forsyth","McCartney","Alexander","Snaith","Ranson","Fishlock",null,null,null,null,1,null,null,null,null,null,1,null,null,null,null,null,null,null,null,null,null,null,null,null,null,null,null,null,null,null,null,null,null,null,null,null,null,null,null,null,null,null,null,null,null,null,null,2,"Plymouth","(H)","D 0-0","No Scorer",null,null,null,null,null,null,null,null,null,null,"No Scorer",null,null,null,null,"No Scorer","","","","","",",","","","","","No Scorer,"]
[null,null,null,null,null,null,null,null,null,null,null,null,null,null,null,null,null,null,null,null,null,null,null,null,null,null,null,null,null,null,2,null,34,"Division 2","1934-03-30",null,"Plymouth","(H)",null,null,"D 0-0","Yuill","Sweetman","Pipe","Newcombe","Turnbull","Forsyth","McCartney","Alexander","Snaith","Harkins","Fishlock",null,null,null,null,1,null,null,null,null,null,1,null,null,null,null,null,null,null,null,null,null,null,null,null,null,null,null,null,null,null,null,null,null,null,null,null,null,null,null,null,null,null,null,null,null,null,null,1,"Preston","(A)","L 2-4","Horton","Fishlock",null,null,null,null,null,null,null,null,null,"Horton, Fishlock",null,null,null,null,"Horton","Fishlock","","","","",",",",","","","","Horton,Fishlock,"]
[null,null,null,null,null,null,null,null,null,null,null,null,null,null,null,null,null,null,null,null,null,null,null,null,null,null,null,null,null,null,1,null,35,"Division 2","1934-03-31",null,"Preston","(A)",null,null,"L 2-4","Yuill","Sweetman","Pipe","Newcombe","Turnbull","Forsyth","McCartney","Alexander","Horton","Roberts","Fishlock",null,null,null,null,1,null,null,null,null,null,1,null,null,null,null,null,null,null,null,null,null,null,null,null,null,null,null,null,null,null,null,null,null,null,null,null,null,null,null,null,null,null,null,null,null,null,null,2,"Plymouth","(A)","L 0-1","No Scorer",null,null,null,null,null,null,null,null,null,null,"No Scorer",null,null,null,null,"No Scorer","","","","","",",","","","","","No Scorer,"]
[null,null,null,null,null,null,null,null,null,null,null,null,null,null,null,null,null,null,null,null,null,null,null,null,null,null,null,null,null,null,2,null,36,"Division 2","1934-04-02",null,"Plymouth","(A)",null,null,"L 0-1","Yuill","Walsh","Pipe","Newcombe","Turnbull","Forsyth","Horton","Alexander","Snaith","Phillips","McCartney",null,null,null,null,1,null,null,null,null,null,1,null,null,null,null,null,null,null,null,null,null,null,null,null,null,null,null,null,null,null,null,null,null,null,null,null,null,null,null,null,null,null,null,null,null,null,null,1,"Oldham","(H)","W 1-0","Yardley",null,null,null,null,null,null,null,null,null,null,"Yardley",null,null,null,null,"Yardley","","","","","",{"$f":"IF(DP113<>\"\",\",\",\"\")","v":","},{"$f":"IF(DQ113<>\"\",\",\",\"\")","v":""},{"$f":"IF(DR113<>\"\",\",\",\"\")","v":""},{"$f":"IF(DS113<>\"\",\",\",\"\")","v":""},{"$f":"IF(DT113<>\"\",\",\",\"\")","v":""},{"$f":"CONCATENATE(DP113,DV113,DQ113,DW113,DR113,DX113,DS113,DY113,DT113,DZ113,DU113)","v":"Yardley,"}]
[null,null,null,null,null,null,null,null,null,null,null,null,null,null,null,null,null,null,null,null,null,null,null,null,null,null,null,null,null,null,1,null,37,"Division 2","1934-04-07",null,"Oldham","(H)",null,null,"W 1-0","Yuill","Walsh","Pipe","Newcombe","Turnbull","Forsyth","McCartney","Alexander","Yardley","Roberts","Fishlock",null,null,null,null,1,null,null,null,null,null,1,null,null,null,null,null,null,null,null,null,null,null,null,null,null,null,null,null,null,null,null,null,null,null,null,null,null,null,null,null,null,null,null,null,null,null,null,2,"Southampton","(H)","W 1-0","Roberts",null,null,null,null,null,null,null,null,null,null,"Roberts",null,null,null,null,"Roberts","","","","","",",","","","","","Roberts,"]
[null,null,null,null,null,null,null,null,null,null,null,null,null,null,null,null,null,null,null,null,null,null,null,null,null,null,null,null,null,null,2,null,38,"Division 2","1934-04-09",null,"Southampton","(H)",null,null,"W 1-0","Yuill","Walsh","Pipe","Newcombe","Turnbull","Forsyth","McCartney","Alexander","Yardley","Roberts","Fishlock",null,null,null,null,1,null,null,null,null,null,1,null,null,null,null,null,null,null,null,null,null,null,null,null,null,null,null,null,null,null,null,null,null,null,null,null,null,null,null,null,null,null,null,null,null,null,null,1,"Burnley","(A)","L 1-2","Yardley",null,null,null,null,null,null,null,null,null,null,"Yardley",null,null,null,null,"Yardley","","","","","",",","","","","","Yardley,"]
[null,null,null,null,null,null,null,null,null,null,null,null,null,null,null,null,null,null,null,null,null,null,null,null,null,null,null,null,null,null,1,null,39,"Division 2","1934-04-14",null,"Burnley","(A)",null,null,"L 1-2","Yuill","Walsh","Pipe","Newcombe","Turnbull","Forsyth","McCartney","Alexander","Yardley","Roberts","Fishlock",null,null,null,null,1,null,null,null,null,null,1,null,null,null,null,null,null,null,null,null,null,null,null,null,null,null,null,null,null,null,null,null,null,null,null,null,null,null,null,null,null,null,null,null,null,null,null,2,"Brentford","(H)","W 2-0","Newcombe","Forsyth",null,null,null,null,null,null,null,null,null,"Newcombe, Forsyth",null,null,null,null,"Newcombe","Forsyth","","","","",",",",","","","","Newcombe,Forsyth,"]
[null,null,null,null,null,null,null,null,null,null,null,null,null,null,null,null,null,null,null,null,null,null,null,null,null,null,null,null,null,null,2,null,40,"Division 2","1934-04-21",null,"Brentford","(H)",null,null,"W 2-0","Yuill","Walsh","Pipe","Newcombe","Turnbull","Forsyth","McCartney","Alexander","Yardley","Roberts","Fishlock",null,null,null,null,1,null,null,null,null,null,1,null,null,null,null,null,null,null,null,null,null,null,null,null,null,null,null,null,null,null,null,null,null,null,null,null,null,null,null,null,null,null,null,null,null,null,null,1,"Bolton","(A)","L 0-5","No Scorer",null,null,null,null,null,null,null,null,null,null,"No Scorer",null,null,null,null,"No Scorer","","","","","",",","","","","","No Scorer,"]
[null,null,null,null,null,null,null,null,null,null,null,null,null,null,null,null,null,null,null,null,null,null,null,null,null,null,null,null,null,null,1,null,41,"Division 2","1934-04-28",null,"Bolton","(A)",null,null,"L 0-5","Yuill","Walsh","Pipe","Newcombe","Turnbull","Forsyth","McCartney","Alexander","Yardley","Roberts","Fishlock",null,null,null,null,1,null,null,null,null,null,null,null,null,null,null,null,null,null,null,null,null,null,null,null,null,null,null,null,null,null,null,null,null,null,null,null,null,null,null,null,null,null,null,null,null,null,null,2,"Man Utd","(H)","L 0-2","No Scorer",null,null,null,null,null,null,null,null,null,null,"No Scorer",null,null,null,null,"No Scorer","","","","","",",","","","","","No Scorer,"]
[null,null,null,null,null,null,null,null,null,null,null,null,null,null,null,null,null,null,null,null,null,null,null,null,null,null,null,null,null,null,2,null,42,"Division 2","1934-05-05",null,"Man Utd","(H)",null,null,"L 0-2","Yuill","Walsh","Pipe","Newcombe","Turnbull","Forsyth","McCartney","Alexander","Yardley","Roberts","Fishlock",null,null,null,null,1,null,null,null,null,null,null,null,null,null,null,null,null,null,null,null,null,null,null,null,null,null,null,null,null,null,null,null,null,null,null,null,null,null,null,null,null,null,null,null,null,null,null,1,null,null,null,"x",null,null,null,null,null,null,null,null,null,null,"x",null,null,null,null,"x","","","","","",",","","","","","x,"]
[null,null,null,null,null,null,null,null,null,null,null,null,null,null,null,null,null,null,null,null,null,null,null,null,null,null,null,null,null,null,1,null,null,null,null,null,null,null,null,null,null,null,null,null,null,null,null,null,null,null,null,null,null,null,null,null,null,null,null,null,null,null,null,null,null,null,null,null,null,null,null,null,null,null,null,null,null,null,null,null,null,null,null,null,null,null,null,null,null,null,null,null,null,null,null,null,null,null,null,2,null,null,null,"x",null,null,null,null,null,null,null,null,null,null,"x",null,null,null,null,"x","","","","","",",","","","","","x,"]
[null,null,null,null,null,null,null,null,null,null,null,null,null,null,null,null,null,null,null,null,null,null,null,null,null,null,null,null,null,null,2,null,null,null,null,null,null,null,null,null,null,null,null,null,null,null,null,null,null,null,null,null,null,null,null,null,null,null,null,null,null,null,null,null,null,null,null,null,null,null,null,null,null,null,null,null,null,null,null,null,null,null,null,null,null,null,null,null,null,null,null,null,null,null,null,null,null,null,null,1,null,null,null,"x",null,null,null,null,null,null,null,null,null,null,"x",null,null,null,null,"x","","","","","",{"$f":"IF(DP121<>\"\",\",\",\"\")","v":","},"","","","",{"$f":"CONCATENATE(DP121,DV121,DQ121,DW121,DR121,DX121,DS121,DY121,DT121,DZ121,DU121)","v":"x,"}]
[null,null,null,null,null,null,null,null,null,null,null,null,null,null,null,null,null,null,null,null,null,null,null,null,null,null,null,null,null,null,1,null,null,null,null,null,null,null,null,null,null,null,null,null,null,null,null,null,null,null,null,null,null,null,null,null,null,null,null,null,null,null,null,null,null,null,null,null,null,null,null,null,null,null,null,null,null,null,null,null,null,null,null,null,null,null,null,null,null,null,null,null,null,null,null,null,null,null,null,2,null,null,null,"x",null,null,null,null,null,null,null,null,null,null,"x",null,null,null,null,"x","","","","","",",","","","","",{"$f":"CONCATENATE(DP122,DV122,DQ122,DW122,DR122,DX122,DS122,DY122,DT122,DZ122,DU122)","v":"x,"}]
[null,null,null,null,null,null,null,null,null,null,null,null,null,null,null,null,null,null,null,null,null,null,null,null,null,null,null,null,null,null,2,null,null,null,null,null,null,null,null,null,null,null,null,null,null,null,null,null,null,null,null,null,null,null,null,null,null,null,null,null,null,null,null,null,null,null,null,null,null,null,null,null,null,null,null,null,null,null,null,null,null,null,null,null,null,null,null,null,null,null,null,null,null,null,null,null,null,null,null,1,null,null,null,"x",null,null,null,null,null,null,null,null,null,null,"x",null,null,null,null,"x","","","","","",",","","","","",{"$f":"CONCATENATE(DP123,DV123,DQ123,DW123,DR123,DX123,DS123,DY123,DT123,DZ123,DU123)","v":"x,"}]
[null,null,null,null,null,null,null,null,null,null,null,null,null,null,null,null,null,null,null,null,null,null,null,null,null,null,null,null,null,null,1,null,null,null,null,null,null,null,null,null,null,null,null,null,null,null,null,null,null,null,null,null,null,null,null,null,null,null,null,null,null,null,null,null,null,null,null,null,null,null,null,null,null,null,null,null,null,null,null,null,null,null,null,null,null,null,null,null,null,null,null,null,null,null,null,null,null,null,null,2,null,null,null,"x",null,null,null,null,null,null,null,null,null,null,"x",null,null,null,null,"x","","","","","",",","","","","",{"$f":"CONCATENATE(DP124,DV124,DQ124,DW124,DR124,DX124,DS124,DY124,DT124,DZ124,DU124)","v":"x,"}]
[null,null,null,null,null,null,null,null,null,null,null,null,null,null,null,null,null,null,null,null,null,null,null,null,null,null,null,null,null,null,2,null,null,null,null,null,null,null,null,null,null,null,null,null,null,null,null,null,null,null,null,null,null,null,null,null,null,null,null,null,null,null,null,null,null,null,null,null,null,null,null,null,null,null,null,null,null,null,null,null,null,null,null,null,null,null,null,null,null,null,null,null,null,null,null,null,null,null,null,1,null,null,null,"x",null,null,null,null,null,null,null,null,null,null,"x",null,null,null,null,"x","","","","","",",","","","","",{"$f":"CONCATENATE(DP125,DV125,DQ125,DW125,DR125,DX125,DS125,DY125,DT125,DZ125,DU125)","v":"x,"}]
[null,null,null,null,null,null,null,null,null,null,null,null,null,null,null,null,null,null,null,null,null,null,null,null,null,null,null,null,null,null,1,null,1,"League Cup",null,null,null,null,null,null,null,null,null,null,null,null,null,null,null,null,null,null,null,null,null,null,null,null,null,null,null,null,null,null,null,null,null,null,null,null,null,null,null,null,null,null,null,null,null,null,null,null,null,null,null,null,null,null,null,null,null,null,null,null,null,null,null,null,null,null,null,null,null,"x",null,null,null,null,null,null,null,null,null,null,"x"]
[null,null,null,null,null,null,null,null,null,null,null,null,null,null,null,null,null,null,null,null,null,null,null,null,null,null,null,null,null,null,2,null,null,null,null,null,null,null,null,null,null,null,null,null,null,null,null,null,null,null,null,null,null,null,null,null,null,null,null,null,null,null,null,null,null,null,null,null,null,null,null,null,null,null,null,null,null,null,null,null,null,null,null,null,null,null,null,null,null,null,null,null,null,null,null,null,null,null,null,null,null,null,null,"x",null,null,null,null,null,null,null,null,null,null,"x"]
[null,null,null,null,null,null,null,null,null,null,null,null,null,null,null,null,null,null,null,null,null,null,null,null,null,null,null,null,null,null,1,null,null,null,null,null,null,null,null,null,null,null,null,null,null,null,null,null,null,null,null,null,null,null,null,null,null,null,null,null,null,null,null,null,null,null,null,null,null,null,null,null,null,null,null,null,null,null,null,null,null,null,null,null,null,null,null,null,null,null,null,null,null,null,null,null,null,null,null,null,null,null,null,"x",null,null,null,null,null,null,null,null,null,null,"x"]
[null,null,null,null,null,null,null,null,null,null,null,null,null,null,null,null,null,null,null,null,null,null,null,null,null,null,null,null,null,null,2,null,null,null,null,null,null,null,null,null,null,null,null,null,null,null,null,null,null,null,null,null,null,null,null,null,null,null,null,null,null,null,null,null,null,null,null,null,null,null,null,null,null,null,null,null,null,null,null,null,null,null,null,null,null,null,null,null,null,null,null,null,null,null,null,{"$f":"CP130&\" \"&BP126","v":" "},null,null,null,null,null,null,null,"x",null,null,null,null,null,null,null,null,null,null,"x"]
[null,null,null,null,null,null,null,null,null,null,null,null,null,null,null,null,null,null,null,null,null,null,null,null,null,null,null,null,null,null,1,null,null,null,null,null,null,null,null,null,null,null,null,null,null,null,null,null,null,null,null,null,null,null,null,null,null,null,null,null,null,null,null,null,null,null,null,null,null,null,null,null,null,null,null,null,null,null,null,null,null,null,null,null,null,null,null,null,null,null,null,null,null,null,null,null,null,null,null,null,null,null,null,"x",null,null,null,null,null,null,null,null,null,null,"x"]
[null,null,null,null,null,null,null,null,null,null,null,null,null,null,null,null,null,null,null,null,null,null,null,null,null,null,null,null,null,null,2,null,null,null,null,null,null,null,null,null,null,null,null,null,null,null,null,null,null,null,null,null,null,null,null,null,null,null,null,null,null,null,null,null,null,null,null,null,null,null,null,null,null,null,null,null,null,null,null,null,null,null,null,null,null,null,null,null,null,null,null,null,null,null,null,null,null,null,null,null,null,null,null,"Goals FA Cup",null,null,null,null,null,null,null,null,null,null,"Goals FA Cup"]
[null,null,null,null,null,null,null,null,null,null,null,null,null,null,null,null,null,null,null,null,null,null,null,null,null,null,null,null,null,null,1,null,null,null,null,null,null,null,null,null,null,null,null,null,null,null,null,null,null,null,null,null,null,null,null,null,null,null,null,null,null,null,null,null,null,null,null,null,null,null,null,null,null,null,null,null,null,null,null,null,null,null,null,null,null,null,null,null,null,null,null,null,null,null,null,null,null,null,null,null,null,null,null,1,2,3,4,5,6,7,8,7,8,9,"1, 2, 3, 4, 5, 6, 7, 8, 9"]
[null,null,null,null,null,null,null,null,null,null,null,null,null,null,null,null,null,null,null,null,null,null,null,null,null,null,null,null,null,null,2,null,null,null,null,null,null,null,null,null,null,null,null,null,null,null,null,null,null,null,null,null,null,null,null,null,null,null,null,null,null,null,null,null,null,null,null,null,null,null,null,null,null,null,null,null,null,null,null,null,null,null,null,null,null,null,null,null,null,null,null,null,null,null,null,null,null,null,null,null,null,null,null,"x",null,null,null,null,null,null,null,null,null,null,"x"]
[null,null,null,null,null,null,null,null,null,null,null,null,null,null,null,null,null,null,null,null,null,null,null,null,null,null,null,null,null,null,1,null,null,null,null,null,null,null,null,null,null,null,null,null,null,null,null,null,null,null,null,null,null,null,null,null,null,null,null,null,null,null,null,null,null,null,null,null,null,null,null,null,null,null,null,null,null,null,null,null,null,null,null,null,null,null,null,null,null,null,null,null,null,null,null,null,null,null,null,{"$f":"IF(CV133=0,1,IF(CV133=2,1,2))","v":1},{"$f":"AK136","v":"Accrington Stanley"},{"$f":"AL136","v":"(H)"},{"$f":"AO136","v":"W 3-0"},"Yardley","Yardley","Phillips",null,null,null,null,null,null,null,null,"Yardley (2), Phillips",null,null,null,null,{"$f":"IF(CZ134=\"\",\"\",CZ134)","v":"Yardley"},"Yardley","Phillips","","","",{"$f":"IF(DF134=\"\",\"\",DF134)","v":""},{"$f":"IF(DG134=\"\",\"\",DG134)","v":""},{"$f":"IF(DR134<>\"\",\",\",\"\")","v":","},{"$f":"IF(DS134<>\"\",\",\",\"\")","v":""},{"$f":"IF(DT134<>\"\",\",\",\"\")","v":""},{"$f":"CONCATENATE(DP134,DV134,DQ134,DW134,DR134,DX134,DS134,DY134,DT134,DZ134,DU134)","v":"YardleyYardleyPhillips,"}]
[null,null,null,null,null,null,null,null,null,null,null,null,null,null,null,null,null,null,null,null,null,null,null,null,null,null,null,null,null,null,2,null,null,null,null,null,null,null,null,null,null,null,null,null,null,null,null,null,null,null,null,null,null,null,null,null,null,null,null,null,null,null,null,null,null,null,null,null,null,null,null,null,null,null,null,null,null,null,null,null,null,null,null,null,null,null,null,null,null,null,null,null,null,null,null,null,null,null,null,2,{"$f":"AK137","v":"Leicester City"},"(H)",{"$f":"AO137","v":"L 3-6"},"Phillips","Yardley","Yardley",null,null,null,null,null,null,null,null,"Phillips, Yardley (2)",null,null,null,null,"Phillips",{"$f":"IF(DA135=\"\",\"\",DA135)","v":"Yardley"},{"$f":"IF(DB135=\"\",\"\",DB135)","v":"Yardley"},{"$f":"IF(DC135=\"\",\"\",DC135)","v":""},{"$f":"IF(DD135=\"\",\"\",DD135)","v":""},{"$f":"IF(DE135=\"\",\"\",DE135)","v":""},"","",{"$f":"IF(DR135<>\"\",\",\",\"\")","v":","},{"$f":"IF(DS135<>\"\",\",\",\"\")","v":""},{"$f":"IF(DT135<>\"\",\",\",\"\")","v":""},{"$f":"CONCATENATE(DP135,DV135,DQ135,DW135,DR135,DX135,DS135,DY135,DT135,DZ135,DU135)","v":"PhillipsYardleyYardley,"}]
[null,null,null,null,null,null,null,null,null,null,null,null,null,null,null,null,null,null,null,null,null,null,null,null,null,null,null,null,null,null,1,null,1,"FA Cup 3","1934-01-13",null,"Accrington Stanley","(H)",null,null,"W 3-0","Wilson","Walsh","Pipe","Harkins","Turnbull","Forsyth","Bond","Phillips","Yardley","Roberts","Fishlock",null,null,null,null,1,null,null,null,null,null,null,null,null,null,null,null,null,null,null,null,null,null,null,null,null,null,null,null,null,null,null,null,null,null,null,null,null,null,null,null,null,null,null,null,null,null,null,1,0,0,0,null,null,null,null,null,null,null,null,null,null,null,null,null,null,null,null,"","","","","","",{"$f":"IF(DF136=\"\",\"\",DF136)","v":""},{"$f":"IF(DG136=\"\",\"\",DG136)","v":""},"","","",""]
[null,null,null,null,null,null,null,null,null,null,null,null,null,null,null,null,null,null,null,null,null,null,null,null,null,null,null,null,null,null,2,null,2,"FA Cup 4","1934-01-27",null,"Leicester City","(H)",null,null,"L 3-6","Wilson","Walsh","Pipe","Harkins","Turnbull","Forsyth","Alexander","Phillips","Yardley","Roberts","Fishlock",null,null,null,null,1,null,null,null,null,null,null,null,null,null,null,null,null,null,null,null,null,null,null,null,null,null,null,null,null,null,null,null,null,null,null,null,null,null,null,null,null,null,null,null,null,null,null,2,{"$f":"AK139","v":0},{"$f":"AL139","v":0},{"$f":"AO139","v":0},null,null,null,null,null,null,null,null,null,null,null,null,null,null,null,null,"","","","","",{"$f":"IF(DE137=\"\",\"\",DE137)","v":""},"","","","","",""]
[null,null,null,null,null,null,null,null,null,null,null,null,null,null,null,null,null,null,null,null,null,null,null,null,null,null,null,null,null,null,1,null,null,null,null,null,null,null,null,null,null,null,null,null,null,null,null,null,null,null,null,null,null,null,null,null,null,null,null,null,null,null,null,null,null,null,null,null,null,null,null,null,null,null,null,null,null,null,null,null,null,null,null,null,null,null,null,null,null,null,null,null,null,null,null,null,null,null,null,1,0,0,0,null,null,null,null,null,null,null,null,null,null,null,null,null,null,null,null,"","","","","","","","","","","",""]
[null,null,null,null,null,null,null,null,null,null,null,null,null,null,null,null,null,null,null,null,null,null,null,null,null,null,null,null,null,null,2,null,null,null,null,null,null,null,null,null,null,null,null,null,null,null,null,null,null,null,null,null,null,null,null,null,null,null,null,null,null,null,null,null,null,null,null,null,null,null,null,null,null,null,null,null,null,null,null,null,null,null,null,null,null,null,null,null,null,null,null,null,null,null,null,null,null,null,null,2,0,0,0,null,null,null,null,null,null,null,null,null,null,null,null,null,null,null,null,"","","","","","","","","","","",""]
[null,null,null,null,null,null,null,null,null,null,null,null,null,null,null,null,null,null,null,null,null,null,null,null,null,null,null,null,null,null,1,null,null,null,null,null,null,null,null,null,null,null,null,null,null,null,null,null,null,null,null,null,null,null,null,null,null,null,null,null,null,null,null,null,null,null,null,null,null,null,null,null,null,null,null,null,null,null,null,null,null,null,null,null,null,null,null,null,null,null,null,null,null,null,null,null,null,null,null,1,0,0,0,null,null,null,null,null,null,null,null,null,null,null,null,null,null,null,null,"","","","","","","","","","","",""]
[null,null,null,null,null,null,null,null,null,null,null,null,null,null,null,null,null,null,null,null,null,null,null,null,null,null,null,null,null,null,2,null,null,null,null,null,null,null,null,null,null,null,null,null,null,null,null,null,null,null,null,null,null,null,null,null,null,null,null,null,null,null,null,null,null,null,null,null,null,null,null,null,null,null,null,null,null,null,null,null,null,null,null,null,null,null,null,null,null,null,null,null,null,null,null,null,null,null,null,2]
[null,null,null,null,null,null,null,null,null,null,null,null,null,null,null,null,null,null,null,null,null,null,null,null,null,null,null,null,null,null,1,null,null,null,null,null,null,null,null,null,null,null,null,null,null,null,null,null,null,null,null,null,null,null,null,null,null,null,null,null,null,null,null,null,null,null,null,null,null,null,null,null,null,null,null,null,null,null,null,null,null,null,null,null,null,null,null,null,null,null,null,null,null,null,null,null,null,null,null,1]
[null,null,null,null,null,null,null,null,null,null,null,null,null,null,null,null,null,null,null,null,null,null,null,null,null,null,null,null,null,null,{"$f":"IF(AE142=0,1,IF(AE142=2,1,2))","v":2},null,null,null,null,null,null,null,null,null,null,null,null,null,null,null,null,null,null,null,null,null,null,null,null,null,null,null,null,null,null,null,null,null,null,null,null,null,null,null,null,null,null,null,null,null,null,null,null,null,null,null,null,null,null,null,null,null,null,null,null,null,null,null,null,null,null,null,null,2]
[null,null,null,null,null,null,null,null,null,null,null,null,null,null,null,null,null,null,null,null,null,null,null,null,null,null,null,null,null,null,1,null,null,null,null,null,null,null,null,null,null,null,null,null,null,null,null,null,null,null,null,null,null,null,null,null,null,null,null,null,null,null,null,null,null,null,null,null,null,null,null,null,null,null,null,null,null,null,null,null,null,null,null,null,null,null,null,null,null,null,null,null,null,null,null,null,null,null,null,null,null,null,null,"x",null,null,null,null,null,null,null,null,null,null,"x"]
[null,null,null,null,null,null,null,null,null,null,null,null,null,null,null,null,null,null,null,null,null,null,null,null,null,null,null,null,null,null,2,null,null,null,null,null,null,null,null,null,null,null,null,null,null,null,null,null,null,null,null,null,null,null,null,null,null,null,null,null,null,null,null,null,null,null,null,null,null,null,null,null,null,null,null,null,null,null,null,null,null,null,null,null,null,null,null,null,null,null,null,null,null,null,null,null,null,null,null,null,null,null,null,"x",null,null,null,null,null,null,null,null,null,null,"x",null,null,null,null,{"$f":"IF(CZ149=\"\",\"\",CZ149)","v":""},"","","","","",{"$f":"IF(DP145<>\"\",\",\",\"\")","v":""},"","","","",{"$f":"CONCATENATE(DP145,DV145,DQ145,DW145,DR145,DX145,DS145,DY145,DT145,DZ145,DU145)","v":""}]
[null,null,null,null,null,null,null,null,null,null,null,null,null,null,null,null,null,null,null,null,null,null,null,null,null,null,null,null,null,null,1,null,null,null,null,null,null,null,null,null,null,null,null,null,null,null,null,null,null,null,null,null,null,null,null,null,null,null,null,null,null,null,null,null,null,null,null,null,null,null,null,null,null,null,null,null,null,null,null,null,null,null,null,null,null,null,null,null,null,null,null,null,null,null,null,null,null,null,null,null,null,null,null,"League Cup Goals",null,null,null,null,null,null,null,null,null,null,"League Cup Goals",null,null,null,null,"","","","","","","","","","","",{"$f":"CONCATENATE(DP146,DV146,DQ146,DW146,DR146,DX146,DS146,DY146,DT146,DZ146,DU146)","v":""}]
[null,null,null,null,null,null,null,null,null,null,null,null,null,null,null,null,null,null,null,null,null,null,null,null,null,null,null,null,null,null,2,null,null,null,null,null,null,null,null,null,null,null,null,null,null,null,null,null,null,null,null,null,null,null,null,null,null,null,null,null,null,null,null,null,null,null,null,null,null,null,null,null,null,null,null,null,null,null,null,null,null,null,null,null,null,null,null,null,null,null,null,null,null,null,null,null,null,null,null,null,null,null,null,1,2,3,4,5,6,7,8,7,8,9,"1, 2, 3, 4, 5, 6, 7, 8, 9",null,null,null,null,"","","","","","","","","","","",{"$f":"CONCATENATE(DP147,DV147,DQ147,DW147,DR147,DX147,DS147,DY147,DT147,DZ147,DU147)","v":""}]
[null,null,null,null,null,null,null,null,null,null,null,null,null,null,null,null,null,null,null,null,null,null,null,null,null,null,null,null,null,null,1,null,null,null,null,null,null,null,null,null,null,null,null,null,null,null,null,null,null,null,null,null,null,null,null,null,null,null,null,null,null,null,null,null,null,null,null,null,null,null,null,null,null,null,null,null,null,null,null,null,null,null,null,null,null,null,null,null,null,null,null,null,null,null,null,null,null,null,null,null,null,null,null,"x",null,null,null,null,null,null,null,null,null,null,"x",null,null,null,null,"","","","","","","","","","","",{"$f":"CONCATENATE(DP148,DV148,DQ148,DW148,DR148,DX148,DS148,DY148,DT148,DZ148,DU148)","v":""}]
[null,null,null,null,null,null,null,null,null,null,null,null,null,null,null,null,null,null,null,null,null,null,null,null,null,null,null,null,null,null,null,null,null,null,null,null,null,null,null,null,null,null,null,null,null,null,null,null,null,null,null,null,null,null,null,null,null,null,null,null,null,null,null,null,null,null,null,null,null,null,null,null,null,null,null,null,null,null,null,null,null,null,null,null,null,null,null,null,null,null,null,null,null,null,null,null,null,null,null,{"$f":"IF(CV148=0,1,IF(CV148=2,1,2))","v":1}]
[null,null,null,null,null,null,null,null,null,null,null,null,null,null,null,null,null,null,null,null,null,null,null,null,null,null,null,null,null,null,null,null,null,null,null,null,null,null,null,null,null,null,null,null,null,null,null,null,null,null,null,null,null,null,null,null,null,null,null,null,null,null,null,null,null,null,null,null,null,null,null,null,null,null,null,null,null,null,null,null,null,null,null,null,null,null,null,null,null,null,null,null,null,null,null,null,null,null,null,2]
[null,null,null,null,null,null,null,null,null,null,null,null,null,null,null,null,null,null,null,null,null,null,null,null,null,null,null,null,null,null,null,null,null,null,null,null,null,null,null,null,null,null,null,null,null,null,null,null,null,null,null,null,null,null,null,null,null,null,null,null,null,null,null,null,null,null,null,null,null,null,null,null,null,null,null,null,null,null,null,null,null,null,null,null,null,null,null,null,null,null,null,null,null,null,null,null,null,null,null,1]
[null,null,null,null,null,null,null,null,null,null,null,null,null,null,null,null,null,null,null,null,null,null,null,null,null,null,null,null,null,null,null,null,null,null,null,null,null,null,null,null,null,null,null,null,null,null,null,null,null,null,null,null,null,null,null,null,null,null,null,null,null,null,null,null,null,null,null,null,null,null,null,null,null,null,null,null,null,null,null,null,null,null,null,null,null,null,null,null,null,null,null,null,null,null,null,null,null,null,null,2]
[null,null,null,null,null,null,null,null,null,null,null,null,null,null,null,null,null,null,null,null,null,null,null,null,null,null,null,null,null,null,null,null,null,null,null,null,null,null,null,null,null,null,null,null,null,null,null,null,null,null,null,null,null,null,null,null,null,null,null,null,null,null,null,null,null,null,null,null,null,null,null,null,null,null,null,null,null,null,null,null,null,null,null,null,null,null,null,null,null,null,null,null,null,null,null,null,null,null,null,1]
[null,null,null,null,null,null,null,null,null,null,null,null,null,null,null,null,null,null,null,null,null,null,null,null,null,null,null,null,null,null,null,null,null,null,null,null,null,null,null,null,null,null,null,null,null,null,null,null,null,null,null,null,null,null,null,null,null,null,null,null,null,null,null,null,null,null,null,null,null,null,null,null,null,null,null,null,null,null,null,null,null,null,null,null,null,null,null,null,null,null,null,null,null,null,null,null,null,null,null,2]
[null,null,null,null,null,null,null,null,null,null,null,null,null,null,null,null,null,null,null,null,null,null,null,null,null,null,null,null,null,null,null,null,null,null,null,null,null,null,null,null,null,null,null,null,null,null,null,null,null,null,null,null,null,null,null,null,null,null,null,null,null,null,null,null,null,null,null,null,null,null,null,null,null,null,null,null,null,null,null,null,null,null,null,null,null,null,null,null,null,null,null,null,null,null,null,null,null,null,null,1]
[null,null,null,null,null,null,null,null,null,null,null,null,null,null,null,null,null,null,null,null,null,null,null,null,null,null,null,null,null,null,null,null,null,null,null,null,null,null,null,null,null,null,null,null,null,null,null,null,null,null,null,null,null,null,null,null,null,null,null,null,null,null,null,null,null,null,null,null,null,null,null,null,null,null,null,null,null,null,null,null,null,null,null,null,null,null,null,null,null,null,null,null,null,null,null,null,null,null,null,2]
[null,null,null,null,null,null,null,null,null,null,null,null,null,null,null,null,null,null,null,null,null,null,null,null,null,null,null,null,null,null,null,null,null,null,null,null,null,null,null,null,null,null,null,null,null,null,null,null,null,null,null,null,null,null,null,null,null,null,null,null,null,null,null,null,null,null,null,null,null,null,null,null,null,null,null,null,null,null,null,null,null,null,null,null,null,null,null,null,null,null,null,null,null,null,null,null,null,null,null,1]
[null,null,null,null,null,null,null,null,null,null,null,null,null,null,null,null,null,null,null,null,null,null,null,null,null,null,null,null,null,null,null,null,null,null,null,null,null,null,null,null,null,null,null,null,null,null,null,null,null,null,null,null,null,null,null,null,null,null,null,null,null,null,null,null,null,null,null,null,null,null,null,null,null,null,null,null,null,null,null,null,null,null,null,null,null,null,null,null,null,null,null,null,null,null,null,null,null,null,null,2]
[]
[]
[null,null,null,null,null,null,null,null,null,null,null,null,null,null,null,null,null,null,null,null,null,null,null,null,null,null,null,null,null,null,null,null,null,null,null,null,null,null,null,null,null,null,null,null,null,null,null,null,null,null,null,null,null,null,null,null,null,null,null,null,null,null,null,null,null,null,null,null,null,null,null,null,null,null,null,null,null,null,null,null,null,null,null,null,null,null,null,null,null,null,null,null,null,null,null,null,null,null,null,"1933-08-26","Lincoln","(A)","W 1-0","Roberts"]
[null,null,null,null,null,null,null,null,null,null,null,null,null,null,null,null,null,null,null,null,null,null,null,null,null,null,null,null,null,null,null,null,null,null,null,null,null,null,null,null,null,null,null,null,null,null,null,null,null,null,null,null,null,null,null,null,null,null,null,null,null,null,null,null,null,null,null,null,null,null,null,null,null,null,null,null,null,null,null,null,null,null,null,null,null,null,null,null,null,null,null,null,null,null,null,null,null,null,null,"1933-08-28","Swansea","(H)","W 2-1","Forsyth","Roberts"]
[null,null,null,null,null,null,null,null,null,null,null,null,null,null,null,null,null,null,null,null,null,null,null,null,null,null,null,null,null,null,null,null,null,null,null,null,null,null,null,null,null,null,null,null,null,null,null,null,null,null,null,null,null,null,null,null,null,null,null,null,null,null,null,null,null,null,null,null,null,null,null,null,null,null,null,null,null,null,null,null,null,null,null,null,null,null,null,null,null,null,null,null,null,null,null,null,null,null,null,"1933-09-02","Bury","(H)","D 0-0"]
[null,null,null,null,null,null,null,null,null,null,null,null,null,null,null,null,null,null,null,null,null,null,null,null,null,null,null,null,null,null,null,null,null,null,null,null,null,null,null,null,null,null,null,null,null,null,null,null,null,null,null,null,null,null,null,null,null,null,null,null,null,null,null,null,null,null,null,null,null,null,null,null,null,null,null,null,null,null,null,null,null,null,null,null,null,null,null,null,null,null,null,null,null,null,null,null,null,null,null,"1933-09-04","Swansea","(A)","L 0-2"]
[null,null,null,null,null,null,null,null,null,null,null,null,null,null,null,null,null,null,null,null,null,null,null,null,null,null,null,null,null,null,null,null,null,null,null,null,null,null,null,null,null,null,null,null,null,null,null,null,null,null,null,null,null,null,null,null,null,null,null,null,null,null,null,null,null,null,null,null,null,null,null,null,null,null,null,null,null,null,null,null,null,null,null,null,null,null,null,null,null,null,null,null,null,null,null,null,null,null,null,"1933-09-09","Hull","(A)","L 2-3","Poxton","Horton"]
[null,null,null,null,null,null,null,null,null,null,null,null,null,null,null,null,null,null,null,null,null,null,null,null,null,null,null,null,null,null,null,null,null,null,null,null,null,null,null,null,null,null,null,null,null,null,null,null,null,null,null,null,null,null,null,null,null,null,null,null,null,null,null,null,null,null,null,null,null,null,null,null,null,null,null,null,null,null,null,null,null,null,null,null,null,null,null,null,null,null,null,null,null,null,null,null,null,null,null,"1933-09-16","Fulham","(H)","L 0-1"]
[null,null,null,null,null,null,null,null,null,null,null,null,null,null,null,null,null,null,null,null,null,null,null,null,null,null,null,null,null,null,null,null,null,null,null,null,null,null,null,null,null,null,null,null,null,null,null,null,null,null,null,null,null,null,null,null,null,null,null,null,null,null,null,null,null,null,null,null,null,null,null,null,null,null,null,null,null,null,null,null,null,null,null,null,null,null,null,null,null,null,null,null,null,null,null,null,null,null,null,"1933-09-23","Southampton","(A)","W 3-2","Ranson","Ranson","Ranson"]
[null,null,null,null,null,null,null,null,null,null,null,null,null,null,null,null,null,null,null,null,null,null,null,null,null,null,null,null,null,null,null,null,null,null,null,null,null,null,null,null,null,null,null,null,null,null,null,null,null,null,null,null,null,null,null,null,null,null,null,null,null,null,null,null,null,null,null,null,null,null,null,null,null,null,null,null,null,null,null,null,null,null,null,null,null,null,null,null,null,null,null,null,null,null,null,null,null,null,null,"1933-09-30","Blackpool","(H)","D 0-0"]
[null,null,null,null,null,null,null,null,null,null,null,null,null,null,null,null,null,null,null,null,null,null,null,null,null,null,null,null,null,null,null,null,null,null,null,null,null,null,null,null,null,null,null,null,null,null,null,null,null,null,null,null,null,null,null,null,null,null,null,null,null,null,null,null,null,null,null,null,null,null,null,null,null,null,null,null,null,null,null,null,null,null,null,null,null,null,null,null,null,null,null,null,null,null,null,null,null,null,null,"1933-10-07","Bradford City","(A)","L 0-1"]
[null,null,null,null,null,null,null,null,null,null,null,null,null,null,null,null,null,null,null,null,null,null,null,null,null,null,null,null,null,null,null,null,null,null,null,null,null,null,null,null,null,null,null,null,null,null,null,null,null,null,null,null,null,null,null,null,null,null,null,null,null,null,null,null,null,null,null,null,null,null,null,null,null,null,null,null,null,null,null,null,null,null,null,null,null,null,null,null,null,null,null,null,null,null,null,null,null,null,null,"1933-10-14","Port Vale","(H)","L 0-3"]
[null,null,null,null,null,null,null,null,null,null,null,null,null,null,null,null,null,null,null,null,null,null,null,null,null,null,null,null,null,null,null,null,null,null,null,null,null,null,null,null,null,null,null,null,null,null,null,null,null,null,null,null,null,null,null,null,null,null,null,null,null,null,null,null,null,null,null,null,null,null,null,null,null,null,null,null,null,null,null,null,null,null,null,null,null,null,null,null,null,null,null,null,null,null,null,null,null,null,null,"1933-10-21","West Ham","(H)","D 2-2","Fishlock","Horton"]
[null,null,null,null,null,null,null,null,null,null,null,null,null,null,null,null,null,null,null,null,null,null,null,null,null,null,null,null,null,null,null,null,null,null,null,null,null,null,null,null,null,null,null,null,null,null,null,null,null,null,null,null,null,null,null,null,null,null,null,null,null,null,null,null,null,null,null,null,null,null,null,null,null,null,null,null,null,null,null,null,null,null,null,null,null,null,null,null,null,null,null,null,null,null,null,null,null,null,null,"1933-10-28","Nottm Forest","(A)","L 0-2"]
[null,null,null,null,null,null,null,null,null,null,null,null,null,null,null,null,null,null,null,null,null,null,null,null,null,null,null,null,null,null,null,null,null,null,null,null,null,null,null,null,null,null,null,null,null,null,null,null,null,null,null,null,null,null,null,null,null,null,null,null,null,null,null,null,null,null,null,null,null,null,null,null,null,null,null,null,null,null,null,null,null,null,null,null,null,null,null,null,null,null,null,null,null,null,null,null,null,null,null,"1933-11-04","Grimsby","(H)","L 0-1"]
[null,null,null,null,null,null,null,null,null,null,null,null,null,null,null,null,null,null,null,null,null,null,null,null,null,null,null,null,null,null,null,null,null,null,null,null,null,null,null,null,null,null,null,null,null,null,null,null,null,null,null,null,null,null,null,null,null,null,null,null,null,null,null,null,null,null,null,null,null,null,null,null,null,null,null,null,null,null,null,null,null,null,null,null,null,null,null,null,null,null,null,null,null,null,null,null,null,null,null,"1933-11-11","Bradford PA","(A)","L 0-4"]
[null,null,null,null,null,null,null,null,null,null,null,null,null,null,null,null,null,null,null,null,null,null,null,null,null,null,null,null,null,null,null,null,null,null,null,null,null,null,null,null,null,null,null,null,null,null,null,null,null,null,null,null,null,null,null,null,null,null,null,null,null,null,null,null,null,null,null,null,null,null,null,null,null,null,null,null,null,null,null,null,null,null,null,null,null,null,null,null,null,null,null,null,null,null,null,null,null,null,null,"1933-11-18","Preston","(H)","D 1-1","Yardley"]
[null,null,null,null,null,null,null,null,null,null,null,null,null,null,null,null,null,null,null,null,null,null,null,null,null,null,null,null,null,null,null,null,null,null,null,null,null,null,null,null,null,null,null,null,null,null,null,null,null,null,null,null,null,null,null,null,null,null,null,null,null,null,null,null,null,null,null,null,null,null,null,null,null,null,null,null,null,null,null,null,null,null,null,null,null,null,null,null,null,null,null,null,null,null,null,null,null,null,null,"1933-11-25","Oldham","(A)","L 0-1"]
[null,null,null,null,null,null,null,null,null,null,null,null,null,null,null,null,null,null,null,null,null,null,null,null,null,null,null,null,null,null,null,null,null,null,null,null,null,null,null,null,null,null,null,null,null,null,null,null,null,null,null,null,null,null,null,null,null,null,null,null,null,null,null,null,null,null,null,null,null,null,null,null,null,null,null,null,null,null,null,null,null,null,null,null,null,null,null,null,null,null,null,null,null,null,null,null,null,null,null,"1933-12-02","Burnley","(H)","D 0-0"]
[null,null,null,null,null,null,null,null,null,null,null,null,null,null,null,null,null,null,null,null,null,null,null,null,null,null,null,null,null,null,null,null,null,null,null,null,null,null,null,null,null,null,null,null,null,null,null,null,null,null,null,null,null,null,null,null,null,null,null,null,null,null,null,null,null,null,null,null,null,null,null,null,null,null,null,null,null,null,null,null,null,null,null,null,null,null,null,null,null,null,null,null,null,null,null,null,null,null,null,"1933-12-09","Brentford","(A)","L 0-3"]
[null,null,null,null,null,null,null,null,null,null,null,null,null,null,null,null,null,null,null,null,null,null,null,null,null,null,null,null,null,null,null,null,null,null,null,null,null,null,null,null,null,null,null,null,null,null,null,null,null,null,null,null,null,null,null,null,null,null,null,null,null,null,null,null,null,null,null,null,null,null,null,null,null,null,null,null,null,null,null,null,null,null,null,null,null,null,null,null,null,null,null,null,null,null,null,null,null,null,null,"1933-12-16","Bolton","(H)","W 2-1","Forsyth","Roberts"]
[null,null,null,null,null,null,null,null,null,null,null,null,null,null,null,null,null,null,null,null,null,null,null,null,null,null,null,null,null,null,null,null,null,null,null,null,null,null,null,null,null,null,null,null,null,null,null,null,null,null,null,null,null,null,null,null,null,null,null,null,null,null,null,null,null,null,null,null,null,null,null,null,null,null,null,null,null,null,null,null,null,null,null,null,null,null,null,null,null,null,null,null,null,null,null,null,null,null,null,"1933-12-23","Man Utd","(A)","D 1-1","Yardley"]
[null,null,null,null,null,null,null,null,null,null,null,null,null,null,null,null,null,null,null,null,null,null,null,null,null,null,null,null,null,null,null,null,null,null,null,null,null,null,null,null,null,null,null,null,null,null,null,null,null,null,null,null,null,null,null,null,null,null,null,null,null,null,null,null,null,null,null,null,null,null,null,null,null,null,null,null,null,null,null,null,null,null,null,null,null,null,null,null,null,null,null,null,null,null,null,null,null,null,null,"1933-12-25","Notts Co","(A)","W 1-0","Bond"]
[null,null,null,null,null,null,null,null,null,null,null,null,null,null,null,null,null,null,null,null,null,null,null,null,null,null,null,null,null,null,null,null,null,null,null,null,null,null,null,null,null,null,null,null,null,null,null,null,null,null,null,null,null,null,null,null,null,null,null,null,null,null,null,null,null,null,null,null,null,null,null,null,null,null,null,null,null,null,null,null,null,null,null,null,null,null,null,null,null,null,null,null,null,null,null,null,null,null,null,"1933-12-26","Notts Co","(H)","W 3-2","Fishlock","Fishlock","Phillips"]
[null,null,null,null,null,null,null,null,null,null,null,null,null,null,null,null,null,null,null,null,null,null,null,null,null,null,null,null,null,null,null,null,null,null,null,null,null,null,null,null,null,null,null,null,null,null,null,null,null,null,null,null,null,null,null,null,null,null,null,null,null,null,null,null,null,null,null,null,null,null,null,null,null,null,null,null,null,null,null,null,null,null,null,null,null,null,null,null,null,null,null,null,null,null,null,null,null,null,null,"1933-12-30","Lincoln","(H)","W 4-1","Yardley","Hancock","Fishlock","Fishlock"]
[null,null,null,null,null,null,null,null,null,null,null,null,null,null,null,null,null,null,null,null,null,null,null,null,null,null,null,null,null,null,null,null,null,null,null,null,null,null,null,null,null,null,null,null,null,null,null,null,null,null,null,null,null,null,null,null,null,null,null,null,null,null,null,null,null,null,null,null,null,null,null,null,null,null,null,null,null,null,null,null,null,null,null,null,null,null,null,null,null,null,null,null,null,null,null,null,null,null,null,"1934-01-06","Bury","(A)","L 1-5","Phillips"]
[null,null,null,null,null,null,null,null,null,null,null,null,null,null,null,null,null,null,null,null,null,null,null,null,null,null,null,null,null,null,null,null,null,null,null,null,null,null,null,null,null,null,null,null,null,null,null,null,null,null,null,null,null,null,null,null,null,null,null,null,null,null,null,null,null,null,null,null,null,null,null,null,null,null,null,null,null,null,null,null,null,null,null,null,null,null,null,null,null,null,null,null,null,null,null,null,null,null,null,"1934-01-13","Accrington Stanley","(H)","W 3-0","Yardley","Yardley","Phillips"]
[null,null,null,null,null,null,null,null,null,null,null,null,null,null,null,null,null,null,null,null,null,null,null,null,null,null,null,null,null,null,null,null,null,null,null,null,null,null,null,null,null,null,null,null,null,null,null,null,null,null,null,null,null,null,null,null,null,null,null,null,null,null,null,null,null,null,null,null,null,null,null,null,null,null,null,null,null,null,null,null,null,null,null,null,null,null,null,null,null,null,null,null,null,null,null,null,null,null,null,"1934-01-20","Hull","(H)","W 2-0","Phillips","Phillips"]
[null,null,null,null,null,null,null,null,null,null,null,null,null,null,null,null,null,null,null,null,null,null,null,null,null,null,null,null,null,null,null,null,null,null,null,null,null,null,null,null,null,null,null,null,null,null,null,null,null,null,null,null,null,null,null,null,null,null,null,null,null,null,null,null,null,null,null,null,null,null,null,null,null,null,null,null,null,null,null,null,null,null,null,null,null,null,null,null,null,null,null,null,null,null,null,null,null,null,null,"1934-01-27","Leicester City","(H)","L 3-6","Phillips","Yardley","Yardley"]
[null,null,null,null,null,null,null,null,null,null,null,null,null,null,null,null,null,null,null,null,null,null,null,null,null,null,null,null,null,null,null,null,null,null,null,null,null,null,null,null,null,null,null,null,null,null,null,null,null,null,null,null,null,null,null,null,null,null,null,null,null,null,null,null,null,null,null,null,null,null,null,null,null,null,null,null,null,null,null,null,null,null,null,null,null,null,null,null,null,null,null,null,null,null,null,null,null,null,null,"1934-01-29","Fulham","(A)","L 0-2"]
[null,null,null,null,null,null,null,null,null,null,null,null,null,null,null,null,null,null,null,null,null,null,null,null,null,null,null,null,null,null,null,null,null,null,null,null,null,null,null,null,null,null,null,null,null,null,null,null,null,null,null,null,null,null,null,null,null,null,null,null,null,null,null,null,null,null,null,null,null,null,null,null,null,null,null,null,null,null,null,null,null,null,null,null,null,null,null,null,null,null,null,null,null,null,null,null,null,null,null,"1934-02-10","Blackpool","(A)","D 2-2","Horton","Own Goal"]
[null,null,null,null,null,null,null,null,null,null,null,null,null,null,null,null,null,null,null,null,null,null,null,null,null,null,null,null,null,null,null,null,null,null,null,null,null,null,null,null,null,null,null,null,null,null,null,null,null,null,null,null,null,null,null,null,null,null,null,null,null,null,null,null,null,null,null,null,null,null,null,null,null,null,null,null,null,null,null,null,null,null,null,null,null,null,null,null,null,null,null,null,null,null,null,null,null,null,null,"1934-02-17","Bradford City","(H)","D 1-1","Fishlock"]
[null,null,null,null,null,null,null,null,null,null,null,null,null,null,null,null,null,null,null,null,null,null,null,null,null,null,null,null,null,null,null,null,null,null,null,null,null,null,null,null,null,null,null,null,null,null,null,null,null,null,null,null,null,null,null,null,null,null,null,null,null,null,null,null,null,null,null,null,null,null,null,null,null,null,null,null,null,null,null,null,null,null,null,null,null,null,null,null,null,null,null,null,null,null,null,null,null,null,null,"1934-02-24","Port Vale","(A)","L 1-5","Roberts"]
[null,null,null,null,null,null,null,null,null,null,null,null,null,null,null,null,null,null,null,null,null,null,null,null,null,null,null,null,null,null,null,null,null,null,null,null,null,null,null,null,null,null,null,null,null,null,null,null,null,null,null,null,null,null,null,null,null,null,null,null,null,null,null,null,null,null,null,null,null,null,null,null,null,null,null,null,null,null,null,null,null,null,null,null,null,null,null,null,null,null,null,null,null,null,null,null,null,null,null,"1934-03-03","West Ham","(A)","D 1-1","Alexander"]
[null,null,null,null,null,null,null,null,null,null,null,null,null,null,null,null,null,null,null,null,null,null,null,null,null,null,null,null,null,null,null,null,null,null,null,null,null,null,null,null,null,null,null,null,null,null,null,null,null,null,null,null,null,null,null,null,null,null,null,null,null,null,null,null,null,null,null,null,null,null,null,null,null,null,null,null,null,null,null,null,null,null,null,null,null,null,null,null,null,null,null,null,null,null,null,null,null,null,null,"1934-03-10","Nottm Forest","(H)","D 0-0"]
[null,null,null,null,null,null,null,null,null,null,null,null,null,null,null,null,null,null,null,null,null,null,null,null,null,null,null,null,null,null,null,null,null,null,null,null,null,null,null,null,null,null,null,null,null,null,null,null,null,null,null,null,null,null,null,null,null,null,null,null,null,null,null,null,null,null,null,null,null,null,null,null,null,null,null,null,null,null,null,null,null,null,null,null,null,null,null,null,null,null,null,null,null,null,null,null,null,null,null,"1934-03-17","Grimsby","(A)","L 2-5","McCartney","McCartney"]
[null,null,null,null,null,null,null,null,null,null,null,null,null,null,null,null,null,null,null,null,null,null,null,null,null,null,null,null,null,null,null,null,null,null,null,null,null,null,null,null,null,null,null,null,null,null,null,null,null,null,null,null,null,null,null,null,null,null,null,null,null,null,null,null,null,null,null,null,null,null,null,null,null,null,null,null,null,null,null,null,null,null,null,null,null,null,null,null,null,null,null,null,null,null,null,null,null,null,null,"1934-03-24","Bradford PA","(H)","L 0-1"]
[null,null,null,null,null,null,null,null,null,null,null,null,null,null,null,null,null,null,null,null,null,null,null,null,null,null,null,null,null,null,null,null,null,null,null,null,null,null,null,null,null,null,null,null,null,null,null,null,null,null,null,null,null,null,null,null,null,null,null,null,null,null,null,null,null,null,null,null,null,null,null,null,null,null,null,null,null,null,null,null,null,null,null,null,null,null,null,null,null,null,null,null,null,null,null,null,null,null,null,"1934-03-30","Plymouth","(H)","D 0-0"]
[null,null,null,null,null,null,null,null,null,null,null,null,null,null,null,null,null,null,null,null,null,null,null,null,null,null,null,null,null,null,null,null,null,null,null,null,null,null,null,null,null,null,null,null,null,null,null,null,null,null,null,null,null,null,null,null,null,null,null,null,null,null,null,null,null,null,null,null,null,null,null,null,null,null,null,null,null,null,null,null,null,null,null,null,null,null,null,null,null,null,null,null,null,null,null,null,null,null,null,"1934-03-31","Preston","(A)","L 2-4","Horton","Fishlock"]
[null,null,null,null,null,null,null,null,null,null,null,null,null,null,null,null,null,null,null,null,null,null,null,null,null,null,null,null,null,null,null,null,null,null,null,null,null,null,null,null,null,null,null,null,null,null,null,null,null,null,null,null,null,null,null,null,null,null,null,null,null,null,null,null,null,null,null,null,null,null,null,null,null,null,null,null,null,null,null,null,null,null,null,null,null,null,null,null,null,null,null,null,null,null,null,null,null,null,null,"1934-04-02","Plymouth","(A)","L 0-1"]
[null,null,null,null,null,null,null,null,null,null,null,null,null,null,null,null,null,null,null,null,null,null,null,null,null,null,null,null,null,null,null,null,null,null,null,null,null,null,null,null,null,null,null,null,null,null,null,null,null,null,null,null,null,null,null,null,null,null,null,null,null,null,null,null,null,null,null,null,null,null,null,null,null,null,null,null,null,null,null,null,null,null,null,null,null,null,null,null,null,null,null,null,null,null,null,null,null,null,null,"1934-04-07","Oldham","(H)","W 1-0","Yardley"]
[null,null,null,null,null,null,null,null,null,null,null,null,null,null,null,null,null,null,null,null,null,null,null,null,null,null,null,null,null,null,null,null,null,null,null,null,null,null,null,null,null,null,null,null,null,null,null,null,null,null,null,null,null,null,null,null,null,null,null,null,null,null,null,null,null,null,null,null,null,null,null,null,null,null,null,null,null,null,null,null,null,null,null,null,null,null,null,null,null,null,null,null,null,null,null,null,null,null,null,"1934-04-09","Southampton","(H)","W 1-0","Roberts"]
[null,null,null,null,null,null,null,null,null,null,null,null,null,null,null,null,null,null,null,null,null,null,null,null,null,null,null,null,null,null,null,null,null,null,null,null,null,null,null,null,null,null,null,null,null,null,null,null,null,null,null,null,null,null,null,null,null,null,null,null,null,null,null,null,null,null,null,null,null,null,null,null,null,null,null,null,null,null,null,null,null,null,null,null,null,null,null,null,null,null,null,null,null,null,null,null,null,null,null,"1934-04-14","Burnley","(A)","L 1-2","Yardley"]
[null,null,null,null,null,null,null,null,null,null,null,null,null,null,null,null,null,null,null,null,null,null,null,null,null,null,null,null,null,null,null,null,null,null,null,null,null,null,null,null,null,null,null,null,null,null,null,null,null,null,null,null,null,null,null,null,null,null,null,null,null,null,null,null,null,null,null,null,null,null,null,null,null,null,null,null,null,null,null,null,null,null,null,null,null,null,null,null,null,null,null,null,null,null,null,null,null,null,null,"1934-04-21","Brentford","(H)","W 2-0","Newcombe","Forsyth"]
[null,null,null,null,null,null,null,null,null,null,null,null,null,null,null,null,null,null,null,null,null,null,null,null,null,null,null,null,null,null,null,null,null,null,null,null,null,null,null,null,null,null,null,null,null,null,null,null,null,null,null,null,null,null,null,null,null,null,null,null,null,null,null,null,null,null,null,null,null,null,null,null,null,null,null,null,null,null,null,null,null,null,null,null,null,null,null,null,null,null,null,null,null,null,null,null,null,null,null,"1934-04-28","Bolton","(A)","L 0-5"]
[null,null,null,null,null,null,null,null,null,null,null,null,null,null,null,null,null,null,null,null,null,null,null,null,null,null,null,null,null,null,null,null,null,null,null,null,null,null,null,null,null,null,null,null,null,null,null,null,null,null,null,null,null,null,null,null,null,null,null,null,null,null,null,null,null,null,null,null,null,null,null,null,null,null,null,null,null,null,null,null,null,null,null,null,null,null,null,null,null,null,null,null,null,null,null,null,null,null,null,"1934-05-05","Man Utd","(H)","L 0-2"]

{"sheet":"Comparison","index":1,"n_rows":175,"n_cols":44,"rows_kept":175,"cut":false,"hidden":false,"merged":[]}
[]
[]
["Formulas",null,null,null,null,"Date",null,"Opponents","Venue / Result",null,{"$f":"Millwall!$BP$72","v":"Alexander"},{"$f":"Millwall!$BP$73","v":"Bond"},{"$f":"Millwall!$BP$74","v":"Duffy"},{"$f":"Millwall!$BP$75","v":"Fishlock"},{"$f":"Millwall!$BP$76","v":"Forsyth"},{"$f":"Millwall!$BP$77","v":"Graham"},{"$f":"Millwall!$BP$78","v":"Hancock"},{"$f":"Millwall!$BP$79","v":"Harkins"},{"$f":"Millwall!$BP$80","v":"Horton"},{"$f":"Millwall!$BP$81","v":"McCartney"},{"$f":"Millwall!$BP$82","v":"Newcombe"},{"$f":"Millwall!$BP$83","v":"Phillips"},{"$f":"Millwall!$BP$84","v":"Pipe"},{"$f":"Millwall!$BP$85","v":"Poxton"},{"$f":"Millwall!$BP$86","v":"Ranson"},{"$f":"Millwall!$BP$87","v":"Roberts"},{"$f":"Millwall!$BP$88","v":"Snaith"},{"$f":"Millwall!$BP$89","v":"Swallow"},{"$f":"Millwall!$BP$90","v":"Sweetman"},{"$f":"Millwall!$BP$91","v":"Turnbull"},{"$f":"Millwall!$BP$92","v":"Walsh"},{"$f":"Millwall!$BP$93","v":"Wilson"},{"$f":"Millwall!$BP$94","v":"Yardley"},{"$f":"Millwall!$BP$95","v":"Yuill"},{"$f":"Millwall!$BP$96","v":0},{"$f":"Millwall!$BP$97","v":0},{"$f":"Millwall!$BP$98","v":0},{"$f":"Millwall!$BP$99","v":0},{"$f":"Millwall!$BP$100","v":0},{"$f":"Millwall!$BP$101","v":0},{"$f":"Millwall!$BP$102","v":0},{"$f":"Millwall!$BP$103","v":"Own Goal"},{"$f":"Millwall!$BP$104","v":0},{"$f":"Millwall!$BP$105","v":0}]
[null,null,null,1,null,{"$f":"Millwall!AI78","v":"1933-08-26"},null,{"$f":"Millwall!AK78","v":"Lincoln"},{"$f":"Millwall!AL78","v":"(A)"},{"$f":"Millwall!AO78","v":"W 1-0"},{"$f":"MATCH(K$3,Millwall!$AP78:$AZ78,0)","v":{"$error":"#N/A"}},{"$f":"MATCH(L$3,Millwall!$AP78:$AZ78,0)","v":{"$error":"#N/A"}},{"$f":"MATCH(M$3,Millwall!$AP78:$AZ78,0)","v":{"$error":"#N/A"}},{"$f":"MATCH(N$3,Millwall!$AP78:$AZ78,0)","v":{"$error":"#N/A"}},{"$f":"MATCH(O$3,Millwall!$AP78:$AZ78,0)","v":10},{"$f":"MATCH(P$3,Millwall!$AP78:$AZ78,0)","v":6},{"$f":"MATCH(Q$3,Millwall!$AP78:$AZ78,0)","v":5},{"$f":"MATCH(R$3,Millwall!$AP78:$AZ78,0)","v":{"$error":"#N/A"}},{"$f":"MATCH(S$3,Millwall!$AP78:$AZ78,0)","v":7},{"$f":"MATCH(T$3,Millwall!$AP78:$AZ78,0)","v":{"$error":"#N/A"}},{"$f":"MATCH(U$3,Millwall!$AP78:$AZ78,0)","v":4},{"$f":"MATCH(V$3,Millwall!$AP78:$AZ78,0)","v":{"$error":"#N/A"}},{"$f":"MATCH(W$3,Millwall!$AP78:$AZ78,0)","v":3},{"$f":"MATCH(X$3,Millwall!$AP78:$AZ78,0)","v":11},{"$f":"MATCH(Y$3,Millwall!$AP78:$AZ78,0)","v":9},{"$f":"MATCH(Z$3,Millwall!$AP78:$AZ78,0)","v":8},{"$f":"MATCH(AA$3,Millwall!$AP78:$AZ78,0)","v":{"$error":"#N/A"}},{"$f":"MATCH(AB$3,Millwall!$AP78:$AZ78,0)","v":{"$error":"#N/A"}},{"$f":"MATCH(AC$3,Millwall!$AP78:$AZ78,0)","v":{"$error":"#N/A"}},{"$f":"MATCH(AD$3,Millwall!$AP78:$AZ78,0)","v":{"$error":"#N/A"}},{"$f":"MATCH(AE$3,Millwall!$AP78:$AZ78,0)","v":2},{"$f":"MATCH(AF$3,Millwall!$AP78:$AZ78,0)","v":1},{"$f":"MATCH(AG$3,Millwall!$AP78:$AZ78,0)","v":{"$error":"#N/A"}},{"$f":"MATCH(AH$3,Millwall!$AP78:$AZ78,0)","v":{"$error":"#N/A"}},{"$f":"MATCH(AI$3,Millwall!$AP78:$AZ78,0)","v":{"$error":"#N/A"}},{"$f":"MATCH(AJ$3,Millwall!$AP78:$AZ78,0)","v":{"$error":"#N/A"}},{"$f":"MATCH(AK$3,Millwall!$AP78:$AZ78,0)","v":{"$error":"#N/A"}},{"$f":"MATCH(AL$3,Millwall!$AP78:$AZ78,0)","v":{"$error":"#N/A"}},{"$f":"MATCH(AM$3,Millwall!$AP78:$AZ78,0)","v":{"$error":"#N/A"}},{"$f":"MATCH(AN$3,Millwall!$AP78:$AZ78,0)","v":{"$error":"#N/A"}},{"$f":"MATCH(AO$3,Millwall!$AP78:$AZ78,0)","v":{"$error":"#N/A"}},{"$f":"MATCH(AP$3,Millwall!$AP78:$AZ78,0)","v":{"$error":"#N/A"}},{"$f":"MATCH(AQ$3,Millwall!$AP78:$AZ78,0)","v":{"$error":"#N/A"}},{"$f":"MATCH(AR$3,Millwall!$AP78:$AZ78,0)","v":{"$error":"#N/A"}}]
[null,null,null,2,null,{"$f":"Millwall!AI79","v":"1933-08-28"},null,{"$f":"Millwall!AK79","v":"Swansea"},{"$f":"Millwall!AL79","v":"(H)"},{"$f":"Millwall!AO79","v":"W 2-1"},{"$f":"MATCH(K$3,Millwall!$AP79:$AZ79,0)","v":{"$error":"#N/A"}},{"$f":"MATCH(L$3,Millwall!$AP79:$AZ79,0)","v":{"$error":"#N/A"}},{"$f":"MATCH(M$3,Millwall!$AP79:$AZ79,0)","v":{"$error":"#N/A"}},{"$f":"MATCH(N$3,Millwall!$AP79:$AZ79,0)","v":{"$error":"#N/A"}},{"$f":"MATCH(O$3,Millwall!$AP79:$AZ79,0)","v":10},{"$f":"MATCH(P$3,Millwall!$AP79:$AZ79,0)","v":6},{"$f":"MATCH(Q$3,Millwall!$AP79:$AZ79,0)","v":5},{"$f":"MATCH(R$3,Millwall!$AP79:$AZ79,0)","v":{"$error":"#N/A"}},{"$f":"MATCH(S$3,Millwall!$AP79:$AZ79,0)","v":7},{"$f":"MATCH(T$3,Millwall!$AP79:$AZ79,0)","v":{"$error":"#N/A"}},{"$f":"MATCH(U$3,Millwall!$AP79:$AZ79,0)","v":4},{"$f":"MATCH(V$3,Millwall!$AP79:$AZ79,0)","v":{"$error":"#N/A"}},{"$f":"MATCH(W$3,Millwall!$AP79:$AZ79,0)","v":3},{"$f":"MATCH(X$3,Millwall!$AP79:$AZ79,0)","v":11},{"$f":"MATCH(Y$3,Millwall!$AP79:$AZ79,0)","v":9},{"$f":"MATCH(Z$3,Millwall!$AP79:$AZ79,0)","v":8},{"$f":"MATCH(AA$3,Millwall!$AP79:$AZ79,0)","v":{"$error":"#N/A"}},{"$f":"MATCH(AB$3,Millwall!$AP79:$AZ79,0)","v":{"$error":"#N/A"}},{"$f":"MATCH(AC$3,Millwall!$AP79:$AZ79,0)","v":{"$error":"#N/A"}},{"$f":"MATCH(AD$3,Millwall!$AP79:$AZ79,0)","v":{"$error":"#N/A"}},{"$f":"MATCH(AE$3,Millwall!$AP79:$AZ79,0)","v":2},{"$f":"MATCH(AF$3,Millwall!$AP79:$AZ79,0)","v":1},{"$f":"MATCH(AG$3,Millwall!$AP79:$AZ79,0)","v":{"$error":"#N/A"}},{"$f":"MATCH(AH$3,Millwall!$AP79:$AZ79,0)","v":{"$error":"#N/A"}},{"$f":"MATCH(AI$3,Millwall!$AP79:$AZ79,0)","v":{"$error":"#N/A"}},{"$f":"MATCH(AJ$3,Millwall!$AP79:$AZ79,0)","v":{"$error":"#N/A"}},{"$f":"MATCH(AK$3,Millwall!$AP79:$AZ79,0)","v":{"$error":"#N/A"}},{"$f":"MATCH(AL$3,Millwall!$AP79:$AZ79,0)","v":{"$error":"#N/A"}},{"$f":"MATCH(AM$3,Millwall!$AP79:$AZ79,0)","v":{"$error":"#N/A"}},{"$f":"MATCH(AN$3,Millwall!$AP79:$AZ79,0)","v":{"$error":"#N/A"}},{"$f":"MATCH(AO$3,Millwall!$AP79:$AZ79,0)","v":{"$error":"#N/A"}},{"$f":"MATCH(AP$3,Millwall!$AP79:$AZ79,0)","v":{"$error":"#N/A"}},{"$f":"MATCH(AQ$3,Millwall!$AP79:$AZ79,0)","v":{"$error":"#N/A"}},{"$f":"MATCH(AR$3,Millwall!$AP79:$AZ79,0)","v":{"$error":"#N/A"}}]
[null,null,null,3,null,{"$f":"Millwall!AI80","v":"1933-09-02"},null,{"$f":"Millwall!AK80","v":"Bury"},{"$f":"Millwall!AL80","v":"(H)"},{"$f":"Millwall!AO80","v":"D 0-0"},{"$f":"MATCH(K$3,Millwall!$AP80:$AZ80,0)","v":{"$error":"#N/A"}},{"$f":"MATCH(L$3,Millwall!$AP80:$AZ80,0)","v":{"$error":"#N/A"}},{"$f":"MATCH(M$3,Millwall!$AP80:$AZ80,0)","v":{"$error":"#N/A"}},{"$f":"MATCH(N$3,Millwall!$AP80:$AZ80,0)","v":{"$error":"#N/A"}},{"$f":"MATCH(O$3,Millwall!$AP80:$AZ80,0)","v":{"$error":"#N/A"}},{"$f":"MATCH(P$3,Millwall!$AP80:$AZ80,0)","v":6},{"$f":"MATCH(Q$3,Millwall!$AP80:$AZ80,0)","v":5},{"$f":"MATCH(R$3,Millwall!$AP80:$AZ80,0)","v":10},{"$f":"MATCH(S$3,Millwall!$AP80:$AZ80,0)","v":7},{"$f":"MATCH(T$3,Millwall!$AP80:$AZ80,0)","v":{"$error":"#N/A"}},{"$f":"MATCH(U$3,Millwall!$AP80:$AZ80,0)","v":4},{"$f":"MATCH(V$3,Millwall!$AP80:$AZ80,0)","v":{"$error":"#N/A"}},{"$f":"MATCH(W$3,Millwall!$AP80:$AZ80,0)","v":3},{"$f":"MATCH(X$3,Millwall!$AP80:$AZ80,0)","v":11},{"$f":"MATCH(Y$3,Millwall!$AP80:$AZ80,0)","v":9},{"$f":"MATCH(Z$3,Millwall!$AP80:$AZ80,0)","v":8},{"$f":"MATCH(AA$3,Millwall!$AP80:$AZ80,0)","v":{"$error":"#N/A"}},{"$f":"MATCH(AB$3,Millwall!$AP80:$AZ80,0)","v":{"$error":"#N/A"}},{"$f":"MATCH(AC$3,Millwall!$AP80:$AZ80,0)","v":{"$error":"#N/A"}},{"$f":"MATCH(AD$3,Millwall!$AP80:$AZ80,0)","v":{"$error":"#N/A"}},{"$f":"MATCH(AE$3,Millwall!$AP80:$AZ80,0)","v":2},{"$f":"MATCH(AF$3,Millwall!$AP80:$AZ80,0)","v":1},{"$f":"MATCH(AG$3,Millwall!$AP80:$AZ80,0)","v":{"$error":"#N/A"}},{"$f":"MATCH(AH$3,Millwall!$AP80:$AZ80,0)","v":{"$error":"#N/A"}},{"$f":"MATCH(AI$3,Millwall!$AP80:$AZ80,0)","v":{"$error":"#N/A"}},{"$f":"MATCH(AJ$3,Millwall!$AP80:$AZ80,0)","v":{"$error":"#N/A"}},{"$f":"MATCH(AK$3,Millwall!$AP80:$AZ80,0)","v":{"$error":"#N/A"}},{"$f":"MATCH(AL$3,Millwall!$AP80:$AZ80,0)","v":{"$error":"#N/A"}},{"$f":"MATCH(AM$3,Millwall!$AP80:$AZ80,0)","v":{"$error":"#N/A"}},{"$f":"MATCH(AN$3,Millwall!$AP80:$AZ80,0)","v":{"$error":"#N/A"}},{"$f":"MATCH(AO$3,Millwall!$AP80:$AZ80,0)","v":{"$error":"#N/A"}},{"$f":"MATCH(AP$3,Millwall!$AP80:$AZ80,0)","v":{"$error":"#N/A"}},{"$f":"MATCH(AQ$3,Millwall!$AP80:$AZ80,0)","v":{"$error":"#N/A"}},{"$f":"MATCH(AR$3,Millwall!$AP80:$AZ80,0)","v":{"$error":"#N/A"}}]
[null,null,null,4,null,{"$f":"Millwall!AI81","v":"1933-09-04"},null,{"$f":"Millwall!AK81","v":"Swansea"},{"$f":"Millwall!AL81","v":"(A)"},{"$f":"Millwall!AO81","v":"L 0-2"},{"$f":"MATCH(K$3,Millwall!$AP81:$AZ81,0)","v":{"$error":"#N/A"}},{"$f":"MATCH(L$3,Millwall!$AP81:$AZ81,0)","v":{"$error":"#N/A"}},{"$f":"MATCH(M$3,Millwall!$AP81:$AZ81,0)","v":{"$error":"#N/A"}},{"$f":"MATCH(N$3,Millwall!$AP81:$AZ81,0)","v":{"$error":"#N/A"}},{"$f":"MATCH(O$3,Millwall!$AP81:$AZ81,0)","v":{"$error":"#N/A"}},{"$f":"MATCH(P$3,Millwall!$AP81:$AZ81,0)","v":6},{"$f":"MATCH(Q$3,Millwall!$AP81:$AZ81,0)","v":5},{"$f":"MATCH(R$3,Millwall!$AP81:$AZ81,0)","v":10},{"$f":"MATCH(S$3,Millwall!$AP81:$AZ81,0)","v":7},{"$f":"MATCH(T$3,Millwall!$AP81:$AZ81,0)","v":{"$error":"#N/A"}},{"$f":"MATCH(U$3,Millwall!$AP81:$AZ81,0)","v":4},{"$f":"MATCH(V$3,Millwall!$AP81:$AZ81,0)","v":{"$error":"#N/A"}},{"$f":"MATCH(W$3,Millwall!$AP81:$AZ81,0)","v":{"$error":"#N/A"}},{"$f":"MATCH(X$3,Millwall!$AP81:$AZ81,0)","v":11},{"$f":"MATCH(Y$3,Millwall!$AP81:$AZ81,0)","v":9},{"$f":"MATCH(Z$3,Millwall!$AP81:$AZ81,0)","v":8},{"$f":"MATCH(AA$3,Millwall!$AP81:$AZ81,0)","v":{"$error":"#N/A"}},{"$f":"MATCH(AB$3,Millwall!$AP81:$AZ81,0)","v":{"$error":"#N/A"}},{"$f":"MATCH(AC$3,Millwall!$AP81:$AZ81,0)","v":2},{"$f":"MATCH(AD$3,Millwall!$AP81:$AZ81,0)","v":{"$error":"#N/A"}},{"$f":"MATCH(AE$3,Millwall!$AP81:$AZ81,0)","v":3},{"$f":"MATCH(AF$3,Millwall!$AP81:$AZ81,0)","v":1},{"$f":"MATCH(AG$3,Millwall!$AP81:$AZ81,0)","v":{"$error":"#N/A"}},{"$f":"MATCH(AH$3,Millwall!$AP81:$AZ81,0)","v":{"$error":"#N/A"}},{"$f":"MATCH(AI$3,Millwall!$AP81:$AZ81,0)","v":{"$error":"#N/A"}},{"$f":"MATCH(AJ$3,Millwall!$AP81:$AZ81,0)","v":{"$error":"#N/A"}},{"$f":"MATCH(AK$3,Millwall!$AP81:$AZ81,0)","v":{"$error":"#N/A"}},{"$f":"MATCH(AL$3,Millwall!$AP81:$AZ81,0)","v":{"$error":"#N/A"}},{"$f":"MATCH(AM$3,Millwall!$AP81:$AZ81,0)","v":{"$error":"#N/A"}},{"$f":"MATCH(AN$3,Millwall!$AP81:$AZ81,0)","v":{"$error":"#N/A"}},{"$f":"MATCH(AO$3,Millwall!$AP81:$AZ81,0)","v":{"$error":"#N/A"}},{"$f":"MATCH(AP$3,Millwall!$AP81:$AZ81,0)","v":{"$error":"#N/A"}},{"$f":"MATCH(AQ$3,Millwall!$AP81:$AZ81,0)","v":{"$error":"#N/A"}},{"$f":"MATCH(AR$3,Millwall!$AP81:$AZ81,0)","v":{"$error":"#N/A"}}]
[null,null,null,5,null,{"$f":"Millwall!AI82","v":"1933-09-09"},null,{"$f":"Millwall!AK82","v":"Hull"},{"$f":"Millwall!AL82","v":"(A)"},{"$f":"Millwall!AO82","v":"L 2-3"},{"$f":"MATCH(K$3,Millwall!$AP82:$AZ82,0)","v":{"$error":"#N/A"}},{"$f":"MATCH(L$3,Millwall!$AP82:$AZ82,0)","v":{"$error":"#N/A"}},{"$f":"MATCH(M$3,Millwall!$AP82:$AZ82,0)","v":{"$error":"#N/A"}},{"$f":"MATCH(N$3,Millwall!$AP82:$AZ82,0)","v":{"$error":"#N/A"}},{"$f":"MATCH(O$3,Millwall!$AP82:$AZ82,0)","v":{"$error":"#N/A"}},{"$f":"MATCH(P$3,Millwall!$AP82:$AZ82,0)","v":6},{"$f":"MATCH(Q$3,Millwall!$AP82:$AZ82,0)","v":5},{"$f":"MATCH(R$3,Millwall!$AP82:$AZ82,0)","v":10},{"$f":"MATCH(S$3,Millwall!$AP82:$AZ82,0)","v":7},{"$f":"MATCH(T$3,Millwall!$AP82:$AZ82,0)","v":{"$error":"#N/A"}},{"$f":"MATCH(U$3,Millwall!$AP82:$AZ82,0)","v":4},{"$f":"MATCH(V$3,Millwall!$AP82:$AZ82,0)","v":{"$error":"#N/A"}},{"$f":"MATCH(W$3,Millwall!$AP82:$AZ82,0)","v":{"$error":"#N/A"}},{"$f":"MATCH(X$3,Millwall!$AP82:$AZ82,0)","v":11},{"$f":"MATCH(Y$3,Millwall!$AP82:$AZ82,0)","v":9},{"$f":"MATCH(Z$3,Millwall!$AP82:$AZ82,0)","v":8},{"$f":"MATCH(AA$3,Millwall!$AP82:$AZ82,0)","v":{"$error":"#N/A"}},{"$f":"MATCH(AB$3,Millwall!$AP82:$AZ82,0)","v":{"$error":"#N/A"}},{"$f":"MATCH(AC$3,Millwall!$AP82:$AZ82,0)","v":2},{"$f":"MATCH(AD$3,Millwall!$AP82:$AZ82,0)","v":{"$error":"#N/A"}},{"$f":"MATCH(AE$3,Millwall!$AP82:$AZ82,0)","v":3},{"$f":"MATCH(AF$3,Millwall!$AP82:$AZ82,0)","v":1},{"$f":"MATCH(AG$3,Millwall!$AP82:$AZ82,0)","v":{"$error":"#N/A"}},{"$f":"MATCH(AH$3,Millwall!$AP82:$AZ82,0)","v":{"$error":"#N/A"}},{"$f":"MATCH(AI$3,Millwall!$AP82:$AZ82,0)","v":{"$error":"#N/A"}},{"$f":"MATCH(AJ$3,Millwall!$AP82:$AZ82,0)","v":{"$error":"#N/A"}},{"$f":"MATCH(AK$3,Millwall!$AP82:$AZ82,0)","v":{"$error":"#N/A"}},{"$f":"MATCH(AL$3,Millwall!$AP82:$AZ82,0)","v":{"$error":"#N/A"}},{"$f":"MATCH(AM$3,Millwall!$AP82:$AZ82,0)","v":{"$error":"#N/A"}},{"$f":"MATCH(AN$3,Millwall!$AP82:$AZ82,0)","v":{"$error":"#N/A"}},{"$f":"MATCH(AO$3,Millwall!$AP82:$AZ82,0)","v":{"$error":"#N/A"}},{"$f":"MATCH(AP$3,Millwall!$AP82:$AZ82,0)","v":{"$error":"#N/A"}},{"$f":"MATCH(AQ$3,Millwall!$AP82:$AZ82,0)","v":{"$error":"#N/A"}},{"$f":"MATCH(AR$3,Millwall!$AP82:$AZ82,0)","v":{"$error":"#N/A"}}]
[null,null,null,6,null,{"$f":"Millwall!AI83","v":"1933-09-16"},null,{"$f":"Millwall!AK83","v":"Fulham"},{"$f":"Millwall!AL83","v":"(H)"},{"$f":"Millwall!AO83","v":"L 0-1"},{"$f":"MATCH(K$3,Millwall!$AP83:$AZ83,0)","v":{"$error":"#N/A"}},{"$f":"MATCH(L$3,Millwall!$AP83:$AZ83,0)","v":{"$error":"#N/A"}},{"$f":"MATCH(M$3,Millwall!$AP83:$AZ83,0)","v":{"$error":"#N/A"}},{"$f":"MATCH(N$3,Millwall!$AP83:$AZ83,0)","v":{"$error":"#N/A"}},{"$f":"MATCH(O$3,Millwall!$AP83:$AZ83,0)","v":10},{"$f":"MATCH(P$3,Millwall!$AP83:$AZ83,0)","v":6},{"$f":"MATCH(Q$3,Millwall!$AP83:$AZ83,0)","v":5},{"$f":"MATCH(R$3,Millwall!$AP83:$AZ83,0)","v":{"$error":"#N/A"}},{"$f":"MATCH(S$3,Millwall!$AP83:$AZ83,0)","v":7},{"$f":"MATCH(T$3,Millwall!$AP83:$AZ83,0)","v":{"$error":"#N/A"}},{"$f":"MATCH(U$3,Millwall!$AP83:$AZ83,0)","v":4},{"$f":"MATCH(V$3,Millwall!$AP83:$AZ83,0)","v":{"$error":"#N/A"}},{"$f":"MATCH(W$3,Millwall!$AP83:$AZ83,0)","v":{"$error":"#N/A"}},{"$f":"MATCH(X$3,Millwall!$AP83:$AZ83,0)","v":11},{"$f":"MATCH(Y$3,Millwall!$AP83:$AZ83,0)","v":9},{"$f":"MATCH(Z$3,Millwall!$AP83:$AZ83,0)","v":8},{"$f":"MATCH(AA$3,Millwall!$AP83:$AZ83,0)","v":{"$error":"#N/A"}},{"$f":"MATCH(AB$3,Millwall!$AP83:$AZ83,0)","v":{"$error":"#N/A"}},{"$f":"MATCH(AC$3,Millwall!$AP83:$AZ83,0)","v":2},{"$f":"MATCH(AD$3,Millwall!$AP83:$AZ83,0)","v":{"$error":"#N/A"}},{"$f":"MATCH(AE$3,Millwall!$AP83:$AZ83,0)","v":3},{"$f":"MATCH(AF$3,Millwall!$AP83:$AZ83,0)","v":1},{"$f":"MATCH(AG$3,Millwall!$AP83:$AZ83,0)","v":{"$error":"#N/A"}},{"$f":"MATCH(AH$3,Millwall!$AP83:$AZ83,0)","v":{"$error":"#N/A"}},{"$f":"MATCH(AI$3,Millwall!$AP83:$AZ83,0)","v":{"$error":"#N/A"}},{"$f":"MATCH(AJ$3,Millwall!$AP83:$AZ83,0)","v":{"$error":"#N/A"}},{"$f":"MATCH(AK$3,Millwall!$AP83:$AZ83,0)","v":{"$error":"#N/A"}},{"$f":"MATCH(AL$3,Millwall!$AP83:$AZ83,0)","v":{"$error":"#N/A"}},{"$f":"MATCH(AM$3,Millwall!$AP83:$AZ83,0)","v":{"$error":"#N/A"}},{"$f":"MATCH(AN$3,Millwall!$AP83:$AZ83,0)","v":{"$error":"#N/A"}},{"$f":"MATCH(AO$3,Millwall!$AP83:$AZ83,0)","v":{"$error":"#N/A"}},{"$f":"MATCH(AP$3,Millwall!$AP83:$AZ83,0)","v":{"$error":"#N/A"}},{"$f":"MATCH(AQ$3,Millwall!$AP83:$AZ83,0)","v":{"$error":"#N/A"}},{"$f":"MATCH(AR$3,Millwall!$AP83:$AZ83,0)","v":{"$error":"#N/A"}}]
[null,null,null,7,null,{"$f":"Millwall!AI84","v":"1933-09-23"},null,{"$f":"Millwall!AK84","v":"Southampton"},{"$f":"Millwall!AL84","v":"(A)"},{"$f":"Millwall!AO84","v":"W 3-2"},{"$f":"MATCH(K$3,Millwall!$AP84:$AZ84,0)","v":{"$error":"#N/A"}},{"$f":"MATCH(L$3,Millwall!$AP84:$AZ84,0)","v":{"$error":"#N/A"}},{"$f":"MATCH(M$3,Millwall!$AP84:$AZ84,0)","v":10},{"$f":"MATCH(N$3,Millwall!$AP84:$AZ84,0)","v":11},{"$f":"MATCH(O$3,Millwall!$AP84:$AZ84,0)","v":6},{"$f":"MATCH(P$3,Millwall!$AP84:$AZ84,0)","v":{"$error":"#N/A"}},{"$f":"MATCH(Q$3,Millwall!$AP84:$AZ84,0)","v":5},{"$f":"MATCH(R$3,Millwall!$AP84:$AZ84,0)","v":{"$error":"#N/A"}},{"$f":"MATCH(S$3,Millwall!$AP84:$AZ84,0)","v":7},{"$f":"MATCH(T$3,Millwall!$AP84:$AZ84,0)","v":{"$error":"#N/A"}},{"$f":"MATCH(U$3,Millwall!$AP84:$AZ84,0)","v":4},{"$f":"MATCH(V$3,Millwall!$AP84:$AZ84,0)","v":{"$error":"#N/A"}},{"$f":"MATCH(W$3,Millwall!$AP84:$AZ84,0)","v":{"$error":"#N/A"}},{"$f":"MATCH(X$3,Millwall!$AP84:$AZ84,0)","v":{"$error":"#N/A"}},{"$f":"MATCH(Y$3,Millwall!$AP84:$AZ84,0)","v":9},{"$f":"MATCH(Z$3,Millwall!$AP84:$AZ84,0)","v":8},{"$f":"MATCH(AA$3,Millwall!$AP84:$AZ84,0)","v":{"$error":"#N/A"}},{"$f":"MATCH(AB$3,Millwall!$AP84:$AZ84,0)","v":{"$error":"#N/A"}},{"$f":"MATCH(AC$3,Millwall!$AP84:$AZ84,0)","v":2},{"$f":"MATCH(AD$3,Millwall!$AP84:$AZ84,0)","v":{"$error":"#N/A"}},{"$f":"MATCH(AE$3,Millwall!$AP84:$AZ84,0)","v":3},{"$f":"MATCH(AF$3,Millwall!$AP84:$AZ84,0)","v":1},{"$f":"MATCH(AG$3,Millwall!$AP84:$AZ84,0)","v":{"$error":"#N/A"}},{"$f":"MATCH(AH$3,Millwall!$AP84:$AZ84,0)","v":{"$error":"#N/A"}},{"$f":"MATCH(AI$3,Millwall!$AP84:$AZ84,0)","v":{"$error":"#N/A"}},{"$f":"MATCH(AJ$3,Millwall!$AP84:$AZ84,0)","v":{"$error":"#N/A"}},{"$f":"MATCH(AK$3,Millwall!$AP84:$AZ84,0)","v":{"$error":"#N/A"}},{"$f":"MATCH(AL$3,Millwall!$AP84:$AZ84,0)","v":{"$error":"#N/A"}},{"$f":"MATCH(AM$3,Millwall!$AP84:$AZ84,0)","v":{"$error":"#N/A"}},{"$f":"MATCH(AN$3,Millwall!$AP84:$AZ84,0)","v":{"$error":"#N/A"}},{"$f":"MATCH(AO$3,Millwall!$AP84:$AZ84,0)","v":{"$error":"#N/A"}},{"$f":"MATCH(AP$3,Millwall!$AP84:$AZ84,0)","v":{"$error":"#N/A"}},{"$f":"MATCH(AQ$3,Millwall!$AP84:$AZ84,0)","v":{"$error":"#N/A"}},{"$f":"MATCH(AR$3,Millwall!$AP84:$AZ84,0)","v":{"$error":"#N/A"}}]
[null,null,null,8,null,{"$f":"Millwall!AI85","v":"1933-09-30"},null,{"$f":"Millwall!AK85","v":"Blackpool"},{"$f":"Millwall!AL85","v":"(H)"},{"$f":"Millwall!AO85","v":"D 0-0"},{"$f":"MATCH(K$3,Millwall!$AP85:$AZ85,0)","v":{"$error":"#N/A"}},{"$f":"MATCH(L$3,Millwall!$AP85:$AZ85,0)","v":{"$error":"#N/A"}},{"$f":"MATCH(M$3,Millwall!$AP85:$AZ85,0)","v":10},{"$f":"MATCH(N$3,Millwall!$AP85:$AZ85,0)","v":11},{"$f":"MATCH(O$3,Millwall!$AP85:$AZ85,0)","v":6},{"$f":"MATCH(P$3,Millwall!$AP85:$AZ85,0)","v":{"$error":"#N/A"}},{"$f":"MATCH(Q$3,Millwall!$AP85:$AZ85,0)","v":5},{"$f":"MATCH(R$3,Millwall!$AP85:$AZ85,0)","v":{"$error":"#N/A"}},{"$f":"MATCH(S$3,Millwall!$AP85:$AZ85,0)","v":7},{"$f":"MATCH(T$3,Millwall!$AP85:$AZ85,0)","v":{"$error":"#N/A"}},{"$f":"MATCH(U$3,Millwall!$AP85:$AZ85,0)","v":4},{"$f":"MATCH(V$3,Millwall!$AP85:$AZ85,0)","v":{"$error":"#N/A"}},{"$f":"MATCH(W$3,Millwall!$AP85:$AZ85,0)","v":3},{"$f":"MATCH(X$3,Millwall!$AP85:$AZ85,0)","v":{"$error":"#N/A"}},{"$f":"MATCH(Y$3,Millwall!$AP85:$AZ85,0)","v":9},{"$f":"MATCH(Z$3,Millwall!$AP85:$AZ85,0)","v":8},{"$f":"MATCH(AA$3,Millwall!$AP85:$AZ85,0)","v":{"$error":"#N/A"}},{"$f":"MATCH(AB$3,Millwall!$AP85:$AZ85,0)","v":{"$error":"#N/A"}},{"$f":"MATCH(AC$3,Millwall!$AP85:$AZ85,0)","v":2},{"$f":"MATCH(AD$3,Millwall!$AP85:$AZ85,0)","v":{"$error":"#N/A"}},{"$f":"MATCH(AE$3,Millwall!$AP85:$AZ85,0)","v":{"$error":"#N/A"}},{"$f":"MATCH(AF$3,Millwall!$AP85:$AZ85,0)","v":1},{"$f":"MATCH(AG$3,Millwall!$AP85:$AZ85,0)","v":{"$error":"#N/A"}},{"$f":"MATCH(AH$3,Millwall!$AP85:$AZ85,0)","v":{"$error":"#N/A"}},{"$f":"MATCH(AI$3,Millwall!$AP85:$AZ85,0)","v":{"$error":"#N/A"}},{"$f":"MATCH(AJ$3,Millwall!$AP85:$AZ85,0)","v":{"$error":"#N/A"}},{"$f":"MATCH(AK$3,Millwall!$AP85:$AZ85,0)","v":{"$error":"#N/A"}},{"$f":"MATCH(AL$3,Millwall!$AP85:$AZ85,0)","v":{"$error":"#N/A"}},{"$f":"MATCH(AM$3,Millwall!$AP85:$AZ85,0)","v":{"$error":"#N/A"}},{"$f":"MATCH(AN$3,Millwall!$AP85:$AZ85,0)","v":{"$error":"#N/A"}},{"$f":"MATCH(AO$3,Millwall!$AP85:$AZ85,0)","v":{"$error":"#N/A"}},{"$f":"MATCH(AP$3,Millwall!$AP85:$AZ85,0)","v":{"$error":"#N/A"}},{"$f":"MATCH(AQ$3,Millwall!$AP85:$AZ85,0)","v":{"$error":"#N/A"}},{"$f":"MATCH(AR$3,Millwall!$AP85:$AZ85,0)","v":{"$error":"#N/A"}}]
[null,null,null,9,null,{"$f":"Millwall!AI86","v":"1933-10-07"},null,{"$f":"Millwall!AK86","v":"Bradford City"},{"$f":"Millwall!AL86","v":"(A)"},{"$f":"Millwall!AO86","v":"L 0-1"},{"$f":"MATCH(K$3,Millwall!$AP86:$AZ86,0)","v":{"$error":"#N/A"}},{"$f":"MATCH(L$3,Millwall!$AP86:$AZ86,0)","v":{"$error":"#N/A"}},{"$f":"MATCH(M$3,Millwall!$AP86:$AZ86,0)","v":10},{"$f":"MATCH(N$3,Millwall!$AP86:$AZ86,0)","v":11},{"$f":"MATCH(O$3,Millwall!$AP86:$AZ86,0)","v":6},{"$f":"MATCH(P$3,Millwall!$AP86:$AZ86,0)","v":{"$error":"#N/A"}},{"$f":"MATCH(Q$3,Millwall!$AP86:$AZ86,0)","v":5},{"$f":"MATCH(R$3,Millwall!$AP86:$AZ86,0)","v":{"$error":"#N/A"}},{"$f":"MATCH(S$3,Millwall!$AP86:$AZ86,0)","v":7},{"$f":"MATCH(T$3,Millwall!$AP86:$AZ86,0)","v":{"$error":"#N/A"}},{"$f":"MATCH(U$3,Millwall!$AP86:$AZ86,0)","v":4},{"$f":"MATCH(V$3,Millwall!$AP86:$AZ86,0)","v":{"$error":"#N/A"}},{"$f":"MATCH(W$3,Millwall!$AP86:$AZ86,0)","v":{"$error":"#N/A"}},{"$f":"MATCH(X$3,Millwall!$AP86:$AZ86,0)","v":{"$error":"#N/A"}},{"$f":"MATCH(Y$3,Millwall!$AP86:$AZ86,0)","v":9},{"$f":"MATCH(Z$3,Millwall!$AP86:$AZ86,0)","v":8},{"$f":"MATCH(AA$3,Millwall!$AP86:$AZ86,0)","v":{"$error":"#N/A"}},{"$f":"MATCH(AB$3,Millwall!$AP86:$AZ86,0)","v":{"$error":"#N/A"}},{"$f":"MATCH(AC$3,Millwall!$AP86:$AZ86,0)","v":2},{"$f":"MATCH(AD$3,Millwall!$AP86:$AZ86,0)","v":{"$error":"#N/A"}},{"$f":"MATCH(AE$3,Millwall!$AP86:$AZ86,0)","v":3},{"$f":"MATCH(AF$3,Millwall!$AP86:$AZ86,0)","v":1},{"$f":"MATCH(AG$3,Millwall!$AP86:$AZ86,0)","v":{"$error":"#N/A"}},{"$f":"MATCH(AH$3,Millwall!$AP86:$AZ86,0)","v":{"$error":"#N/A"}},{"$f":"MATCH(AI$3,Millwall!$AP86:$AZ86,0)","v":{"$error":"#N/A"}},{"$f":"MATCH(AJ$3,Millwall!$AP86:$AZ86,0)","v":{"$error":"#N/A"}},{"$f":"MATCH(AK$3,Millwall!$AP86:$AZ86,0)","v":{"$error":"#N/A"}},{"$f":"MATCH(AL$3,Millwall!$AP86:$AZ86,0)","v":{"$error":"#N/A"}},{"$f":"MATCH(AM$3,Millwall!$AP86:$AZ86,0)","v":{"$error":"#N/A"}},{"$f":"MATCH(AN$3,Millwall!$AP86:$AZ86,0)","v":{"$error":"#N/A"}},{"$f":"MATCH(AO$3,Millwall!$AP86:$AZ86,0)","v":{"$error":"#N/A"}},{"$f":"MATCH(AP$3,Millwall!$AP86:$AZ86,0)","v":{"$error":"#N/A"}},{"$f":"MATCH(AQ$3,Millwall!$AP86:$AZ86,0)","v":{"$error":"#N/A"}},{"$f":"MATCH(AR$3,Millwall!$AP86:$AZ86,0)","v":{"$error":"#N/A"}}]
[null,null,null,10,null,{"$f":"Millwall!AI87","v":"1933-10-14"},null,{"$f":"Millwall!AK87","v":"Port Vale"},{"$f":"Millwall!AL87","v":"(H)"},{"$f":"Millwall!AO87","v":"L 0-3"},{"$f":"MATCH(K$3,Millwall!$AP87:$AZ87,0)","v":7},{"$f":"MATCH(L$3,Millwall!$AP87:$AZ87,0)","v":{"$error":"#N/A"}},{"$f":"MATCH(M$3,Millwall!$AP87:$AZ87,0)","v":{"$error":"#N/A"}},{"$f":"MATCH(N$3,Millwall!$AP87:$AZ87,0)","v":11},{"$f":"MATCH(O$3,Millwall!$AP87:$AZ87,0)","v":10},{"$f":"MATCH(P$3,Millwall!$AP87:$AZ87,0)","v":{"$error":"#N/A"}},{"$f":"MATCH(Q$3,Millwall!$AP87:$AZ87,0)","v":5},{"$f":"MATCH(R$3,Millwall!$AP87:$AZ87,0)","v":{"$error":"#N/A"}},{"$f":"MATCH(S$3,Millwall!$AP87:$AZ87,0)","v":9},{"$f":"MATCH(T$3,Millwall!$AP87:$AZ87,0)","v":{"$error":"#N/A"}},{"$f":"MATCH(U$3,Millwall!$AP87:$AZ87,0)","v":4},{"$f":"MATCH(V$3,Millwall!$AP87:$AZ87,0)","v":{"$error":"#N/A"}},{"$f":"MATCH(W$3,Millwall!$AP87:$AZ87,0)","v":{"$error":"#N/A"}},{"$f":"MATCH(X$3,Millwall!$AP87:$AZ87,0)","v":{"$error":"#N/A"}},{"$f":"MATCH(Y$3,Millwall!$AP87:$AZ87,0)","v":{"$error":"#N/A"}},{"$f":"MATCH(Z$3,Millwall!$AP87:$AZ87,0)","v":8},{"$f":"MATCH(AA$3,Millwall!$AP87:$AZ87,0)","v":{"$error":"#N/A"}},{"$f":"MATCH(AB$3,Millwall!$AP87:$AZ87,0)","v":6},{"$f":"MATCH(AC$3,Millwall!$AP87:$AZ87,0)","v":2},{"$f":"MATCH(AD$3,Millwall!$AP87:$AZ87,0)","v":{"$error":"#N/A"}},{"$f":"MATCH(AE$3,Millwall!$AP87:$AZ87,0)","v":3},{"$f":"MATCH(AF$3,Millwall!$AP87:$AZ87,0)","v":1},{"$f":"MATCH(AG$3,Millwall!$AP87:$AZ87,0)","v":{"$error":"#N/A"}},{"$f":"MATCH(AH$3,Millwall!$AP87:$AZ87,0)","v":{"$error":"#N/A"}},{"$f":"MATCH(AI$3,Millwall!$AP87:$AZ87,0)","v":{"$error":"#N/A"}},{"$f":"MATCH(AJ$3,Millwall!$AP87:$AZ87,0)","v":{"$error":"#N/A"}},{"$f":"MATCH(AK$3,Millwall!$AP87:$AZ87,0)","v":{"$error":"#N/A"}},{"$f":"MATCH(AL$3,Millwall!$AP87:$AZ87,0)","v":{"$error":"#N/A"}},{"$f":"MATCH(AM$3,Millwall!$AP87:$AZ87,0)","v":{"$error":"#N/A"}},{"$f":"MATCH(AN$3,Millwall!$AP87:$AZ87,0)","v":{"$error":"#N/A"}},{"$f":"MATCH(AO$3,Millwall!$AP87:$AZ87,0)","v":{"$error":"#N/A"}},{"$f":"MATCH(AP$3,Millwall!$AP87:$AZ87,0)","v":{"$error":"#N/A"}},{"$f":"MATCH(AQ$3,Millwall!$AP87:$AZ87,0)","v":{"$error":"#N/A"}},{"$f":"MATCH(AR$3,Millwall!$AP87:$AZ87,0)","v":{"$error":"#N/A"}}]
[null,null,null,11,null,{"$f":"Millwall!AI88","v":"1933-10-21"},null,{"$f":"Millwall!AK88","v":"West Ham"},{"$f":"Millwall!AL88","v":"(H)"},{"$f":"Millwall!AO88","v":"D 2-2"},{"$f":"MATCH(K$3,Millwall!$AP88:$AZ88,0)","v":8},{"$f":"MATCH(L$3,Millwall!$AP88:$AZ88,0)","v":9},{"$f":"MATCH(M$3,Millwall!$AP88:$AZ88,0)","v":10},{"$f":"MATCH(N$3,Millwall!$AP88:$AZ88,0)","v":11},{"$f":"MATCH(O$3,Millwall!$AP88:$AZ88,0)","v":6},{"$f":"MATCH(P$3,Millwall!$AP88:$AZ88,0)","v":{"$error":"#N/A"}},{"$f":"MATCH(Q$3,Millwall!$AP88:$AZ88,0)","v":5},{"$f":"MATCH(R$3,Millwall!$AP88:$AZ88,0)","v":{"$error":"#N/A"}},{"$f":"MATCH(S$3,Millwall!$AP88:$AZ88,0)","v":7},{"$f":"MATCH(T$3,Millwall!$AP88:$AZ88,0)","v":{"$error":"#N/A"}},{"$f":"MATCH(U$3,Millwall!$AP88:$AZ88,0)","v":4},{"$f":"MATCH(V$3,Millwall!$AP88:$AZ88,0)","v":{"$error":"#N/A"}},{"$f":"MATCH(W$3,Millwall!$AP88:$AZ88,0)","v":{"$error":"#N/A"}},{"$f":"MATCH(X$3,Millwall!$AP88:$AZ88,0)","v":{"$error":"#N/A"}},{"$f":"MATCH(Y$3,Millwall!$AP88:$AZ88,0)","v":{"$error":"#N/A"}},{"$f":"MATCH(Z$3,Millwall!$AP88:$AZ88,0)","v":{"$error":"#N/A"}},{"$f":"MATCH(AA$3,Millwall!$AP88:$AZ88,0)","v":{"$error":"#N/A"}},{"$f":"MATCH(AB$3,Millwall!$AP88:$AZ88,0)","v":{"$error":"#N/A"}},{"$f":"MATCH(AC$3,Millwall!$AP88:$AZ88,0)","v":2},{"$f":"MATCH(AD$3,Millwall!$AP88:$AZ88,0)","v":{"$error":"#N/A"}},{"$f":"MATCH(AE$3,Millwall!$AP88:$AZ88,0)","v":3},{"$f":"MATCH(AF$3,Millwall!$AP88:$AZ88,0)","v":1},{"$f":"MATCH(AG$3,Millwall!$AP88:$AZ88,0)","v":{"$error":"#N/A"}},{"$f":"MATCH(AH$3,Millwall!$AP88:$AZ88,0)","v":{"$error":"#N/A"}},{"$f":"MATCH(AI$3,Millwall!$AP88:$AZ88,0)","v":{"$error":"#N/A"}},{"$f":"MATCH(AJ$3,Millwall!$AP88:$AZ88,0)","v":{"$error":"#N/A"}},{"$f":"MATCH(AK$3,Millwall!$AP88:$AZ88,0)","v":{"$error":"#N/A"}},{"$f":"MATCH(AL$3,Millwall!$AP88:$AZ88,0)","v":{"$error":"#N/A"}},{"$f":"MATCH(AM$3,Millwall!$AP88:$AZ88,0)","v":{"$error":"#N/A"}},{"$f":"MATCH(AN$3,Millwall!$AP88:$AZ88,0)","v":{"$error":"#N/A"}},{"$f":"MATCH(AO$3,Millwall!$AP88:$AZ88,0)","v":{"$error":"#N/A"}},{"$f":"MATCH(AP$3,Millwall!$AP88:$AZ88,0)","v":{"$error":"#N/A"}},{"$f":"MATCH(AQ$3,Millwall!$AP88:$AZ88,0)","v":{"$error":"#N/A"}},{"$f":"MATCH(AR$3,Millwall!$AP88:$AZ88,0)","v":{"$error":"#N/A"}}]
[null,null,null,12,null,{"$f":"Millwall!AI89","v":"1933-10-28"},null,{"$f":"Millwall!AK89","v":"Nottm Forest"},{"$f":"Millwall!AL89","v":"(A)"},{"$f":"Millwall!AO89","v":"L 0-2"},{"$f":"MATCH(K$3,Millwall!$AP89:$AZ89,0)","v":8},{"$f":"MATCH(L$3,Millwall!$AP89:$AZ89,0)","v":9},{"$f":"MATCH(M$3,Millwall!$AP89:$AZ89,0)","v":{"$error":"#N/A"}},{"$f":"MATCH(N$3,Millwall!$AP89:$AZ89,0)","v":11},{"$f":"MATCH(O$3,Millwall!$AP89:$AZ89,0)","v":10},{"$f":"MATCH(P$3,Millwall!$AP89:$AZ89,0)","v":6},{"$f":"MATCH(Q$3,Millwall!$AP89:$AZ89,0)","v":5},{"$f":"MATCH(R$3,Millwall!$AP89:$AZ89,0)","v":{"$error":"#N/A"}},{"$f":"MATCH(S$3,Millwall!$AP89:$AZ89,0)","v":7},{"$f":"MATCH(T$3,Millwall!$AP89:$AZ89,0)","v":{"$error":"#N/A"}},{"$f":"MATCH(U$3,Millwall!$AP89:$AZ89,0)","v":{"$error":"#N/A"}},{"$f":"MATCH(V$3,Millwall!$AP89:$AZ89,0)","v":{"$error":"#N/A"}},{"$f":"MATCH(W$3,Millwall!$AP89:$AZ89,0)","v":{"$error":"#N/A"}},{"$f":"MATCH(X$3,Millwall!$AP89:$AZ89,0)","v":{"$error":"#N/A"}},{"$f":"MATCH(Y$3,Millwall!$AP89:$AZ89,0)","v":{"$error":"#N/A"}},{"$f":"MATCH(Z$3,Millwall!$AP89:$AZ89,0)","v":{"$error":"#N/A"}},{"$f":"MATCH(AA$3,Millwall!$AP89:$AZ89,0)","v":{"$error":"#N/A"}},{"$f":"MATCH(AB$3,Millwall!$AP89:$AZ89,0)","v":4},{"$f":"MATCH(AC$3,Millwall!$AP89:$AZ89,0)","v":2},{"$f":"MATCH(AD$3,Millwall!$AP89:$AZ89,0)","v":{"$error":"#N/A"}},{"$f":"MATCH(AE$3,Millwall!$AP89:$AZ89,0)","v":3},{"$f":"MATCH(AF$3,Millwall!$AP89:$AZ89,0)","v":1},{"$f":"MATCH(AG$3,Millwall!$AP89:$AZ89,0)","v":{"$error":"#N/A"}},{"$f":"MATCH(AH$3,Millwall!$AP89:$AZ89,0)","v":{"$error":"#N/A"}},{"$f":"MATCH(AI$3,Millwall!$AP89:$AZ89,0)","v":{"$error":"#N/A"}},{"$f":"MATCH(AJ$3,Millwall!$AP89:$AZ89,0)","v":{"$error":"#N/A"}},{"$f":"MATCH(AK$3,Millwall!$AP89:$AZ89,0)","v":{"$error":"#N/A"}},{"$f":"MATCH(AL$3,Millwall!$AP89:$AZ89,0)","v":{"$error":"#N/A"}},{"$f":"MATCH(AM$3,Millwall!$AP89:$AZ89,0)","v":{"$error":"#N/A"}},{"$f":"MATCH(AN$3,Millwall!$AP89:$AZ89,0)","v":{"$error":"#N/A"}},{"$f":"MATCH(AO$3,Millwall!$AP89:$AZ89,0)","v":{"$error":"#N/A"}},{"$f":"MATCH(AP$3,Millwall!$AP89:$AZ89,0)","v":{"$error":"#N/A"}},{"$f":"MATCH(AQ$3,Millwall!$AP89:$AZ89,0)","v":{"$error":"#N/A"}},{"$f":"MATCH(AR$3,Millwall!$AP89:$AZ89,0)","v":{"$error":"#N/A"}}]
[null,null,null,13,null,{"$f":"Millwall!AI90","v":"1933-11-04"},null,{"$f":"Millwall!AK90","v":"Grimsby"},{"$f":"Millwall!AL90","v":"(H)"},{"$f":"Millwall!AO90","v":"L 0-1"},{"$f":"MATCH(K$3,Millwall!$AP90:$AZ90,0)","v":8},{"$f":"MATCH(L$3,Millwall!$AP90:$AZ90,0)","v":9},{"$f":"MATCH(M$3,Millwall!$AP90:$AZ90,0)","v":{"$error":"#N/A"}},{"$f":"MATCH(N$3,Millwall!$AP90:$AZ90,0)","v":11},{"$f":"MATCH(O$3,Millwall!$AP90:$AZ90,0)","v":6},{"$f":"MATCH(P$3,Millwall!$AP90:$AZ90,0)","v":{"$error":"#N/A"}},{"$f":"MATCH(Q$3,Millwall!$AP90:$AZ90,0)","v":5},{"$f":"MATCH(R$3,Millwall!$AP90:$AZ90,0)","v":{"$error":"#N/A"}},{"$f":"MATCH(S$3,Millwall!$AP90:$AZ90,0)","v":7},{"$f":"MATCH(T$3,Millwall!$AP90:$AZ90,0)","v":{"$error":"#N/A"}},{"$f":"MATCH(U$3,Millwall!$AP90:$AZ90,0)","v":{"$error":"#N/A"}},{"$f":"MATCH(V$3,Millwall!$AP90:$AZ90,0)","v":{"$error":"#N/A"}},{"$f":"MATCH(W$3,Millwall!$AP90:$AZ90,0)","v":{"$error":"#N/A"}},{"$f":"MATCH(X$3,Millwall!$AP90:$AZ90,0)","v":{"$error":"#N/A"}},{"$f":"MATCH(Y$3,Millwall!$AP90:$AZ90,0)","v":{"$error":"#N/A"}},{"$f":"MATCH(Z$3,Millwall!$AP90:$AZ90,0)","v":10},{"$f":"MATCH(AA$3,Millwall!$AP90:$AZ90,0)","v":{"$error":"#N/A"}},{"$f":"MATCH(AB$3,Millwall!$AP90:$AZ90,0)","v":4},{"$f":"MATCH(AC$3,Millwall!$AP90:$AZ90,0)","v":2},{"$f":"MATCH(AD$3,Millwall!$AP90:$AZ90,0)","v":{"$error":"#N/A"}},{"$f":"MATCH(AE$3,Millwall!$AP90:$AZ90,0)","v":3},{"$f":"MATCH(AF$3,Millwall!$AP90:$AZ90,0)","v":{"$error":"#N/A"}},{"$f":"MATCH(AG$3,Millwall!$AP90:$AZ90,0)","v":{"$error":"#N/A"}},{"$f":"MATCH(AH$3,Millwall!$AP90:$AZ90,0)","v":1},{"$f":"MATCH(AI$3,Millwall!$AP90:$AZ90,0)","v":{"$error":"#N/A"}},{"$f":"MATCH(AJ$3,Millwall!$AP90:$AZ90,0)","v":{"$error":"#N/A"}},{"$f":"MATCH(AK$3,Millwall!$AP90:$AZ90,0)","v":{"$error":"#N/A"}},{"$f":"MATCH(AL$3,Millwall!$AP90:$AZ90,0)","v":{"$error":"#N/A"}},{"$f":"MATCH(AM$3,Millwall!$AP90:$AZ90,0)","v":{"$error":"#N/A"}},{"$f":"MATCH(AN$3,Millwall!$AP90:$AZ90,0)","v":{"$error":"#N/A"}},{"$f":"MATCH(AO$3,Millwall!$AP90:$AZ90,0)","v":{"$error":"#N/A"}},{"$f":"MATCH(AP$3,Millwall!$AP90:$AZ90,0)","v":{"$error":"#N/A"}},{"$f":"MATCH(AQ$3,Millwall!$AP90:$AZ90,0)","v":{"$error":"#N/A"}},{"$f":"MATCH(AR$3,Millwall!$AP90:$AZ90,0)","v":{"$error":"#N/A"}}]
[null,null,null,14,null,{"$f":"Millwall!AI91","v":"1933-11-11"},null,{"$f":"Millwall!AK91","v":"Bradford PA"},{"$f":"Millwall!AL91","v":"(A)"},{"$f":"Millwall!AO91","v":"L 0-4"},{"$f":"MATCH(K$3,Millwall!$AP91:$AZ91,0)","v":8},{"$f":"MATCH(L$3,Millwall!$AP91:$AZ91,0)","v":9},{"$f":"MATCH(M$3,Millwall!$AP91:$AZ91,0)","v":{"$error":"#N/A"}},{"$f":"MATCH(N$3,Millwall!$AP91:$AZ91,0)","v":11},{"$f":"MATCH(O$3,Millwall!$AP91:$AZ91,0)","v":6},{"$f":"MATCH(P$3,Millwall!$AP91:$AZ91,0)","v":{"$error":"#N/A"}},{"$f":"MATCH(Q$3,Millwall!$AP91:$AZ91,0)","v":5},{"$f":"MATCH(R$3,Millwall!$AP91:$AZ91,0)","v":{"$error":"#N/A"}},{"$f":"MATCH(S$3,Millwall!$AP91:$AZ91,0)","v":7},{"$f":"MATCH(T$3,Millwall!$AP91:$AZ91,0)","v":{"$error":"#N/A"}},{"$f":"MATCH(U$3,Millwall!$AP91:$AZ91,0)","v":{"$error":"#N/A"}},{"$f":"MATCH(V$3,Millwall!$AP91:$AZ91,0)","v":{"$error":"#N/A"}},{"$f":"MATCH(W$3,Millwall!$AP91:$AZ91,0)","v":{"$error":"#N/A"}},{"$f":"MATCH(X$3,Millwall!$AP91:$AZ91,0)","v":{"$error":"#N/A"}},{"$f":"MATCH(Y$3,Millwall!$AP91:$AZ91,0)","v":10},{"$f":"MATCH(Z$3,Millwall!$AP91:$AZ91,0)","v":{"$error":"#N/A"}},{"$f":"MATCH(AA$3,Millwall!$AP91:$AZ91,0)","v":{"$error":"#N/A"}},{"$f":"MATCH(AB$3,Millwall!$AP91:$AZ91,0)","v":4},{"$f":"MATCH(AC$3,Millwall!$AP91:$AZ91,0)","v":2},{"$f":"MATCH(AD$3,Millwall!$AP91:$AZ91,0)","v":{"$error":"#N/A"}},{"$f":"MATCH(AE$3,Millwall!$AP91:$AZ91,0)","v":3},{"$f":"MATCH(AF$3,Millwall!$AP91:$AZ91,0)","v":{"$error":"#N/A"}},{"$f":"MATCH(AG$3,Millwall!$AP91:$AZ91,0)","v":{"$error":"#N/A"}},{"$f":"MATCH(AH$3,Millwall!$AP91:$AZ91,0)","v":1},{"$f":"MATCH(AI$3,Millwall!$AP91:$AZ91,0)","v":{"$error":"#N/A"}},{"$f":"MATCH(AJ$3,Millwall!$AP91:$AZ91,0)","v":{"$error":"#N/A"}},{"$f":"MATCH(AK$3,Millwall!$AP91:$AZ91,0)","v":{"$error":"#N/A"}},{"$f":"MATCH(AL$3,Millwall!$AP91:$AZ91,0)","v":{"$error":"#N/A"}},{"$f":"MATCH(AM$3,Millwall!$AP91:$AZ91,0)","v":{"$error":"#N/A"}},{"$f":"MATCH(AN$3,Millwall!$AP91:$AZ91,0)","v":{"$error":"#N/A"}},{"$f":"MATCH(AO$3,Millwall!$AP91:$AZ91,0)","v":{"$error":"#N/A"}},{"$f":"MATCH(AP$3,Millwall!$AP91:$AZ91,0)","v":{"$error":"#N/A"}},{"$f":"MATCH(AQ$3,Millwall!$AP91:$AZ91,0)","v":{"$error":"#N/A"}},{"$f":"MATCH(AR$3,Millwall!$AP91:$AZ91,0)","v":{"$error":"#N/A"}}]
[null,null,null,15,null,{"$f":"Millwall!AI92","v":"1933-11-18"},null,{"$f":"Millwall!AK92","v":"Preston"},{"$f":"Millwall!AL92","v":"(H)"},{"$f":"Millwall!AO92","v":"D 1-1"},{"$f":"MATCH(K$3,Millwall!$AP92:$AZ92,0)","v":8},{"$f":"MATCH(L$3,Millwall!$AP92:$AZ92,0)","v":{"$error":"#N/A"}},{"$f":"MATCH(M$3,Millwall!$AP92:$AZ92,0)","v":{"$error":"#N/A"}},{"$f":"MATCH(N$3,Millwall!$AP92:$AZ92,0)","v":11},{"$f":"MATCH(O$3,Millwall!$AP92:$AZ92,0)","v":6},{"$f":"MATCH(P$3,Millwall!$AP92:$AZ92,0)","v":{"$error":"#N/A"}},{"$f":"MATCH(Q$3,Millwall!$AP92:$AZ92,0)","v":5},{"$f":"MATCH(R$3,Millwall!$AP92:$AZ92,0)","v":{"$error":"#N/A"}},{"$f":"MATCH(S$3,Millwall!$AP92:$AZ92,0)","v":{"$error":"#N/A"}},{"$f":"MATCH(T$3,Millwall!$AP92:$AZ92,0)","v":{"$error":"#N/A"}},{"$f":"MATCH(U$3,Millwall!$AP92:$AZ92,0)","v":4},{"$f":"MATCH(V$3,Millwall!$AP92:$AZ92,0)","v":{"$error":"#N/A"}},{"$f":"MATCH(W$3,Millwall!$AP92:$AZ92,0)","v":3},{"$f":"MATCH(X$3,Millwall!$AP92:$AZ92,0)","v":7},{"$f":"MATCH(Y$3,Millwall!$AP92:$AZ92,0)","v":10},{"$f":"MATCH(Z$3,Millwall!$AP92:$AZ92,0)","v":{"$error":"#N/A"}},{"$f":"MATCH(AA$3,Millwall!$AP92:$AZ92,0)","v":{"$error":"#N/A"}},{"$f":"MATCH(AB$3,Millwall!$AP92:$AZ92,0)","v":{"$error":"#N/A"}},{"$f":"MATCH(AC$3,Millwall!$AP92:$AZ92,0)","v":{"$error":"#N/A"}},{"$f":"MATCH(AD$3,Millwall!$AP92:$AZ92,0)","v":{"$error":"#N/A"}},{"$f":"MATCH(AE$3,Millwall!$AP92:$AZ92,0)","v":2},{"$f":"MATCH(AF$3,Millwall!$AP92:$AZ92,0)","v":{"$error":"#N/A"}},{"$f":"MATCH(AG$3,Millwall!$AP92:$AZ92,0)","v":9},{"$f":"MATCH(AH$3,Millwall!$AP92:$AZ92,0)","v":1},{"$f":"MATCH(AI$3,Millwall!$AP92:$AZ92,0)","v":{"$error":"#N/A"}},{"$f":"MATCH(AJ$3,Millwall!$AP92:$AZ92,0)","v":{"$error":"#N/A"}},{"$f":"MATCH(AK$3,Millwall!$AP92:$AZ92,0)","v":{"$error":"#N/A"}},{"$f":"MATCH(AL$3,Millwall!$AP92:$AZ92,0)","v":{"$error":"#N/A"}},{"$f":"MATCH(AM$3,Millwall!$AP92:$AZ92,0)","v":{"$error":"#N/A"}},{"$f":"MATCH(AN$3,Millwall!$AP92:$AZ92,0)","v":{"$error":"#N/A"}},{"$f":"MATCH(AO$3,Millwall!$AP92:$AZ92,0)","v":{"$error":"#N/A"}},{"$f":"MATCH(AP$3,Millwall!$AP92:$AZ92,0)","v":{"$error":"#N/A"}},{"$f":"MATCH(AQ$3,Millwall!$AP92:$AZ92,0)","v":{"$error":"#N/A"}},{"$f":"MATCH(AR$3,Millwall!$AP92:$AZ92,0)","v":{"$error":"#N/A"}}]
[null,null,null,16,null,{"$f":"Millwall!AI93","v":"1933-11-25"},null,{"$f":"Millwall!AK93","v":"Oldham"},{"$f":"Millwall!AL93","v":"(A)"},{"$f":"Millwall!AO93","v":"L 0-1"},{"$f":"MATCH(K$3,Millwall!$AP93:$AZ93,0)","v":8},{"$f":"MATCH(L$3,Millwall!$AP93:$AZ93,0)","v":{"$error":"#N/A"}},{"$f":"MATCH(M$3,Millwall!$AP93:$AZ93,0)","v":{"$error":"#N/A"}},{"$f":"MATCH(N$3,Millwall!$AP93:$AZ93,0)","v":11},{"$f":"MATCH(O$3,Millwall!$AP93:$AZ93,0)","v":6},{"$f":"MATCH(P$3,Millwall!$AP93:$AZ93,0)","v":{"$error":"#N/A"}},{"$f":"MATCH(Q$3,Millwall!$AP93:$AZ93,0)","v":5},{"$f":"MATCH(R$3,Millwall!$AP93:$AZ93,0)","v":10},{"$f":"MATCH(S$3,Millwall!$AP93:$AZ93,0)","v":{"$error":"#N/A"}},{"$f":"MATCH(T$3,Millwall!$AP93:$AZ93,0)","v":{"$error":"#N/A"}},{"$f":"MATCH(U$3,Millwall!$AP93:$AZ93,0)","v":4},{"$f":"MATCH(V$3,Millwall!$AP93:$AZ93,0)","v":{"$error":"#N/A"}},{"$f":"MATCH(W$3,Millwall!$AP93:$AZ93,0)","v":3},{"$f":"MATCH(X$3,Millwall!$AP93:$AZ93,0)","v":{"$error":"#N/A"}},{"$f":"MATCH(Y$3,Millwall!$AP93:$AZ93,0)","v":7},{"$f":"MATCH(Z$3,Millwall!$AP93:$AZ93,0)","v":{"$error":"#N/A"}},{"$f":"MATCH(AA$3,Millwall!$AP93:$AZ93,0)","v":{"$error":"#N/A"}},{"$f":"MATCH(AB$3,Millwall!$AP93:$AZ93,0)","v":{"$error":"#N/A"}},{"$f":"MATCH(AC$3,Millwall!$AP93:$AZ93,0)","v":{"$error":"#N/A"}},{"$f":"MATCH(AD$3,Millwall!$AP93:$AZ93,0)","v":{"$error":"#N/A"}},{"$f":"MATCH(AE$3,Millwall!$AP93:$AZ93,0)","v":2},{"$f":"MATCH(AF$3,Millwall!$AP93:$AZ93,0)","v":1},{"$f":"MATCH(AG$3,Millwall!$AP93:$AZ93,0)","v":9},{"$f":"MATCH(AH$3,Millwall!$AP93:$AZ93,0)","v":{"$error":"#N/A"}},{"$f":"MATCH(AI$3,Millwall!$AP93:$AZ93,0)","v":{"$error":"#N/A"}},{"$f":"MATCH(AJ$3,Millwall!$AP93:$AZ93,0)","v":{"$error":"#N/A"}},{"$f":"MATCH(AK$3,Millwall!$AP93:$AZ93,0)","v":{"$error":"#N/A"}},{"$f":"MATCH(AL$3,Millwall!$AP93:$AZ93,0)","v":{"$error":"#N/A"}},{"$f":"MATCH(AM$3,Millwall!$AP93:$AZ93,0)","v":{"$error":"#N/A"}},{"$f":"MATCH(AN$3,Millwall!$AP93:$AZ93,0)","v":{"$error":"#N/A"}},{"$f":"MATCH(AO$3,Millwall!$AP93:$AZ93,0)","v":{"$error":"#N/A"}},{"$f":"MATCH(AP$3,Millwall!$AP93:$AZ93,0)","v":{"$error":"#N/A"}},{"$f":"MATCH(AQ$3,Millwall!$AP93:$AZ93,0)","v":{"$error":"#N/A"}},{"$f":"MATCH(AR$3,Millwall!$AP93:$AZ93,0)","v":{"$error":"#N/A"}}]
[null,null,null,17,null,{"$f":"Millwall!AI94","v":"1933-12-02"},null,{"$f":"Millwall!AK94","v":"Burnley"},{"$f":"Millwall!AL94","v":"(H)"},{"$f":"Millwall!AO94","v":"D 0-0"},{"$f":"MATCH(K$3,Millwall!$AP94:$AZ94,0)","v":{"$error":"#N/A"}},{"$f":"MATCH(L$3,Millwall!$AP94:$AZ94,0)","v":{"$error":"#N/A"}},{"$f":"MATCH(M$3,Millwall!$AP94:$AZ94,0)","v":10},{"$f":"MATCH(N$3,Millwall!$AP94:$AZ94,0)","v":11},{"$f":"MATCH(O$3,Millwall!$AP94:$AZ94,0)","v":6},{"$f":"MATCH(P$3,Millwall!$AP94:$AZ94,0)","v":{"$error":"#N/A"}},{"$f":"MATCH(Q$3,Millwall!$AP94:$AZ94,0)","v":{"$error":"#N/A"}},{"$f":"MATCH(R$3,Millwall!$AP94:$AZ94,0)","v":{"$error":"#N/A"}},{"$f":"MATCH(S$3,Millwall!$AP94:$AZ94,0)","v":7},{"$f":"MATCH(T$3,Millwall!$AP94:$AZ94,0)","v":{"$error":"#N/A"}},{"$f":"MATCH(U$3,Millwall!$AP94:$AZ94,0)","v":4},{"$f":"MATCH(V$3,Millwall!$AP94:$AZ94,0)","v":8},{"$f":"MATCH(W$3,Millwall!$AP94:$AZ94,0)","v":3},{"$f":"MATCH(X$3,Millwall!$AP94:$AZ94,0)","v":{"$error":"#N/A"}},{"$f":"MATCH(Y$3,Millwall!$AP94:$AZ94,0)","v":{"$error":"#N/A"}},{"$f":"MATCH(Z$3,Millwall!$AP94:$AZ94,0)","v":{"$error":"#N/A"}},{"$f":"MATCH(AA$3,Millwall!$AP94:$AZ94,0)","v":{"$error":"#N/A"}},{"$f":"MATCH(AB$3,Millwall!$AP94:$AZ94,0)","v":{"$error":"#N/A"}},{"$f":"MATCH(AC$3,Millwall!$AP94:$AZ94,0)","v":{"$error":"#N/A"}},{"$f":"MATCH(AD$3,Millwall!$AP94:$AZ94,0)","v":5},{"$f":"MATCH(AE$3,Millwall!$AP94:$AZ94,0)","v":2},{"$f":"MATCH(AF$3,Millwall!$AP94:$AZ94,0)","v":1},{"$f":"MATCH(AG$3,Millwall!$AP94:$AZ94,0)","v":9},{"$f":"MATCH(AH$3,Millwall!$AP94:$AZ94,0)","v":{"$error":"#N/A"}},{"$f":"MATCH(AI$3,Millwall!$AP94:$AZ94,0)","v":{"$error":"#N/A"}},{"$f":"MATCH(AJ$3,Millwall!$AP94:$AZ94,0)","v":{"$error":"#N/A"}},{"$f":"MATCH(AK$3,Millwall!$AP94:$AZ94,0)","v":{"$error":"#N/A"}},{"$f":"MATCH(AL$3,Millwall!$AP94:$AZ94,0)","v":{"$error":"#N/A"}},{"$f":"MATCH(AM$3,Millwall!$AP94:$AZ94,0)","v":{"$error":"#N/A"}},{"$f":"MATCH(AN$3,Millwall!$AP94:$AZ94,0)","v":{"$error":"#N/A"}},{"$f":"MATCH(AO$3,Millwall!$AP94:$AZ94,0)","v":{"$error":"#N/A"}},{"$f":"MATCH(AP$3,Millwall!$AP94:$AZ94,0)","v":{"$error":"#N/A"}},{"$f":"MATCH(AQ$3,Millwall!$AP94:$AZ94,0)","v":{"$error":"#N/A"}},{"$f":"MATCH(AR$3,Millwall!$AP94:$AZ94,0)","v":{"$error":"#N/A"}}]
[null,null,null,18,null,{"$f":"Millwall!AI95","v":"1933-12-09"},null,{"$f":"Millwall!AK95","v":"Brentford"},{"$f":"Millwall!AL95","v":"(A)"},{"$f":"Millwall!AO95","v":"L 0-3"},{"$f":"MATCH(K$3,Millwall!$AP95:$AZ95,0)","v":{"$error":"#N/A"}},{"$f":"MATCH(L$3,Millwall!$AP95:$AZ95,0)","v":{"$error":"#N/A"}},{"$f":"MATCH(M$3,Millwall!$AP95:$AZ95,0)","v":{"$error":"#N/A"}},{"$f":"MATCH(N$3,Millwall!$AP95:$AZ95,0)","v":{"$error":"#N/A"}},{"$f":"MATCH(O$3,Millwall!$AP95:$AZ95,0)","v":6},{"$f":"MATCH(P$3,Millwall!$AP95:$AZ95,0)","v":{"$error":"#N/A"}},{"$f":"MATCH(Q$3,Millwall!$AP95:$AZ95,0)","v":4},{"$f":"MATCH(R$3,Millwall!$AP95:$AZ95,0)","v":{"$error":"#N/A"}},{"$f":"MATCH(S$3,Millwall!$AP95:$AZ95,0)","v":7},{"$f":"MATCH(T$3,Millwall!$AP95:$AZ95,0)","v":{"$error":"#N/A"}},{"$f":"MATCH(U$3,Millwall!$AP95:$AZ95,0)","v":{"$error":"#N/A"}},{"$f":"MATCH(V$3,Millwall!$AP95:$AZ95,0)","v":8},{"$f":"MATCH(W$3,Millwall!$AP95:$AZ95,0)","v":3},{"$f":"MATCH(X$3,Millwall!$AP95:$AZ95,0)","v":11},{"$f":"MATCH(Y$3,Millwall!$AP95:$AZ95,0)","v":{"$error":"#N/A"}},{"$f":"MATCH(Z$3,Millwall!$AP95:$AZ95,0)","v":10},{"$f":"MATCH(AA$3,Millwall!$AP95:$AZ95,0)","v":{"$error":"#N/A"}},{"$f":"MATCH(AB$3,Millwall!$AP95:$AZ95,0)","v":{"$error":"#N/A"}},{"$f":"MATCH(AC$3,Millwall!$AP95:$AZ95,0)","v":{"$error":"#N/A"}},{"$f":"MATCH(AD$3,Millwall!$AP95:$AZ95,0)","v":5},{"$f":"MATCH(AE$3,Millwall!$AP95:$AZ95,0)","v":2},{"$f":"MATCH(AF$3,Millwall!$AP95:$AZ95,0)","v":1},{"$f":"MATCH(AG$3,Millwall!$AP95:$AZ95,0)","v":9},{"$f":"MATCH(AH$3,Millwall!$AP95:$AZ95,0)","v":{"$error":"#N/A"}},{"$f":"MATCH(AI$3,Millwall!$AP95:$AZ95,0)","v":{"$error":"#N/A"}},{"$f":"MATCH(AJ$3,Millwall!$AP95:$AZ95,0)","v":{"$error":"#N/A"}},{"$f":"MATCH(AK$3,Millwall!$AP95:$AZ95,0)","v":{"$error":"#N/A"}},{"$f":"MATCH(AL$3,Millwall!$AP95:$AZ95,0)","v":{"$error":"#N/A"}},{"$f":"MATCH(AM$3,Millwall!$AP95:$AZ95,0)","v":{"$error":"#N/A"}},{"$f":"MATCH(AN$3,Millwall!$AP95:$AZ95,0)","v":{"$error":"#N/A"}},{"$f":"MATCH(AO$3,Millwall!$AP95:$AZ95,0)","v":{"$error":"#N/A"}},{"$f":"MATCH(AP$3,Millwall!$AP95:$AZ95,0)","v":{"$error":"#N/A"}},{"$f":"MATCH(AQ$3,Millwall!$AP95:$AZ95,0)","v":{"$error":"#N/A"}},{"$f":"MATCH(AR$3,Millwall!$AP95:$AZ95,0)","v":{"$error":"#N/A"}}]
[null,null,null,19,null,{"$f":"Millwall!AI96","v":"1933-12-16"},null,{"$f":"Millwall!AK96","v":"Bolton"},{"$f":"Millwall!AL96","v":"(H)"},{"$f":"Millwall!AO96","v":"W 2-1"},{"$f":"MATCH(K$3,Millwall!$AP96:$AZ96,0)","v":{"$error":"#N/A"}},{"$f":"MATCH(L$3,Millwall!$AP96:$AZ96,0)","v":7},{"$f":"MATCH(M$3,Millwall!$AP96:$AZ96,0)","v":{"$error":"#N/A"}},{"$f":"MATCH(N$3,Millwall!$AP96:$AZ96,0)","v":11},{"$f":"MATCH(O$3,Millwall!$AP96:$AZ96,0)","v":6},{"$f":"MATCH(P$3,Millwall!$AP96:$AZ96,0)","v":{"$error":"#N/A"}},{"$f":"MATCH(Q$3,Millwall!$AP96:$AZ96,0)","v":4},{"$f":"MATCH(R$3,Millwall!$AP96:$AZ96,0)","v":{"$error":"#N/A"}},{"$f":"MATCH(S$3,Millwall!$AP96:$AZ96,0)","v":{"$error":"#N/A"}},{"$f":"MATCH(T$3,Millwall!$AP96:$AZ96,0)","v":{"$error":"#N/A"}},{"$f":"MATCH(U$3,Millwall!$AP96:$AZ96,0)","v":{"$error":"#N/A"}},{"$f":"MATCH(V$3,Millwall!$AP96:$AZ96,0)","v":8},{"$f":"MATCH(W$3,Millwall!$AP96:$AZ96,0)","v":3},{"$f":"MATCH(X$3,Millwall!$AP96:$AZ96,0)","v":{"$error":"#N/A"}},{"$f":"MATCH(Y$3,Millwall!$AP96:$AZ96,0)","v":{"$error":"#N/A"}},{"$f":"MATCH(Z$3,Millwall!$AP96:$AZ96,0)","v":10},{"$f":"MATCH(AA$3,Millwall!$AP96:$AZ96,0)","v":{"$error":"#N/A"}},{"$f":"MATCH(AB$3,Millwall!$AP96:$AZ96,0)","v":{"$error":"#N/A"}},{"$f":"MATCH(AC$3,Millwall!$AP96:$AZ96,0)","v":{"$error":"#N/A"}},{"$f":"MATCH(AD$3,Millwall!$AP96:$AZ96,0)","v":5},{"$f":"MATCH(AE$3,Millwall!$AP96:$AZ96,0)","v":2},{"$f":"MATCH(AF$3,Millwall!$AP96:$AZ96,0)","v":1},{"$f":"MATCH(AG$3,Millwall!$AP96:$AZ96,0)","v":9},{"$f":"MATCH(AH$3,Millwall!$AP96:$AZ96,0)","v":{"$error":"#N/A"}},{"$f":"MATCH(AI$3,Millwall!$AP96:$AZ96,0)","v":{"$error":"#N/A"}},{"$f":"MATCH(AJ$3,Millwall!$AP96:$AZ96,0)","v":{"$error":"#N/A"}},{"$f":"MATCH(AK$3,Millwall!$AP96:$AZ96,0)","v":{"$error":"#N/A"}},{"$f":"MATCH(AL$3,Millwall!$AP96:$AZ96,0)","v":{"$error":"#N/A"}},{"$f":"MATCH(AM$3,Millwall!$AP96:$AZ96,0)","v":{"$error":"#N/A"}},{"$f":"MATCH(AN$3,Millwall!$AP96:$AZ96,0)","v":{"$error":"#N/A"}},{"$f":"MATCH(AO$3,Millwall!$AP96:$AZ96,0)","v":{"$error":"#N/A"}},{"$f":"MATCH(AP$3,Millwall!$AP96:$AZ96,0)","v":{"$error":"#N/A"}},{"$f":"MATCH(AQ$3,Millwall!$AP96:$AZ96,0)","v":{"$error":"#N/A"}},{"$f":"MATCH(AR$3,Millwall!$AP96:$AZ96,0)","v":{"$error":"#N/A"}}]
[null,null,null,20,null,{"$f":"Millwall!AI97","v":"1933-12-23"},null,{"$f":"Millwall!AK97","v":"Man Utd"},{"$f":"Millwall!AL97","v":"(A)"},{"$f":"Millwall!AO97","v":"D 1-1"},{"$f":"MATCH(K$3,Millwall!$AP97:$AZ97,0)","v":{"$error":"#N/A"}},{"$f":"MATCH(L$3,Millwall!$AP97:$AZ97,0)","v":7},{"$f":"MATCH(M$3,Millwall!$AP97:$AZ97,0)","v":{"$error":"#N/A"}},{"$f":"MATCH(N$3,Millwall!$AP97:$AZ97,0)","v":11},{"$f":"MATCH(O$3,Millwall!$AP97:$AZ97,0)","v":6},{"$f":"MATCH(P$3,Millwall!$AP97:$AZ97,0)","v":{"$error":"#N/A"}},{"$f":"MATCH(Q$3,Millwall!$AP97:$AZ97,0)","v":4},{"$f":"MATCH(R$3,Millwall!$AP97:$AZ97,0)","v":{"$error":"#N/A"}},{"$f":"MATCH(S$3,Millwall!$AP97:$AZ97,0)","v":{"$error":"#N/A"}},{"$f":"MATCH(T$3,Millwall!$AP97:$AZ97,0)","v":{"$error":"#N/A"}},{"$f":"MATCH(U$3,Millwall!$AP97:$AZ97,0)","v":{"$error":"#N/A"}},{"$f":"MATCH(V$3,Millwall!$AP97:$AZ97,0)","v":8},{"$f":"MATCH(W$3,Millwall!$AP97:$AZ97,0)","v":3},{"$f":"MATCH(X$3,Millwall!$AP97:$AZ97,0)","v":{"$error":"#N/A"}},{"$f":"MATCH(Y$3,Millwall!$AP97:$AZ97,0)","v":{"$error":"#N/A"}},{"$f":"MATCH(Z$3,Millwall!$AP97:$AZ97,0)","v":10},{"$f":"MATCH(AA$3,Millwall!$AP97:$AZ97,0)","v":{"$error":"#N/A"}},{"$f":"MATCH(AB$3,Millwall!$AP97:$AZ97,0)","v":{"$error":"#N/A"}},{"$f":"MATCH(AC$3,Millwall!$AP97:$AZ97,0)","v":{"$error":"#N/A"}},{"$f":"MATCH(AD$3,Millwall!$AP97:$AZ97,0)","v":5},{"$f":"MATCH(AE$3,Millwall!$AP97:$AZ97,0)","v":2},{"$f":"MATCH(AF$3,Millwall!$AP97:$AZ97,0)","v":1},{"$f":"MATCH(AG$3,Millwall!$AP97:$AZ97,0)","v":9},{"$f":"MATCH(AH$3,Millwall!$AP97:$AZ97,0)","v":{"$error":"#N/A"}},{"$f":"MATCH(AI$3,Millwall!$AP97:$AZ97,0)","v":{"$error":"#N/A"}},{"$f":"MATCH(AJ$3,Millwall!$AP97:$AZ97,0)","v":{"$error":"#N/A"}},{"$f":"MATCH(AK$3,Millwall!$AP97:$AZ97,0)","v":{"$error":"#N/A"}},{"$f":"MATCH(AL$3,Millwall!$AP97:$AZ97,0)","v":{"$error":"#N/A"}},{"$f":"MATCH(AM$3,Millwall!$AP97:$AZ97,0)","v":{"$error":"#N/A"}},{"$f":"MATCH(AN$3,Millwall!$AP97:$AZ97,0)","v":{"$error":"#N/A"}},{"$f":"MATCH(AO$3,Millwall!$AP97:$AZ97,0)","v":{"$error":"#N/A"}},{"$f":"MATCH(AP$3,Millwall!$AP97:$AZ97,0)","v":{"$error":"#N/A"}},{"$f":"MATCH(AQ$3,Millwall!$AP97:$AZ97,0)","v":{"$error":"#N/A"}},{"$f":"MATCH(AR$3,Millwall!$AP97:$AZ97,0)","v":{"$error":"#N/A"}}]
[null,null,null,21,null,{"$f":"Millwall!AI98","v":"1933-12-25"},null,{"$f":"Millwall!AK98","v":"Notts Co"},{"$f":"Millwall!AL98","v":"(A)"},{"$f":"Millwall!AO98","v":"W 1-0"},{"$f":"MATCH(K$3,Millwall!$AP98:$AZ98,0)","v":{"$error":"#N/A"}},{"$f":"MATCH(L$3,Millwall!$AP98:$AZ98,0)","v":7},{"$f":"MATCH(M$3,Millwall!$AP98:$AZ98,0)","v":{"$error":"#N/A"}},{"$f":"MATCH(N$3,Millwall!$AP98:$AZ98,0)","v":11},{"$f":"MATCH(O$3,Millwall!$AP98:$AZ98,0)","v":6},{"$f":"MATCH(P$3,Millwall!$AP98:$AZ98,0)","v":{"$error":"#N/A"}},{"$f":"MATCH(Q$3,Millwall!$AP98:$AZ98,0)","v":4},{"$f":"MATCH(R$3,Millwall!$AP98:$AZ98,0)","v":{"$error":"#N/A"}},{"$f":"MATCH(S$3,Millwall!$AP98:$AZ98,0)","v":{"$error":"#N/A"}},{"$f":"MATCH(T$3,Millwall!$AP98:$AZ98,0)","v":{"$error":"#N/A"}},{"$f":"MATCH(U$3,Millwall!$AP98:$AZ98,0)","v":{"$error":"#N/A"}},{"$f":"MATCH(V$3,Millwall!$AP98:$AZ98,0)","v":8},{"$f":"MATCH(W$3,Millwall!$AP98:$AZ98,0)","v":3},{"$f":"MATCH(X$3,Millwall!$AP98:$AZ98,0)","v":{"$error":"#N/A"}},{"$f":"MATCH(Y$3,Millwall!$AP98:$AZ98,0)","v":{"$error":"#N/A"}},{"$f":"MATCH(Z$3,Millwall!$AP98:$AZ98,0)","v":10},{"$f":"MATCH(AA$3,Millwall!$AP98:$AZ98,0)","v":{"$error":"#N/A"}},{"$f":"MATCH(AB$3,Millwall!$AP98:$AZ98,0)","v":{"$error":"#N/A"}},{"$f":"MATCH(AC$3,Millwall!$AP98:$AZ98,0)","v":{"$error":"#N/A"}},{"$f":"MATCH(AD$3,Millwall!$AP98:$AZ98,0)","v":5},{"$f":"MATCH(AE$3,Millwall!$AP98:$AZ98,0)","v":2},{"$f":"MATCH(AF$3,Millwall!$AP98:$AZ98,0)","v":1},{"$f":"MATCH(AG$3,Millwall!$AP98:$AZ98,0)","v":9},{"$f":"MATCH(AH$3,Millwall!$AP98:$AZ98,0)","v":{"$error":"#N/A"}},{"$f":"MATCH(AI$3,Millwall!$AP98:$AZ98,0)","v":{"$error":"#N/A"}},{"$f":"MATCH(AJ$3,Millwall!$AP98:$AZ98,0)","v":{"$error":"#N/A"}},{"$f":"MATCH(AK$3,Millwall!$AP98:$AZ98,0)","v":{"$error":"#N/A"}},{"$f":"MATCH(AL$3,Millwall!$AP98:$AZ98,0)","v":{"$error":"#N/A"}},{"$f":"MATCH(AM$3,Millwall!$AP98:$AZ98,0)","v":{"$error":"#N/A"}},{"$f":"MATCH(AN$3,Millwall!$AP98:$AZ98,0)","v":{"$error":"#N/A"}},{"$f":"MATCH(AO$3,Millwall!$AP98:$AZ98,0)","v":{"$error":"#N/A"}},{"$f":"MATCH(AP$3,Millwall!$AP98:$AZ98,0)","v":{"$error":"#N/A"}},{"$f":"MATCH(AQ$3,Millwall!$AP98:$AZ98,0)","v":{"$error":"#N/A"}},{"$f":"MATCH(AR$3,Millwall!$AP98:$AZ98,0)","v":{"$error":"#N/A"}}]
[null,null,null,22,null,{"$f":"Millwall!AI99","v":"1933-12-26"},null,{"$f":"Millwall!AK99","v":"Notts Co"},{"$f":"Millwall!AL99","v":"(H)"},{"$f":"Millwall!AO99","v":"W 3-2"},{"$f":"MATCH(K$3,Millwall!$AP99:$AZ99,0)","v":{"$error":"#N/A"}},{"$f":"MATCH(L$3,Millwall!$AP99:$AZ99,0)","v":7},{"$f":"MATCH(M$3,Millwall!$AP99:$AZ99,0)","v":{"$error":"#N/A"}},{"$f":"MATCH(N$3,Millwall!$AP99:$AZ99,0)","v":11},{"$f":"MATCH(O$3,Millwall!$AP99:$AZ99,0)","v":6},{"$f":"MATCH(P$3,Millwall!$AP99:$AZ99,0)","v":{"$error":"#N/A"}},{"$f":"MATCH(Q$3,Millwall!$AP99:$AZ99,0)","v":4},{"$f":"MATCH(R$3,Millwall!$AP99:$AZ99,0)","v":{"$error":"#N/A"}},{"$f":"MATCH(S$3,Millwall!$AP99:$AZ99,0)","v":{"$error":"#N/A"}},{"$f":"MATCH(T$3,Millwall!$AP99:$AZ99,0)","v":{"$error":"#N/A"}},{"$f":"MATCH(U$3,Millwall!$AP99:$AZ99,0)","v":{"$error":"#N/A"}},{"$f":"MATCH(V$3,Millwall!$AP99:$AZ99,0)","v":8},{"$f":"MATCH(W$3,Millwall!$AP99:$AZ99,0)","v":3},{"$f":"MATCH(X$3,Millwall!$AP99:$AZ99,0)","v":{"$error":"#N/A"}},{"$f":"MATCH(Y$3,Millwall!$AP99:$AZ99,0)","v":{"$error":"#N/A"}},{"$f":"MATCH(Z$3,Millwall!$AP99:$AZ99,0)","v":10},{"$f":"MATCH(AA$3,Millwall!$AP99:$AZ99,0)","v":{"$error":"#N/A"}},{"$f":"MATCH(AB$3,Millwall!$AP99:$AZ99,0)","v":{"$error":"#N/A"}},{"$f":"MATCH(AC$3,Millwall!$AP99:$AZ99,0)","v":{"$error":"#N/A"}},{"$f":"MATCH(AD$3,Millwall!$AP99:$AZ99,0)","v":5},{"$f":"MATCH(AE$3,Millwall!$AP99:$AZ99,0)","v":2},{"$f":"MATCH(AF$3,Millwall!$AP99:$AZ99,0)","v":{"$error":"#N/A"}},{"$f":"MATCH(AG$3,Millwall!$AP99:$AZ99,0)","v":9},{"$f":"MATCH(AH$3,Millwall!$AP99:$AZ99,0)","v":1},{"$f":"MATCH(AI$3,Millwall!$AP99:$AZ99,0)","v":{"$error":"#N/A"}},{"$f":"MATCH(AJ$3,Millwall!$AP99:$AZ99,0)","v":{"$error":"#N/A"}},{"$f":"MATCH(AK$3,Millwall!$AP99:$AZ99,0)","v":{"$error":"#N/A"}},{"$f":"MATCH(AL$3,Millwall!$AP99:$AZ99,0)","v":{"$error":"#N/A"}},{"$f":"MATCH(AM$3,Millwall!$AP99:$AZ99,0)","v":{"$error":"#N/A"}},{"$f":"MATCH(AN$3,Millwall!$AP99:$AZ99,0)","v":{"$error":"#N/A"}},{"$f":"MATCH(AO$3,Millwall!$AP99:$AZ99,0)","v":{"$error":"#N/A"}},{"$f":"MATCH(AP$3,Millwall!$AP99:$AZ99,0)","v":{"$error":"#N/A"}},{"$f":"MATCH(AQ$3,Millwall!$AP99:$AZ99,0)","v":{"$error":"#N/A"}},{"$f":"MATCH(AR$3,Millwall!$AP99:$AZ99,0)","v":{"$error":"#N/A"}}]
[null,null,null,23,null,{"$f":"Millwall!AI100","v":"1933-12-30"},null,{"$f":"Millwall!AK100","v":"Lincoln"},{"$f":"Millwall!AL100","v":"(H)"},{"$f":"Millwall!AO100","v":"W 4-1"},{"$f":"MATCH(K$3,Millwall!$AP100:$AZ100,0)","v":{"$error":"#N/A"}},{"$f":"MATCH(L$3,Millwall!$AP100:$AZ100,0)","v":7},{"$f":"MATCH(M$3,Millwall!$AP100:$AZ100,0)","v":{"$error":"#N/A"}},{"$f":"MATCH(N$3,Millwall!$AP100:$AZ100,0)","v":11},{"$f":"MATCH(O$3,Millwall!$AP100:$AZ100,0)","v":6},{"$f":"MATCH(P$3,Millwall!$AP100:$AZ100,0)","v":{"$error":"#N/A"}},{"$f":"MATCH(Q$3,Millwall!$AP100:$AZ100,0)","v":4},{"$f":"MATCH(R$3,Millwall!$AP100:$AZ100,0)","v":{"$error":"#N/A"}},{"$f":"MATCH(S$3,Millwall!$AP100:$AZ100,0)","v":{"$error":"#N/A"}},{"$f":"MATCH(T$3,Millwall!$AP100:$AZ100,0)","v":{"$error":"#N/A"}},{"$f":"MATCH(U$3,Millwall!$AP100:$AZ100,0)","v":{"$error":"#N/A"}},{"$f":"MATCH(V$3,Millwall!$AP100:$AZ100,0)","v":8},{"$f":"MATCH(W$3,Millwall!$AP100:$AZ100,0)","v":3},{"$f":"MATCH(X$3,Millwall!$AP100:$AZ100,0)","v":{"$error":"#N/A"}},{"$f":"MATCH(Y$3,Millwall!$AP100:$AZ100,0)","v":{"$error":"#N/A"}},{"$f":"MATCH(Z$3,Millwall!$AP100:$AZ100,0)","v":10},{"$f":"MATCH(AA$3,Millwall!$AP100:$AZ100,0)","v":{"$error":"#N/A"}},{"$f":"MATCH(AB$3,Millwall!$AP100:$AZ100,0)","v":{"$error":"#N/A"}},{"$f":"MATCH(AC$3,Millwall!$AP100:$AZ100,0)","v":{"$error":"#N/A"}},{"$f":"MATCH(AD$3,Millwall!$AP100:$AZ100,0)","v":5},{"$f":"MATCH(AE$3,Millwall!$AP100:$AZ100,0)","v":2},{"$f":"MATCH(AF$3,Millwall!$AP100:$AZ100,0)","v":1},{"$f":"MATCH(AG$3,Millwall!$AP100:$AZ100,0)","v":9},{"$f":"MATCH(AH$3,Millwall!$AP100:$AZ100,0)","v":{"$error":"#N/A"}},{"$f":"MATCH(AI$3,Millwall!$AP100:$AZ100,0)","v":{"$error":"#N/A"}},{"$f":"MATCH(AJ$3,Millwall!$AP100:$AZ100,0)","v":{"$error":"#N/A"}},{"$f":"MATCH(AK$3,Millwall!$AP100:$AZ100,0)","v":{"$error":"#N/A"}},{"$f":"MATCH(AL$3,Millwall!$AP100:$AZ100,0)","v":{"$error":"#N/A"}},{"$f":"MATCH(AM$3,Millwall!$AP100:$AZ100,0)","v":{"$error":"#N/A"}},{"$f":"MATCH(AN$3,Millwall!$AP100:$AZ100,0)","v":{"$error":"#N/A"}},{"$f":"MATCH(AO$3,Millwall!$AP100:$AZ100,0)","v":{"$error":"#N/A"}},{"$f":"MATCH(AP$3,Millwall!$AP100:$AZ100,0)","v":{"$error":"#N/A"}},{"$f":"MATCH(AQ$3,Millwall!$AP100:$AZ100,0)","v":{"$error":"#N/A"}},{"$f":"MATCH(AR$3,Millwall!$AP100:$AZ100,0)","v":{"$error":"#N/A"}}]
[null,null,null,24,null,{"$f":"Millwall!AI101","v":"1934-01-06"},null,{"$f":"Millwall!AK101","v":"Bury"},{"$f":"Millwall!AL101","v":"(A)"},{"$f":"Millwall!AO101","v":"L 1-5"},{"$f":"MATCH(K$3,Millwall!$AP101:$AZ101,0)","v":{"$error":"#N/A"}},{"$f":"MATCH(L$3,Millwall!$AP101:$AZ101,0)","v":7},{"$f":"MATCH(M$3,Millwall!$AP101:$AZ101,0)","v":{"$error":"#N/A"}},{"$f":"MATCH(N$3,Millwall!$AP101:$AZ101,0)","v":11},{"$f":"MATCH(O$3,Millwall!$AP101:$AZ101,0)","v":6},{"$f":"MATCH(P$3,Millwall!$AP101:$AZ101,0)","v":{"$error":"#N/A"}},{"$f":"MATCH(Q$3,Millwall!$AP101:$AZ101,0)","v":4},{"$f":"MATCH(R$3,Millwall!$AP101:$AZ101,0)","v":{"$error":"#N/A"}},{"$f":"MATCH(S$3,Millwall!$AP101:$AZ101,0)","v":{"$error":"#N/A"}},{"$f":"MATCH(T$3,Millwall!$AP101:$AZ101,0)","v":{"$error":"#N/A"}},{"$f":"MATCH(U$3,Millwall!$AP101:$AZ101,0)","v":{"$error":"#N/A"}},{"$f":"MATCH(V$3,Millwall!$AP101:$AZ101,0)","v":8},{"$f":"MATCH(W$3,Millwall!$AP101:$AZ101,0)","v":{"$error":"#N/A"}},{"$f":"MATCH(X$3,Millwall!$AP101:$AZ101,0)","v":{"$error":"#N/A"}},{"$f":"MATCH(Y$3,Millwall!$AP101:$AZ101,0)","v":{"$error":"#N/A"}},{"$f":"MATCH(Z$3,Millwall!$AP101:$AZ101,0)","v":10},{"$f":"MATCH(AA$3,Millwall!$AP101:$AZ101,0)","v":{"$error":"#N/A"}},{"$f":"MATCH(AB$3,Millwall!$AP101:$AZ101,0)","v":{"$error":"#N/A"}},{"$f":"MATCH(AC$3,Millwall!$AP101:$AZ101,0)","v":2},{"$f":"MATCH(AD$3,Millwall!$AP101:$AZ101,0)","v":5},{"$f":"MATCH(AE$3,Millwall!$AP101:$AZ101,0)","v":3},{"$f":"MATCH(AF$3,Millwall!$AP101:$AZ101,0)","v":1},{"$f":"MATCH(AG$3,Millwall!$AP101:$AZ101,0)","v":9},{"$f":"MATCH(AH$3,Millwall!$AP101:$AZ101,0)","v":{"$error":"#N/A"}},{"$f":"MATCH(AI$3,Millwall!$AP101:$AZ101,0)","v":{"$error":"#N/A"}},{"$f":"MATCH(AJ$3,Millwall!$AP101:$AZ101,0)","v":{"$error":"#N/A"}},{"$f":"MATCH(AK$3,Millwall!$AP101:$AZ101,0)","v":{"$error":"#N/A"}},{"$f":"MATCH(AL$3,Millwall!$AP101:$AZ101,0)","v":{"$error":"#N/A"}},{"$f":"MATCH(AM$3,Millwall!$AP101:$AZ101,0)","v":{"$error":"#N/A"}},{"$f":"MATCH(AN$3,Millwall!$AP101:$AZ101,0)","v":{"$error":"#N/A"}},{"$f":"MATCH(AO$3,Millwall!$AP101:$AZ101,0)","v":{"$error":"#N/A"}},{"$f":"MATCH(AP$3,Millwall!$AP101:$AZ101,0)","v":{"$error":"#N/A"}},{"$f":"MATCH(AQ$3,Millwall!$AP101:$AZ101,0)","v":{"$error":"#N/A"}},{"$f":"MATCH(AR$3,Millwall!$AP101:$AZ101,0)","v":{"$error":"#N/A"}}]
[null,null,null,25,null,{"$f":"Millwall!AI102","v":"1934-01-20"},null,{"$f":"Millwall!AK102","v":"Hull"},{"$f":"Millwall!AL102","v":"(H)"},{"$f":"Millwall!AO102","v":"W 2-0"},{"$f":"MATCH(K$3,Millwall!$AP102:$AZ102,0)","v":{"$error":"#N/A"}},{"$f":"MATCH(L$3,Millwall!$AP102:$AZ102,0)","v":7},{"$f":"MATCH(M$3,Millwall!$AP102:$AZ102,0)","v":{"$error":"#N/A"}},{"$f":"MATCH(N$3,Millwall!$AP102:$AZ102,0)","v":11},{"$f":"MATCH(O$3,Millwall!$AP102:$AZ102,0)","v":6},{"$f":"MATCH(P$3,Millwall!$AP102:$AZ102,0)","v":{"$error":"#N/A"}},{"$f":"MATCH(Q$3,Millwall!$AP102:$AZ102,0)","v":{"$error":"#N/A"}},{"$f":"MATCH(R$3,Millwall!$AP102:$AZ102,0)","v":4},{"$f":"MATCH(S$3,Millwall!$AP102:$AZ102,0)","v":{"$error":"#N/A"}},{"$f":"MATCH(T$3,Millwall!$AP102:$AZ102,0)","v":{"$error":"#N/A"}},{"$f":"MATCH(U$3,Millwall!$AP102:$AZ102,0)","v":{"$error":"#N/A"}},{"$f":"MATCH(V$3,Millwall!$AP102:$AZ102,0)","v":8},{"$f":"MATCH(W$3,Millwall!$AP102:$AZ102,0)","v":3},{"$f":"MATCH(X$3,Millwall!$AP102:$AZ102,0)","v":{"$error":"#N/A"}},{"$f":"MATCH(Y$3,Millwall!$AP102:$AZ102,0)","v":{"$error":"#N/A"}},{"$f":"MATCH(Z$3,Millwall!$AP102:$AZ102,0)","v":10},{"$f":"MATCH(AA$3,Millwall!$AP102:$AZ102,0)","v":{"$error":"#N/A"}},{"$f":"MATCH(AB$3,Millwall!$AP102:$AZ102,0)","v":{"$error":"#N/A"}},{"$f":"MATCH(AC$3,Millwall!$AP102:$AZ102,0)","v":{"$error":"#N/A"}},{"$f":"MATCH(AD$3,Millwall!$AP102:$AZ102,0)","v":5},{"$f":"MATCH(AE$3,Millwall!$AP102:$AZ102,0)","v":2},{"$f":"MATCH(AF$3,Millwall!$AP102:$AZ102,0)","v":1},{"$f":"MATCH(AG$3,Millwall!$AP102:$AZ102,0)","v":9},{"$f":"MATCH(AH$3,Millwall!$AP102:$AZ102,0)","v":{"$error":"#N/A"}},{"$f":"MATCH(AI$3,Millwall!$AP102:$AZ102,0)","v":{"$error":"#N/A"}},{"$f":"MATCH(AJ$3,Millwall!$AP102:$AZ102,0)","v":{"$error":"#N/A"}},{"$f":"MATCH(AK$3,Millwall!$AP102:$AZ102,0)","v":{"$error":"#N/A"}},{"$f":"MATCH(AL$3,Millwall!$AP102:$AZ102,0)","v":{"$error":"#N/A"}},{"$f":"MATCH(AM$3,Millwall!$AP102:$AZ102,0)","v":{"$error":"#N/A"}},{"$f":"MATCH(AN$3,Millwall!$AP102:$AZ102,0)","v":{"$error":"#N/A"}},{"$f":"MATCH(AO$3,Millwall!$AP102:$AZ102,0)","v":{"$error":"#N/A"}},{"$f":"MATCH(AP$3,Millwall!$AP102:$AZ102,0)","v":{"$error":"#N/A"}},{"$f":"MATCH(AQ$3,Millwall!$AP102:$AZ102,0)","v":{"$error":"#N/A"}},{"$f":"MATCH(AR$3,Millwall!$AP102:$AZ102,0)","v":{"$error":"#N/A"}}]
[null,null,null,26,null,{"$f":"Millwall!AI103","v":"1934-01-29"},null,{"$f":"Millwall!AK103","v":"Fulham"},{"$f":"Millwall!AL103","v":"(A)"},{"$f":"Millwall!AO103","v":"L 0-2"},{"$f":"MATCH(K$3,Millwall!$AP103:$AZ103,0)","v":7},{"$f":"MATCH(L$3,Millwall!$AP103:$AZ103,0)","v":{"$error":"#N/A"}},{"$f":"MATCH(M$3,Millwall!$AP103:$AZ103,0)","v":{"$error":"#N/A"}},{"$f":"MATCH(N$3,Millwall!$AP103:$AZ103,0)","v":11},{"$f":"MATCH(O$3,Millwall!$AP103:$AZ103,0)","v":6},{"$f":"MATCH(P$3,Millwall!$AP103:$AZ103,0)","v":{"$error":"#N/A"}},{"$f":"MATCH(Q$3,Millwall!$AP103:$AZ103,0)","v":{"$error":"#N/A"}},{"$f":"MATCH(R$3,Millwall!$AP103:$AZ103,0)","v":4},{"$f":"MATCH(S$3,Millwall!$AP103:$AZ103,0)","v":{"$error":"#N/A"}},{"$f":"MATCH(T$3,Millwall!$AP103:$AZ103,0)","v":{"$error":"#N/A"}},{"$f":"MATCH(U$3,Millwall!$AP103:$AZ103,0)","v":{"$error":"#N/A"}},{"$f":"MATCH(V$3,Millwall!$AP103:$AZ103,0)","v":8},{"$f":"MATCH(W$3,Millwall!$AP103:$AZ103,0)","v":3},{"$f":"MATCH(X$3,Millwall!$AP103:$AZ103,0)","v":{"$error":"#N/A"}},{"$f":"MATCH(Y$3,Millwall!$AP103:$AZ103,0)","v":9},{"$f":"MATCH(Z$3,Millwall!$AP103:$AZ103,0)","v":10},{"$f":"MATCH(AA$3,Millwall!$AP103:$AZ103,0)","v":{"$error":"#N/A"}},{"$f":"MATCH(AB$3,Millwall!$AP103:$AZ103,0)","v":{"$error":"#N/A"}},{"$f":"MATCH(AC$3,Millwall!$AP103:$AZ103,0)","v":{"$error":"#N/A"}},{"$f":"MATCH(AD$3,Millwall!$AP103:$AZ103,0)","v":5},{"$f":"MATCH(AE$3,Millwall!$AP103:$AZ103,0)","v":2},{"$f":"MATCH(AF$3,Millwall!$AP103:$AZ103,0)","v":1},{"$f":"MATCH(AG$3,Millwall!$AP103:$AZ103,0)","v":{"$error":"#N/A"}},{"$f":"MATCH(AH$3,Millwall!$AP103:$AZ103,0)","v":{"$error":"#N/A"}},{"$f":"MATCH(AI$3,Millwall!$AP103:$AZ103,0)","v":{"$error":"#N/A"}},{"$f":"MATCH(AJ$3,Millwall!$AP103:$AZ103,0)","v":{"$error":"#N/A"}},{"$f":"MATCH(AK$3,Millwall!$AP103:$AZ103,0)","v":{"$error":"#N/A"}},{"$f":"MATCH(AL$3,Millwall!$AP103:$AZ103,0)","v":{"$error":"#N/A"}},{"$f":"MATCH(AM$3,Millwall!$AP103:$AZ103,0)","v":{"$error":"#N/A"}},{"$f":"MATCH(AN$3,Millwall!$AP103:$AZ103,0)","v":{"$error":"#N/A"}},{"$f":"MATCH(AO$3,Millwall!$AP103:$AZ103,0)","v":{"$error":"#N/A"}},{"$f":"MATCH(AP$3,Millwall!$AP103:$AZ103,0)","v":{"$error":"#N/A"}},{"$f":"MATCH(AQ$3,Millwall!$AP103:$AZ103,0)","v":{"$error":"#N/A"}},{"$f":"MATCH(AR$3,Millwall!$AP103:$AZ103,0)","v":{"$error":"#N/A"}}]
[null,null,null,27,null,{"$f":"Millwall!AI104","v":"1934-02-10"},null,{"$f":"Millwall!AK104","v":"Blackpool"},{"$f":"Millwall!AL104","v":"(A)"},{"$f":"Millwall!AO104","v":"D 2-2"},{"$f":"MATCH(K$3,Millwall!$AP104:$AZ104,0)","v":7},{"$f":"MATCH(L$3,Millwall!$AP104:$AZ104,0)","v":{"$error":"#N/A"}},{"$f":"MATCH(M$3,Millwall!$AP104:$AZ104,0)","v":{"$error":"#N/A"}},{"$f":"MATCH(N$3,Millwall!$AP104:$AZ104,0)","v":11},{"$f":"MATCH(O$3,Millwall!$AP104:$AZ104,0)","v":6},{"$f":"MATCH(P$3,Millwall!$AP104:$AZ104,0)","v":{"$error":"#N/A"}},{"$f":"MATCH(Q$3,Millwall!$AP104:$AZ104,0)","v":{"$error":"#N/A"}},{"$f":"MATCH(R$3,Millwall!$AP104:$AZ104,0)","v":4},{"$f":"MATCH(S$3,Millwall!$AP104:$AZ104,0)","v":9},{"$f":"MATCH(T$3,Millwall!$AP104:$AZ104,0)","v":{"$error":"#N/A"}},{"$f":"MATCH(U$3,Millwall!$AP104:$AZ104,0)","v":{"$error":"#N/A"}},{"$f":"MATCH(V$3,Millwall!$AP104:$AZ104,0)","v":8},{"$f":"MATCH(W$3,Millwall!$AP104:$AZ104,0)","v":3},{"$f":"MATCH(X$3,Millwall!$AP104:$AZ104,0)","v":{"$error":"#N/A"}},{"$f":"MATCH(Y$3,Millwall!$AP104:$AZ104,0)","v":{"$error":"#N/A"}},{"$f":"MATCH(Z$3,Millwall!$AP104:$AZ104,0)","v":10},{"$f":"MATCH(AA$3,Millwall!$AP104:$AZ104,0)","v":{"$error":"#N/A"}},{"$f":"MATCH(AB$3,Millwall!$AP104:$AZ104,0)","v":{"$error":"#N/A"}},{"$f":"MATCH(AC$3,Millwall!$AP104:$AZ104,0)","v":{"$error":"#N/A"}},{"$f":"MATCH(AD$3,Millwall!$AP104:$AZ104,0)","v":5},{"$f":"MATCH(AE$3,Millwall!$AP104:$AZ104,0)","v":2},{"$f":"MATCH(AF$3,Millwall!$AP104:$AZ104,0)","v":1},{"$f":"MATCH(AG$3,Millwall!$AP104:$AZ104,0)","v":{"$error":"#N/A"}},{"$f":"MATCH(AH$3,Millwall!$AP104:$AZ104,0)","v":{"$error":"#N/A"}},{"$f":"MATCH(AI$3,Millwall!$AP104:$AZ104,0)","v":{"$error":"#N/A"}},{"$f":"MATCH(AJ$3,Millwall!$AP104:$AZ104,0)","v":{"$error":"#N/A"}},{"$f":"MATCH(AK$3,Millwall!$AP104:$AZ104,0)","v":{"$error":"#N/A"}},{"$f":"MATCH(AL$3,Millwall!$AP104:$AZ104,0)","v":{"$error":"#N/A"}},{"$f":"MATCH(AM$3,Millwall!$AP104:$AZ104,0)","v":{"$error":"#N/A"}},{"$f":"MATCH(AN$3,Millwall!$AP104:$AZ104,0)","v":{"$error":"#N/A"}},{"$f":"MATCH(AO$3,Millwall!$AP104:$AZ104,0)","v":{"$error":"#N/A"}},{"$f":"MATCH(AP$3,Millwall!$AP104:$AZ104,0)","v":{"$error":"#N/A"}},{"$f":"MATCH(AQ$3,Millwall!$AP104:$AZ104,0)","v":{"$error":"#N/A"}},{"$f":"MATCH(AR$3,Millwall!$AP104:$AZ104,0)","v":{"$error":"#N/A"}}]
[null,null,null,28,null,{"$f":"Millwall!AI105","v":"1934-02-17"},null,{"$f":"Millwall!AK105","v":"Bradford City"},{"$f":"Millwall!AL105","v":"(H)"},{"$f":"Millwall!AO105","v":"D 1-1"},{"$f":"MATCH(K$3,Millwall!$AP105:$AZ105,0)","v":7},{"$f":"MATCH(L$3,Millwall!$AP105:$AZ105,0)","v":{"$error":"#N/A"}},{"$f":"MATCH(M$3,Millwall!$AP105:$AZ105,0)","v":{"$error":"#N/A"}},{"$f":"MATCH(N$3,Millwall!$AP105:$AZ105,0)","v":11},{"$f":"MATCH(O$3,Millwall!$AP105:$AZ105,0)","v":6},{"$f":"MATCH(P$3,Millwall!$AP105:$AZ105,0)","v":{"$error":"#N/A"}},{"$f":"MATCH(Q$3,Millwall!$AP105:$AZ105,0)","v":{"$error":"#N/A"}},{"$f":"MATCH(R$3,Millwall!$AP105:$AZ105,0)","v":4},{"$f":"MATCH(S$3,Millwall!$AP105:$AZ105,0)","v":9},{"$f":"MATCH(T$3,Millwall!$AP105:$AZ105,0)","v":{"$error":"#N/A"}},{"$f":"MATCH(U$3,Millwall!$AP105:$AZ105,0)","v":{"$error":"#N/A"}},{"$f":"MATCH(V$3,Millwall!$AP105:$AZ105,0)","v":8},{"$f":"MATCH(W$3,Millwall!$AP105:$AZ105,0)","v":3},{"$f":"MATCH(X$3,Millwall!$AP105:$AZ105,0)","v":{"$error":"#N/A"}},{"$f":"MATCH(Y$3,Millwall!$AP105:$AZ105,0)","v":{"$error":"#N/A"}},{"$f":"MATCH(Z$3,Millwall!$AP105:$AZ105,0)","v":10},{"$f":"MATCH(AA$3,Millwall!$AP105:$AZ105,0)","v":{"$error":"#N/A"}},{"$f":"MATCH(AB$3,Millwall!$AP105:$AZ105,0)","v":{"$error":"#N/A"}},{"$f":"MATCH(AC$3,Millwall!$AP105:$AZ105,0)","v":{"$error":"#N/A"}},{"$f":"MATCH(AD$3,Millwall!$AP105:$AZ105,0)","v":5},{"$f":"MATCH(AE$3,Millwall!$AP105:$AZ105,0)","v":2},{"$f":"MATCH(AF$3,Millwall!$AP105:$AZ105,0)","v":1},{"$f":"MATCH(AG$3,Millwall!$AP105:$AZ105,0)","v":{"$error":"#N/A"}},{"$f":"MATCH(AH$3,Millwall!$AP105:$AZ105,0)","v":{"$error":"#N/A"}},{"$f":"MATCH(AI$3,Millwall!$AP105:$AZ105,0)","v":{"$error":"#N/A"}},{"$f":"MATCH(AJ$3,Millwall!$AP105:$AZ105,0)","v":{"$error":"#N/A"}},{"$f":"MATCH(AK$3,Millwall!$AP105:$AZ105,0)","v":{"$error":"#N/A"}},{"$f":"MATCH(AL$3,Millwall!$AP105:$AZ105,0)","v":{"$error":"#N/A"}},{"$f":"MATCH(AM$3,Millwall!$AP105:$AZ105,0)","v":{"$error":"#N/A"}},{"$f":"MATCH(AN$3,Millwall!$AP105:$AZ105,0)","v":{"$error":"#N/A"}},{"$f":"MATCH(AO$3,Millwall!$AP105:$AZ105,0)","v":{"$error":"#N/A"}},{"$f":"MATCH(AP$3,Millwall!$AP105:$AZ105,0)","v":{"$error":"#N/A"}},{"$f":"MATCH(AQ$3,Millwall!$AP105:$AZ105,0)","v":{"$error":"#N/A"}},{"$f":"MATCH(AR$3,Millwall!$AP105:$AZ105,0)","v":{"$error":"#N/A"}}]
[null,null,null,29,null,{"$f":"Millwall!AI106","v":"1934-02-24"},null,{"$f":"Millwall!AK106","v":"Port Vale"},{"$f":"Millwall!AL106","v":"(A)"},{"$f":"Millwall!AO106","v":"L 1-5"},{"$f":"MATCH(K$3,Millwall!$AP106:$AZ106,0)","v":7},{"$f":"MATCH(L$3,Millwall!$AP106:$AZ106,0)","v":{"$error":"#N/A"}},{"$f":"MATCH(M$3,Millwall!$AP106:$AZ106,0)","v":{"$error":"#N/A"}},{"$f":"MATCH(N$3,Millwall!$AP106:$AZ106,0)","v":11},{"$f":"MATCH(O$3,Millwall!$AP106:$AZ106,0)","v":6},{"$f":"MATCH(P$3,Millwall!$AP106:$AZ106,0)","v":{"$error":"#N/A"}},{"$f":"MATCH(Q$3,Millwall!$AP106:$AZ106,0)","v":{"$error":"#N/A"}},{"$f":"MATCH(R$3,Millwall!$AP106:$AZ106,0)","v":{"$error":"#N/A"}},{"$f":"MATCH(S$3,Millwall!$AP106:$AZ106,0)","v":9},{"$f":"MATCH(T$3,Millwall!$AP106:$AZ106,0)","v":{"$error":"#N/A"}},{"$f":"MATCH(U$3,Millwall!$AP106:$AZ106,0)","v":4},{"$f":"MATCH(V$3,Millwall!$AP106:$AZ106,0)","v":8},{"$f":"MATCH(W$3,Millwall!$AP106:$AZ106,0)","v":{"$error":"#N/A"}},{"$f":"MATCH(X$3,Millwall!$AP106:$AZ106,0)","v":{"$error":"#N/A"}},{"$f":"MATCH(Y$3,Millwall!$AP106:$AZ106,0)","v":{"$error":"#N/A"}},{"$f":"MATCH(Z$3,Millwall!$AP106:$AZ106,0)","v":10},{"$f":"MATCH(AA$3,Millwall!$AP106:$AZ106,0)","v":{"$error":"#N/A"}},{"$f":"MATCH(AB$3,Millwall!$AP106:$AZ106,0)","v":3},{"$f":"MATCH(AC$3,Millwall!$AP106:$AZ106,0)","v":{"$error":"#N/A"}},{"$f":"MATCH(AD$3,Millwall!$AP106:$AZ106,0)","v":5},{"$f":"MATCH(AE$3,Millwall!$AP106:$AZ106,0)","v":2},{"$f":"MATCH(AF$3,Millwall!$AP106:$AZ106,0)","v":1},{"$f":"MATCH(AG$3,Millwall!$AP106:$AZ106,0)","v":{"$error":"#N/A"}},{"$f":"MATCH(AH$3,Millwall!$AP106:$AZ106,0)","v":{"$error":"#N/A"}},{"$f":"MATCH(AI$3,Millwall!$AP106:$AZ106,0)","v":{"$error":"#N/A"}},{"$f":"MATCH(AJ$3,Millwall!$AP106:$AZ106,0)","v":{"$error":"#N/A"}},{"$f":"MATCH(AK$3,Millwall!$AP106:$AZ106,0)","v":{"$error":"#N/A"}},{"$f":"MATCH(AL$3,Millwall!$AP106:$AZ106,0)","v":{"$error":"#N/A"}},{"$f":"MATCH(AM$3,Millwall!$AP106:$AZ106,0)","v":{"$error":"#N/A"}},{"$f":"MATCH(AN$3,Millwall!$AP106:$AZ106,0)","v":{"$error":"#N/A"}},{"$f":"MATCH(AO$3,Millwall!$AP106:$AZ106,0)","v":{"$error":"#N/A"}},{"$f":"MATCH(AP$3,Millwall!$AP106:$AZ106,0)","v":{"$error":"#N/A"}},{"$f":"MATCH(AQ$3,Millwall!$AP106:$AZ106,0)","v":{"$error":"#N/A"}},{"$f":"MATCH(AR$3,Millwall!$AP106:$AZ106,0)","v":{"$error":"#N/A"}}]
[null,null,null,30,null,{"$f":"Millwall!AI107","v":"1934-03-03"},null,{"$f":"Millwall!AK107","v":"West Ham"},{"$f":"Millwall!AL107","v":"(A)"},{"$f":"Millwall!AO107","v":"D 1-1"},{"$f":"MATCH(K$3,Millwall!$AP107:$AZ107,0)","v":7},{"$f":"MATCH(L$3,Millwall!$AP107:$AZ107,0)","v":{"$error":"#N/A"}},{"$f":"MATCH(M$3,Millwall!$AP107:$AZ107,0)","v":{"$error":"#N/A"}},{"$f":"MATCH(N$3,Millwall!$AP107:$AZ107,0)","v":11},{"$f":"MATCH(O$3,Millwall!$AP107:$AZ107,0)","v":6},{"$f":"MATCH(P$3,Millwall!$AP107:$AZ107,0)","v":{"$error":"#N/A"}},{"$f":"MATCH(Q$3,Millwall!$AP107:$AZ107,0)","v":5},{"$f":"MATCH(R$3,Millwall!$AP107:$AZ107,0)","v":{"$error":"#N/A"}},{"$f":"MATCH(S$3,Millwall!$AP107:$AZ107,0)","v":{"$error":"#N/A"}},{"$f":"MATCH(T$3,Millwall!$AP107:$AZ107,0)","v":{"$error":"#N/A"}},{"$f":"MATCH(U$3,Millwall!$AP107:$AZ107,0)","v":4},{"$f":"MATCH(V$3,Millwall!$AP107:$AZ107,0)","v":8},{"$f":"MATCH(W$3,Millwall!$AP107:$AZ107,0)","v":{"$error":"#N/A"}},{"$f":"MATCH(X$3,Millwall!$AP107:$AZ107,0)","v":{"$error":"#N/A"}},{"$f":"MATCH(Y$3,Millwall!$AP107:$AZ107,0)","v":{"$error":"#N/A"}},{"$f":"MATCH(Z$3,Millwall!$AP107:$AZ107,0)","v":10},{"$f":"MATCH(AA$3,Millwall!$AP107:$AZ107,0)","v":{"$error":"#N/A"}},{"$f":"MATCH(AB$3,Millwall!$AP107:$AZ107,0)","v":{"$error":"#N/A"}},{"$f":"MATCH(AC$3,Millwall!$AP107:$AZ107,0)","v":{"$error":"#N/A"}},{"$f":"MATCH(AD$3,Millwall!$AP107:$AZ107,0)","v":3},{"$f":"MATCH(AE$3,Millwall!$AP107:$AZ107,0)","v":2},{"$f":"MATCH(AF$3,Millwall!$AP107:$AZ107,0)","v":{"$error":"#N/A"}},{"$f":"MATCH(AG$3,Millwall!$AP107:$AZ107,0)","v":9},{"$f":"MATCH(AH$3,Millwall!$AP107:$AZ107,0)","v":1},{"$f":"MATCH(AI$3,Millwall!$AP107:$AZ107,0)","v":{"$error":"#N/A"}},{"$f":"MATCH(AJ$3,Millwall!$AP107:$AZ107,0)","v":{"$error":"#N/A"}},{"$f":"MATCH(AK$3,Millwall!$AP107:$AZ107,0)","v":{"$error":"#N/A"}},{"$f":"MATCH(AL$3,Millwall!$AP107:$AZ107,0)","v":{"$error":"#N/A"}},{"$f":"MATCH(AM$3,Millwall!$AP107:$AZ107,0)","v":{"$error":"#N/A"}},{"$f":"MATCH(AN$3,Millwall!$AP107:$AZ107,0)","v":{"$error":"#N/A"}},{"$f":"MATCH(AO$3,Millwall!$AP107:$AZ107,0)","v":{"$error":"#N/A"}},{"$f":"MATCH(AP$3,Millwall!$AP107:$AZ107,0)","v":{"$error":"#N/A"}},{"$f":"MATCH(AQ$3,Millwall!$AP107:$AZ107,0)","v":{"$error":"#N/A"}},{"$f":"MATCH(AR$3,Millwall!$AP107:$AZ107,0)","v":{"$error":"#N/A"}}]
[null,null,null,31,null,{"$f":"Millwall!AI108","v":"1934-03-10"},null,{"$f":"Millwall!AK108","v":"Nottm Forest"},{"$f":"Millwall!AL108","v":"(H)"},{"$f":"Millwall!AO108","v":"D 0-0"},{"$f":"MATCH(K$3,Millwall!$AP108:$AZ108,0)","v":9},{"$f":"MATCH(L$3,Millwall!$AP108:$AZ108,0)","v":{"$error":"#N/A"}},{"$f":"MATCH(M$3,Millwall!$AP108:$AZ108,0)","v":{"$error":"#N/A"}},{"$f":"MATCH(N$3,Millwall!$AP108:$AZ108,0)","v":11},{"$f":"MATCH(O$3,Millwall!$AP108:$AZ108,0)","v":6},{"$f":"MATCH(P$3,Millwall!$AP108:$AZ108,0)","v":{"$error":"#N/A"}},{"$f":"MATCH(Q$3,Millwall!$AP108:$AZ108,0)","v":5},{"$f":"MATCH(R$3,Millwall!$AP108:$AZ108,0)","v":{"$error":"#N/A"}},{"$f":"MATCH(S$3,Millwall!$AP108:$AZ108,0)","v":7},{"$f":"MATCH(T$3,Millwall!$AP108:$AZ108,0)","v":{"$error":"#N/A"}},{"$f":"MATCH(U$3,Millwall!$AP108:$AZ108,0)","v":4},{"$f":"MATCH(V$3,Millwall!$AP108:$AZ108,0)","v":8},{"$f":"MATCH(W$3,Millwall!$AP108:$AZ108,0)","v":3},{"$f":"MATCH(X$3,Millwall!$AP108:$AZ108,0)","v":{"$error":"#N/A"}},{"$f":"MATCH(Y$3,Millwall!$AP108:$AZ108,0)","v":{"$error":"#N/A"}},{"$f":"MATCH(Z$3,Millwall!$AP108:$AZ108,0)","v":10},{"$f":"MATCH(AA$3,Millwall!$AP108:$AZ108,0)","v":{"$error":"#N/A"}},{"$f":"MATCH(AB$3,Millwall!$AP108:$AZ108,0)","v":{"$error":"#N/A"}},{"$f":"MATCH(AC$3,Millwall!$AP108:$AZ108,0)","v":{"$error":"#N/A"}},{"$f":"MATCH(AD$3,Millwall!$AP108:$AZ108,0)","v":{"$error":"#N/A"}},{"$f":"MATCH(AE$3,Millwall!$AP108:$AZ108,0)","v":2},{"$f":"MATCH(AF$3,Millwall!$AP108:$AZ108,0)","v":{"$error":"#N/A"}},{"$f":"MATCH(AG$3,Millwall!$AP108:$AZ108,0)","v":{"$error":"#N/A"}},{"$f":"MATCH(AH$3,Millwall!$AP108:$AZ108,0)","v":1},{"$f":"MATCH(AI$3,Millwall!$AP108:$AZ108,0)","v":{"$error":"#N/A"}},{"$f":"MATCH(AJ$3,Millwall!$AP108:$AZ108,0)","v":{"$error":"#N/A"}},{"$f":"MATCH(AK$3,Millwall!$AP108:$AZ108,0)","v":{"$error":"#N/A"}},{"$f":"MATCH(AL$3,Millwall!$AP108:$AZ108,0)","v":{"$error":"#N/A"}},{"$f":"MATCH(AM$3,Millwall!$AP108:$AZ108,0)","v":{"$error":"#N/A"}},{"$f":"MATCH(AN$3,Millwall!$AP108:$AZ108,0)","v":{"$error":"#N/A"}},{"$f":"MATCH(AO$3,Millwall!$AP108:$AZ108,0)","v":{"$error":"#N/A"}},{"$f":"MATCH(AP$3,Millwall!$AP108:$AZ108,0)","v":{"$error":"#N/A"}},{"$f":"MATCH(AQ$3,Millwall!$AP108:$AZ108,0)","v":{"$error":"#N/A"}},{"$f":"MATCH(AR$3,Millwall!$AP108:$AZ108,0)","v":{"$error":"#N/A"}}]
[null,null,null,32,null,{"$f":"Millwall!AI109","v":"1934-03-17"},null,{"$f":"Millwall!AK109","v":"Grimsby"},{"$f":"Millwall!AL109","v":"(A)"},{"$f":"Millwall!AO109","v":"L 2-5"},{"$f":"MATCH(K$3,Millwall!$AP109:$AZ109,0)","v":8},{"$f":"MATCH(L$3,Millwall!$AP109:$AZ109,0)","v":{"$error":"#N/A"}},{"$f":"MATCH(M$3,Millwall!$AP109:$AZ109,0)","v":{"$error":"#N/A"}},{"$f":"MATCH(N$3,Millwall!$AP109:$AZ109,0)","v":11},{"$f":"MATCH(O$3,Millwall!$AP109:$AZ109,0)","v":6},{"$f":"MATCH(P$3,Millwall!$AP109:$AZ109,0)","v":{"$error":"#N/A"}},{"$f":"MATCH(Q$3,Millwall!$AP109:$AZ109,0)","v":5},{"$f":"MATCH(R$3,Millwall!$AP109:$AZ109,0)","v":{"$error":"#N/A"}},{"$f":"MATCH(S$3,Millwall!$AP109:$AZ109,0)","v":{"$error":"#N/A"}},{"$f":"MATCH(T$3,Millwall!$AP109:$AZ109,0)","v":7},{"$f":"MATCH(U$3,Millwall!$AP109:$AZ109,0)","v":4},{"$f":"MATCH(V$3,Millwall!$AP109:$AZ109,0)","v":{"$error":"#N/A"}},{"$f":"MATCH(W$3,Millwall!$AP109:$AZ109,0)","v":3},{"$f":"MATCH(X$3,Millwall!$AP109:$AZ109,0)","v":{"$error":"#N/A"}},{"$f":"MATCH(Y$3,Millwall!$AP109:$AZ109,0)","v":{"$error":"#N/A"}},{"$f":"MATCH(Z$3,Millwall!$AP109:$AZ109,0)","v":10},{"$f":"MATCH(AA$3,Millwall!$AP109:$AZ109,0)","v":{"$error":"#N/A"}},{"$f":"MATCH(AB$3,Millwall!$AP109:$AZ109,0)","v":{"$error":"#N/A"}},{"$f":"MATCH(AC$3,Millwall!$AP109:$AZ109,0)","v":{"$error":"#N/A"}},{"$f":"MATCH(AD$3,Millwall!$AP109:$AZ109,0)","v":9},{"$f":"MATCH(AE$3,Millwall!$AP109:$AZ109,0)","v":2},{"$f":"MATCH(AF$3,Millwall!$AP109:$AZ109,0)","v":{"$error":"#N/A"}},{"$f":"MATCH(AG$3,Millwall!$AP109:$AZ109,0)","v":{"$error":"#N/A"}},{"$f":"MATCH(AH$3,Millwall!$AP109:$AZ109,0)","v":1},{"$f":"MATCH(AI$3,Millwall!$AP109:$AZ109,0)","v":{"$error":"#N/A"}},{"$f":"MATCH(AJ$3,Millwall!$AP109:$AZ109,0)","v":{"$error":"#N/A"}},{"$f":"MATCH(AK$3,Millwall!$AP109:$AZ109,0)","v":{"$error":"#N/A"}},{"$f":"MATCH(AL$3,Millwall!$AP109:$AZ109,0)","v":{"$error":"#N/A"}},{"$f":"MATCH(AM$3,Millwall!$AP109:$AZ109,0)","v":{"$error":"#N/A"}},{"$f":"MATCH(AN$3,Millwall!$AP109:$AZ109,0)","v":{"$error":"#N/A"}},{"$f":"MATCH(AO$3,Millwall!$AP109:$AZ109,0)","v":{"$error":"#N/A"}},{"$f":"MATCH(AP$3,Millwall!$AP109:$AZ109,0)","v":{"$error":"#N/A"}},{"$f":"MATCH(AQ$3,Millwall!$AP109:$AZ109,0)","v":{"$error":"#N/A"}},{"$f":"MATCH(AR$3,Millwall!$AP109:$AZ109,0)","v":{"$error":"#N/A"}}]
[null,null,null,33,null,{"$f":"Millwall!AI110","v":"1934-03-24"},null,{"$f":"Millwall!AK110","v":"Bradford PA"},{"$f":"Millwall!AL110","v":"(H)"},{"$f":"Millwall!AO110","v":"L 0-1"},{"$f":"MATCH(K$3,Millwall!$AP110:$AZ110,0)","v":8},{"$f":"MATCH(L$3,Millwall!$AP110:$AZ110,0)","v":{"$error":"#N/A"}},{"$f":"MATCH(M$3,Millwall!$AP110:$AZ110,0)","v":{"$error":"#N/A"}},{"$f":"MATCH(N$3,Millwall!$AP110:$AZ110,0)","v":11},{"$f":"MATCH(O$3,Millwall!$AP110:$AZ110,0)","v":6},{"$f":"MATCH(P$3,Millwall!$AP110:$AZ110,0)","v":{"$error":"#N/A"}},{"$f":"MATCH(Q$3,Millwall!$AP110:$AZ110,0)","v":{"$error":"#N/A"}},{"$f":"MATCH(R$3,Millwall!$AP110:$AZ110,0)","v":{"$error":"#N/A"}},{"$f":"MATCH(S$3,Millwall!$AP110:$AZ110,0)","v":{"$error":"#N/A"}},{"$f":"MATCH(T$3,Millwall!$AP110:$AZ110,0)","v":7},{"$f":"MATCH(U$3,Millwall!$AP110:$AZ110,0)","v":4},{"$f":"MATCH(V$3,Millwall!$AP110:$AZ110,0)","v":{"$error":"#N/A"}},{"$f":"MATCH(W$3,Millwall!$AP110:$AZ110,0)","v":3},{"$f":"MATCH(X$3,Millwall!$AP110:$AZ110,0)","v":{"$error":"#N/A"}},{"$f":"MATCH(Y$3,Millwall!$AP110:$AZ110,0)","v":10},{"$f":"MATCH(Z$3,Millwall!$AP110:$AZ110,0)","v":{"$error":"#N/A"}},{"$f":"MATCH(AA$3,Millwall!$AP110:$AZ110,0)","v":9},{"$f":"MATCH(AB$3,Millwall!$AP110:$AZ110,0)","v":{"$error":"#N/A"}},{"$f":"MATCH(AC$3,Millwall!$AP110:$AZ110,0)","v":2},{"$f":"MATCH(AD$3,Millwall!$AP110:$AZ110,0)","v":5},{"$f":"MATCH(AE$3,Millwall!$AP110:$AZ110,0)","v":{"$error":"#N/A"}},{"$f":"MATCH(AF$3,Millwall!$AP110:$AZ110,0)","v":{"$error":"#N/A"}},{"$f":"MATCH(AG$3,Millwall!$AP110:$AZ110,0)","v":{"$error":"#N/A"}},{"$f":"MATCH(AH$3,Millwall!$AP110:$AZ110,0)","v":1},{"$f":"MATCH(AI$3,Millwall!$AP110:$AZ110,0)","v":{"$error":"#N/A"}},{"$f":"MATCH(AJ$3,Millwall!$AP110:$AZ110,0)","v":{"$error":"#N/A"}},{"$f":"MATCH(AK$3,Millwall!$AP110:$AZ110,0)","v":{"$error":"#N/A"}},{"$f":"MATCH(AL$3,Millwall!$AP110:$AZ110,0)","v":{"$error":"#N/A"}},{"$f":"MATCH(AM$3,Millwall!$AP110:$AZ110,0)","v":{"$error":"#N/A"}},{"$f":"MATCH(AN$3,Millwall!$AP110:$AZ110,0)","v":{"$error":"#N/A"}},{"$f":"MATCH(AO$3,Millwall!$AP110:$AZ110,0)","v":{"$error":"#N/A"}},{"$f":"MATCH(AP$3,Millwall!$AP110:$AZ110,0)","v":{"$error":"#N/A"}},{"$f":"MATCH(AQ$3,Millwall!$AP110:$AZ110,0)","v":{"$error":"#N/A"}},{"$f":"MATCH(AR$3,Millwall!$AP110:$AZ110,0)","v":{"$error":"#N/A"}}]
[null,null,null,34,null,{"$f":"Millwall!AI111","v":"1934-03-30"},null,{"$f":"Millwall!AK111","v":"Plymouth"},{"$f":"Millwall!AL111","v":"(H)"},{"$f":"Millwall!AO111","v":"D 0-0"},{"$f":"MATCH(K$3,Millwall!$AP111:$AZ111,0)","v":8},{"$f":"MATCH(L$3,Millwall!$AP111:$AZ111,0)","v":{"$error":"#N/A"}},{"$f":"MATCH(M$3,Millwall!$AP111:$AZ111,0)","v":{"$error":"#N/A"}},{"$f":"MATCH(N$3,Millwall!$AP111:$AZ111,0)","v":11},{"$f":"MATCH(O$3,Millwall!$AP111:$AZ111,0)","v":6},{"$f":"MATCH(P$3,Millwall!$AP111:$AZ111,0)","v":{"$error":"#N/A"}},{"$f":"MATCH(Q$3,Millwall!$AP111:$AZ111,0)","v":{"$error":"#N/A"}},{"$f":"MATCH(R$3,Millwall!$AP111:$AZ111,0)","v":10},{"$f":"MATCH(S$3,Millwall!$AP111:$AZ111,0)","v":{"$error":"#N/A"}},{"$f":"MATCH(T$3,Millwall!$AP111:$AZ111,0)","v":7},{"$f":"MATCH(U$3,Millwall!$AP111:$AZ111,0)","v":4},{"$f":"MATCH(V$3,Millwall!$AP111:$AZ111,0)","v":{"$error":"#N/A"}},{"$f":"MATCH(W$3,Millwall!$AP111:$AZ111,0)","v":3},{"$f":"MATCH(X$3,Millwall!$AP111:$AZ111,0)","v":{"$error":"#N/A"}},{"$f":"MATCH(Y$3,Millwall!$AP111:$AZ111,0)","v":{"$error":"#N/A"}},{"$f":"MATCH(Z$3,Millwall!$AP111:$AZ111,0)","v":{"$error":"#N/A"}},{"$f":"MATCH(AA$3,Millwall!$AP111:$AZ111,0)","v":9},{"$f":"MATCH(AB$3,Millwall!$AP111:$AZ111,0)","v":{"$error":"#N/A"}},{"$f":"MATCH(AC$3,Millwall!$AP111:$AZ111,0)","v":2},{"$f":"MATCH(AD$3,Millwall!$AP111:$AZ111,0)","v":5},{"$f":"MATCH(AE$3,Millwall!$AP111:$AZ111,0)","v":{"$error":"#N/A"}},{"$f":"MATCH(AF$3,Millwall!$AP111:$AZ111,0)","v":{"$error":"#N/A"}},{"$f":"MATCH(AG$3,Millwall!$AP111:$AZ111,0)","v":{"$error":"#N/A"}},{"$f":"MATCH(AH$3,Millwall!$AP111:$AZ111,0)","v":1},{"$f":"MATCH(AI$3,Millwall!$AP111:$AZ111,0)","v":{"$error":"#N/A"}},{"$f":"MATCH(AJ$3,Millwall!$AP111:$AZ111,0)","v":{"$error":"#N/A"}},{"$f":"MATCH(AK$3,Millwall!$AP111:$AZ111,0)","v":{"$error":"#N/A"}},{"$f":"MATCH(AL$3,Millwall!$AP111:$AZ111,0)","v":{"$error":"#N/A"}},{"$f":"MATCH(AM$3,Millwall!$AP111:$AZ111,0)","v":{"$error":"#N/A"}},{"$f":"MATCH(AN$3,Millwall!$AP111:$AZ111,0)","v":{"$error":"#N/A"}},{"$f":"MATCH(AO$3,Millwall!$AP111:$AZ111,0)","v":{"$error":"#N/A"}},{"$f":"MATCH(AP$3,Millwall!$AP111:$AZ111,0)","v":{"$error":"#N/A"}},{"$f":"MATCH(AQ$3,Millwall!$AP111:$AZ111,0)","v":{"$error":"#N/A"}},{"$f":"MATCH(AR$3,Millwall!$AP111:$AZ111,0)","v":{"$error":"#N/A"}}]
[null,null,null,35,null,{"$f":"Millwall!AI112","v":"1934-03-31"},null,{"$f":"Millwall!AK112","v":"Preston"},{"$f":"Millwall!AL112","v":"(A)"},{"$f":"Millwall!AO112","v":"L 2-4"},{"$f":"MATCH(K$3,Millwall!$AP112:$AZ112,0)","v":8},{"$f":"MATCH(L$3,Millwall!$AP112:$AZ112,0)","v":{"$error":"#N/A"}},{"$f":"MATCH(M$3,Millwall!$AP112:$AZ112,0)","v":{"$error":"#N/A"}},{"$f":"MATCH(N$3,Millwall!$AP112:$AZ112,0)","v":11},{"$f":"MATCH(O$3,Millwall!$AP112:$AZ112,0)","v":6},{"$f":"MATCH(P$3,Millwall!$AP112:$AZ112,0)","v":{"$error":"#N/A"}},{"$f":"MATCH(Q$3,Millwall!$AP112:$AZ112,0)","v":{"$error":"#N/A"}},{"$f":"MATCH(R$3,Millwall!$AP112:$AZ112,0)","v":{"$error":"#N/A"}},{"$f":"MATCH(S$3,Millwall!$AP112:$AZ112,0)","v":9},{"$f":"MATCH(T$3,Millwall!$AP112:$AZ112,0)","v":7},{"$f":"MATCH(U$3,Millwall!$AP112:$AZ112,0)","v":4},{"$f":"MATCH(V$3,Millwall!$AP112:$AZ112,0)","v":{"$error":"#N/A"}},{"$f":"MATCH(W$3,Millwall!$AP112:$AZ112,0)","v":3},{"$f":"MATCH(X$3,Millwall!$AP112:$AZ112,0)","v":{"$error":"#N/A"}},{"$f":"MATCH(Y$3,Millwall!$AP112:$AZ112,0)","v":{"$error":"#N/A"}},{"$f":"MATCH(Z$3,Millwall!$AP112:$AZ112,0)","v":10},{"$f":"MATCH(AA$3,Millwall!$AP112:$AZ112,0)","v":{"$error":"#N/A"}},{"$f":"MATCH(AB$3,Millwall!$AP112:$AZ112,0)","v":{"$error":"#N/A"}},{"$f":"MATCH(AC$3,Millwall!$AP112:$AZ112,0)","v":2},{"$f":"MATCH(AD$3,Millwall!$AP112:$AZ112,0)","v":5},{"$f":"MATCH(AE$3,Millwall!$AP112:$AZ112,0)","v":{"$error":"#N/A"}},{"$f":"MATCH(AF$3,Millwall!$AP112:$AZ112,0)","v":{"$error":"#N/A"}},{"$f":"MATCH(AG$3,Millwall!$AP112:$AZ112,0)","v":{"$error":"#N/A"}},{"$f":"MATCH(AH$3,Millwall!$AP112:$AZ112,0)","v":1},{"$f":"MATCH(AI$3,Millwall!$AP112:$AZ112,0)","v":{"$error":"#N/A"}},{"$f":"MATCH(AJ$3,Millwall!$AP112:$AZ112,0)","v":{"$error":"#N/A"}},{"$f":"MATCH(AK$3,Millwall!$AP112:$AZ112,0)","v":{"$error":"#N/A"}},{"$f":"MATCH(AL$3,Millwall!$AP112:$AZ112,0)","v":{"$error":"#N/A"}},{"$f":"MATCH(AM$3,Millwall!$AP112:$AZ112,0)","v":{"$error":"#N/A"}},{"$f":"MATCH(AN$3,Millwall!$AP112:$AZ112,0)","v":{"$error":"#N/A"}},{"$f":"MATCH(AO$3,Millwall!$AP112:$AZ112,0)","v":{"$error":"#N/A"}},{"$f":"MATCH(AP$3,Millwall!$AP112:$AZ112,0)","v":{"$error":"#N/A"}},{"$f":"MATCH(AQ$3,Millwall!$AP112:$AZ112,0)","v":{"$error":"#N/A"}},{"$f":"MATCH(AR$3,Millwall!$AP112:$AZ112,0)","v":{"$error":"#N/A"}}]
[null,null,null,36,null,{"$f":"Millwall!AI113","v":"1934-04-02"},null,{"$f":"Millwall!AK113","v":"Plymouth"},{"$f":"Millwall!AL113","v":"(A)"},{"$f":"Millwall!AO113","v":"L 0-1"},{"$f":"MATCH(K$3,Millwall!$AP113:$AZ113,0)","v":8},{"$f":"MATCH(L$3,Millwall!$AP113:$AZ113,0)","v":{"$error":"#N/A"}},{"$f":"MATCH(M$3,Millwall!$AP113:$AZ113,0)","v":{"$error":"#N/A"}},{"$f":"MATCH(N$3,Millwall!$AP113:$AZ113,0)","v":{"$error":"#N/A"}},{"$f":"MATCH(O$3,Millwall!$AP113:$AZ113,0)","v":6},{"$f":"MATCH(P$3,Millwall!$AP113:$AZ113,0)","v":{"$error":"#N/A"}},{"$f":"MATCH(Q$3,Millwall!$AP113:$AZ113,0)","v":{"$error":"#N/A"}},{"$f":"MATCH(R$3,Millwall!$AP113:$AZ113,0)","v":{"$error":"#N/A"}},{"$f":"MATCH(S$3,Millwall!$AP113:$AZ113,0)","v":7},{"$f":"MATCH(T$3,Millwall!$AP113:$AZ113,0)","v":11},{"$f":"MATCH(U$3,Millwall!$AP113:$AZ113,0)","v":4},{"$f":"MATCH(V$3,Millwall!$AP113:$AZ113,0)","v":10},{"$f":"MATCH(W$3,Millwall!$AP113:$AZ113,0)","v":3},{"$f":"MATCH(X$3,Millwall!$AP113:$AZ113,0)","v":{"$error":"#N/A"}},{"$f":"MATCH(Y$3,Millwall!$AP113:$AZ113,0)","v":{"$error":"#N/A"}},{"$f":"MATCH(Z$3,Millwall!$AP113:$AZ113,0)","v":{"$error":"#N/A"}},{"$f":"MATCH(AA$3,Millwall!$AP113:$AZ113,0)","v":9},{"$f":"MATCH(AB$3,Millwall!$AP113:$AZ113,0)","v":{"$error":"#N/A"}},{"$f":"MATCH(AC$3,Millwall!$AP113:$AZ113,0)","v":{"$error":"#N/A"}},{"$f":"MATCH(AD$3,Millwall!$AP113:$AZ113,0)","v":5},{"$f":"MATCH(AE$3,Millwall!$AP113:$AZ113,0)","v":2},{"$f":"MATCH(AF$3,Millwall!$AP113:$AZ113,0)","v":{"$error":"#N/A"}},{"$f":"MATCH(AG$3,Millwall!$AP113:$AZ113,0)","v":{"$error":"#N/A"}},{"$f":"MATCH(AH$3,Millwall!$AP113:$AZ113,0)","v":1},{"$f":"MATCH(AI$3,Millwall!$AP113:$AZ113,0)","v":{"$error":"#N/A"}},{"$f":"MATCH(AJ$3,Millwall!$AP113:$AZ113,0)","v":{"$error":"#N/A"}},{"$f":"MATCH(AK$3,Millwall!$AP113:$AZ113,0)","v":{"$error":"#N/A"}},{"$f":"MATCH(AL$3,Millwall!$AP113:$AZ113,0)","v":{"$error":"#N/A"}},{"$f":"MATCH(AM$3,Millwall!$AP113:$AZ113,0)","v":{"$error":"#N/A"}},{"$f":"MATCH(AN$3,Millwall!$AP113:$AZ113,0)","v":{"$error":"#N/A"}},{"$f":"MATCH(AO$3,Millwall!$AP113:$AZ113,0)","v":{"$error":"#N/A"}},{"$f":"MATCH(AP$3,Millwall!$AP113:$AZ113,0)","v":{"$error":"#N/A"}},{"$f":"MATCH(AQ$3,Millwall!$AP113:$AZ113,0)","v":{"$error":"#N/A"}},{"$f":"MATCH(AR$3,Millwall!$AP113:$AZ113,0)","v":{"$error":"#N/A"}}]
[null,null,null,37,null,{"$f":"Millwall!AI114","v":"1934-04-07"},null,{"$f":"Millwall!AK114","v":"Oldham"},{"$f":"Millwall!AL114","v":"(H)"},{"$f":"Millwall!AO114","v":"W 1-0"},{"$f":"MATCH(K$3,Millwall!$AP114:$AZ114,0)","v":8},{"$f":"MATCH(L$3,Millwall!$AP114:$AZ114,0)","v":{"$error":"#N/A"}},{"$f":"MATCH(M$3,Millwall!$AP114:$AZ114,0)","v":{"$error":"#N/A"}},{"$f":"MATCH(N$3,Millwall!$AP114:$AZ114,0)","v":11},{"$f":"MATCH(O$3,Millwall!$AP114:$AZ114,0)","v":6},{"$f":"MATCH(P$3,Millwall!$AP114:$AZ114,0)","v":{"$error":"#N/A"}},{"$f":"MATCH(Q$3,Millwall!$AP114:$AZ114,0)","v":{"$error":"#N/A"}},{"$f":"MATCH(R$3,Millwall!$AP114:$AZ114,0)","v":{"$error":"#N/A"}},{"$f":"MATCH(S$3,Millwall!$AP114:$AZ114,0)","v":{"$error":"#N/A"}},{"$f":"MATCH(T$3,Millwall!$AP114:$AZ114,0)","v":7},{"$f":"MATCH(U$3,Millwall!$AP114:$AZ114,0)","v":4},{"$f":"MATCH(V$3,Millwall!$AP114:$AZ114,0)","v":{"$error":"#N/A"}},{"$f":"MATCH(W$3,Millwall!$AP114:$AZ114,0)","v":3},{"$f":"MATCH(X$3,Millwall!$AP114:$AZ114,0)","v":{"$error":"#N/A"}},{"$f":"MATCH(Y$3,Millwall!$AP114:$AZ114,0)","v":{"$error":"#N/A"}},{"$f":"MATCH(Z$3,Millwall!$AP114:$AZ114,0)","v":10},{"$f":"MATCH(AA$3,Millwall!$AP114:$AZ114,0)","v":{"$error":"#N/A"}},{"$f":"MATCH(AB$3,Millwall!$AP114:$AZ114,0)","v":{"$error":"#N/A"}},{"$f":"MATCH(AC$3,Millwall!$AP114:$AZ114,0)","v":{"$error":"#N/A"}},{"$f":"MATCH(AD$3,Millwall!$AP114:$AZ114,0)","v":5},{"$f":"MATCH(AE$3,Millwall!$AP114:$AZ114,0)","v":2},{"$f":"MATCH(AF$3,Millwall!$AP114:$AZ114,0)","v":{"$error":"#N/A"}},{"$f":"MATCH(AG$3,Millwall!$AP114:$AZ114,0)","v":9},{"$f":"MATCH(AH$3,Millwall!$AP114:$AZ114,0)","v":1},{"$f":"MATCH(AI$3,Millwall!$AP114:$AZ114,0)","v":{"$error":"#N/A"}},{"$f":"MATCH(AJ$3,Millwall!$AP114:$AZ114,0)","v":{"$error":"#N/A"}},{"$f":"MATCH(AK$3,Millwall!$AP114:$AZ114,0)","v":{"$error":"#N/A"}},{"$f":"MATCH(AL$3,Millwall!$AP114:$AZ114,0)","v":{"$error":"#N/A"}},{"$f":"MATCH(AM$3,Millwall!$AP114:$AZ114,0)","v":{"$error":"#N/A"}},{"$f":"MATCH(AN$3,Millwall!$AP114:$AZ114,0)","v":{"$error":"#N/A"}},{"$f":"MATCH(AO$3,Millwall!$AP114:$AZ114,0)","v":{"$error":"#N/A"}},{"$f":"MATCH(AP$3,Millwall!$AP114:$AZ114,0)","v":{"$error":"#N/A"}},{"$f":"MATCH(AQ$3,Millwall!$AP114:$AZ114,0)","v":{"$error":"#N/A"}},{"$f":"MATCH(AR$3,Millwall!$AP114:$AZ114,0)","v":{"$error":"#N/A"}}]
[null,null,null,38,null,{"$f":"Millwall!AI115","v":"1934-04-09"},null,{"$f":"Millwall!AK115","v":"Southampton"},{"$f":"Millwall!AL115","v":"(H)"},{"$f":"Millwall!AO115","v":"W 1-0"},{"$f":"MATCH(K$3,Millwall!$AP115:$AZ115,0)","v":8},{"$f":"MATCH(L$3,Millwall!$AP115:$AZ115,0)","v":{"$error":"#N/A"}},{"$f":"MATCH(M$3,Millwall!$AP115:$AZ115,0)","v":{"$error":"#N/A"}},{"$f":"MATCH(N$3,Millwall!$AP115:$AZ115,0)","v":11},{"$f":"MATCH(O$3,Millwall!$AP115:$AZ115,0)","v":6},{"$f":"MATCH(P$3,Millwall!$AP115:$AZ115,0)","v":{"$error":"#N/A"}},{"$f":"MATCH(Q$3,Millwall!$AP115:$AZ115,0)","v":{"$error":"#N/A"}},{"$f":"MATCH(R$3,Millwall!$AP115:$AZ115,0)","v":{"$error":"#N/A"}},{"$f":"MATCH(S$3,Millwall!$AP115:$AZ115,0)","v":{"$error":"#N/A"}},{"$f":"MATCH(T$3,Millwall!$AP115:$AZ115,0)","v":7},{"$f":"MATCH(U$3,Millwall!$AP115:$AZ115,0)","v":4},{"$f":"MATCH(V$3,Millwall!$AP115:$AZ115,0)","v":{"$error":"#N/A"}},{"$f":"MATCH(W$3,Millwall!$AP115:$AZ115,0)","v":3},{"$f":"MATCH(X$3,Millwall!$AP115:$AZ115,0)","v":{"$error":"#N/A"}},{"$f":"MATCH(Y$3,Millwall!$AP115:$AZ115,0)","v":{"$error":"#N/A"}},{"$f":"MATCH(Z$3,Millwall!$AP115:$AZ115,0)","v":10},{"$f":"MATCH(AA$3,Millwall!$AP115:$AZ115,0)","v":{"$error":"#N/A"}},{"$f":"MATCH(AB$3,Millwall!$AP115:$AZ115,0)","v":{"$error":"#N/A"}},{"$f":"MATCH(AC$3,Millwall!$AP115:$AZ115,0)","v":{"$error":"#N/A"}},{"$f":"MATCH(AD$3,Millwall!$AP115:$AZ115,0)","v":5},{"$f":"MATCH(AE$3,Millwall!$AP115:$AZ115,0)","v":2},{"$f":"MATCH(AF$3,Millwall!$AP115:$AZ115,0)","v":{"$error":"#N/A"}},{"$f":"MATCH(AG$3,Millwall!$AP115:$AZ115,0)","v":9},{"$f":"MATCH(AH$3,Millwall!$AP115:$AZ115,0)","v":1},{"$f":"MATCH(AI$3,Millwall!$AP115:$AZ115,0)","v":{"$error":"#N/A"}},{"$f":"MATCH(AJ$3,Millwall!$AP115:$AZ115,0)","v":{"$error":"#N/A"}},{"$f":"MATCH(AK$3,Millwall!$AP115:$AZ115,0)","v":{"$error":"#N/A"}},{"$f":"MATCH(AL$3,Millwall!$AP115:$AZ115,0)","v":{"$error":"#N/A"}},{"$f":"MATCH(AM$3,Millwall!$AP115:$AZ115,0)","v":{"$error":"#N/A"}},{"$f":"MATCH(AN$3,Millwall!$AP115:$AZ115,0)","v":{"$error":"#N/A"}},{"$f":"MATCH(AO$3,Millwall!$AP115:$AZ115,0)","v":{"$error":"#N/A"}},{"$f":"MATCH(AP$3,Millwall!$AP115:$AZ115,0)","v":{"$error":"#N/A"}},{"$f":"MATCH(AQ$3,Millwall!$AP115:$AZ115,0)","v":{"$error":"#N/A"}},{"$f":"MATCH(AR$3,Millwall!$AP115:$AZ115,0)","v":{"$error":"#N/A"}}]
[null,null,null,39,null,{"$f":"Millwall!AI116","v":"1934-04-14"},null,{"$f":"Millwall!AK116","v":"Burnley"},{"$f":"Millwall!AL116","v":"(A)"},{"$f":"Millwall!AO116","v":"L 1-2"},{"$f":"MATCH(K$3,Millwall!$AP116:$AZ116,0)","v":8},{"$f":"MATCH(L$3,Millwall!$AP116:$AZ116,0)","v":{"$error":"#N/A"}},{"$f":"MATCH(M$3,Millwall!$AP116:$AZ116,0)","v":{"$error":"#N/A"}},{"$f":"MATCH(N$3,Millwall!$AP116:$AZ116,0)","v":11},{"$f":"MATCH(O$3,Millwall!$AP116:$AZ116,0)","v":6},{"$f":"MATCH(P$3,Millwall!$AP116:$AZ116,0)","v":{"$error":"#N/A"}},{"$f":"MATCH(Q$3,Millwall!$AP116:$AZ116,0)","v":{"$error":"#N/A"}},{"$f":"MATCH(R$3,Millwall!$AP116:$AZ116,0)","v":{"$error":"#N/A"}},{"$f":"MATCH(S$3,Millwall!$AP116:$AZ116,0)","v":{"$error":"#N/A"}},{"$f":"MATCH(T$3,Millwall!$AP116:$AZ116,0)","v":7},{"$f":"MATCH(U$3,Millwall!$AP116:$AZ116,0)","v":4},{"$f":"MATCH(V$3,Millwall!$AP116:$AZ116,0)","v":{"$error":"#N/A"}},{"$f":"MATCH(W$3,Millwall!$AP116:$AZ116,0)","v":3},{"$f":"MATCH(X$3,Millwall!$AP116:$AZ116,0)","v":{"$error":"#N/A"}},{"$f":"MATCH(Y$3,Millwall!$AP116:$AZ116,0)","v":{"$error":"#N/A"}},{"$f":"MATCH(Z$3,Millwall!$AP116:$AZ116,0)","v":10},{"$f":"MATCH(AA$3,Millwall!$AP116:$AZ116,0)","v":{"$error":"#N/A"}},{"$f":"MATCH(AB$3,Millwall!$AP116:$AZ116,0)","v":{"$error":"#N/A"}},{"$f":"MATCH(AC$3,Millwall!$AP116:$AZ116,0)","v":{"$error":"#N/A"}},{"$f":"MATCH(AD$3,Millwall!$AP116:$AZ116,0)","v":5},{"$f":"MATCH(AE$3,Millwall!$AP116:$AZ116,0)","v":2},{"$f":"MATCH(AF$3,Millwall!$AP116:$AZ116,0)","v":{"$error":"#N/A"}},{"$f":"MATCH(AG$3,Millwall!$AP116:$AZ116,0)","v":9},{"$f":"MATCH(AH$3,Millwall!$AP116:$AZ116,0)","v":1},{"$f":"MATCH(AI$3,Millwall!$AP116:$AZ116,0)","v":{"$error":"#N/A"}},{"$f":"MATCH(AJ$3,Millwall!$AP116:$AZ116,0)","v":{"$error":"#N/A"}},{"$f":"MATCH(AK$3,Millwall!$AP116:$AZ116,0)","v":{"$error":"#N/A"}},{"$f":"MATCH(AL$3,Millwall!$AP116:$AZ116,0)","v":{"$error":"#N/A"}},{"$f":"MATCH(AM$3,Millwall!$AP116:$AZ116,0)","v":{"$error":"#N/A"}},{"$f":"MATCH(AN$3,Millwall!$AP116:$AZ116,0)","v":{"$error":"#N/A"}},{"$f":"MATCH(AO$3,Millwall!$AP116:$AZ116,0)","v":{"$error":"#N/A"}},{"$f":"MATCH(AP$3,Millwall!$AP116:$AZ116,0)","v":{"$error":"#N/A"}},{"$f":"MATCH(AQ$3,Millwall!$AP116:$AZ116,0)","v":{"$error":"#N/A"}},{"$f":"MATCH(AR$3,Millwall!$AP116:$AZ116,0)","v":{"$error":"#N/A"}}]
[null,null,null,40,null,{"$f":"Millwall!AI117","v":"1934-04-21"},null,{"$f":"Millwall!AK117","v":"Brentford"},{"$f":"Millwall!AL117","v":"(H)"},{"$f":"Millwall!AO117","v":"W 2-0"},{"$f":"MATCH(K$3,Millwall!$AP117:$AZ117,0)","v":8},{"$f":"MATCH(L$3,Millwall!$AP117:$AZ117,0)","v":{"$error":"#N/A"}},{"$f":"MATCH(M$3,Millwall!$AP117:$AZ117,0)","v":{"$error":"#N/A"}},{"$f":"MATCH(N$3,Millwall!$AP117:$AZ117,0)","v":11},{"$f":"MATCH(O$3,Millwall!$AP117:$AZ117,0)","v":6},{"$f":"MATCH(P$3,Millwall!$AP117:$AZ117,0)","v":{"$error":"#N/A"}},{"$f":"MATCH(Q$3,Millwall!$AP117:$AZ117,0)","v":{"$error":"#N/A"}},{"$f":"MATCH(R$3,Millwall!$AP117:$AZ117,0)","v":{"$error":"#N/A"}},{"$f":"MATCH(S$3,Millwall!$AP117:$AZ117,0)","v":{"$error":"#N/A"}},{"$f":"MATCH(T$3,Millwall!$AP117:$AZ117,0)","v":7},{"$f":"MATCH(U$3,Millwall!$AP117:$AZ117,0)","v":4},{"$f":"MATCH(V$3,Millwall!$AP117:$AZ117,0)","v":{"$error":"#N/A"}},{"$f":"MATCH(W$3,Millwall!$AP117:$AZ117,0)","v":3},{"$f":"MATCH(X$3,Millwall!$AP117:$AZ117,0)","v":{"$error":"#N/A"}},{"$f":"MATCH(Y$3,Millwall!$AP117:$AZ117,0)","v":{"$error":"#N/A"}},{"$f":"MATCH(Z$3,Millwall!$AP117:$AZ117,0)","v":10},{"$f":"MATCH(AA$3,Millwall!$AP117:$AZ117,0)","v":{"$error":"#N/A"}},{"$f":"MATCH(AB$3,Millwall!$AP117:$AZ117,0)","v":{"$error":"#N/A"}},{"$f":"MATCH(AC$3,Millwall!$AP117:$AZ117,0)","v":{"$error":"#N/A"}},{"$f":"MATCH(AD$3,Millwall!$AP117:$AZ117,0)","v":5},{"$f":"MATCH(AE$3,Millwall!$AP117:$AZ117,0)","v":2},{"$f":"MATCH(AF$3,Millwall!$AP117:$AZ117,0)","v":{"$error":"#N/A"}},{"$f":"MATCH(AG$3,Millwall!$AP117:$AZ117,0)","v":9},{"$f":"MATCH(AH$3,Millwall!$AP117:$AZ117,0)","v":1},{"$f":"MATCH(AI$3,Millwall!$AP117:$AZ117,0)","v":{"$error":"#N/A"}},{"$f":"MATCH(AJ$3,Millwall!$AP117:$AZ117,0)","v":{"$error":"#N/A"}},{"$f":"MATCH(AK$3,Millwall!$AP117:$AZ117,0)","v":{"$error":"#N/A"}},{"$f":"MATCH(AL$3,Millwall!$AP117:$AZ117,0)","v":{"$error":"#N/A"}},{"$f":"MATCH(AM$3,Millwall!$AP117:$AZ117,0)","v":{"$error":"#N/A"}},{"$f":"MATCH(AN$3,Millwall!$AP117:$AZ117,0)","v":{"$error":"#N/A"}},{"$f":"MATCH(AO$3,Millwall!$AP117:$AZ117,0)","v":{"$error":"#N/A"}},{"$f":"MATCH(AP$3,Millwall!$AP117:$AZ117,0)","v":{"$error":"#N/A"}},{"$f":"MATCH(AQ$3,Millwall!$AP117:$AZ117,0)","v":{"$error":"#N/A"}},{"$f":"MATCH(AR$3,Millwall!$AP117:$AZ117,0)","v":{"$error":"#N/A"}}]
[null,null,null,41,null,{"$f":"Millwall!AI118","v":"1934-04-28"},null,{"$f":"Millwall!AK118","v":"Bolton"},{"$f":"Millwall!AL118","v":"(A)"},{"$f":"Millwall!AO118","v":"L 0-5"},{"$f":"MATCH(K$3,Millwall!$AP118:$AZ118,0)","v":8},{"$f":"MATCH(L$3,Millwall!$AP118:$AZ118,0)","v":{"$error":"#N/A"}},{"$f":"MATCH(M$3,Millwall!$AP118:$AZ118,0)","v":{"$error":"#N/A"}},{"$f":"MATCH(N$3,Millwall!$AP118:$AZ118,0)","v":11},{"$f":"MATCH(O$3,Millwall!$AP118:$AZ118,0)","v":6},{"$f":"MATCH(P$3,Millwall!$AP118:$AZ118,0)","v":{"$error":"#N/A"}},{"$f":"MATCH(Q$3,Millwall!$AP118:$AZ118,0)","v":{"$error":"#N/A"}},{"$f":"MATCH(R$3,Millwall!$AP118:$AZ118,0)","v":{"$error":"#N/A"}},{"$f":"MATCH(S$3,Millwall!$AP118:$AZ118,0)","v":{"$error":"#N/A"}},{"$f":"MATCH(T$3,Millwall!$AP118:$AZ118,0)","v":7},{"$f":"MATCH(U$3,Millwall!$AP118:$AZ118,0)","v":4},{"$f":"MATCH(V$3,Millwall!$AP118:$AZ118,0)","v":{"$error":"#N/A"}},{"$f":"MATCH(W$3,Millwall!$AP118:$AZ118,0)","v":3},{"$f":"MATCH(X$3,Millwall!$AP118:$AZ118,0)","v":{"$error":"#N/A"}},{"$f":"MATCH(Y$3,Millwall!$AP118:$AZ118,0)","v":{"$error":"#N/A"}},{"$f":"MATCH(Z$3,Millwall!$AP118:$AZ118,0)","v":10},{"$f":"MATCH(AA$3,Millwall!$AP118:$AZ118,0)","v":{"$error":"#N/A"}},{"$f":"MATCH(AB$3,Millwall!$AP118:$AZ118,0)","v":{"$error":"#N/A"}},{"$f":"MATCH(AC$3,Millwall!$AP118:$AZ118,0)","v":{"$error":"#N/A"}},{"$f":"MATCH(AD$3,Millwall!$AP118:$AZ118,0)","v":5},{"$f":"MATCH(AE$3,Millwall!$AP118:$AZ118,0)","v":2},{"$f":"MATCH(AF$3,Millwall!$AP118:$AZ118,0)","v":{"$error":"#N/A"}},{"$f":"MATCH(AG$3,Millwall!$AP118:$AZ118,0)","v":9},{"$f":"MATCH(AH$3,Millwall!$AP118:$AZ118,0)","v":1},{"$f":"MATCH(AI$3,Millwall!$AP118:$AZ118,0)","v":{"$error":"#N/A"}},{"$f":"MATCH(AJ$3,Millwall!$AP118:$AZ118,0)","v":{"$error":"#N/A"}},{"$f":"MATCH(AK$3,Millwall!$AP118:$AZ118,0)","v":{"$error":"#N/A"}},{"$f":"MATCH(AL$3,Millwall!$AP118:$AZ118,0)","v":{"$error":"#N/A"}},{"$f":"MATCH(AM$3,Millwall!$AP118:$AZ118,0)","v":{"$error":"#N/A"}},{"$f":"MATCH(AN$3,Millwall!$AP118:$AZ118,0)","v":{"$error":"#N/A"}},{"$f":"MATCH(AO$3,Millwall!$AP118:$AZ118,0)","v":{"$error":"#N/A"}},{"$f":"MATCH(AP$3,Millwall!$AP118:$AZ118,0)","v":{"$error":"#N/A"}},{"$f":"MATCH(AQ$3,Millwall!$AP118:$AZ118,0)","v":{"$error":"#N/A"}},{"$f":"MATCH(AR$3,Millwall!$AP118:$AZ118,0)","v":{"$error":"#N/A"}}]
[null,null,null,42,null,{"$f":"Millwall!AI119","v":"1934-05-05"},null,{"$f":"Millwall!AK119","v":"Man Utd"},{"$f":"Millwall!AL119","v":"(H)"},{"$f":"Millwall!AO119","v":"L 0-2"},{"$f":"MATCH(K$3,Millwall!$AP119:$AZ119,0)","v":8},{"$f":"MATCH(L$3,Millwall!$AP119:$AZ119,0)","v":{"$error":"#N/A"}},{"$f":"MATCH(M$3,Millwall!$AP119:$AZ119,0)","v":{"$error":"#N/A"}},{"$f":"MATCH(N$3,Millwall!$AP119:$AZ119,0)","v":11},{"$f":"MATCH(O$3,Millwall!$AP119:$AZ119,0)","v":6},{"$f":"MATCH(P$3,Millwall!$AP119:$AZ119,0)","v":{"$error":"#N/A"}},{"$f":"MATCH(Q$3,Millwall!$AP119:$AZ119,0)","v":{"$error":"#N/A"}},{"$f":"MATCH(R$3,Millwall!$AP119:$AZ119,0)","v":{"$error":"#N/A"}},{"$f":"MATCH(S$3,Millwall!$AP119:$AZ119,0)","v":{"$error":"#N/A"}},{"$f":"MATCH(T$3,Millwall!$AP119:$AZ119,0)","v":7},{"$f":"MATCH(U$3,Millwall!$AP119:$AZ119,0)","v":4},{"$f":"MATCH(V$3,Millwall!$AP119:$AZ119,0)","v":{"$error":"#N/A"}},{"$f":"MATCH(W$3,Millwall!$AP119:$AZ119,0)","v":3},{"$f":"MATCH(X$3,Millwall!$AP119:$AZ119,0)","v":{"$error":"#N/A"}},{"$f":"MATCH(Y$3,Millwall!$AP119:$AZ119,0)","v":{"$error":"#N/A"}},{"$f":"MATCH(Z$3,Millwall!$AP119:$AZ119,0)","v":10},{"$f":"MATCH(AA$3,Millwall!$AP119:$AZ119,0)","v":{"$error":"#N/A"}},{"$f":"MATCH(AB$3,Millwall!$AP119:$AZ119,0)","v":{"$error":"#N/A"}},{"$f":"MATCH(AC$3,Millwall!$AP119:$AZ119,0)","v":{"$error":"#N/A"}},{"$f":"MATCH(AD$3,Millwall!$AP119:$AZ119,0)","v":5},{"$f":"MATCH(AE$3,Millwall!$AP119:$AZ119,0)","v":2},{"$f":"MATCH(AF$3,Millwall!$AP119:$AZ119,0)","v":{"$error":"#N/A"}},{"$f":"MATCH(AG$3,Millwall!$AP119:$AZ119,0)","v":9},{"$f":"MATCH(AH$3,Millwall!$AP119:$AZ119,0)","v":1},{"$f":"MATCH(AI$3,Millwall!$AP119:$AZ119,0)","v":{"$error":"#N/A"}},{"$f":"MATCH(AJ$3,Millwall!$AP119:$AZ119,0)","v":{"$error":"#N/A"}},{"$f":"MATCH(AK$3,Millwall!$AP119:$AZ119,0)","v":{"$error":"#N/A"}},{"$f":"MATCH(AL$3,Millwall!$AP119:$AZ119,0)","v":{"$error":"#N/A"}},{"$f":"MATCH(AM$3,Millwall!$AP119:$AZ119,0)","v":{"$error":"#N/A"}},{"$f":"MATCH(AN$3,Millwall!$AP119:$AZ119,0)","v":{"$error":"#N/A"}},{"$f":"MATCH(AO$3,Millwall!$AP119:$AZ119,0)","v":{"$error":"#N/A"}},{"$f":"MATCH(AP$3,Millwall!$AP119:$AZ119,0)","v":{"$error":"#N/A"}},{"$f":"MATCH(AQ$3,Millwall!$AP119:$AZ119,0)","v":{"$error":"#N/A"}},{"$f":"MATCH(AR$3,Millwall!$AP119:$AZ119,0)","v":{"$error":"#N/A"}}]
[]
[null,null,null,null,null,null,null,null,null,"Total League Apperances",{"$f":"COUNT(K4:K45)","v":24},11,5,34,39,7,26,9,22,11,28,16,29,8,14,33,3,5,15,25,38,25,18,17,0,0,0,0,0,0,0,0,0,0]
[null,null,null,null,null,null,null,null,null,"Goals",{"$f":"Millwall!$BX$7","v":1},{"$f":"Millwall!$BX$8","v":1},{"$f":"Millwall!$BX$9","v":0},{"$f":"Millwall!$BX$10","v":7},{"$f":"Millwall!$BX$11","v":3},{"$f":"Millwall!$BX$12","v":0},{"$f":"Millwall!$BX$13","v":1},{"$f":"Millwall!$BX$14","v":0},{"$f":"Millwall!$BX$15","v":4},{"$f":"Millwall!$BX$16","v":2},{"$f":"Millwall!$BX$17","v":1},{"$f":"Millwall!$BX$18","v":4},{"$f":"Millwall!$BX$19","v":0},{"$f":"Millwall!$BX$20","v":1},{"$f":"Millwall!$BX$21","v":3},{"$f":"Millwall!$BX$22","v":5},{"$f":"Millwall!$BX$23","v":0},{"$f":"Millwall!$BX$24","v":0},{"$f":"Millwall!$BX$25","v":0},{"$f":"Millwall!$BX$26","v":0},{"$f":"Millwall!$BX$27","v":0},{"$f":"Millwall!$BX$28","v":0},{"$f":"Millwall!$BX$29","v":5},{"$f":"Millwall!$BX$30","v":0},{"$f":"Millwall!$BX$31","v":0},{"$f":"Millwall!$BX$32","v":1},{"$f":"Millwall!$BX$33","v":0},{"$f":"Millwall!$BX$34","v":0},{"$f":"Millwall!$BX$35","v":0},{"$f":"Millwall!$BX$36","v":0},{"$f":"Millwall!$BX$37","v":0},{"$f":"Millwall!$BX$38","v":0},{"$f":"Millwall!$BX$39","v":0},{"$f":"Millwall!$BX$40","v":0}]
[null,null,null,null,null,null,null,"FA Cup"]
[null,null,null,3,null,{"$f":"Millwall!AI136","v":"1934-01-13"},null,{"$f":"Millwall!AK136","v":"Accrington Stanley"},{"$f":"Millwall!AL136","v":"(H)"},{"$f":"Millwall!AO136","v":"W 3-0"},{"$f":"MATCH(K$3,Millwall!$AP136:$AZ136,0)","v":{"$error":"#N/A"}},{"$f":"MATCH(L$3,Millwall!$AP136:$AZ136,0)","v":7},{"$f":"MATCH(M$3,Millwall!$AP136:$AZ136,0)","v":{"$error":"#N/A"}},{"$f":"MATCH(N$3,Millwall!$AP136:$AZ136,0)","v":11},{"$f":"MATCH(O$3,Millwall!$AP136:$AZ136,0)","v":6},{"$f":"MATCH(P$3,Millwall!$AP136:$AZ136,0)","v":{"$error":"#N/A"}},{"$f":"MATCH(Q$3,Millwall!$AP136:$AZ136,0)","v":{"$error":"#N/A"}},{"$f":"MATCH(R$3,Millwall!$AP136:$AZ136,0)","v":4},{"$f":"MATCH(S$3,Millwall!$AP136:$AZ136,0)","v":{"$error":"#N/A"}},{"$f":"MATCH(T$3,Millwall!$AP136:$AZ136,0)","v":{"$error":"#N/A"}},{"$f":"MATCH(U$3,Millwall!$AP136:$AZ136,0)","v":{"$error":"#N/A"}},{"$f":"MATCH(V$3,Millwall!$AP136:$AZ136,0)","v":8},{"$f":"MATCH(W$3,Millwall!$AP136:$AZ136,0)","v":3},{"$f":"MATCH(X$3,Millwall!$AP136:$AZ136,0)","v":{"$error":"#N/A"}},{"$f":"MATCH(Y$3,Millwall!$AP136:$AZ136,0)","v":{"$error":"#N/A"}},{"$f":"MATCH(Z$3,Millwall!$AP136:$AZ136,0)","v":10},{"$f":"MATCH(AA$3,Millwall!$AP136:$AZ136,0)","v":{"$error":"#N/A"}},{"$f":"MATCH(AB$3,Millwall!$AP136:$AZ136,0)","v":{"$error":"#N/A"}},{"$f":"MATCH(AC$3,Millwall!$AP136:$AZ136,0)","v":{"$error":"#N/A"}},{"$f":"MATCH(AD$3,Millwall!$AP136:$AZ136,0)","v":5},{"$f":"MATCH(AE$3,Millwall!$AP136:$AZ136,0)","v":2},{"$f":"MATCH(AF$3,Millwall!$AP136:$AZ136,0)","v":1},{"$f":"MATCH(AG$3,Millwall!$AP136:$AZ136,0)","v":9},{"$f":"MATCH(AH$3,Millwall!$AP136:$AZ136,0)","v":{"$error":"#N/A"}},{"$f":"MATCH(AI$3,Millwall!$AP136:$AZ136,0)","v":{"$error":"#N/A"}},{"$f":"MATCH(AJ$3,Millwall!$AP136:$AZ136,0)","v":{"$error":"#N/A"}},{"$f":"MATCH(AK$3,Millwall!$AP136:$AZ136,0)","v":{"$error":"#N/A"}},{"$f":"MATCH(AL$3,Millwall!$AP136:$AZ136,0)","v":{"$error":"#N/A"}},{"$f":"MATCH(AM$3,Millwall!$AP136:$AZ136,0)","v":{"$error":"#N/A"}},{"$f":"MATCH(AN$3,Millwall!$AP136:$AZ136,0)","v":{"$error":"#N/A"}},{"$f":"MATCH(AO$3,Millwall!$AP136:$AZ136,0)","v":{"$error":"#N/A"}},{"$f":"MATCH(AP$3,Millwall!$AP136:$AZ136,0)","v":{"$error":"#N/A"}},{"$f":"MATCH(AQ$3,Millwall!$AP136:$AZ136,0)","v":{"$error":"#N/A"}},{"$f":"MATCH(AR$3,Millwall!$AP136:$AZ136,0)","v":{"$error":"#N/A"}}]
[null,null,null,"3R",null,{"$f":"Millwall!AI137","v":"1934-01-27"},null,{"$f":"Millwall!AK137","v":"Leicester City"},{"$f":"Millwall!AL137","v":"(H)"},{"$f":"Millwall!AO137","v":"L 3-6"},{"$f":"MATCH(K$3,Millwall!$AP137:$AZ137,0)","v":7},{"$f":"MATCH(L$3,Millwall!$AP137:$AZ137,0)","v":{"$error":"#N/A"}},{"$f":"MATCH(M$3,Millwall!$AP137:$AZ137,0)","v":{"$error":"#N/A"}},{"$f":"MATCH(N$3,Millwall!$AP137:$AZ137,0)","v":11},{"$f":"MATCH(O$3,Millwall!$AP137:$AZ137,0)","v":6},{"$f":"MATCH(P$3,Millwall!$AP137:$AZ137,0)","v":{"$error":"#N/A"}},{"$f":"MATCH(Q$3,Millwall!$AP137:$AZ137,0)","v":{"$error":"#N/A"}},{"$f":"MATCH(R$3,Millwall!$AP137:$AZ137,0)","v":4},{"$f":"MATCH(S$3,Millwall!$AP137:$AZ137,0)","v":{"$error":"#N/A"}},{"$f":"MATCH(T$3,Millwall!$AP137:$AZ137,0)","v":{"$error":"#N/A"}},{"$f":"MATCH(U$3,Millwall!$AP137:$AZ137,0)","v":{"$error":"#N/A"}},{"$f":"MATCH(V$3,Millwall!$AP137:$AZ137,0)","v":8},{"$f":"MATCH(W$3,Millwall!$AP137:$AZ137,0)","v":3},{"$f":"MATCH(X$3,Millwall!$AP137:$AZ137,0)","v":{"$error":"#N/A"}},{"$f":"MATCH(Y$3,Millwall!$AP137:$AZ137,0)","v":{"$error":"#N/A"}},{"$f":"MATCH(Z$3,Millwall!$AP137:$AZ137,0)","v":10},{"$f":"MATCH(AA$3,Millwall!$AP137:$AZ137,0)","v":{"$error":"#N/A"}},{"$f":"MATCH(AB$3,Millwall!$AP137:$AZ137,0)","v":{"$error":"#N/A"}},{"$f":"MATCH(AC$3,Millwall!$AP137:$AZ137,0)","v":{"$error":"#N/A"}},{"$f":"MATCH(AD$3,Millwall!$AP137:$AZ137,0)","v":5},{"$f":"MATCH(AE$3,Millwall!$AP137:$AZ137,0)","v":2},{"$f":"MATCH(AF$3,Millwall!$AP137:$AZ137,0)","v":1},{"$f":"MATCH(AG$3,Millwall!$AP137:$AZ137,0)","v":9},{"$f":"MATCH(AH$3,Millwall!$AP137:$AZ137,0)","v":{"$error":"#N/A"}},{"$f":"MATCH(AI$3,Millwall!$AP137:$AZ137,0)","v":{"$error":"#N/A"}},{"$f":"MATCH(AJ$3,Millwall!$AP137:$AZ137,0)","v":{"$error":"#N/A"}},{"$f":"MATCH(AK$3,Millwall!$AP137:$AZ137,0)","v":{"$error":"#N/A"}},{"$f":"MATCH(AL$3,Millwall!$AP137:$AZ137,0)","v":{"$error":"#N/A"}},{"$f":"MATCH(AM$3,Millwall!$AP137:$AZ137,0)","v":{"$error":"#N/A"}},{"$f":"MATCH(AN$3,Millwall!$AP137:$AZ137,0)","v":{"$error":"#N/A"}},{"$f":"MATCH(AO$3,Millwall!$AP137:$AZ137,0)","v":{"$error":"#N/A"}},{"$f":"MATCH(AP$3,Millwall!$AP137:$AZ137,0)","v":{"$error":"#N/A"}},{"$f":"MATCH(AQ$3,Millwall!$AP137:$AZ137,0)","v":{"$error":"#N/A"}},{"$f":"MATCH(AR$3,Millwall!$AP137:$AZ137,0)","v":{"$error":"#N/A"}}]
[null,null,null,4,null,{"$f":"Millwall!AI138","v":"00:00:00"},null,{"$f":"Millwall!AK138","v":"00:00:00"},{"$f":"Millwall!AL138","v":"00:00:00"},{"$f":"Millwall!AO138","v":0},{"$f":"MATCH(K$3,Millwall!$AP138:$AZ138,0)","v":{"$error":"#N/A"}},{"$f":"MATCH(L$3,Millwall!$AP138:$AZ138,0)","v":{"$error":"#N/A"}},{"$f":"MATCH(M$3,Millwall!$AP138:$AZ138,0)","v":{"$error":"#N/A"}},{"$f":"MATCH(N$3,Millwall!$AP138:$AZ138,0)","v":{"$error":"#N/A"}},{"$f":"MATCH(O$3,Millwall!$AP138:$AZ138,0)","v":{"$error":"#N/A"}},{"$f":"MATCH(P$3,Millwall!$AP138:$AZ138,0)","v":{"$error":"#N/A"}},{"$f":"MATCH(Q$3,Millwall!$AP138:$AZ138,0)","v":{"$error":"#N/A"}},{"$f":"MATCH(R$3,Millwall!$AP138:$AZ138,0)","v":{"$error":"#N/A"}},{"$f":"MATCH(S$3,Millwall!$AP138:$AZ138,0)","v":{"$error":"#N/A"}},{"$f":"MATCH(T$3,Millwall!$AP138:$AZ138,0)","v":{"$error":"#N/A"}},{"$f":"MATCH(U$3,Millwall!$AP138:$AZ138,0)","v":{"$error":"#N/A"}},{"$f":"MATCH(V$3,Millwall!$AP138:$AZ138,0)","v":{"$error":"#N/A"}},{"$f":"MATCH(W$3,Millwall!$AP138:$AZ138,0)","v":{"$error":"#N/A"}},{"$f":"MATCH(X$3,Millwall!$AP138:$AZ138,0)","v":{"$error":"#N/A"}},{"$f":"MATCH(Y$3,Millwall!$AP138:$AZ138,0)","v":{"$error":"#N/A"}},{"$f":"MATCH(Z$3,Millwall!$AP138:$AZ138,0)","v":{"$error":"#N/A"}},{"$f":"MATCH(AA$3,Millwall!$AP138:$AZ138,0)","v":{"$error":"#N/A"}},{"$f":"MATCH(AB$3,Millwall!$AP138:$AZ138,0)","v":{"$error":"#N/A"}},{"$f":"MATCH(AC$3,Millwall!$AP138:$AZ138,0)","v":{"$error":"#N/A"}},{"$f":"MATCH(AD$3,Millwall!$AP138:$AZ138,0)","v":{"$error":"#N/A"}},{"$f":"MATCH(AE$3,Millwall!$AP138:$AZ138,0)","v":{"$error":"#N/A"}},{"$f":"MATCH(AF$3,Millwall!$AP138:$AZ138,0)","v":{"$error":"#N/A"}},{"$f":"MATCH(AG$3,Millwall!$AP138:$AZ138,0)","v":{"$error":"#N/A"}},{"$f":"MATCH(AH$3,Millwall!$AP138:$AZ138,0)","v":{"$error":"#N/A"}},{"$f":"MATCH(AI$3,Millwall!$AP138:$AZ138,0)","v":{"$error":"#N/A"}},{"$f":"MATCH(AJ$3,Millwall!$AP138:$AZ138,0)","v":{"$error":"#N/A"}},{"$f":"MATCH(AK$3,Millwall!$AP138:$AZ138,0)","v":{"$error":"#N/A"}},{"$f":"MATCH(AL$3,Millwall!$AP138:$AZ138,0)","v":{"$error":"#N/A"}},{"$f":"MATCH(AM$3,Millwall!$AP138:$AZ138,0)","v":{"$error":"#N/A"}},{"$f":"MATCH(AN$3,Millwall!$AP138:$AZ138,0)","v":{"$error":"#N/A"}},{"$f":"MATCH(AO$3,Millwall!$AP138:$AZ138,0)","v":{"$error":"#N/A"}},{"$f":"MATCH(AP$3,Millwall!$AP138:$AZ138,0)","v":{"$error":"#N/A"}},{"$f":"MATCH(AQ$3,Millwall!$AP138:$AZ138,0)","v":{"$error":"#N/A"}},{"$f":"MATCH(AR$3,Millwall!$AP138:$AZ138,0)","v":{"$error":"#N/A"}}]
[null,null,null,4,null,{"$f":"Millwall!AI139","v":"00:00:00"},null,{"$f":"Millwall!AK139","v":"00:00:00"},{"$f":"Millwall!AL139","v":"00:00:00"},{"$f":"Millwall!AO139","v":0},{"$f":"MATCH(K$3,Millwall!$AP139:$AZ139,0)","v":{"$error":"#N/A"}},{"$f":"MATCH(L$3,Millwall!$AP139:$AZ139,0)","v":{"$error":"#N/A"}},{"$f":"MATCH(M$3,Millwall!$AP139:$AZ139,0)","v":{"$error":"#N/A"}},{"$f":"MATCH(N$3,Millwall!$AP139:$AZ139,0)","v":{"$error":"#N/A"}},{"$f":"MATCH(O$3,Millwall!$AP139:$AZ139,0)","v":{"$error":"#N/A"}},{"$f":"MATCH(P$3,Millwall!$AP139:$AZ139,0)","v":{"$error":"#N/A"}},{"$f":"MATCH(Q$3,Millwall!$AP139:$AZ139,0)","v":{"$error":"#N/A"}},{"$f":"MATCH(R$3,Millwall!$AP139:$AZ139,0)","v":{"$error":"#N/A"}},{"$f":"MATCH(S$3,Millwall!$AP139:$AZ139,0)","v":{"$error":"#N/A"}},{"$f":"MATCH(T$3,Millwall!$AP139:$AZ139,0)","v":{"$error":"#N/A"}},{"$f":"MATCH(U$3,Millwall!$AP139:$AZ139,0)","v":{"$error":"#N/A"}},{"$f":"MATCH(V$3,Millwall!$AP139:$AZ139,0)","v":{"$error":"#N/A"}},{"$f":"MATCH(W$3,Millwall!$AP139:$AZ139,0)","v":{"$error":"#N/A"}},{"$f":"MATCH(X$3,Millwall!$AP139:$AZ139,0)","v":{"$error":"#N/A"}},{"$f":"MATCH(Y$3,Millwall!$AP139:$AZ139,0)","v":{"$error":"#N/A"}},{"$f":"MATCH(Z$3,Millwall!$AP139:$AZ139,0)","v":{"$error":"#N/A"}},{"$f":"MATCH(AA$3,Millwall!$AP139:$AZ139,0)","v":{"$error":"#N/A"}},{"$f":"MATCH(AB$3,Millwall!$AP139:$AZ139,0)","v":{"$error":"#N/A"}},{"$f":"MATCH(AC$3,Millwall!$AP139:$AZ139,0)","v":{"$error":"#N/A"}},{"$f":"MATCH(AD$3,Millwall!$AP139:$AZ139,0)","v":{"$error":"#N/A"}},{"$f":"MATCH(AE$3,Millwall!$AP139:$AZ139,0)","v":{"$error":"#N/A"}},{"$f":"MATCH(AF$3,Millwall!$AP139:$AZ139,0)","v":{"$error":"#N/A"}},{"$f":"MATCH(AG$3,Millwall!$AP139:$AZ139,0)","v":{"$error":"#N/A"}},{"$f":"MATCH(AH$3,Millwall!$AP139:$AZ139,0)","v":{"$error":"#N/A"}},{"$f":"MATCH(AI$3,Millwall!$AP139:$AZ139,0)","v":{"$error":"#N/A"}},{"$f":"MATCH(AJ$3,Millwall!$AP139:$AZ139,0)","v":{"$error":"#N/A"}},{"$f":"MATCH(AK$3,Millwall!$AP139:$AZ139,0)","v":{"$error":"#N/A"}},{"$f":"MATCH(AL$3,Millwall!$AP139:$AZ139,0)","v":{"$error":"#N/A"}},{"$f":"MATCH(AM$3,Millwall!$AP139:$AZ139,0)","v":{"$error":"#N/A"}},{"$f":"MATCH(AN$3,Millwall!$AP139:$AZ139,0)","v":{"$error":"#N/A"}},{"$f":"MATCH(AO$3,Millwall!$AP139:$AZ139,0)","v":{"$error":"#N/A"}},{"$f":"MATCH(AP$3,Millwall!$AP139:$AZ139,0)","v":{"$error":"#N/A"}},{"$f":"MATCH(AQ$3,Millwall!$AP139:$AZ139,0)","v":{"$error":"#N/A"}},{"$f":"MATCH(AR$3,Millwall!$AP139:$AZ139,0)","v":{"$error":"#N/A"}}]
[null,null,null,5,null,{"$f":"Millwall!AI140","v":"00:00:00"},null,{"$f":"Millwall!AK140","v":"00:00:00"},{"$f":"Millwall!AL140","v":"00:00:00"},{"$f":"Millwall!AO140","v":0},{"$f":"MATCH(K$3,Millwall!$AP140:$AZ140,0)","v":{"$error":"#N/A"}},{"$f":"MATCH(L$3,Millwall!$AP140:$AZ140,0)","v":{"$error":"#N/A"}},{"$f":"MATCH(M$3,Millwall!$AP140:$AZ140,0)","v":{"$error":"#N/A"}},{"$f":"MATCH(N$3,Millwall!$AP140:$AZ140,0)","v":{"$error":"#N/A"}},{"$f":"MATCH(O$3,Millwall!$AP140:$AZ140,0)","v":{"$error":"#N/A"}},{"$f":"MATCH(P$3,Millwall!$AP140:$AZ140,0)","v":{"$error":"#N/A"}},{"$f":"MATCH(Q$3,Millwall!$AP140:$AZ140,0)","v":{"$error":"#N/A"}},{"$f":"MATCH(R$3,Millwall!$AP140:$AZ140,0)","v":{"$error":"#N/A"}},{"$f":"MATCH(S$3,Millwall!$AP140:$AZ140,0)","v":{"$error":"#N/A"}},{"$f":"MATCH(T$3,Millwall!$AP140:$AZ140,0)","v":{"$error":"#N/A"}},{"$f":"MATCH(U$3,Millwall!$AP140:$AZ140,0)","v":{"$error":"#N/A"}},{"$f":"MATCH(V$3,Millwall!$AP140:$AZ140,0)","v":{"$error":"#N/A"}},{"$f":"MATCH(W$3,Millwall!$AP140:$AZ140,0)","v":{"$error":"#N/A"}},{"$f":"MATCH(X$3,Millwall!$AP140:$AZ140,0)","v":{"$error":"#N/A"}},{"$f":"MATCH(Y$3,Millwall!$AP140:$AZ140,0)","v":{"$error":"#N/A"}},{"$f":"MATCH(Z$3,Millwall!$AP140:$AZ140,0)","v":{"$error":"#N/A"}},{"$f":"MATCH(AA$3,Millwall!$AP140:$AZ140,0)","v":{"$error":"#N/A"}},{"$f":"MATCH(AB$3,Millwall!$AP140:$AZ140,0)","v":{"$error":"#N/A"}},{"$f":"MATCH(AC$3,Millwall!$AP140:$AZ140,0)","v":{"$error":"#N/A"}},{"$f":"MATCH(AD$3,Millwall!$AP140:$AZ140,0)","v":{"$error":"#N/A"}},{"$f":"MATCH(AE$3,Millwall!$AP140:$AZ140,0)","v":{"$error":"#N/A"}},{"$f":"MATCH(AF$3,Millwall!$AP140:$AZ140,0)","v":{"$error":"#N/A"}},{"$f":"MATCH(AG$3,Millwall!$AP140:$AZ140,0)","v":{"$error":"#N/A"}},{"$f":"MATCH(AH$3,Millwall!$AP140:$AZ140,0)","v":{"$error":"#N/A"}},{"$f":"MATCH(AI$3,Millwall!$AP140:$AZ140,0)","v":{"$error":"#N/A"}},{"$f":"MATCH(AJ$3,Millwall!$AP140:$AZ140,0)","v":{"$error":"#N/A"}},{"$f":"MATCH(AK$3,Millwall!$AP140:$AZ140,0)","v":{"$error":"#N/A"}},{"$f":"MATCH(AL$3,Millwall!$AP140:$AZ140,0)","v":{"$error":"#N/A"}},{"$f":"MATCH(AM$3,Millwall!$AP140:$AZ140,0)","v":{"$error":"#N/A"}},{"$f":"MATCH(AN$3,Millwall!$AP140:$AZ140,0)","v":{"$error":"#N/A"}},{"$f":"MATCH(AO$3,Millwall!$AP140:$AZ140,0)","v":{"$error":"#N/A"}},{"$f":"MATCH(AP$3,Millwall!$AP140:$AZ140,0)","v":{"$error":"#N/A"}},{"$f":"MATCH(AQ$3,Millwall!$AP140:$AZ140,0)","v":{"$error":"#N/A"}},{"$f":"MATCH(AR$3,Millwall!$AP140:$AZ140,0)","v":{"$error":"#N/A"}}]
[]
[null,null,null,null,null,null,null,null,null,"Total FA Cup Apperances",{"$f":"COUNT(K50:K54)","v":1},1,0,2,2,0,0,2,0,0,0,2,2,0,0,2,0,0,0,2,2,2,2,0,0,0,0,0,0,0,0,0,0,0]
[null,null,null,null,null,null,null,null,null,"Goals",{"$f":"Millwall!$CB$7","v":0},{"$f":"Millwall!$CB$8","v":0},{"$f":"Millwall!$CB$9","v":0},{"$f":"Millwall!$CB$10","v":0},{"$f":"Millwall!$CB$11","v":0},{"$f":"Millwall!$CB$12","v":0},{"$f":"Millwall!$CB$13","v":0},{"$f":"Millwall!$CB$14","v":0},{"$f":"Millwall!$CB$15","v":0},{"$f":"Millwall!$CB$16","v":0},{"$f":"Millwall!$CB$17","v":0},{"$f":"Millwall!$CB$18","v":2},{"$f":"Millwall!$CB$19","v":0},{"$f":"Millwall!$CB$20","v":0},{"$f":"Millwall!$CB$21","v":0},{"$f":"Millwall!$CB$22","v":0},{"$f":"Millwall!$CB$23","v":0},{"$f":"Millwall!$CB$24","v":0},{"$f":"Millwall!$CB$25","v":0},{"$f":"Millwall!$CB$26","v":0},{"$f":"Millwall!$CB$27","v":0},{"$f":"Millwall!$CB$28","v":0},{"$f":"Millwall!$CB$29","v":4},{"$f":"Millwall!$CB$30","v":0},{"$f":"Millwall!$CB$31","v":0},{"$f":"Millwall!$CB$32","v":0},{"$f":"Millwall!$CB$33","v":0},{"$f":"Millwall!$CB$34","v":0},{"$f":"Millwall!$CB$35","v":0},{"$f":"Millwall!$CB$36","v":0},{"$f":"Millwall!$CB$37","v":0},{"$f":"Millwall!$CB$38","v":0},{"$f":"Millwall!$CB$39","v":0},{"$f":"Millwall!$CB$40","v":0}]
[]
[]
[]
[null,null,null,null,null,null,null,"Checks",null,null,null,null,null,null,null,null,null,null,1]
[]
["Manual Input",null,null,null,null,null,null,"Opponents","Venue/Result",null,{"$f":"K3","v":"Alexander"},{"$f":"L3","v":"Bond"},"Duffy","Fishlock","Forsyth","Graham","Hancock","Harkins","Horton","McCartney","Newcombe","Phillips","Pipe","Poxton","Ranson","Roberts","Snaith","Swallow","Sweetman","Turnbull","Walsh","Wilson","Yardley","Yuill",0,0,0,0,0,0,0,"Own Goal",0,0]
[null,null,null,1,null,{"$f":"F4","v":"1933-08-26"},null,{"$f":"H4","v":"Lincoln"},{"$f":"I4","v":"(A)"},{"$f":"J4","v":"W 1-0"},null,null,null,null,10,6,5,null,7,null,4,null,3,11,9,8,null,null,null,null,2,1]
[null,null,null,2,null,{"$f":"F5","v":"1933-08-28"},null,{"$f":"H5","v":"Swansea"},"(H)","W 2-1",null,null,null,null,10,6,5,null,7,null,4,null,3,11,9,8,null,null,null,null,2,1]
[null,null,null,3,null,"1933-09-02",null,"Bury","(H)","D 0-0",null,null,null,null,null,6,5,10,7,null,4,null,3,11,9,8,null,null,null,null,2,1]
[null,null,null,4,null,"1933-09-04",null,"Swansea","(A)","L 0-2",null,null,null,null,null,6,5,10,7,null,4,null,null,11,9,8,null,null,2,null,3,1]
[null,null,null,5,null,"1933-09-09",null,"Hull","(A)","L 2-3",null,null,null,null,null,6,5,10,7,null,4,null,null,11,9,8,null,null,2,null,3,1]
[null,null,null,6,null,"1933-09-16",null,"Fulham","(H)","L 0-1",null,null,null,null,10,6,5,null,7,null,4,null,null,11,9,8,null,null,2,null,3,1]
[null,null,null,7,null,"1933-09-23",null,"Southampton","(A)","W 3-2",null,null,10,11,6,null,5,null,7,null,4,null,null,null,9,8,null,null,2,null,3,1]
[null,null,null,8,null,"1933-09-30",null,"Blackpool","(H)","D 0-0",null,null,10,11,6,null,5,null,7,null,4,null,3,null,9,8,null,null,2,null,null,1]
[null,null,null,9,null,"1933-10-07",null,"Bradford City","(A)","L 0-1",null,null,10,11,6,null,5,null,7,null,4,null,null,null,9,8,null,null,2,null,3,1]
[null,null,null,10,null,"1933-10-14",null,"Port Vale","(H)","L 0-3",7,null,null,11,10,null,5,null,9,null,4,null,null,null,null,8,null,6,2,null,3,1]
[null,null,null,11,null,"1933-10-21",null,"West Ham","(H)","D 2-2",8,9,10,11,6,null,5,null,7,null,4,null,null,null,null,null,null,null,2,null,3,1]
[null,null,null,12,null,"1933-10-28",null,"Nottm Forest","(A)","L 0-2",8,9,null,11,10,6,5,null,7,null,null,null,null,null,null,null,null,4,2,null,3,1]
[null,null,null,13,null,"1933-11-04",null,"Grimsby","(H)","L 0-1",8,9,null,11,6,null,5,null,7,null,null,null,null,null,null,10,null,4,2,null,3,null,null,1]
[null,null,null,14,null,"1933-11-11",null,"Bradford PA","(A)","L 0-4",8,9,null,11,6,null,5,null,7,null,null,null,null,null,10,null,null,4,2,null,3,null,null,1]
[null,null,null,15,null,"1933-11-18",null,"Preston","(H)","D 1-1",8,null,null,11,6,null,5,null,null,null,4,null,3,7,10,null,null,null,null,null,2,null,9,1]
[null,null,null,16,null,"1933-11-25",null,"Oldham","(A)","L 0-1",8,null,null,11,6,null,5,10,null,null,4,null,3,null,7,null,null,null,null,null,2,1,9]
[null,null,null,17,null,"1933-12-02",null,"Burnley","(H)","D 0-0",null,null,10,11,6,null,null,null,7,null,4,8,3,null,null,null,null,null,null,5,2,1,9]
[null,null,null,18,null,"1933-12-09",null,{"$f":"H21","v":"Brentford"},"(A)","L 0-3",null,null,null,null,6,null,4,null,7,null,null,8,3,11,null,10,null,null,null,5,2,1,9]
[null,null,null,19,null,"1933-12-16",null,"Bolton","(H)","W 2-1",null,7,null,11,6,null,4,null,null,null,null,8,3,null,null,10,null,null,null,5,2,1,9]
[null,null,null,20,null,"1933-12-23",null,"Man Utd","(A)","D 1-1",null,7,null,11,6,null,4,null,null,null,null,8,3,null,null,10,null,null,null,5,2,1,9]
[null,null,null,21,null,"1933-12-25",null,"Notts Co","(A)","W 1-0",null,7,null,11,6,null,4,null,null,null,null,8,3,null,null,10,null,null,null,5,2,1,9]
[null,null,null,22,null,"1933-12-26",null,"Notts Co","(H)","W 3-2",null,7,null,11,6,null,4,null,null,null,null,8,3,null,null,10,null,null,null,5,2,null,9,1]
[null,null,null,23,null,"1933-12-30",null,"Lincoln","(H)","W 4-1",null,7,null,11,6,null,4,null,null,null,null,8,3,null,null,10,null,null,null,5,2,1,9]
[null,null,null,24,null,"1934-01-06",null,"Bury","(A)","L 1-5",null,7,null,11,6,null,4,null,null,null,null,8,null,null,null,10,null,null,2,5,3,1,9]
[null,null,null,25,null,"1934-01-20",null,"Hull","(H)","W 2-0",null,7,null,11,6,null,null,4,null,null,null,8,3,null,null,10,null,null,null,5,2,1,9]
[null,null,null,26,null,"1934-01-29",null,"Fulham","(A)","L 0-2",7,null,null,11,6,null,null,4,null,null,null,8,3,null,9,10,null,null,null,5,2,1]
[null,null,null,27,null,"1934-02-10",null,"Blackpool","(A)","D 2-2",7,null,null,11,6,null,null,4,9,null,null,8,3,null,null,10,null,null,null,5,2,1]
[null,null,null,28,null,"1934-02-17",null,"Bradford City","(H)","D 1-1",7,null,null,11,6,null,null,4,9,null,null,8,3,null,null,10,null,null,null,5,2,1]
[null,null,null,29,null,"1934-02-24",null,"Port Vale","(A)","L 1-5",7,null,null,11,6,null,null,null,9,null,4,8,null,null,null,10,null,3,null,5,2,1]
[null,null,null,30,null,"1934-03-03",null,"West Ham","(A)","D 1-1",7,null,null,11,6,null,5,null,null,null,4,8,null,null,null,10,null,null,null,3,2,null,9,1]
[null,null,null,31,null,"1934-03-10",null,"Nottm Forest","(H)","D 0-0",9,null,null,11,6,null,5,null,7,null,4,8,3,null,null,10,null,null,null,null,2,null,null,1]
[null,null,null,32,null,"1934-03-17",null,"Grimsby","(A)","L 2-5",8,null,null,11,6,null,5,null,null,7,4,null,3,null,null,10,null,null,null,9,2,null,null,1]
[null,null,null,33,null,"1934-03-24",null,"Bradford PA","(H)","L 0-1",8,null,null,11,6,null,null,null,null,7,4,null,3,null,10,null,9,null,2,5,null,null,null,1]
[null,null,null,34,null,"1934-03-30",null,{"$f":"H37","v":"Plymouth"},"(H)","D 0-0",8,null,null,11,6,null,null,10,null,7,4,null,3,null,null,null,9,null,2,5,null,null,null,1]
[null,null,null,35,null,"1934-03-31",null,"Preston","(A)","L 2-4",8,null,null,11,6,null,null,null,9,7,4,null,3,null,null,10,null,null,2,5,null,null,null,1]
[null,null,null,36,null,"1934-04-02",null,"Plymouth","(A)","L 0-1",8,null,null,null,6,null,null,null,7,11,4,10,3,null,null,null,9,null,null,5,2,null,null,1]
[null,null,null,37,null,"1934-04-07",null,"Oldham","(H)","W 1-0",8,null,null,11,6,null,null,null,null,7,4,null,3,null,null,10,null,null,null,5,2,null,9,1]
[null,null,null,38,null,"1934-04-09",null,"Southampton","(H)","W 1-0",8,null,null,11,6,null,null,null,null,7,4,null,3,null,null,10,null,null,null,5,2,null,9,1]
[null,null,null,39,null,"1934-04-14",null,"Burnley","(A)","L 1-2",8,null,null,11,6,null,null,null,null,7,4,null,3,null,null,10,null,null,null,5,2,null,9,1]
[null,null,null,40,null,"1934-04-21",null,"Brentford","(H)","W 2-0",8,null,null,11,6,null,null,null,null,7,4,null,3,null,null,10,null,null,null,5,2,null,9,1]
[null,null,null,41,null,"1934-04-28",null,"Bolton","(A)","L 0-5",8,null,null,11,6,null,null,null,null,7,4,null,3,null,null,10,null,null,null,5,2,null,9,1]
[null,null,null,42,null,"1934-05-05",null,"Man Utd","(H)","L 0-2",8,null,null,11,6,null,null,null,null,7,4,null,3,null,null,10,null,null,null,5,2,null,9,1]
[]
[null,null,null,null,null,null,null,null,null,"Total League Apperances",{"$f":"COUNT(K64:K105)","v":24},11,5,34,39,7,26,9,22,11,28,16,29,8,14,33,3,5,15,25,38,25,18,17,0,0,0,0,0,0,0,0,0,0]
[null,null,null,null,null,null,null,null,null,"Goals",1,1,0,7,3,0,1,0,4,2,1,4,0,1,3,5,0,0,0,0,0,0,5,0,0,1,0,0,0,0,0,0,0,0]
[]
[null,null,null,3,null,{"$f":"F50","v":"1934-01-13"},null,{"$f":"H50","v":"Accrington Stanley"},"(H)","W 3-0",null,7,null,11,6,null,null,4,null,null,null,8,3,null,null,10,null,null,null,5,2,1,9]
[null,null,null,"3R",null,"1934-01-27",null,"Leicester City","(H)","L 3-6",7,null,null,11,6,null,null,4,null,null,null,8,3,null,null,10,null,null,null,5,2,1,9]
[null,null,null,4,null,"00:00:00",null,"00:00:00","00:00:00",0]
[null,null,null,4,null,"00:00:00",null,"00:00:00","00:00:00",0]
[null,null,null,5,null,"00:00:00",null,"00:00:00","00:00:00",0]
[]
[null,null,null,null,null,null,null,null,null,"Total FA Cup Apperances",{"$f":"COUNT(K110:K114)","v":1},1,0,2,2,0,0,2,0,0,0,2,2,0,0,2,0,0,0,2,2,2,2,0,0,0,0,null,0,0,0,null,0]
[null,null,null,null,null,null,null,null,null,"Goals",0,0,0,0,0,0,0,0,0,0,0,2,0,0,0,0,0,0,0,0,0,0,4,0,0,0,0,0,0,0,0,0,0,0]
[]
[]
[]
["Manual Input",null,null,null,null,null,null,"Opponents","Venue/Result",null,{"$f":"K3","v":"Alexander"},{"$f":"L3","v":"Bond"},"Duffy","Fishlock","Forsyth","Graham","Hancock","Harkins","Horton","McCartney","Newcombe","Phillips","Pipe","Poxton","Ranson","Roberts","Snaith","Swallow","Sweetman","Turnbull","Walsh","Wilson","Yardley","Yuill",0,0,0,0,0,0,0,"Own Goal",0,0]
[null,null,null,1,null,{"$f":"F4","v":"1933-08-26"},null,{"$f":"H4","v":"Lincoln"},{"$f":"I4","v":"(A)"},{"$f":"J4","v":"W 1-0"},null,null,null,null,10,6,5,null,7,null,4,null,3,11,9,8,null,null,null,null,2,1]
[null,null,null,2,null,{"$f":"F5","v":"1933-08-28"},null,{"$f":"H5","v":"Swansea"},"(H)","W 2-1",null,null,null,null,10,6,5,null,7,null,4,null,3,11,9,8,null,null,null,null,2,1]
[null,null,null,3,null,"1933-09-02",null,"Bury","(H)","D 0-0",null,null,null,null,null,6,5,10,7,null,4,null,3,11,9,8,null,null,null,null,2,1]
[null,null,null,4,null,"1933-09-04",null,"Swansea","(A)","L 0-2",null,null,null,null,null,6,5,10,7,null,4,null,null,11,9,8,null,null,2,null,3,1]
[null,null,null,5,null,"1933-09-09",null,"Hull","(A)","L 2-3",null,null,null,null,null,6,5,10,7,null,4,null,null,11,9,8,null,null,2,null,3,1]
[null,null,null,6,null,"1933-09-16",null,"Fulham","(H)","L 0-1",null,null,null,null,10,6,5,null,7,null,4,null,null,11,9,8,null,null,2,null,3,1]
[null,null,null,7,null,"1933-09-23",null,"Southampton","(A)","W 3-2",null,null,10,11,6,null,5,null,7,null,4,null,null,null,9,8,null,null,2,null,3,1]
[null,null,null,8,null,"1933-09-30",null,"Blackpool","(H)","D 0-0",null,null,10,11,6,null,5,null,7,null,4,null,3,null,9,8,null,null,2,null,null,1]
[null,null,null,9,null,"1933-10-07",null,"Bradford City","(A)","L 0-1",null,null,10,11,6,null,5,null,7,null,4,null,null,null,9,8,null,null,2,null,3,1]
[null,null,null,10,null,"1933-10-14",null,"Port Vale","(H)","L 0-3",7,null,null,11,10,null,5,null,9,null,4,null,null,null,null,8,null,6,2,null,3,1]
[null,null,null,11,null,"1933-10-21",null,"West Ham","(H)","D 2-2",8,9,10,11,6,null,5,null,7,null,4,null,null,null,null,null,null,null,2,null,3,1]
[null,null,null,12,null,"1933-10-28",null,"Nottm Forest","(A)","L 0-2",8,9,null,11,10,6,5,null,7,null,null,null,null,null,null,null,null,4,2,null,3,1]
[null,null,null,13,null,"1933-11-04",null,"Grimsby","(H)","L 0-1",8,9,null,11,6,null,5,null,7,null,null,null,null,null,null,10,null,4,2,null,3,null,null,1]
[null,null,null,14,null,"1933-11-11",null,"Bradford PA","(A)","L 0-4",8,9,null,11,6,null,5,null,7,null,null,null,null,null,10,null,null,4,2,null,3,null,null,1]
[null,null,null,15,null,"1933-11-18",null,"Preston","(H)","D 1-1",8,null,null,11,6,null,5,null,null,null,4,null,3,7,10,null,null,null,null,null,2,null,9,1]
[null,null,null,16,null,"1933-11-25",null,"Oldham","(A)","L 0-1",8,null,null,11,6,null,5,10,null,null,4,null,3,null,7,null,null,null,null,null,2,1,9]
[null,null,null,17,null,"1933-12-02",null,"Burnley","(H)","D 0-0",null,null,10,11,6,null,null,null,7,null,4,8,3,null,null,null,null,null,null,5,2,1,9]
[null,null,null,18,null,"1933-12-09",null,{"$f":"H21","v":"Brentford"},"(A)","L 0-3",null,null,null,null,6,null,4,null,7,null,null,8,3,11,null,10,null,null,null,5,2,1,9]
[null,null,null,19,null,"1933-12-16",null,"Bolton","(H)","W 2-1",null,7,null,11,6,null,4,null,null,null,null,8,3,null,null,10,null,null,null,5,2,1,9]
[null,null,null,20,null,"1933-12-23",null,"Man Utd","(A)","D 1-1",null,7,null,11,6,null,4,null,null,null,null,8,3,null,null,10,null,null,null,5,2,1,9]
[null,null,null,21,null,"1933-12-25",null,"Notts Co","(A)","W 1-0",null,7,null,11,6,null,4,null,null,null,null,8,3,null,null,10,null,null,null,5,2,1,9]
[null,null,null,22,null,"1933-12-26",null,"Notts Co","(H)","W 3-2",null,7,null,11,6,null,4,null,null,null,null,8,3,null,null,10,null,null,null,5,2,null,9,1]
[null,null,null,23,null,"1933-12-30",null,"Lincoln","(H)","W 4-1",null,7,null,11,6,null,4,null,null,null,null,8,3,null,null,10,null,null,null,5,2,1,9]
[null,null,null,24,null,"1934-01-06",null,"Bury","(A)","L 1-5",null,7,null,11,6,null,4,null,null,null,null,8,null,null,null,10,null,null,2,5,3,1,9]
[null,null,null,25,null,"1934-01-20",null,"Hull","(H)","W 2-0",null,7,null,11,6,null,null,4,null,null,null,8,3,null,null,10,null,null,null,5,2,1,9]
[null,null,null,26,null,"1934-01-29",null,"Fulham","(A)","L 0-2",7,null,null,11,6,null,null,4,null,null,null,8,3,null,9,10,null,null,null,5,2,1]
[null,null,null,27,null,"1934-02-10",null,"Blackpool","(A)","D 2-2",7,null,null,11,6,null,null,4,9,null,null,8,3,null,null,10,null,null,null,5,2,1]
[null,null,null,28,null,"1934-02-17",null,"Bradford City","(H)","D 1-1",7,null,null,11,6,null,null,4,9,null,null,8,3,null,null,10,null,null,null,5,2,1]
[null,null,null,29,null,"1934-02-24",null,"Port Vale","(A)","L 1-5",7,null,null,11,6,null,null,null,9,null,4,8,null,null,null,10,null,3,null,5,2,1]
[null,null,null,30,null,"1934-03-03",null,"West Ham","(A)","D 1-1",7,null,null,11,6,null,5,null,null,null,4,8,null,null,null,10,null,null,null,3,2,null,9,1]
[null,null,null,31,null,"1934-03-10",null,"Nottm Forest","(H)","D 0-0",9,null,null,11,6,null,5,null,7,null,4,8,3,null,null,10,null,null,null,null,2,null,null,1]
[null,null,null,32,null,"1934-03-17",null,"Grimsby","(A)","L 2-5",8,null,null,11,6,null,5,null,null,7,4,null,3,null,null,10,null,null,null,9,2,null,null,1]
[null,null,null,33,null,"1934-03-24",null,"Bradford PA","(H)","L 0-1",8,null,null,11,6,null,null,null,null,7,4,null,3,null,10,null,9,null,2,5,null,null,null,1]
[null,null,null,34,null,"1934-03-30",null,{"$f":"H37","v":"Plymouth"},"(H)","D 0-0",8,null,null,11,6,null,null,10,null,7,4,null,3,null,null,null,9,null,2,5,null,null,null,1]
[null,null,null,35,null,"1934-03-31",null,"Preston","(A)","L 2-4",8,null,null,11,6,null,null,null,9,7,4,null,3,null,null,10,null,null,2,5,null,null,null,1]
[null,null,null,36,null,"1934-04-02",null,"Plymouth","(A)","L 0-1",8,null,null,null,6,null,null,null,7,11,4,10,3,null,null,null,9,null,null,5,2,null,null,1]
[null,null,null,37,null,"1934-04-07",null,"Oldham","(H)","W 1-0",8,null,null,11,6,null,null,null,null,7,4,null,3,null,null,10,null,null,null,5,2,null,9,1]
[null,null,null,38,null,"1934-04-09",null,"Southampton","(H)","W 1-0",8,null,null,11,6,null,null,null,null,7,4,null,3,null,null,10,null,null,null,5,2,null,9,1]
[null,null,null,39,null,"1934-04-14",null,"Burnley","(A)","L 1-2",8,null,null,11,6,null,null,null,null,7,4,null,3,null,null,10,null,null,null,5,2,null,9,1]
[null,null,null,40,null,"1934-04-21",null,"Brentford","(H)","W 2-0",8,null,null,11,6,null,null,null,null,7,4,null,3,null,null,10,null,null,null,5,2,null,9,1]
[null,null,null,41,null,"1934-04-28",null,"Bolton","(A)","L 0-5",8,null,null,11,6,null,null,null,null,7,4,null,3,null,null,10,null,null,null,5,2,null,9,1]
[null,null,null,42,null,"1934-05-05",null,"Man Utd","(H)","L 0-2",8,null,null,11,6,null,null,null,null,7,4,null,3,null,null,10,null,null,null,5,2,null,9,1]
[]
[null,null,null,null,null,null,null,null,null,"Total League Apperances",{"$f":"COUNT(K122:K163)","v":24},11,5,34,39,7,26,9,22,11,28,16,29,8,14,33,3,5,15,25,38,25,18,17,0,0,0,0,0,0,0,0,0,0]
[null,null,null,null,null,null,null,null,null,"Goals",1,1,0,7,3,0,1,0,4,2,1,4,0,1,3,5,0,0,0,0,0,0,5,0,0,1,0,0,0,0,0,0,0,0]
[]
[null,null,null,3,null,{"$f":"F50","v":"1934-01-13"},null,{"$f":"H50","v":"Accrington Stanley"},"(H)","W 3-0",null,7,null,11,6,null,null,4,null,null,null,8,3,null,null,10,null,null,null,5,2,1,9]
[null,null,null,"3R",null,"1934-01-27",null,"Leicester City","(H)","L 3-6",7,null,null,11,6,null,null,4,null,null,null,8,3,null,null,10,null,null,null,5,2,1,9]
[null,null,null,4,null,"00:00:00",null,"00:00:00","00:00:00",0]
[null,null,null,4,null,"00:00:00",null,"00:00:00","00:00:00",0]
[null,null,null,5,null,"00:00:00",null,"00:00:00","00:00:00",0]
[]
[null,null,null,null,null,null,null,null,null,"Total FA Cup Apperances",{"$f":"COUNT(K168:K172)","v":1},1,0,2,2,0,0,2,0,0,0,2,2,0,0,2,0,0,0,2,2,2,2,0,0,0,0,0,0,0,0,0,0,0]
[null,null,null,null,null,null,null,null,null,"Goals",0,0,0,0,0,0,0,0,0,0,0,2,0,0,0,0,0,0,0,0,0,0,4,0,0,0,0,0,0,0,0,0,0,0]

{"sheet":"Sheet1","index":2,"n_rows":195,"n_cols":63,"rows_kept":195,"cut":false,"hidden":false,"merged":[[5,1,7,1],[5,52,7,52],[15,1,17,1],[15,52,17,52],[25,1,27,1],[25,52,27,52],[35,1,37,1],[35,52,37,52],[45,1,47,1],[45,52,47,52],[55,1,57,1],[55,52,57,52],[65,1,67,1],[65,52,67,52],[75,1,77,1],[75,52,77,52],[85,1,87,1],[85,52,87,52],[95,1,97,1],[95,52,97,52],[105,1,107,1],[105,52,107,52],[115,1,117,1],[115,52,117,52],[155,1,157,1],[155,52,157,52],[200,13,200,14],[201,13,201,14],[125,1,127,1],[125,52,127,52],[135,1,137,1],[135,52,137,52],[145,1,147,1],[145,52,147,52]]}
[]
[null,null,null,null,null,null,null,null,null,null,null,null,null,null,null,null,null,null,null,null,null,null,null,null,null,null,null,null,null,null,null,null,null,null,null,null,null,null,null,null,null,null,null,null,null,null,null,null,null,null,null,null,null,null,null,null,null,null,null,null,null,null,{"$f":"158-70","v":88}]
[]
[]
[]
[null,75,null,null,null,null,null,null,null,null,null,null,null,null,null,null,null,null,null,null,null,null,null,null,null,null,null,null,null,null,null,null,null,null,null,null,null,null,null,null,null,null,null,null,null,null,null,null,null,null,null,null,75]
[]
[]
[]
[]
[]
[]
[]
[]
[]
[null,70,null,null,null,null,null,null,null,null,null,null,null,null,null,null,null,null,null,null,null,null,null,null,null,null,null,null,null,null,null,null,null,null,null,null,null,null,null,null,null,null,null,null,null,null,null,null,null,null,null,null,70]
[]
[]
[]
[]
[]
[]
[]
[]
[]
[null,65,null,null,null,null,null,null,null,null,null,null,null,null,null,null,null,null,null,null,null,null,null,null,null,null,null,null,null,null,null,null,null,null,null,null,null,null,null,null,null,null,null,null,null,null,null,null,null,null,null,null,65]
[]
[]
[]
[]
[]
[]
[]
[]
[]
[null,60,null,null,null,null,null,null,null,null,null,null,null,null,null,null,null,null,null,null,null,null,null,null,null,null,null,null,null,null,null,null,null,null,null,null,null,null,null,null,null,null,null,null,null,null,null,null,null,null,null,null,60]
[]
[]
[]
[]
[]
[]
[]
[]
[]
[null,55,null,null,null,null,null,null,null,null,null,null,null,null,null,null,null,null,null,null,null,null,null,null,null,null,null,null,null,null,null,null,null,null,null,null,null,null,null,null,null,null,null,null,null,null,null,null,null,null,null,null,55]
[]
[]
[]
[]
[]
[]
[]
[]
[]
[null,50,null,null,null,null,null,null,null,null,null,null,null,null,null,null,null,null,null,null,null,null,null,null,null,null,null,null,null,null,null,null,null,null,null,null,null,null,null,null,null,null,null,null,null,null,null,null,null,null,null,null,50]
[]
[]
[]
[]
[]
[]
[]
[]
[]
[null,45,null,null,null,null,null,null,null,null,null,null,null,null,null,null,null,null,null,null,null,null,null,null,null,null,null,null,null,null,null,null,null,null,null,null,null,null,null,null,null,null,null,null,null,null,null,null,null,null,null,null,45]
[]
[]
[]
[]
[]
[]
[]
[]
[]
[null,40,null,null,null,null,null,null,null,null,null,null,null,null,null,null,null,null,null,null,null,null,null,null,null,null,null,null,null,null,null,null,null,null,null,null,null,null,null,null,null,null,null,null,null,null,null,null,null,null,null,null,40]
[]
[]
[]
[]
[]
[]
[]
[]
[]
[null,35,null,null,null,null,null,null,null,null,null,null,null,null,null,null,null,null,null,null,null,null,null,null,null,null,null,null,null,null,null,null,null,null,null,null,null,null,null,null,null,null,null,null,null,null,null,null,null,null,null,null,35]
[]
[]
[]
[]
[]
[]
[]
[]
[]
[null,30,null,null,null,null,null,null,null,null,null,null,null,null,null,null,null,null,null,null,null,null,null,null,null,null,null,null,null,null,null,null,null,null,null,null,null,null,null,null,null,null,null,null,null,null,null,null,null,null,null,null,30]
[]
[]
[]
[]
[]
[]
[]
[]
[]
[null,25,null,null,null,null,null,null,null,null,null,null,null,null,null,null,null,null,null,null,null,null,null,null,null,null,null,null,null,null,null,null,null,null,null,null,null,null,null,null,null,null,null,null,null,null,null,null,null,null,null,null,25]
[]
[]
[]
[]
[]
[]
[]
[]
[]
[null,20,null,null,null,null,null,null,null,null,null,null,null,null,null,null,null,null,null,null,null,null,null,null,null,null,null,null,null,null,null,null,null,null,null,null,null,null,null,null,null,null,null,null,null,null,null,null,null,null,null,null,20]
[]
[]
[]
[]
[]
[]
[]
[]
[]
[null,15,null,null,null,null,null,null,null,null,null,null,null,null,null,null,null,null,null,null,null,null,null,null,null,null,null,null,null,null,null,null,null,null,null,null,null,null,null,null,null,null,null,null,null,null,null,null,null,null,null,null,15]
[]
[]
[]
[]
[]
[]
[]
[]
[]
[null,10,null,null,null,null,null,null,null,null,null,null,null,null,null,null,null,null,null,null,null,null,null,null,null,null,null,null,null,null,null,null,null,null,null,null,null,null,null,null,null,null,null,null,null,null,null,null,null,null,null,null,10]
[]
[]
[]
[]
[]
[]
[]
[]
[]
[null,5,null,null,null,null,null,null,null,null,null,null,null,null,null,null,null,null,null,null,null,null,null,null,null,null,null,null,null,null,null,null,null,null,null,null,null,null,null,null,null,null,null,null,null,null,null,null,null,null,null,null,5]
[]
[]
[]
[]
[]
[]
[]
[]
[]
[null,0,null,null,null,null,null,null,null,null,null,null,null,null,null,null,null,null,null,null,null,null,null,null,null,null,null,null,null,null,null,null,null,null,null,null,null,null,null,null,null,null,null,null,null,null,null,null,null,null,null,null,0]
[]
[]
[]
[null,null,null,"Lincoln (A) W 1-0","Swansea (H) W 2-1","Bury (H) D 0-0","Swansea (A) L 0-2","Hull (A) L 2-3","Fulham (H) L 0-1","Southampton (A) W 3-2","Blackpool (H) D 0-0","Bradford City (A) L 0-1","Port Vale (H) L 0-3","West Ham (H) D 2-2","Nottm Forest (A) L 0-2","Grimsby (H) L 0-1","Bradford PA (A) L 0-4","Preston (H) D 1-1","Oldham (A) L 0-1","Burnley (H) D 0-0","Brentford (A) L 0-3","Bolton (H) W 2-1","Man Utd (A) D 1-1","Notts Co (A) W 1-0","Notts Co (H) W 3-2","Lincoln (H) W 4-1","Bury (A) L 1-5","Hull (H) W 2-0","Fulham (A) L 0-2","Blackpool (A) D 2-2","Bradford City (H) D 1-1","Port Vale (A) L 1-5","West Ham (A) D 1-1","Nottm Forest (H) D 0-0","Grimsby (A) L 2-5","Bradford PA (H) L 0-1","Plymouth (H) D 0-0","Preston (A) L 2-4","Plymouth (A) L 0-1","Oldham (H) W 1-0","Southampton (H) W 1-0","Burnley (A) L 1-2","Brentford (H) W 2-0","Bolton (A) L 0-5","Man Utd (H) L 0-2","Final Table"]
[]
[]
[]
[]
[]
[]
[null,null,null,{"$f":"D187-D174","v":0},0,0,0,1,1,0,0,0,2,1,1,1,3,3,1,0,0,0,2,1,1,0,0,0,1,2,2,1,1,0,1,0,0,1,1,1,1,1,1,1,1,0,0,0,0,0]
[null,null,null,4,5,6,7,8,9,10,11,12,13,14,15,16,17,18,19,20,21,22,23,24,25,26,27,28,29,30,31,32,33,34,35,36,37,38,39,40,41,42,43,44,45,46,47,48,49,50]
[null,null,null,{"$f":"D176-D189","v":0},0,0,0,1,1,0,0,1,1,0,2,0,0,0,1,1,1,1,1,0,1,1,0,2,2,1,1,3,2,3,1,1,1,0,0,1,3,1,1,1,1,0,0,0,0,0]
[]
[]
[null,"Top Y",null,{"$f":"Sheet2!$I$6","v":2},{"$f":"Sheet2!$I$7","v":4},{"$f":"Sheet2!$I$8","v":6},{"$f":"Sheet2!$I$9","v":8},{"$f":"Sheet2!$I$10","v":8},{"$f":"Sheet2!$I$11","v":10},{"$f":"Sheet2!$I$12","v":10},{"$f":"Sheet2!$I$13","v":12},{"$f":"Sheet2!$I$14","v":14},{"$f":"Sheet2!$I$15","v":15},{"$f":"Sheet2!$I$16","v":16},{"$f":"Sheet2!$I$17","v":17},{"$f":"Sheet2!$I$18","v":19},{"$f":"Sheet2!$I$19","v":20},{"$f":"Sheet2!$I$20","v":22},{"$f":"Sheet2!$I$21","v":24},{"$f":"Sheet2!$I$22","v":24},{"$f":"Sheet2!$I$23","v":26},{"$f":"Sheet2!$I$24","v":28},{"$f":"Sheet2!$I$25","v":28},{"$f":"Sheet2!$I$26","v":30},{"$f":"Sheet2!$I$27","v":32},{"$f":"Sheet2!$I$28","v":32},{"$f":"Sheet2!$I$29","v":34},{"$f":"Sheet2!$I$30","v":36},{"$f":"Sheet2!$I$31","v":36},{"$f":"Sheet2!$I$32","v":40},{"$f":"Sheet2!$I$33","v":41},{"$f":"Sheet2!$I$34","v":43},{"$f":"Sheet2!$I$35","v":44},{"$f":"Sheet2!$I$36","v":45},{"$f":"Sheet2!$I$37","v":47},{"$f":"Sheet2!$I$38","v":48},{"$f":"Sheet2!$I$39","v":49},{"$f":"Sheet2!$I$40","v":51},{"$f":"Sheet2!$I$41","v":53},{"$f":"Sheet2!$I$42","v":55},{"$f":"Sheet2!$I$43","v":55},{"$f":"Sheet2!$I$44","v":57},{"$f":"Sheet2!$I$45","v":57},{"$f":"Sheet2!$I$46","v":59},{"$f":"Sheet2!$I$47","v":59},{"$f":"Sheet2!$I$48","v":0},{"$f":"Sheet2!$I$49","v":0},{"$f":"Sheet2!$I$50","v":0},{"$f":"Sheet2!$I$51","v":0},{"$f":"Sheet2!$I$52","v":0}]
[]
[null,"3rd a",null,{"$f":"Sheet2!$K$6","v":2},{"$f":"Sheet2!$K$7","v":4},{"$f":"Sheet2!$K$8","v":5},{"$f":"Sheet2!$K$9","v":6},{"$f":"Sheet2!$K$10","v":7},{"$f":"Sheet2!$K$11","v":8},{"$f":"Sheet2!$K$12","v":10},{"$f":"Sheet2!$K$13","v":11},{"$f":"Sheet2!$K$14","v":12},{"$f":"Sheet2!$K$15","v":12},{"$f":"Sheet2!$K$16","v":14},{"$f":"Sheet2!$K$17","v":16},{"$f":"Sheet2!$K$18","v":17},{"$f":"Sheet2!$K$19","v":17},{"$f":"Sheet2!$K$20","v":19},{"$f":"Sheet2!$K$21","v":21},{"$f":"Sheet2!$K$22","v":22},{"$f":"Sheet2!$K$23","v":23},{"$f":"Sheet2!$K$24","v":23},{"$f":"Sheet2!$K$25","v":23},{"$f":"Sheet2!$K$26","v":25},{"$f":"Sheet2!$K$27","v":25},{"$f":"Sheet2!$K$28","v":27},{"$f":"Sheet2!$K$29","v":28},{"$f":"Sheet2!$K$30","v":30},{"$f":"Sheet2!$K$31","v":31},{"$f":"Sheet2!$K$32","v":33},{"$f":"Sheet2!$K$33","v":33},{"$f":"Sheet2!$K$34","v":36},{"$f":"Sheet2!$K$35","v":36},{"$f":"Sheet2!$K$36","v":38},{"$f":"Sheet2!$K$37","v":39},{"$f":"Sheet2!$K$38","v":40},{"$f":"Sheet2!$K$39","v":41},{"$f":"Sheet2!$K$40","v":42},{"$f":"Sheet2!$K$41","v":43},{"$f":"Sheet2!$K$42","v":45},{"$f":"Sheet2!$K$43","v":45},{"$f":"Sheet2!$K$44","v":46},{"$f":"Sheet2!$K$45","v":47},{"$f":"Sheet2!$K$46","v":49},{"$f":"Sheet2!$K$47","v":51},{"$f":"Sheet2!$K$48","v":0},{"$f":"Sheet2!$K$49","v":0},{"$f":"Sheet2!$K$50","v":0},{"$f":"Sheet2!$K$51","v":0},{"$f":"Sheet2!$K$52","v":0}]
[]
[null,"22nd b",null,{"$f":"Sheet2!$M$6","v":0},{"$f":"Sheet2!$M$7","v":0},{"$f":"Sheet2!$M$8","v":1},{"$f":"Sheet2!$M$9","v":1},{"$f":"Sheet2!$M$10","v":3},{"$f":"Sheet2!$M$11","v":4},{"$f":"Sheet2!$M$12","v":5},{"$f":"Sheet2!$M$13","v":5},{"$f":"Sheet2!$M$14","v":6},{"$f":"Sheet2!$M$15","v":7},{"$f":"Sheet2!$M$16","v":7},{"$f":"Sheet2!$M$17","v":9},{"$f":"Sheet2!$M$18","v":9},{"$f":"Sheet2!$M$19","v":9},{"$f":"Sheet2!$M$20","v":10},{"$f":"Sheet2!$M$21","v":11},{"$f":"Sheet2!$M$22","v":12},{"$f":"Sheet2!$M$23","v":12},{"$f":"Sheet2!$M$24","v":14},{"$f":"Sheet2!$M$25","v":15},{"$f":"Sheet2!$M$26","v":16},{"$f":"Sheet2!$M$27","v":18},{"$f":"Sheet2!$M$28","v":19},{"$f":"Sheet2!$M$29","v":19},{"$f":"Sheet2!$M$30","v":21},{"$f":"Sheet2!$M$31","v":21},{"$f":"Sheet2!$M$32","v":22},{"$f":"Sheet2!$M$33","v":22},{"$f":"Sheet2!$M$34","v":24},{"$f":"Sheet2!$M$35","v":25},{"$f":"Sheet2!$M$36","v":26},{"$f":"Sheet2!$M$37","v":26},{"$f":"Sheet2!$M$38","v":26},{"$f":"Sheet2!$M$39","v":26},{"$f":"Sheet2!$M$40","v":27},{"$f":"Sheet2!$M$41","v":27},{"$f":"Sheet2!$M$42","v":29},{"$f":"Sheet2!$M$43","v":31},{"$f":"Sheet2!$M$44","v":31},{"$f":"Sheet2!$M$45","v":32},{"$f":"Sheet2!$M$46","v":33},{"$f":"Sheet2!$M$47","v":34},{"$f":"Sheet2!$M$48","v":0},{"$f":"Sheet2!$M$49","v":0},{"$f":"Sheet2!$M$50","v":0},{"$f":"Sheet2!$M$51","v":0},{"$f":"Sheet2!$M$52","v":0}]
[]
[null,"24th c",null,{"$f":"Sheet2!$O$6","v":0},{"$f":"Sheet2!$O$7","v":0},{"$f":"Sheet2!$O$8","v":0},{"$f":"Sheet2!$O$9","v":1},{"$f":"Sheet2!$O$10","v":2},{"$f":"Sheet2!$O$11","v":3},{"$f":"Sheet2!$O$12","v":3},{"$f":"Sheet2!$O$13","v":4},{"$f":"Sheet2!$O$14","v":4},{"$f":"Sheet2!$O$15","v":4},{"$f":"Sheet2!$O$16","v":6},{"$f":"Sheet2!$O$17","v":7},{"$f":"Sheet2!$O$18","v":8},{"$f":"Sheet2!$O$19","v":8},{"$f":"Sheet2!$O$20","v":9},{"$f":"Sheet2!$O$21","v":10},{"$f":"Sheet2!$O$22","v":11},{"$f":"Sheet2!$O$23","v":11},{"$f":"Sheet2!$O$24","v":11},{"$f":"Sheet2!$O$25","v":13},{"$f":"Sheet2!$O$26","v":15},{"$f":"Sheet2!$O$27","v":15},{"$f":"Sheet2!$O$28","v":15},{"$f":"Sheet2!$O$29","v":17},{"$f":"Sheet2!$O$30","v":17},{"$f":"Sheet2!$O$31","v":17},{"$f":"Sheet2!$O$32","v":19},{"$f":"Sheet2!$O$33","v":20},{"$f":"Sheet2!$O$34","v":20},{"$f":"Sheet2!$O$35","v":20},{"$f":"Sheet2!$O$36","v":20},{"$f":"Sheet2!$O$37","v":20},{"$f":"Sheet2!$O$38","v":21},{"$f":"Sheet2!$O$39","v":23},{"$f":"Sheet2!$O$40","v":23},{"$f":"Sheet2!$O$41","v":23},{"$f":"Sheet2!$O$42","v":23},{"$f":"Sheet2!$O$43","v":23},{"$f":"Sheet2!$O$44","v":23},{"$f":"Sheet2!$O$45","v":25},{"$f":"Sheet2!$O$46","v":25},{"$f":"Sheet2!$O$47","v":26},{"$f":"Sheet2!$O$48","v":0},{"$f":"Sheet2!$O$49","v":0},{"$f":"Sheet2!$O$50","v":0},{"$f":"Sheet2!$O$51","v":0},{"$f":"Sheet2!$O$52","v":0}]
[]
[null,"d"]
[]
[null,"Millwall e",null,{"$f":"Sheet2!$G$6","v":2},{"$f":"Sheet2!$G$7","v":4},{"$f":"Sheet2!$G$8","v":5},{"$f":"Sheet2!$G$9","v":5},{"$f":"Sheet2!$G$10","v":5},{"$f":"Sheet2!$G$11","v":5},{"$f":"Sheet2!$G$12","v":7},{"$f":"Sheet2!$G$13","v":8},{"$f":"Sheet2!$G$14","v":8},{"$f":"Sheet2!$G$15","v":8},{"$f":"Sheet2!$G$16","v":9},{"$f":"Sheet2!$G$17","v":9},{"$f":"Sheet2!$G$18","v":9},{"$f":"Sheet2!$G$19","v":9},{"$f":"Sheet2!$G$20","v":10},{"$f":"Sheet2!$G$21","v":10},{"$f":"Sheet2!$G$22","v":11},{"$f":"Sheet2!$G$23","v":11},{"$f":"Sheet2!$G$24","v":13},{"$f":"Sheet2!$G$25","v":14},{"$f":"Sheet2!$G$26","v":16},{"$f":"Sheet2!$G$27","v":18},{"$f":"Sheet2!$G$28","v":20},{"$f":"Sheet2!$G$29","v":20},{"$f":"Sheet2!$G$30","v":22},{"$f":"Sheet2!$G$31","v":22},{"$f":"Sheet2!$G$32","v":23},{"$f":"Sheet2!$G$33","v":24},{"$f":"Sheet2!$G$34","v":24},{"$f":"Sheet2!$G$35","v":25},{"$f":"Sheet2!$G$36","v":26},{"$f":"Sheet2!$G$37","v":26},{"$f":"Sheet2!$G$38","v":26},{"$f":"Sheet2!$G$39","v":27},{"$f":"Sheet2!$G$40","v":27},{"$f":"Sheet2!$G$41","v":27},{"$f":"Sheet2!$G$42","v":29},{"$f":"Sheet2!$G$43","v":31},{"$f":"Sheet2!$G$44","v":31},{"$f":"Sheet2!$G$45","v":33},{"$f":"Sheet2!$G$46","v":33},{"$f":"Sheet2!$G$47","v":33},{"$f":"Sheet2!$G$48","v":0},{"$f":"Sheet2!$G$49","v":0},{"$f":"Sheet2!$G$50","v":0},{"$f":"Sheet2!$G$51","v":0},{"$f":"Sheet2!$G$52","v":0}]
[]
[]
[]
[]
[null,"2nd f",null,{"$f":"(Sheet2!$T$6)","v":2},{"$f":"(Sheet2!$T$7)","v":4},{"$f":"(Sheet2!$T$8)","v":5},{"$f":"(Sheet2!$T$9)","v":6},{"$f":"(Sheet2!$T$10)","v":8},{"$f":"(Sheet2!$T$11)","v":9},{"$f":"(Sheet2!$T$12)","v":10},{"$f":"(Sheet2!$T$13)","v":11},{"$f":"(Sheet2!$T$14)","v":12},{"$f":"(Sheet2!$T$15)","v":14},{"$f":"(Sheet2!$T$16)","v":15},{"$f":"(Sheet2!$T$17)","v":17},{"$f":"(Sheet2!$T$18)","v":18},{"$f":"(Sheet2!$T$19)","v":20},{"$f":"(Sheet2!$T$20)","v":22},{"$f":"(Sheet2!$T$21)","v":22},{"$f":"(Sheet2!$T$22)","v":22},{"$f":"(Sheet2!$T$23)","v":23},{"$f":"(Sheet2!$T$24)","v":23},{"$f":"(Sheet2!$T$25)","v":25},{"$f":"(Sheet2!$T$26)","v":26},{"$f":"(Sheet2!$T$27)","v":26},{"$f":"(Sheet2!$T$28)","v":27},{"$f":"(Sheet2!$T$29)","v":28},{"$f":"(Sheet2!$T$30)","v":30},{"$f":"(Sheet2!$T$31)","v":32},{"$f":"(Sheet2!$T$32)","v":35},{"$f":"(Sheet2!$T$33)","v":35},{"$f":"(Sheet2!$T$34)","v":37},{"$f":"(Sheet2!$T$35)","v":37},{"$f":"(Sheet2!$T$36)","v":38},{"$f":"(Sheet2!$T$37)","v":40},{"$f":"(Sheet2!$T$38)","v":40},{"$f":"(Sheet2!$T$39)","v":41},{"$f":"(Sheet2!$T$40)","v":43},{"$f":"(Sheet2!$T$41)","v":44},{"$f":"(Sheet2!$T$42)","v":46},{"$f":"(Sheet2!$T$43)","v":46},{"$f":"(Sheet2!$T$44)","v":47},{"$f":"(Sheet2!$T$45)","v":48},{"$f":"(Sheet2!$T$46)","v":50},{"$f":"(Sheet2!$T$47)","v":52},{"$f":"(Sheet2!$T$48)","v":0},{"$f":"(Sheet2!$T$49)","v":0},{"$f":"(Sheet2!$T$50)","v":0},{"$f":"(Sheet2!$T$51)","v":0},{"$f":"(Sheet2!$T$52)","v":0}]
[]
[null,"23rd g",null,{"$f":"(Sheet2!$V$6)","v":0},{"$f":"(Sheet2!$V$7)","v":0},{"$f":"(Sheet2!$V$8)","v":1},{"$f":"(Sheet2!$V$9)","v":1},{"$f":"(Sheet2!$V$10)","v":2},{"$f":"(Sheet2!$V$11)","v":3},{"$f":"(Sheet2!$V$12)","v":5},{"$f":"(Sheet2!$V$13)","v":5},{"$f":"(Sheet2!$V$14)","v":5},{"$f":"(Sheet2!$V$15)","v":6},{"$f":"(Sheet2!$V$16)","v":7},{"$f":"(Sheet2!$V$17)","v":7},{"$f":"(Sheet2!$V$18)","v":9},{"$f":"(Sheet2!$V$19)","v":9},{"$f":"(Sheet2!$V$20)","v":10},{"$f":"(Sheet2!$V$21)","v":10},{"$f":"(Sheet2!$V$22)","v":11},{"$f":"(Sheet2!$V$23)","v":11},{"$f":"(Sheet2!$V$24)","v":13},{"$f":"(Sheet2!$V$25)","v":14},{"$f":"(Sheet2!$V$26)","v":16},{"$f":"(Sheet2!$V$27)","v":17},{"$f":"(Sheet2!$V$28)","v":18},{"$f":"(Sheet2!$V$29)","v":19},{"$f":"(Sheet2!$V$30)","v":19},{"$f":"(Sheet2!$V$31)","v":19},{"$f":"(Sheet2!$V$32)","v":21},{"$f":"(Sheet2!$V$33)","v":21},{"$f":"(Sheet2!$V$34)","v":21},{"$f":"(Sheet2!$V$35)","v":23},{"$f":"(Sheet2!$V$36)","v":23},{"$f":"(Sheet2!$V$37)","v":25},{"$f":"(Sheet2!$V$38)","v":25},{"$f":"(Sheet2!$V$39)","v":25},{"$f":"(Sheet2!$V$40)","v":27},{"$f":"(Sheet2!$V$41)","v":27},{"$f":"(Sheet2!$V$42)","v":28},{"$f":"(Sheet2!$V$43)","v":28},{"$f":"(Sheet2!$V$44)","v":30},{"$f":"(Sheet2!$V$45)","v":31},{"$f":"(Sheet2!$V$46)","v":32},{"$f":"(Sheet2!$V$47)","v":33},{"$f":"(Sheet2!$V$48)","v":0},{"$f":"(Sheet2!$V$49)","v":0},{"$f":"(Sheet2!$V$50)","v":0},{"$f":"(Sheet2!$V$51)","v":0},{"$f":"(Sheet2!$V$52)","v":0}]
[]
[]
[]
[]
[null,null,null,5,6,7,8,9,10,11,12,13,14,15,16,17,18,19,20,21,22,23,24,25,26,27,28,29,30,31,32,33,34,35,36,37,38,39,40,41,42,43,44,45,46,47,48,45,46,46]
[null,null,null,{"$f":"D176-D189","v":0},0,0,0,1,1,0,0,1,1,0,2,0,0,0,1,1,1,1,1,0,1,1,0,2,2,1,1,3,2,3,1,1,1,0,0,1,3,1,1,1,1,0,0,0,0,0]

{"sheet":"Sheet2","index":3,"n_rows":47,"n_cols":26,"rows_kept":47,"cut":false,"hidden":false,"merged":[]}
[null,null,"Millwall 1933/34 results and fixtures ",null,null,null,{"$f":"[5]Summary!$AP$67","v":33},{"$f":"[5]Summary!$Q$22","v":21},{"$f":"[5]Summary!$AP$10","v":59},1,{"$f":"[5]Summary!$AP$12","v":51},2,{"$f":"[5]Summary!$AP$29","v":34},20,{"$f":"[5]Summary!$AP$31","v":26},22,null,null,{"$f":"[5]Summary!$T$5","v":63},{"$f":"[5]Summary!$AP$11","v":52},2,{"$f":"[5]Summary!$AP$30","v":33},21,null,null,{"$f":"[5]Summary!$U$7","v":"Man Utd (H) L 0-2"}]
[]
[]
[null,null,null,null,null,null,"x"]
[null,"Game","Competition",null,"Pts","Pos","Millwall","Pos","top","Pos","3rd","Pos","20th","Pos","Bottom","Pos","Bottom","Pos","Day","2nd","Pos","21st","Pos",null,null,"Vesus"]
[null,1,"Division 2","Lincoln (A) W 1-0",null,null,2,4,2,1,2,2,0,20,0,22,null,null,1,2,2,0,21,null,null,"Lincoln (A) W 1-0"]
[null,2,"Division 2","Swansea (H) W 2-1",null,null,4,2,4,1,4,2,0,20,0,22,null,null,2,4,2,0,21,null,null,"Swansea (H) W 2-1"]
[null,3,"Division 2","Bury (H) D 0-0",null,null,5,3,6,1,5,2,1,20,0,22,null,null,6,5,2,1,21,null,null,"Bury (H) D 0-0"]
[null,4,"Division 2","Swansea (A) L 0-2",null,null,5,7,8,1,6,2,1,20,1,22,null,null,7,6,2,1,21,null,null,"Swansea (A) L 0-2"]
[null,5,"Division 2","Hull (A) L 2-3",null,null,5,11,8,1,7,2,3,20,2,22,null,null,10,8,2,2,21,null,null,"Hull (A) L 2-3"]
[null,6,"Division 2","Fulham (H) L 0-1",null,null,5,18,10,1,8,2,4,20,3,22,null,null,13,9,2,3,21,null,null,"Fulham (H) L 0-1"]
[null,7,"Division 2","Southampton (A) W 3-2",null,null,7,13,10,1,10,2,5,20,3,22,null,null,14,10,2,5,21,null,null,"Southampton (A) W 3-2"]
[null,8,"Division 2","Blackpool (H) D 0-0",null,null,8,13,12,1,11,2,5,20,4,22,null,null,15,11,2,5,21,null,null,"Blackpool (H) D 0-0"]
[null,9,"Division 2","Bradford City (A) L 0-1",null,null,8,15,14,1,12,2,6,20,4,22,null,null,16,12,2,5,21,null,null,"Bradford City (A) L 0-1"]
[null,10,"Division 2","Port Vale (H) L 0-3",null,null,8,17,15,1,12,2,7,20,4,22,null,null,17,14,2,6,21,null,null,"Port Vale (H) L 0-3"]
[null,11,"Division 2","West Ham (H) D 2-2",null,null,9,17,16,1,14,2,7,20,6,22,null,null,18,15,2,7,21,null,null,"West Ham (H) D 2-2"]
[null,12,"Division 2","Nottm Forest (A) L 0-2",null,null,9,20,17,1,16,2,9,20,7,22,null,null,19,17,2,7,21,null,null,"Nottm Forest (A) L 0-2"]
[null,13,"Division 2","Grimsby (H) L 0-1",null,null,9,21,19,1,17,2,9,20,8,22,null,null,20,18,2,9,21,null,null,"Grimsby (H) L 0-1"]
[null,14,"Division 2","Bradford PA (A) L 0-4",null,null,9,21,20,1,17,2,9,20,8,22,null,null,21,20,2,9,21,null,null,"Bradford PA (A) L 0-4"]
[null,15,"Division 2","Preston (H) D 1-1",null,null,10,21,22,1,19,2,10,20,9,22,null,null,22,22,2,10,21,null,null,"Preston (H) D 1-1"]
[null,16,"Division 2","Oldham (A) L 0-1",null,null,10,22,24,1,21,2,11,20,10,22,null,null,23,22,2,10,21,null,null,"Oldham (A) L 0-1"]
[null,17,"Division 2","Burnley (H) D 0-0",null,null,11,22,24,1,22,2,12,20,11,22,null,null,24,22,2,11,21,null,null,"Burnley (H) D 0-0"]
[null,18,"Division 2","Brentford (A) L 0-3",null,null,11,22,26,1,23,2,12,20,11,22,null,null,25,23,2,11,21,null,null,"Brentford (A) L 0-3"]
[null,19,"Division 2","Bolton (H) W 2-1",null,null,13,21,28,1,23,2,14,20,11,22,null,null,26,23,2,13,21,null,null,"Bolton (H) W 2-1"]
[null,20,"Division 2","Man Utd (A) D 1-1",null,null,14,21,28,1,23,2,15,20,13,22,null,null,27,25,2,14,21,null,null,"Man Utd (A) D 1-1"]
[null,21,"Division 2","Notts Co (A) W 1-0",null,null,16,21,30,1,25,2,16,20,15,22,null,null,28,26,2,16,21,null,null,"Notts Co (A) W 1-0"]
[null,22,"Division 2","Notts Co (H) W 3-2",null,null,18,20,32,1,25,2,18,20,15,22,null,null,29,26,2,17,21,null,null,"Notts Co (H) W 3-2"]
[null,23,"Division 2","Lincoln (H) W 4-1",null,null,20,19,32,1,27,2,19,20,15,22,null,null,30,27,2,18,21,null,null,"Lincoln (H) W 4-1"]
[null,24,"Division 2","Bury (A) L 1-5",null,null,20,19,34,1,28,2,19,20,17,22,null,null,33,28,2,19,21,null,null,"Bury (A) L 1-5"]
[null,25,"Division 2","Hull (H) W 2-0",null,null,22,19,36,1,30,2,21,20,17,22,null,null,34,30,2,19,21,null,null,"Hull (H) W 2-0"]
[null,26,"Division 2","Fulham (A) L 0-2",null,null,22,19,36,1,31,2,21,20,17,22,null,null,36,32,2,19,21,null,null,"Fulham (A) L 0-2"]
[null,27,"Division 2","Blackpool (A) D 2-2",null,null,23,19,40,1,33,2,22,20,19,22,null,null,42,35,2,21,21,null,null,"Blackpool (A) D 2-2"]
[null,28,"Division 2","Bradford City (H) D 1-1",null,null,24,19,41,1,33,2,22,20,20,22,null,null,43,35,2,21,21,null,null,"Bradford City (H) D 1-1"]
[null,29,"Division 2","Port Vale (A) L 1-5",null,null,24,20,43,1,36,2,24,20,20,22,null,null,47,37,2,21,21,null,null,"Port Vale (A) L 1-5"]
[null,30,"Division 2","West Ham (A) D 1-1",null,null,25,20,44,1,36,2,25,20,20,22,null,null,48,37,2,23,21,null,null,"West Ham (A) D 1-1"]
[null,31,"Division 2","Nottm Forest (H) D 0-0",null,null,26,20,45,1,38,2,26,20,20,22,null,null,50,38,2,23,21,null,null,"Nottm Forest (H) D 0-0"]
[null,32,"Division 2","Grimsby (A) L 2-5",null,null,26,20,47,1,39,2,26,20,20,22,null,null,51,40,2,25,21,null,null,"Grimsby (A) L 2-5"]
[null,33,"Division 2","Bradford PA (H) L 0-1",null,null,26,20,48,1,40,2,26,20,21,22,null,null,52,40,2,25,21,null,null,"Bradford PA (H) L 0-1"]
[null,34,"Division 2","Plymouth (H) D 0-0",null,null,27,19,49,1,41,2,26,20,23,22,null,null,53,41,2,25,21,null,null,"Plymouth (H) D 0-0"]
[null,35,"Division 2","Preston (A) L 2-4",null,null,27,21,51,1,42,2,27,20,23,22,null,null,54,43,2,27,21,null,null,"Preston (A) L 2-4"]
[null,36,"Division 2","Plymouth (A) L 0-1",null,null,27,21,53,1,43,2,27,20,23,22,null,null,55,44,2,27,21,null,null,"Plymouth (A) L 0-1"]
[null,37,"Division 2","Oldham (H) W 1-0",null,null,29,20,55,1,45,2,29,20,23,22,null,null,57,46,2,28,21,null,null,"Oldham (H) W 1-0"]
[null,38,"Division 2","Southampton (H) W 1-0",null,null,31,20,55,1,45,2,31,20,23,22,null,null,58,46,2,28,21,null,null,"Southampton (H) W 1-0"]
[null,39,"Division 2","Burnley (A) L 1-2",null,null,31,20,57,1,46,2,31,20,23,22,null,null,59,47,2,30,21,null,null,"Burnley (A) L 1-2"]
[null,40,"Division 2","Brentford (H) W 2-0",null,null,33,19,57,1,47,2,32,20,25,22,null,null,61,48,2,31,21,null,null,"Brentford (H) W 2-0"]
[null,41,"Division 2","Bolton (A) L 0-5",null,null,33,20,59,1,49,2,33,20,25,22,null,null,62,50,2,32,21,null,null,"Bolton (A) L 0-5"]
[null,42,"Division 2","Man Utd (H) L 0-2",null,null,33,21,59,1,51,2,34,20,26,22,null,null,63,52,2,33,21,null,null,"Man Utd (H) L 0-2"]

{"sheet":"Sheet3","index":4,"n_rows":154,"n_cols":57,"rows_kept":154,"cut":false,"hidden":false,"merged":[[8,1,10,1],[17,1,19,1],[18,52,20,52],[23,52,25,52],[27,1,29,1],[28,52,30,52],[33,52,35,52],[37,1,39,1],[38,52,40,52],[43,52,45,52],[47,1,49,1],[48,52,50,52],[53,52,55,52],[57,1,59,1],[58,52,60,52],[63,52,65,52],[67,1,69,1],[68,52,70,52],[73,52,75,52],[77,1,79,1],[78,52,80,52],[83,52,85,52],[87,1,89,1],[88,52,90,52],[93,52,95,52],[97,1,99,1],[98,52,100,52],[103,52,105,52],[107,1,109,1],[108,52,110,52],[133,52,135,52],[137,1,139,1],[113,52,115,52],[117,1,119,1],[118,52,120,52],[123,52,125,52],[127,1,129,1],[128,52,130,52]]}
[]
[null,null,null,null,null,null,null,null,null,null,null,null,null,null,null,null,null,null,null,null,null,null,null,null,null,null,null,null,null,null,null,null,null,null,null,null,null,null,null,null,null,null,null,null,null,null,null,null,null,null,null,null,null,null,null,4,46]
[]
[]
[]
[null,null,"Points",null,null,null,null,null,null,null,null,null,null,null,null,null,null,null,null,null,null,null,null,null,null,null,null,null,null,null,null,null,null,null,null,null,null,null,null,null,null,null,null,null,null,null,null,null,null,null,null,"Position"]
[]
[]
[null,65]
[]
[]
[]
[]
[]
[]
[]
[]
[null,60]
[null,null,null,null,null,null,null,null,null,null,null,null,null,null,null,null,null,null,null,null,null,null,null,null,null,null,null,null,null,null,null,null,null,null,null,null,null,null,null,null,null,null,null,null,null,null,null,null,null,null,null,null,1]
[]
[]
[]
[]
[null,null,null,null,null,null,null,null,null,null,null,null,null,null,null,null,null,null,null,null,null,null,null,null,null,null,null,null,null,null,null,null,null,null,null,null,null,null,null,null,null,null,null,null,null,null,null,null,null,null,null,null,2]
[]
[]
[]
[null,55]
[null,null,null,null,null,null,null,null,null,null,null,null,null,null,null,null,null,null,null,null,null,null,null,null,null,null,null,null,null,null,null,null,null,null,null,null,null,null,null,null,null,null,null,null,null,null,null,null,null,null,null,null,3]
[]
[]
[]
[]
[null,null,null,null,null,null,null,null,null,null,null,null,null,null,null,null,null,null,null,null,null,null,null,null,null,null,null,null,null,null,null,null,null,null,null,null,null,null,null,null,null,null,null,null,null,null,null,null,null,null,null,null,4]
[]
[]
[]
[null,50]
[null,null,null,null,null,null,null,null,null,null,null,null,null,null,null,null,null,null,null,null,null,null,null,null,null,null,null,null,null,null,null,null,null,null,null,null,null,null,null,null,null,null,null,null,null,null,null,null,null,null,null,null,5]
[]
[]
[]
[]
[null,null,null,null,null,null,null,null,null,null,null,null,null,null,null,null,null,null,null,null,null,null,null,null,null,null,null,null,null,null,null,null,null,null,null,null,null,null,null,null,null,null,null,null,null,null,null,null,null,null,null,null,6]
[]
[]
[]
[null,45]
[null,null,null,null,null,null,null,null,null,null,null,null,null,null,null,null,null,null,null,null,null,null,null,null,null,null,null,null,null,null,null,null,null,null,null,null,null,null,null,null,null,null,null,null,null,null,null,null,null,null,null,null,7]
[]
[]
[]
[]
[null,null,null,null,null,null,null,null,null,null,null,null,null,null,null,null,null,null,null,null,null,null,null,null,null,null,null,null,null,null,null,null,null,null,null,null,null,null,null,null,null,null,null,null,null,null,null,null,null,null,null,null,8]
[]
[]
[]
[null,40]
[null,null,null,null,null,null,null,null,null,null,null,null,null,null,null,null,null,null,null,null,null,null,null,null,null,null,null,null,null,null,null,null,null,null,null,null,null,null,null,null,null,null,null,null,null,null,null,null,null,null,null,null,9]
[]
[]
[]
[]
[null,null,null,null,null,null,null,null,null,null,null,null,null,null,null,null,null,null,null,null,null,null,null,null,null,null,null,null,null,null,null,null,null,null,null,null,null,null,null,null,null,null,null,null,null,null,null,null,null,null,null,null,10]
[]
[]
[]
[null,35]
[null,null,null,null,null,null,null,null,null,null,null,null,null,null,null,null,null,null,null,null,null,null,null,null,null,null,null,null,null,null,null,null,null,null,null,null,null,null,null,null,null,null,null,null,null,null,null,null,null,null,null,null,11]
[]
[]
[]
[]
[null,null,null,null,null,null,null,null,null,null,null,null,null,null,null,null,null,null,null,null,null,null,null,null,null,null,null,null,null,null,null,null,null,null,null,null,null,null,null,null,null,null,null,null,null,null,null,null,null,null,null,null,12]
[]
[]
[]
[null,30]
[null,null,null,null,null,null,null,null,null,null,null,null,null,null,null,null,null,null,null,null,null,null,null,null,null,null,null,null,null,null,null,null,null,null,null,null,null,null,null,null,null,null,null,null,null,null,null,null,null,null,null,null,13]
[]
[]
[]
[]
[null,null,null,null,null,null,null,null,null,null,null,null,null,null,null,null,null,null,null,null,null,null,null,null,null,null,null,null,null,null,null,null,null,null,null,null,null,null,null,null,null,null,null,null,null,null,null,null,null,null,null,null,14]
[]
[]
[]
[null,25]
[null,null,null,null,null,null,null,null,null,null,null,null,null,null,null,null,null,null,null,null,null,null,null,null,null,null,null,null,null,null,null,null,null,null,null,null,null,null,null,null,null,null,null,null,null,null,null,null,null,null,null,null,15]
[]
[]
[]
[]
[null,null,null,null,null,null,null,null,null,null,null,null,null,null,null,null,null,null,null,null,null,null,null,null,null,null,null,null,null,null,null,null,null,null,null,null,null,null,null,null,null,null,null,null,null,null,null,null,null,null,null,null,16]
[]
[]
[]
[null,20]
[null,null,null,null,null,null,null,null,null,null,null,null,null,null,null,null,null,null,null,null,null,null,null,null,null,null,null,null,null,null,null,null,null,null,null,null,null,null,null,null,null,null,null,null,null,null,null,null,null,null,null,null,17]
[]
[]
[]
[]
[null,null,null,null,null,null,null,null,null,null,null,null,null,null,null,null,null,null,null,null,null,null,null,null,null,null,null,null,null,null,null,null,null,null,null,null,null,null,null,null,null,null,null,null,null,null,null,null,null,null,null,null,18]
[]
[]
[]
[null,15]
[null,null,null,null,null,null,null,null,null,null,null,null,null,null,null,null,null,null,null,null,null,null,null,null,null,null,null,null,null,null,null,null,null,null,null,null,null,null,null,null,null,null,null,null,null,null,null,null,null,null,null,null,19]
[]
[]
[]
[]
[null,null,null,null,null,null,null,null,null,null,null,null,null,null,null,null,null,null,null,null,null,null,null,null,null,null,null,null,null,null,null,null,null,null,null,null,null,null,null,null,null,null,null,null,null,null,null,null,null,null,null,null,20]
[]
[]
[]
[null,10]
[null,null,null,null,null,null,null,null,null,null,null,null,null,null,null,null,null,null,null,null,null,null,null,null,null,null,null,null,null,null,null,null,null,null,null,null,null,null,null,null,null,null,null,null,null,null,null,null,null,null,null,null,21]
[]
[]
[]
[]
[null,null,null,null,null,null,null,null,null,null,null,null,null,null,null,null,null,null,null,null,null,null,null,null,null,null,null,null,null,null,null,null,null,null,null,null,null,null,null,null,null,null,null,null,null,null,null,null,null,null,null,null,22]
[]
[]
[]
[null,5]
[]
[]
[]
[]
[]
[]
[]
[]
[]
[null,0]
[]
[]
[]
[null,null,null,"Lincoln (A) W 1-0","Swansea (H) W 2-1","Bury (H) D 0-0","Swansea (A) L 0-2","Hull (A) L 2-3","Fulham (H) L 0-1","Southampton (A) W 3-2","Blackpool (H) D 0-0","Bradford City (A) L 0-1","Port Vale (H) L 0-3","West Ham (H) D 2-2","Nottm Forest (A) L 0-2","Grimsby (H) L 0-1","Bradford PA (A) L 0-4","Preston (H) D 1-1","Oldham (A) L 0-1","Burnley (H) D 0-0","Brentford (A) L 0-3","Bolton (H) W 2-1","Man Utd (A) D 1-1","Notts Co (A) W 1-0","Notts Co (H) W 3-2","Lincoln (H) W 4-1","Bury (A) L 1-5","Hull (H) W 2-0","Fulham (A) L 0-2","Blackpool (A) D 2-2","Bradford City (H) D 1-1","Port Vale (A) L 1-5","West Ham (A) D 1-1","Nottm Forest (H) D 0-0","Grimsby (A) L 2-5","Bradford PA (H) L 0-1","Plymouth (H) D 0-0","Preston (A) L 2-4","Plymouth (A) L 0-1","Oldham (H) W 1-0","Southampton (H) W 1-0","Burnley (A) L 1-2","Brentford (H) W 2-0","Bolton (A) L 0-5","Man Utd (H) L 0-2","Final Table"]
[]
[]
[]
[]
[]
[null,"Millwall",null,{"$f":"Sheet2!$G$6","v":2},{"$f":"Sheet2!$G$7","v":4},{"$f":"Sheet2!$G$8","v":5},{"$f":"Sheet2!$G$9","v":5},{"$f":"Sheet2!$G$10","v":5},{"$f":"Sheet2!$G$11","v":5},{"$f":"Sheet2!$G$12","v":7},{"$f":"Sheet2!$G$13","v":8},{"$f":"Sheet2!$G$14","v":8},{"$f":"Sheet2!$G$15","v":8},{"$f":"Sheet2!$G$16","v":9},{"$f":"Sheet2!$G$17","v":9},{"$f":"Sheet2!$G$18","v":9},{"$f":"Sheet2!$G$19","v":9},{"$f":"Sheet2!$G$20","v":10},{"$f":"Sheet2!$G$21","v":10},{"$f":"Sheet2!$G$22","v":11},{"$f":"Sheet2!$G$23","v":11},{"$f":"Sheet2!$G$24","v":13},{"$f":"Sheet2!$G$25","v":14},{"$f":"Sheet2!$G$26","v":16},{"$f":"Sheet2!$G$27","v":18},{"$f":"Sheet2!$G$28","v":20},{"$f":"Sheet2!$G$29","v":20},{"$f":"Sheet2!$G$30","v":22},{"$f":"Sheet2!$G$31","v":22},{"$f":"Sheet2!$G$32","v":23},{"$f":"Sheet2!$G$33","v":24},{"$f":"Sheet2!$G$34","v":24},{"$f":"Sheet2!$G$35","v":25},{"$f":"Sheet2!$G$36","v":26},{"$f":"Sheet2!$G$37","v":26},{"$f":"Sheet2!$G$38","v":26},{"$f":"Sheet2!$G$39","v":27},{"$f":"Sheet2!$G$40","v":27},{"$f":"Sheet2!$G$41","v":27},{"$f":"Sheet2!$G$42","v":29},{"$f":"Sheet2!$G$43","v":31},{"$f":"Sheet2!$G$44","v":31},{"$f":"Sheet2!$G$45","v":33},{"$f":"Sheet2!$G$46","v":33},{"$f":"Sheet2!$G$47","v":33},{"$f":"Sheet2!$G$48","v":0},{"$f":"Sheet2!$G$49","v":0},{"$f":"Sheet2!$G$50","v":0},{"$f":"Sheet2!$G$51","v":0},{"$f":"Sheet2!$G$52","v":0}]
[]
[null,"Position",null,{"$f":"126-(D154*5)","v":106},116,111,91,71,36,61,61,51,41,41,26,21,21,21,16,16,16,21,21,21,26,31,31,31,31,31,31,26,26,26,26,26,31,21,21,26,26,26,31,26,21,126,126,126,126,126]
[]
[]
[]
[null,null,null,{"$f":"Sheet2!$H$6","v":4},{"$f":"Sheet2!$H$7","v":2},{"$f":"Sheet2!$H$8","v":3},{"$f":"Sheet2!$H$9","v":7},{"$f":"Sheet2!$H$10","v":11},{"$f":"Sheet2!$H$11","v":18},{"$f":"Sheet2!$H$12","v":13},{"$f":"Sheet2!$H$13","v":13},{"$f":"Sheet2!$H$14","v":15},{"$f":"Sheet2!$H$15","v":17},{"$f":"Sheet2!$H$16","v":17},{"$f":"Sheet2!$H$17","v":20},{"$f":"Sheet2!$H$18","v":21},{"$f":"Sheet2!$H$19","v":21},{"$f":"Sheet2!$H$20","v":21},{"$f":"Sheet2!$H$21","v":22},{"$f":"Sheet2!$H$22","v":22},{"$f":"Sheet2!$H$23","v":22},{"$f":"Sheet2!$H$24","v":21},{"$f":"Sheet2!$H$25","v":21},{"$f":"Sheet2!$H$26","v":21},{"$f":"Sheet2!$H$27","v":20},{"$f":"Sheet2!$H$28","v":19},{"$f":"Sheet2!$H$29","v":19},{"$f":"Sheet2!$H$30","v":19},{"$f":"Sheet2!$H$31","v":19},{"$f":"Sheet2!$H$32","v":19},{"$f":"Sheet2!$H$33","v":19},{"$f":"Sheet2!$H$34","v":20},{"$f":"Sheet2!$H$35","v":20},{"$f":"Sheet2!$H$36","v":20},{"$f":"Sheet2!$H$37","v":20},{"$f":"Sheet2!$H$38","v":20},{"$f":"Sheet2!$H$39","v":19},{"$f":"Sheet2!$H$40","v":21},{"$f":"Sheet2!$H$41","v":21},{"$f":"Sheet2!$H$42","v":20},{"$f":"Sheet2!$H$43","v":20},{"$f":"Sheet2!$H$44","v":20},{"$f":"Sheet2!$H$45","v":19},{"$f":"Sheet2!$H$46","v":20},{"$f":"Sheet2!$H$47","v":21},{"$f":"Sheet2!$H$48","v":0},{"$f":"Sheet2!$H$49","v":0},{"$f":"Sheet2!$H$50","v":0},{"$f":"Sheet2!$H$51","v":0},{"$f":"Sheet2!$H$52","v":0}]